Workbook

Sheet Lifting
A1: Linda Odum | AM1: Best BP | AN1: BP
A2: =IFERROR(VLOOKUP(INDIRECT(ADDRESS(MATCH(A1,INDIRECT(CONCATENATE("B12:B50")),0)+11,3)),Setup!M1:N200,2,FALSE),"-") -> Virginia | D2: =INDIRECT(CONCATENATE("F",MATCH(A1,B:B,0))) -> 84 | F2: =CONCATENATE(RIGHT(E11,2)," Cls") -> kg Cls | AM2: Best DL | AN2: DL
A3: Deadlift 3 | C3: =Lists!B36 -> 105 | E3: =Setup!G15 -> Kg | F3: =IF(E3="Kg",C3*2.2046,C3/2.2046) -> 231.483 | G3: =IF(E3="Kg","Lb","Kg") -> Lb | AM3: Best SQ | AN3: SQ
A4: =VLOOKUP(INDIRECT(ADDRESS(MATCH(A1,INDIRECT(CONCATENATE("B12:B50")),0)+11,4)),Setup!I5:J93,2,FALSE) -> Raw Women (70-79) | C4: Event | E4: =IF(Setup!B9="Powerlifting (3 lift meet)","PL Total","") -> PL Total | G4: =IFERROR(IF(OR(C3>C5+G8,C3>C6+G8,G9>E5,G9>E6),"Record Attempt",""),"") -> Record Attempt | AM4: PL Total | AN4: PL
A5: Open | C5: =IFERROR(Lists!F51,10000) -> 175 | E5: =IF(OR(E4="",LEFT(A3,1)="S",LEFT(A3,1)="B"),10000,IFERROR(Lists!F53,10000)) -> 402.5 | AM5: PP Total | AN5: PP
A6: =IFERROR(IF(INDIRECT(ADDRESS(MATCH(A1,INDIRECT(CONCATENATE("B12:B40")),0)+11,9))="","O",VLOOKUP(INDIRECT(ADDRESS(MATCH(A1,INDIRECT(CONCATENATE("B12:B40")),0)+11,45)),DATA!E35:F53,2)),"") ->  | C6: =IFERROR(IF(A6="O",10000,Lists!E51),10000) -> 0 | E6: =IF(OR(E4="",LEFT(A3,1)="S",LEFT(A3,1)="B"),10000,IFERROR(IF(A6="O",10000,Lists!E53),10000)) -> 0 | AM6: DQ | AN6: DQ
B7: Current Status | C7: Good | D7: NoLift | E7: Next | F7: Auto | G7: 1 | AM7: Drug Test | AN7: DT | AR7: 2018-03-24 | BO7: div | BP7: cls
C8: =CONCATENATE("Setup!Q5:Q",COUNTA(Setup!Q:Q)+4) -> Setup!Q5:Q17 | F8: Min Increment | G8: =IF(Setup!G15="Kg",0.5,1) -> 0.5
C9: =CONCATENATE("Lists!E2:E",COUNTIF(Lists!E1:E12,"<>""")) -> Lists!E2:E12 | F9: Forecast total | G9: =INDIRECT(ADDRESS(Lists!B25,51,,,"Lifting")) -> 200 | AI9: sort | BH9: =NOW()-TODAY() -> 17:32:18.020
A10: =CONCATENATE("Setup!P5:P",COUNTA(Setup!Q:Q)+3) -> Setup!P5:P16 | B10: =CONCATENATE("B13:B",12+COUNTIF(A:A,RIGHT(A11,LEN(A11)-FIND(" ",A11)))) -> B13:B26 | C10: =CONCATENATE("Setup!M6:M",COUNTA(Setup!M:M)+3) -> Setup!M6:M19 | D10: =CONCATENATE("Setup!I6:I",COUNTA(Setup!I:I)+3) -> Setup!I6:I76 | G10: =INDIRECT(ADDRESS(Lists!B25,26,,,"Lifting")) -> 1/FR-M4a//PL | AI10: on | AJ10: Assigned Macro values | AV10: Forecasts
A11: Flt 2A | B11: Name | C11: Team | D11: Div | E11: ='Weigh-In'!F2 -> Bwt - kg | F11: =IF(Setup!E39="IPF Wt Classes","IPF Wt Cls","Hi Sch Wt Cls") -> IPF Wt Cls | G11: lot# | H11: Wilks Coeff | I11: DOB | J11: SQ rack | K11: SQ-1 | L11: SQ-2 | M11: SQ-3 | N11: Best SQ | O11: BP rack | P11: BP-1 | Q11: BP-2 | R11: BP-3 | S11: Best BP | T11: Sub Total | U11: DL-1 | V11: DL-2 | W11: DL-3 | X11: Best DL | Y11: PL Total | Z11: Pl/Div/Cls/Event | AA11: Forecast Score | AB11: F'cast Place | AC11: Wilks Pts | AD11: Age-Wilks | AE11: Events Entered | AF11: MemberID | AG11: State | AH11: Flight Sorting | AI11: =Lists!B31 -> W | AJ11: SQ time rank | AK11: BP time rank | AL11: DL/TL rank | AM11: =VLOOKUP(Y11,AM1:AN7,2,FALSE) -> PL | AN11: Pl Code | AO11: tl or coef score | AQ11: Div Order | AR11: DB Div | AT11: Wt Cls order | AV11: SQ | AW11: BP | AX11: DL | AY11: tl or event | AZ11: wilks score | BA11: wilks & age | BB11: score value | BJ11: Active Lifter Row | BK11: =Lists!B25 -> 48 | BL11: Active Lifter Col | BM11: =Lists!B24 -> 23 | BN11: =Lists!B23 -> DL-3 | BO11: =Lists!B40 -> FR-M4a | BP11: =Lists!B39 -> 84 | BZ11: Drug tested | CB11: Div-Cls | CC11: event time | CD11: Place | CE11: Forecast Place
F12: =IFERROR(VLOOKUP(E12,DATA!$E$2:$G$22,IF(LEFT(D12,1)="M",2,3)),"") ->  | H12: =IFERROR(IF(LEFT(D12,1)="M",Wilks_Men(IF($E$11="Bwt - Lb",E12/2.2046,E12)),Wilks_Women(IF($E$11="Bwt - Lb",E12/2.2046,E12))),"") -> 0 | N12: =IF(MAX(K12:M12)<=0,0,MAX(CELL("color",K12)*K12,CELL("color",L12)*L12,CELL("color",M12)*M12)) -> 0 | S12: =IF(MAX(P12:R12)<=0,0,MAX(CELL("color",P12)*P12,CELL("color",Q12)*Q12,CELL("color",R12)*R12)) -> 0 | T12: =IF(OR(N12=0,S12=0),0,N12+S12) -> 0 | X12: =IF(MAX(U12:W12)<=0,0,MAX(CELL("color",U12)*U12,CELL("color",V12)*V12,CELL("color",W12)*W12)) -> 0 | Y12: =AM12*IF($AM$11="SQ",N12,IF($AM$11="BP",S12,IF($AM$11="DL",X12,IF($AM$11="PP",IF(OR(S12=0,X12=0),0,S12+X12),IF(OR(T12=0,X12=0),0,T12+X12))))) -> 0 | Z12: =IF(Y12=0,"",CONCATENATE(CD12,"/",IF(AN12=4,"Wilks",D12),"/",IF(AN12>1,"",F12),"/",$AM$11)) ->  | AA12: =BB12 -> 0 | AB12: =IF(AA12=0,"",CE12) ->  | AC12: =H12*IF($E$3="Kg",Y12,Y12/2.2046) -> 0 | AD12: =IFERROR(VLOOKUP(AS12,DATA!$A$2:$B$63,2,TRUE),0)*AC12 -> 0 | AH12: =IFERROR(VLOOKUP(A12,Setup!$Q$5:$R$20,2,FALSE),"") ->  | AI12: =IF(VALUE(INDIRECT(CONCATENATE($AI$11,ROW())))=0,"",ABS(INDIRECT(CONCATENATE($AI$11,ROW())))+0.000001*G12) ->  | AJ12: 0 | AK12: 0 | AL12: 0 | AM12: =IF(ISERROR(SEARCH($AM$11,AE12)),0,1) -> 0 | AN12: =VLOOKUP(D12,Setup!$I$6:$K$93,3,FALSE) ->  | AO12: =ROUND(IFERROR(IF(AN12=1,Y12,IF(AN12=2,AC12,IF(AN12=3,AD12,AC12))),0),5) -> 0 | AQ12: =IFERROR(MATCH(D12,Setup!$I$6:$I$93,0),"") ->  | AR12: =IFERROR(CONCATENATE(LEFT(D12,FIND("-",D12)),IF(AS12="","O",VLOOKUP(AS12,DATA!$E$35:$F$53,2,TRUE))),"") ->  | AS12: =IF(YEAR($AR$7)-YEAR(I12)<40,DATEDIF(I12,$AR$7,"Y"),YEAR($AR$7)-YEAR(I12)) -> 118 | AT12: =IF(AN12=1,MATCH(F12,DATA!$AB$2:$AB$34,0),0) ->  | AV12: =IF(MAX(K12:M12)>0,MAX(K12:M12),0) -> 0 | AW12: =IF(MAX(P12:R12)>0,MAX(P12:R12),0) -> 0 | AX12: =IF(MAX(U12:W12)>0,MAX(U12:W12),0) -> 0 | AY12: =AM12*IF($AM$11="PL",IF(MIN(AV12:AX12)=0,0,AV12+AW12+AX12),IF($AM$11="PP",IF(MIN(AW12:AX12)=0,0,AW12+AX12),IF($AM$11="BP",AW12,IF($AM$11="DL",AX12,AV12)))) -> 0 | AZ12: =ROUND(AY12*H12,5) -> 0 | BA12: =ROUND(IFERROR(VLOOKUP(AS12,DATA!$A$2:$B$63,2,FALSE),1)*AZ12,5) -> 0 | BB12: =IFERROR(IF(AN12=1,AY12,IF(AN12=2,AZ12,IF(AN12=3,BA12,AZ12))),0) -> 0 | BZ12: =IFERROR(IF(FIND("DT",AE12),"Y",""),"") ->  | CB12: =CONCATENATE(IF(AN12=4,"",D12),IF(AN12=1,F12,"")) ->  | CC12: =IF($AM$11="SQ",AJ12,IF($AM$11="BP",AK12,AL12)) -> 0 | CD12: =1+COUNTIFS(INDIRECT("AN12:AN500"),AN12,INDIRECT("CB12:CB500"),CB12,INDIRECT("AO12:AO500"),">"&AO12) +COUNTIFS(INDIRECT("AO12:AO500"),AO12,INDIRECT("AN12:AN500"),1,INDIRECT("CB12:CB500"),CB12,INDIRECT("E12:E500"),"<"&E12) +COUNTIFS(INDIRECT("AO12:AO500"),AO12,INDIRECT("AN12:AN500"),1,INDIRECT("CB12:CB500"),CB12,INDIRECT("E12:E500"),E12,INDIRECT("CC12:CC500"),"<"&CC12) -> 1 | CE12: =1+COUNTIFS(INDIRECT("AN12:AN500"),AN12,INDIRECT("CB12:CB500"),CB12,INDIRECT("BB12:BB500"),">"&BB12) +COUNTIFS(INDIRECT("BB12:BB500"),BB12,INDIRECT("AN12:AN500"),1,INDIRECT("CB12:CB500"),CB12,INDIRECT("E12:E500"),"<"&E12) -> 1
A13: 2A | B13: Heather Faas | C13: SC | D13: FR-O | E13: 51.8 | F13: =IFERROR(VLOOKUP(E13,DATA!$E$2:$G$22,IF(LEFT(D13,1)="M",2,3)),"") -> 52 | G13: 301 | H13: =IFERROR(IF(LEFT(D13,1)="M",Wilks_Men(IF($E$11="Bwt - Lb",E13/2.2046,E13)),Wilks_Women(IF($E$11="Bwt - Lb",E13/2.2046,E13))),"") -> 1.250399947 | I13: 1983-04-08 | J13: 9 | K13: 117.5 | L13: 122.5 | M13: 125 | N13: =IF(MAX(K13:M13)<=0,0,MAX(CELL("color",K13)*K13,CELL("color",L13)*L13,CELL("color",M13)*M13)) -> 125 | O13: 8-3 | P13: 62.5 | Q13: 65 | R13: 67.5 | S13: =IF(MAX(P13:R13)<=0,0,MAX(CELL("color",P13)*P13,CELL("color",Q13)*Q13,CELL("color",R13)*R13)) -> 67.5 | T13: =IF(OR(N13=0,S13=0),0,N13+S13) -> 192.5 | U13: 150 | V13: 157.5 | W13: -165 | X13: =IF(MAX(U13:W13)<=0,0,MAX(CELL("color",U13)*U13,CELL("color",V13)*V13,CELL("color",W13)*W13)) -> 157.5 | Y13: =AM13*IF($AM$11="SQ",N13,IF($AM$11="BP",S13,IF($AM$11="DL",X13,IF($AM$11="PP",IF(OR(S13=0,X13=0),0,S13+X13),IF(OR(T13=0,X13=0),0,T13+X13))))) -> 350 | Z13: =IF(Y13=0,"",CONCATENATE(CD13,"/",IF(AN13=4,"Wilks",D13),"/",IF(AN13>1,"",F13),"/",$AM$11)) -> 1/FR-O/52/PL | AA13: =BB13 -> 350 | AB13: =IF(AA13=0,"",CE13) -> 1 | AC13: =H13*IF($E$3="Kg",Y13,Y13/2.2046) -> 437.6399815 | AD13: =IFERROR(VLOOKUP(AS13,DATA!$A$2:$B$63,2,TRUE),0)*AC13 -> 437.6399815 | AE13: PL | AF13: 908764 | AG13: SC | AH13: =IFERROR(VLOOKUP(A13,Setup!$Q$5:$R$20,2,FALSE),"") -> 0 | AI13: =IF(VALUE(INDIRECT(CONCATENATE($AI$11,ROW())))=0,"",ABS(INDIRECT(CONCATENATE($AI$11,ROW())))+0.000001*G13) -> 165.000301 | AJ13: 35 | AK13: 24 | AL13: 25 | AM13: =IF(ISERROR(SEARCH($AM$11,AE13)),0,1) -> 1 | AN13: =VLOOKUP(D13,Setup!$I$6:$K$93,3,FALSE) -> 1 | AO13: =ROUND(IFERROR(IF(AN13=1,Y13,IF(AN13=2,AC13,IF(AN13=3,AD13,AC13))),0),5) -> 350 | AQ13: =IFERROR(MATCH(D13,Setup!$I$6:$I$93,0),"") -> 8 | AR13: =IFERROR(CONCATENATE(LEFT(D13,FIND("-",D13)),IF(AS13="","O",VLOOKUP(AS13,DATA!$E$35:$F$53,2,TRUE))),"") -> FR-O | AS13: =IF(YEAR($AR$7)-YEAR(I13)<40,DATEDIF(I13,$AR$7,"Y"),YEAR($AR$7)-YEAR(I13)) -> 34 | AT13: =IF(AN13=1,MATCH(F13,DATA!$AB$2:$AB$34,0),0) -> 8 | AV13: =IF(MAX(K13:M13)>0,MAX(K13:M13),0) -> 125 | AW13: =IF(MAX(P13:R13)>0,MAX(P13:R13),0) -> 67.5 | AX13: =IF(MAX(U13:W13)>0,MAX(U13:W13),0) -> 157.5 | AY13: =AM13*IF($AM$11="PL",IF(MIN(AV13:AX13)=0,0,AV13+AW13+AX13),IF($AM$11="PP",IF(MIN(AW13:AX13)=0,0,AW13+AX13),IF($AM$11="BP",AW13,IF($AM$11="DL",AX13,AV13)))) -> 350 | AZ13: =ROUND(AY13*H13,5) -> 437.63998 | BA13: =ROUND(IFERROR(VLOOKUP(AS13,DATA!$A$2:$B$63,2,FALSE),1)*AZ13,5) -> 437.63998 | BB13: =IFERROR(IF(AN13=1,AY13,IF(AN13=2,AZ13,IF(AN13=3,BA13,AZ13))),0) -> 350 | BZ13: =IFERROR(IF(FIND("DT",AE13),"Y",""),"") ->  | CB13: =CONCATENATE(IF(AN13=4,"",D13),IF(AN13=1,F13,"")) -> FR-O52 | CC13: =IF($AM$11="SQ",AJ13,IF($AM$11="BP",AK13,AL13)) -> 25 | CD13: =1+COUNTIFS(INDIRECT("AN12:AN500"),AN13,INDIRECT("CB12:CB500"),CB13,INDIRECT("AO12:AO500"),">"&AO13) +COUNTIFS(INDIRECT("AO12:AO500"),AO13,INDIRECT("AN12:AN500"),1,INDIRECT("CB12:CB500"),CB13,INDIRECT("E12:E500"),"<"&E13) +COUNTIFS(INDIRECT("AO12:AO500"),AO13,INDIRECT("AN12:AN500"),1,INDIRECT("CB12:CB500"),CB13,INDIRECT("E12:E500"),E13,INDIRECT("CC12:CC500"),"<"&CC13) -> 1 | CE13: =1+COUNTIFS(INDIRECT("AN12:AN500"),AN13,INDIRECT("CB12:CB500"),CB13,INDIRECT("BB12:BB500"),">"&BB13) +COUNTIFS(INDIRECT("BB12:BB500"),BB13,INDIRECT("AN12:AN500"),1,INDIRECT("CB12:CB500"),CB13,INDIRECT("E12:E500"),"<"&E13) -> 1
A14: 2A | B14: Karen Naegel | C14: SC | D14: FR-O | E14: 55.9 | F14: =IFERROR(VLOOKUP(E14,DATA!$E$2:$G$22,IF(LEFT(D14,1)="M",2,3)),"") -> 57 | G14: 310 | H14: =IFERROR(IF(LEFT(D14,1)="M",Wilks_Men(IF($E$11="Bwt - Lb",E14/2.2046,E14)),Wilks_Women(IF($E$11="Bwt - Lb",E14/2.2046,E14))),"") -> 1.178300023 | I14: 1972-07-21 | J14: 11 | K14: -95 | L14: 95 | M14: 97.5 | N14: =IF(MAX(K14:M14)<=0,0,MAX(CELL("color",K14)*K14,CELL("color",L14)*L14,CELL("color",M14)*M14)) -> 97.5 | O14: 12-5 | P14: 57.5 | Q14: -60 | R14: -60 | S14: =IF(MAX(P14:R14)<=0,0,MAX(CELL("color",P14)*P14,CELL("color",Q14)*Q14,CELL("color",R14)*R14)) -> 57.5 | T14: =IF(OR(N14=0,S14=0),0,N14+S14) -> 155 | U14: 130 | V14: 135 | W14: 142.5 | X14: =IF(MAX(U14:W14)<=0,0,MAX(CELL("color",U14)*U14,CELL("color",V14)*V14,CELL("color",W14)*W14)) -> 142.5 | Y14: =AM14*IF($AM$11="SQ",N14,IF($AM$11="BP",S14,IF($AM$11="DL",X14,IF($AM$11="PP",IF(OR(S14=0,X14=0),0,S14+X14),IF(OR(T14=0,X14=0),0,T14+X14))))) -> 297.5 | Z14: =IF(Y14=0,"",CONCATENATE(CD14,"/",IF(AN14=4,"Wilks",D14),"/",IF(AN14>1,"",F14),"/",$AM$11)) -> 1/FR-O/57/PL | AA14: =BB14 -> 297.5 | AB14: =IF(AA14=0,"",CE14) -> 1 | AC14: =H14*IF($E$3="Kg",Y14,Y14/2.2046) -> 350.5442569 | AD14: =IFERROR(VLOOKUP(AS14,DATA!$A$2:$B$63,2,TRUE),0)*AC14 -> 374.3812663 | AE14: PL | AF14: 1003204 | AG14: SC | AH14: =IFERROR(VLOOKUP(A14,Setup!$Q$5:$R$20,2,FALSE),"") -> 0 | AI14: =IF(VALUE(INDIRECT(CONCATENATE($AI$11,ROW())))=0,"",ABS(INDIRECT(CONCATENATE($AI$11,ROW())))+0.000001*G14) -> 142.50031 | AJ14: 28 | AK14: 8 | AL14: 37 | AM14: =IF(ISERROR(SEARCH($AM$11,AE14)),0,1) -> 1 | AN14: =VLOOKUP(D14,Setup!$I$6:$K$93,3,FALSE) -> 1 | AO14: =ROUND(IFERROR(IF(AN14=1,Y14,IF(AN14=2,AC14,IF(AN14=3,AD14,AC14))),0),5) -> 297.5 | AQ14: =IFERROR(MATCH(D14,Setup!$I$6:$I$93,0),"") -> 8 | AR14: =IFERROR(CONCATENATE(LEFT(D14,FIND("-",D14)),IF(AS14="","O",VLOOKUP(AS14,DATA!$E$35:$F$53,2,TRUE))),"") -> FR-M1b | AS14: =IF(YEAR($AR$7)-YEAR(I14)<40,DATEDIF(I14,$AR$7,"Y"),YEAR($AR$7)-YEAR(I14)) -> 46 | AT14: =IF(AN14=1,MATCH(F14,DATA!$AB$2:$AB$34,0),0) -> 11 | AV14: =IF(MAX(K14:M14)>0,MAX(K14:M14),0) -> 97.5 | AW14: =IF(MAX(P14:R14)>0,MAX(P14:R14),0) -> 57.5 | AX14: =IF(MAX(U14:W14)>0,MAX(U14:W14),0) -> 142.5 | AY14: =AM14*IF($AM$11="PL",IF(MIN(AV14:AX14)=0,0,AV14+AW14+AX14),IF($AM$11="PP",IF(MIN(AW14:AX14)=0,0,AW14+AX14),IF($AM$11="BP",AW14,IF($AM$11="DL",AX14,AV14)))) -> 297.5 | AZ14: =ROUND(AY14*H14,5) -> 350.54426 | BA14: =ROUND(IFERROR(VLOOKUP(AS14,DATA!$A$2:$B$63,2,FALSE),1)*AZ14,5) -> 374.38127 | BB14: =IFERROR(IF(AN14=1,AY14,IF(AN14=2,AZ14,IF(AN14=3,BA14,AZ14))),0) -> 297.5 | BZ14: =IFERROR(IF(FIND("DT",AE14),"Y",""),"") ->  | CB14: =CONCATENATE(IF(AN14=4,"",D14),IF(AN14=1,F14,"")) -> FR-O57 | CC14: =IF($AM$11="SQ",AJ14,IF($AM$11="BP",AK14,AL14)) -> 37 | CD14: =1+COUNTIFS(INDIRECT("AN12:AN500"),AN14,INDIRECT("CB12:CB500"),CB14,INDIRECT("AO12:AO500"),">"&AO14) +COUNTIFS(INDIRECT("AO12:AO500"),AO14,INDIRECT("AN12:AN500"),1,INDIRECT("CB12:CB500"),CB14,INDIRECT("E12:E500"),"<"&E14) +COUNTIFS(INDIRECT("AO12:AO500"),AO14,INDIRECT("AN12:AN500"),1,INDIRECT("CB12:CB500"),CB14,INDIRECT("E12:E500"),E14,INDIRECT("CC12:CC500"),"<"&CC14) -> 1 | CE14: =1+COUNTIFS(INDIRECT("AN12:AN500"),AN14,INDIRECT("CB12:CB500"),CB14,INDIRECT("BB12:BB500"),">"&BB14) +COUNTIFS(INDIRECT("BB12:BB500"),BB14,INDIRECT("AN12:AN500"),1,INDIRECT("CB12:CB500"),CB14,INDIRECT("E12:E500"),"<"&E14) -> 1
A15: 2A | B15: Lisa Womble | C15: NC | D15: FR-O | E15: 55.4 | F15: =IFERROR(VLOOKUP(E15,DATA!$E$2:$G$22,IF(LEFT(D15,1)="M",2,3)),"") -> 57 | G15: 305 | H15: =IFERROR(IF(LEFT(D15,1)="M",Wilks_Men(IF($E$11="Bwt - Lb",E15/2.2046,E15)),Wilks_Women(IF($E$11="Bwt - Lb",E15/2.2046,E15))),"") -> 1.18659997 | I15: 1977-03-29 | J15: 11 | K15: 95 | L15: -100 | M15: 105 | N15: =IF(MAX(K15:M15)<=0,0,MAX(CELL("color",K15)*K15,CELL("color",L15)*L15,CELL("color",M15)*M15)) -> 105 | O15: 14-4 | P15: 52.5 | Q15: 57.5 | R15: -60 | S15: =IF(MAX(P15:R15)<=0,0,MAX(CELL("color",P15)*P15,CELL("color",Q15)*Q15,CELL("color",R15)*R15)) -> 57.5 | T15: =IF(OR(N15=0,S15=0),0,N15+S15) -> 162.5 | U15: 112.5 | V15: 122.5 | W15: 130 | X15: =IF(MAX(U15:W15)<=0,0,MAX(CELL("color",U15)*U15,CELL("color",V15)*V15,CELL("color",W15)*W15)) -> 130 | Y15: =AM15*IF($AM$11="SQ",N15,IF($AM$11="BP",S15,IF($AM$11="DL",X15,IF($AM$11="PP",IF(OR(S15=0,X15=0),0,S15+X15),IF(OR(T15=0,X15=0),0,T15+X15))))) -> 292.5 | Z15: =IF(Y15=0,"",CONCATENATE(CD15,"/",IF(AN15=4,"Wilks",D15),"/",IF(AN15>1,"",F15),"/",$AM$11)) -> 2/FR-O/57/PL | AA15: =BB15 -> 292.5 | AB15: =IF(AA15=0,"",CE15) -> 2 | AC15: =H15*IF($E$3="Kg",Y15,Y15/2.2046) -> 347.0804912 | AD15: =IFERROR(VLOOKUP(AS15,DATA!$A$2:$B$63,2,TRUE),0)*AC15 -> 350.5512961 | AE15: PL | AF15: 992752 | AG15: NC | AH15: =IFERROR(VLOOKUP(A15,Setup!$Q$5:$R$20,2,FALSE),"") -> 0 | AI15: =IF(VALUE(INDIRECT(CONCATENATE($AI$11,ROW())))=0,"",ABS(INDIRECT(CONCATENATE($AI$11,ROW())))+0.000001*G15) -> 130.000305 | AJ15: 30 | AK15: 15 | AL15: 32 | AM15: =IF(ISERROR(SEARCH($AM$11,AE15)),0,1) -> 1 | AN15: =VLOOKUP(D15,Setup!$I$6:$K$93,3,FALSE) -> 1 | AO15: =ROUND(IFERROR(IF(AN15=1,Y15,IF(AN15=2,AC15,IF(AN15=3,AD15,AC15))),0),5) -> 292.5 | AQ15: =IFERROR(MATCH(D15,Setup!$I$6:$I$93,0),"") -> 8 | AR15: =IFERROR(CONCATENATE(LEFT(D15,FIND("-",D15)),IF(AS15="","O",VLOOKUP(AS15,DATA!$E$35:$F$53,2,TRUE))),"") -> FR-M1a | AS15: =IF(YEAR($AR$7)-YEAR(I15)<40,DATEDIF(I15,$AR$7,"Y"),YEAR($AR$7)-YEAR(I15)) -> 41 | AT15: =IF(AN15=1,MATCH(F15,DATA!$AB$2:$AB$34,0),0) -> 11 | AV15: =IF(MAX(K15:M15)>0,MAX(K15:M15),0) -> 105 | AW15: =IF(MAX(P15:R15)>0,MAX(P15:R15),0) -> 57.5 | AX15: =IF(MAX(U15:W15)>0,MAX(U15:W15),0) -> 130 | AY15: =AM15*IF($AM$11="PL",IF(MIN(AV15:AX15)=0,0,AV15+AW15+AX15),IF($AM$11="PP",IF(MIN(AW15:AX15)=0,0,AW15+AX15),IF($AM$11="BP",AW15,IF($AM$11="DL",AX15,AV15)))) -> 292.5 | AZ15: =ROUND(AY15*H15,5) -> 347.08049 | BA15: =ROUND(IFERROR(VLOOKUP(AS15,DATA!$A$2:$B$63,2,FALSE),1)*AZ15,5) -> 350.55129 | BB15: =IFERROR(IF(AN15=1,AY15,IF(AN15=2,AZ15,IF(AN15=3,BA15,AZ15))),0) -> 292.5 | BZ15: =IFERROR(IF(FIND("DT",AE15),"Y",""),"") ->  | CB15: =CONCATENATE(IF(AN15=4,"",D15),IF(AN15=1,F15,"")) -> FR-O57 | CC15: =IF($AM$11="SQ",AJ15,IF($AM$11="BP",AK15,AL15)) -> 32 | CD15: =1+COUNTIFS(INDIRECT("AN12:AN500"),AN15,INDIRECT("CB12:CB500"),CB15,INDIRECT("AO12:AO500"),">"&AO15) +COUNTIFS(INDIRECT("AO12:AO500"),AO15,INDIRECT("AN12:AN500"),1,INDIRECT("CB12:CB500"),CB15,INDIRECT("E12:E500"),"<"&E15) +COUNTIFS(INDIRECT("AO12:AO500"),AO15,INDIRECT("AN12:AN500"),1,INDIRECT("CB12:CB500"),CB15,INDIRECT("E12:E500"),E15,INDIRECT("CC12:CC500"),"<"&CC15) -> 2 | CE15: =1+COUNTIFS(INDIRECT("AN12:AN500"),AN15,INDIRECT("CB12:CB500"),CB15,INDIRECT("BB12:BB500"),">"&BB15) +COUNTIFS(INDIRECT("BB12:BB500"),BB15,INDIRECT("AN12:AN500"),1,INDIRECT("CB12:CB500"),CB15,INDIRECT("E12:E500"),"<"&E15) -> 2
A16: 2A | B16: Arielle Patra | C16: NC | D16: FR-O | E16: 56.85 | F16: =IFERROR(VLOOKUP(E16,DATA!$E$2:$G$22,IF(LEFT(D16,1)="M",2,3)),"") -> 57 | G16: 302 | H16: =IFERROR(IF(LEFT(D16,1)="M",Wilks_Men(IF($E$11="Bwt - Lb",E16/2.2046,E16)),Wilks_Women(IF($E$11="Bwt - Lb",E16/2.2046,E16))),"") -> 1.162799954 | I16: 1997-05-16 | J16: 12 | K16: 85 | L16: 100 | M16: 105 | N16: =IF(MAX(K16:M16)<=0,0,MAX(CELL("color",K16)*K16,CELL("color",L16)*L16,CELL("color",M16)*M16)) -> 105 | O16: 11-5 | P16: 42.5 | Q16: 47.5 | R16: -55 | S16: =IF(MAX(P16:R16)<=0,0,MAX(CELL("color",P16)*P16,CELL("color",Q16)*Q16,CELL("color",R16)*R16)) -> 47.5 | T16: =IF(OR(N16=0,S16=0),0,N16+S16) -> 152.5 | U16: -115 | V16: 125 | W16: 140 | X16: =IF(MAX(U16:W16)<=0,0,MAX(CELL("color",U16)*U16,CELL("color",V16)*V16,CELL("color",W16)*W16)) -> 140 | Y16: =AM16*IF($AM$11="SQ",N16,IF($AM$11="BP",S16,IF($AM$11="DL",X16,IF($AM$11="PP",IF(OR(S16=0,X16=0),0,S16+X16),IF(OR(T16=0,X16=0),0,T16+X16))))) -> 292.5 | Z16: =IF(Y16=0,"",CONCATENATE(CD16,"/",IF(AN16=4,"Wilks",D16),"/",IF(AN16>1,"",F16),"/",$AM$11)) -> 3/FR-O/57/PL | AA16: =BB16 -> 292.5 | AB16: =IF(AA16=0,"",CE16) -> 3 | AC16: =H16*IF($E$3="Kg",Y16,Y16/2.2046) -> 340.1189867 | AD16: =IFERROR(VLOOKUP(AS16,DATA!$A$2:$B$63,2,TRUE),0)*AC16 -> 350.3225563 | AE16: PL | AG16: NC | AH16: =IFERROR(VLOOKUP(A16,Setup!$Q$5:$R$20,2,FALSE),"") -> 0 | AI16: =IF(VALUE(INDIRECT(CONCATENATE($AI$11,ROW())))=0,"",ABS(INDIRECT(CONCATENATE($AI$11,ROW())))+0.000001*G16) -> 140.000302 | AJ16: 29 | AK16: 14 | AL16: 36 | AM16: =IF(ISERROR(SEARCH($AM$11,AE16)),0,1) -> 1 | AN16: =VLOOKUP(D16,Setup!$I$6:$K$93,3,FALSE) -> 1 | AO16: =ROUND(IFERROR(IF(AN16=1,Y16,IF(AN16=2,AC16,IF(AN16=3,AD16,AC16))),0),5) -> 292.5 | AQ16: =IFERROR(MATCH(D16,Setup!$I$6:$I$93,0),"") -> 8 | AR16: =IFERROR(CONCATENATE(LEFT(D16,FIND("-",D16)),IF(AS16="","O",VLOOKUP(AS16,DATA!$E$35:$F$53,2,TRUE))),"") -> FR-Jr | AS16: =IF(YEAR($AR$7)-YEAR(I16)<40,DATEDIF(I16,$AR$7,"Y"),YEAR($AR$7)-YEAR(I16)) -> 20 | AT16: =IF(AN16=1,MATCH(F16,DATA!$AB$2:$AB$34,0),0) -> 11 | AV16: =IF(MAX(K16:M16)>0,MAX(K16:M16),0) -> 105 | AW16: =IF(MAX(P16:R16)>0,MAX(P16:R16),0) -> 47.5 | AX16: =IF(MAX(U16:W16)>0,MAX(U16:W16),0) -> 140 | AY16: =AM16*IF($AM$11="PL",IF(MIN(AV16:AX16)=0,0,AV16+AW16+AX16),IF($AM$11="PP",IF(MIN(AW16:AX16)=0,0,AW16+AX16),IF($AM$11="BP",AW16,IF($AM$11="DL",AX16,AV16)))) -> 292.5 | AZ16: =ROUND(AY16*H16,5) -> 340.11899 | BA16: =ROUND(IFERROR(VLOOKUP(AS16,DATA!$A$2:$B$63,2,FALSE),1)*AZ16,5) -> 350.32256 | BB16: =IFERROR(IF(AN16=1,AY16,IF(AN16=2,AZ16,IF(AN16=3,BA16,AZ16))),0) -> 292.5 | BZ16: =IFERROR(IF(FIND("DT",AE16),"Y",""),"") ->  | CB16: =CONCATENATE(IF(AN16=4,"",D16),IF(AN16=1,F16,"")) -> FR-O57 | CC16: =IF($AM$11="SQ",AJ16,IF($AM$11="BP",AK16,AL16)) -> 36 | CD16: =1+COUNTIFS(INDIRECT("AN12:AN500"),AN16,INDIRECT("CB12:CB500"),CB16,INDIRECT("AO12:AO500"),">"&AO16) +COUNTIFS(INDIRECT("AO12:AO500"),AO16,INDIRECT("AN12:AN500"),1,INDIRECT("CB12:CB500"),CB16,INDIRECT("E12:E500"),"<"&E16) +COUNTIFS(INDIRECT("AO12:AO500"),AO16,INDIRECT("AN12:AN500"),1,INDIRECT("CB12:CB500"),CB16,INDIRECT("E12:E500"),E16,INDIRECT("CC12:CC500"),"<"&CC16) -> 3 | CE16: =1+COUNTIFS(INDIRECT("AN12:AN500"),AN16,INDIRECT("CB12:CB500"),CB16,INDIRECT("BB12:BB500"),">"&BB16) +COUNTIFS(INDIRECT("BB12:BB500"),BB16,INDIRECT("AN12:AN500"),1,INDIRECT("CB12:CB500"),CB16,INDIRECT("E12:E500"),"<"&E16) -> 3
A17: 2A | B17: Jerri Lamar | C17: NC | D17: FR-O | E17: 56.5 | F17: =IFERROR(VLOOKUP(E17,DATA!$E$2:$G$22,IF(LEFT(D17,1)="M",2,3)),"") -> 57 | G17: 303 | H17: =IFERROR(IF(LEFT(D17,1)="M",Wilks_Men(IF($E$11="Bwt - Lb",E17/2.2046,E17)),Wilks_Women(IF($E$11="Bwt - Lb",E17/2.2046,E17))),"") -> 1.168400049 | I17: 1989-05-04 | J17: 10 | K17: 102.5 | L17: 107.5 | M17: -110 | N17: =IF(MAX(K17:M17)<=0,0,MAX(CELL("color",K17)*K17,CELL("color",L17)*L17,CELL("color",M17)*M17)) -> 107.5 | O17: 11-4 | P17: -55 | Q17: -55 | R17: -55 | S17: =IF(MAX(P17:R17)<=0,0,MAX(CELL("color",P17)*P17,CELL("color",Q17)*Q17,CELL("color",R17)*R17)) -> 0 | T17: =IF(OR(N17=0,S17=0),0,N17+S17) -> 0 | U17: 110 | V17: 112.5 | W17: 115 | X17: =IF(MAX(U17:W17)<=0,0,MAX(CELL("color",U17)*U17,CELL("color",V17)*V17,CELL("color",W17)*W17)) -> 115 | Y17: =AM17*IF($AM$11="SQ",N17,IF($AM$11="BP",S17,IF($AM$11="DL",X17,IF($AM$11="PP",IF(OR(S17=0,X17=0),0,S17+X17),IF(OR(T17=0,X17=0),0,T17+X17))))) -> 0 | Z17: =IF(Y17=0,"",CONCATENATE(CD17,"/",IF(AN17=4,"Wilks",D17),"/",IF(AN17>1,"",F17),"/",$AM$11)) ->  | AA17: =BB17 -> 0 | AB17: =IF(AA17=0,"",CE17) ->  | AC17: =H17*IF($E$3="Kg",Y17,Y17/2.2046) -> 0 | AD17: =IFERROR(VLOOKUP(AS17,DATA!$A$2:$B$63,2,TRUE),0)*AC17 -> 0 | AE17: PL | AF17: 959966 | AG17: NC | AH17: =IFERROR(VLOOKUP(A17,Setup!$Q$5:$R$20,2,FALSE),"") -> 0 | AI17: =IF(VALUE(INDIRECT(CONCATENATE($AI$11,ROW())))=0,"",ABS(INDIRECT(CONCATENATE($AI$11,ROW())))+0.000001*G17) -> 115.000303 | AJ17: 20 | AK17: 0 | AL17: 28 | AM17: =IF(ISERROR(SEARCH($AM$11,AE17)),0,1) -> 1 | AN17: =VLOOKUP(D17,Setup!$I$6:$K$93,3,FALSE) -> 1 | AO17: =ROUND(IFERROR(IF(AN17=1,Y17,IF(AN17=2,AC17,IF(AN17=3,AD17,AC17))),0),5) -> 0 | AQ17: =IFERROR(MATCH(D17,Setup!$I$6:$I$93,0),"") -> 8 | AR17: =IFERROR(CONCATENATE(LEFT(D17,FIND("-",D17)),IF(AS17="","O",VLOOKUP(AS17,DATA!$E$35:$F$53,2,TRUE))),"") -> FR-O | AS17: =IF(YEAR($AR$7)-YEAR(I17)<40,DATEDIF(I17,$AR$7,"Y"),YEAR($AR$7)-YEAR(I17)) -> 28 | AT17: =IF(AN17=1,MATCH(F17,DATA!$AB$2:$AB$34,0),0) -> 11 | AV17: =IF(MAX(K17:M17)>0,MAX(K17:M17),0) -> 107.5 | AW17: =IF(MAX(P17:R17)>0,MAX(P17:R17),0) -> 0 | AX17: =IF(MAX(U17:W17)>0,MAX(U17:W17),0) -> 115 | AY17: =AM17*IF($AM$11="PL",IF(MIN(AV17:AX17)=0,0,AV17+AW17+AX17),IF($AM$11="PP",IF(MIN(AW17:AX17)=0,0,AW17+AX17),IF($AM$11="BP",AW17,IF($AM$11="DL",AX17,AV17)))) -> 0 | AZ17: =ROUND(AY17*H17,5) -> 0 | BA17: =ROUND(IFERROR(VLOOKUP(AS17,DATA!$A$2:$B$63,2,FALSE),1)*AZ17,5) -> 0 | BB17: =IFERROR(IF(AN17=1,AY17,IF(AN17=2,AZ17,IF(AN17=3,BA17,AZ17))),0) -> 0 | BZ17: =IFERROR(IF(FIND("DT",AE17),"Y",""),"") ->  | CB17: =CONCATENATE(IF(AN17=4,"",D17),IF(AN17=1,F17,"")) -> FR-O57 | CC17: =IF($AM$11="SQ",AJ17,IF($AM$11="BP",AK17,AL17)) -> 28 | CD17: =1+COUNTIFS(INDIRECT("AN12:AN500"),AN17,INDIRECT("CB12:CB500"),CB17,INDIRECT("AO12:AO500"),">"&AO17) +COUNTIFS(INDIRECT("AO12:AO500"),AO17,INDIRECT("AN12:AN500"),1,INDIRECT("CB12:CB500"),CB17,INDIRECT("E12:E500"),"<"&E17) +COUNTIFS(INDIRECT("AO12:AO500"),AO17,INDIRECT("AN12:AN500"),1,INDIRECT("CB12:CB500"),CB17,INDIRECT("E12:E500"),E17,INDIRECT("CC12:CC500"),"<"&CC17) -> 4 | CE17: =1+COUNTIFS(INDIRECT("AN12:AN500"),AN17,INDIRECT("CB12:CB500"),CB17,INDIRECT("BB12:BB500"),">"&BB17) +COUNTIFS(INDIRECT("BB12:BB500"),BB17,INDIRECT("AN12:AN500"),1,INDIRECT("CB12:CB500"),CB17,INDIRECT("E12:E500"),"<"&E17) -> 4
A18: 2A | B18: Amy Mason | C18: NC | D18: FR-O | E18: 62.4 | F18: =IFERROR(VLOOKUP(E18,DATA!$E$2:$G$22,IF(LEFT(D18,1)="M",2,3)),"") -> 63 | G18: 309 | H18: =IFERROR(IF(LEFT(D18,1)="M",Wilks_Men(IF($E$11="Bwt - Lb",E18/2.2046,E18)),Wilks_Women(IF($E$11="Bwt - Lb",E18/2.2046,E18))),"") -> 1.081799984 | I18: 1976-03-17 | J18: 6 | K18: 132.5 | L18: 137.5 | M18: -140 | N18: =IF(MAX(K18:M18)<=0,0,MAX(CELL("color",K18)*K18,CELL("color",L18)*L18,CELL("color",M18)*M18)) -> 137.5 | O18: 9-4 | P18: 62.5 | Q18: 65 | R18: -67.5 | S18: =IF(MAX(P18:R18)<=0,0,MAX(CELL("color",P18)*P18,CELL("color",Q18)*Q18,CELL("color",R18)*R18)) -> 65 | T18: =IF(OR(N18=0,S18=0),0,N18+S18) -> 202.5 | U18: 150 | V18: 157.5 | W18: 165 | X18: =IF(MAX(U18:W18)<=0,0,MAX(CELL("color",U18)*U18,CELL("color",V18)*V18,CELL("color",W18)*W18)) -> 165 | Y18: =AM18*IF($AM$11="SQ",N18,IF($AM$11="BP",S18,IF($AM$11="DL",X18,IF($AM$11="PP",IF(OR(S18=0,X18=0),0,S18+X18),IF(OR(T18=0,X18=0),0,T18+X18))))) -> 367.5 | Z18: =IF(Y18=0,"",CONCATENATE(CD18,"/",IF(AN18=4,"Wilks",D18),"/",IF(AN18>1,"",F18),"/",$AM$11)) -> 1/FR-O/63/PL | AA18: =BB18 -> 367.5 | AB18: =IF(AA18=0,"",CE18) -> 1 | AC18: =H18*IF($E$3="Kg",Y18,Y18/2.2046) -> 397.5614941 | AD18: =IFERROR(VLOOKUP(AS18,DATA!$A$2:$B$63,2,TRUE),0)*AC18 -> 405.512724 | AE18: PL | AF18: 961103 | AG18: NC | AH18: =IFERROR(VLOOKUP(A18,Setup!$Q$5:$R$20,2,FALSE),"") -> 0 | AI18: =IF(VALUE(INDIRECT(CONCATENATE($AI$11,ROW())))=0,"",ABS(INDIRECT(CONCATENATE($AI$11,ROW())))+0.000001*G18) -> 165.000309 | AJ18: 24 | AK18: 21 | AL18: 38 | AM18: =IF(ISERROR(SEARCH($AM$11,AE18)),0,1) -> 1 | AN18: =VLOOKUP(D18,Setup!$I$6:$K$93,3,FALSE) -> 1 | AO18: =ROUND(IFERROR(IF(AN18=1,Y18,IF(AN18=2,AC18,IF(AN18=3,AD18,AC18))),0),5) -> 367.5 | AQ18: =IFERROR(MATCH(D18,Setup!$I$6:$I$93,0),"") -> 8 | AR18: =IFERROR(CONCATENATE(LEFT(D18,FIND("-",D18)),IF(AS18="","O",VLOOKUP(AS18,DATA!$E$35:$F$53,2,TRUE))),"") -> FR-M1a | AS18: =IF(YEAR($AR$7)-YEAR(I18)<40,DATEDIF(I18,$AR$7,"Y"),YEAR($AR$7)-YEAR(I18)) -> 42 | AT18: =IF(AN18=1,MATCH(F18,DATA!$AB$2:$AB$34,0),0) -> 14 | AV18: =IF(MAX(K18:M18)>0,MAX(K18:M18),0) -> 137.5 | AW18: =IF(MAX(P18:R18)>0,MAX(P18:R18),0) -> 65 | AX18: =IF(MAX(U18:W18)>0,MAX(U18:W18),0) -> 165 | AY18: =AM18*IF($AM$11="PL",IF(MIN(AV18:AX18)=0,0,AV18+AW18+AX18),IF($AM$11="PP",IF(MIN(AW18:AX18)=0,0,AW18+AX18),IF($AM$11="BP",AW18,IF($AM$11="DL",AX18,AV18)))) -> 367.5 | AZ18: =ROUND(AY18*H18,5) -> 397.56149 | BA18: =ROUND(IFERROR(VLOOKUP(AS18,DATA!$A$2:$B$63,2,FALSE),1)*AZ18,5) -> 405.51272 | BB18: =IFERROR(IF(AN18=1,AY18,IF(AN18=2,AZ18,IF(AN18=3,BA18,AZ18))),0) -> 367.5 | BZ18: =IFERROR(IF(FIND("DT",AE18),"Y",""),"") ->  | CB18: =CONCATENATE(IF(AN18=4,"",D18),IF(AN18=1,F18,"")) -> FR-O63 | CC18: =IF($AM$11="SQ",AJ18,IF($AM$11="BP",AK18,AL18)) -> 38 | CD18: =1+COUNTIFS(INDIRECT("AN12:AN500"),AN18,INDIRECT("CB12:CB500"),CB18,INDIRECT("AO12:AO500"),">"&AO18) +COUNTIFS(INDIRECT("AO12:AO500"),AO18,INDIRECT("AN12:AN500"),1,INDIRECT("CB12:CB500"),CB18,INDIRECT("E12:E500"),"<"&E18) +COUNTIFS(INDIRECT("AO12:AO500"),AO18,INDIRECT("AN12:AN500"),1,INDIRECT("CB12:CB500"),CB18,INDIRECT("E12:E500"),E18,INDIRECT("CC12:CC500"),"<"&CC18) -> 1 | CE18: =1+COUNTIFS(INDIRECT("AN12:AN500"),AN18,INDIRECT("CB12:CB500"),CB18,INDIRECT("BB12:BB500"),">"&BB18) +COUNTIFS(INDIRECT("BB12:BB500"),BB18,INDIRECT("AN12:AN500"),1,INDIRECT("CB12:CB500"),CB18,INDIRECT("E12:E500"),"<"&E18) -> 1
A19: 2A | B19: Brianna Green | C19: NC | D19: FR-O | E19: 62.8 | F19: =IFERROR(VLOOKUP(E19,DATA!$E$2:$G$22,IF(LEFT(D19,1)="M",2,3)),"") -> 63 | G19: 307 | H19: =IFERROR(IF(LEFT(D19,1)="M",Wilks_Men(IF($E$11="Bwt - Lb",E19/2.2046,E19)),Wilks_Women(IF($E$11="Bwt - Lb",E19/2.2046,E19))),"") -> 1.076500058 | I19: 1994-08-02 | J19: 12 | K19: 97.5 | L19: 105 | M19: 110 | N19: =IF(MAX(K19:M19)<=0,0,MAX(CELL("color",K19)*K19,CELL("color",L19)*L19,CELL("color",M19)*M19)) -> 110 | O19: 14-6 | P19: 65 | Q19: 70 | R19: -72.5 | S19: =IF(MAX(P19:R19)<=0,0,MAX(CELL("color",P19)*P19,CELL("color",Q19)*Q19,CELL("color",R19)*R19)) -> 70 | T19: =IF(OR(N19=0,S19=0),0,N19+S19) -> 180 | U19: 125 | V19: 135 | W19: -142.5 | X19: =IF(MAX(U19:W19)<=0,0,MAX(CELL("color",U19)*U19,CELL("color",V19)*V19,CELL("color",W19)*W19)) -> 135 | Y19: =AM19*IF($AM$11="SQ",N19,IF($AM$11="BP",S19,IF($AM$11="DL",X19,IF($AM$11="PP",IF(OR(S19=0,X19=0),0,S19+X19),IF(OR(T19=0,X19=0),0,T19+X19))))) -> 315 | Z19: =IF(Y19=0,"",CONCATENATE(CD19,"/",IF(AN19=4,"Wilks",D19),"/",IF(AN19>1,"",F19),"/",$AM$11)) -> 2/FR-O/63/PL | AA19: =BB19 -> 315 | AB19: =IF(AA19=0,"",CE19) -> 2 | AC19: =H19*IF($E$3="Kg",Y19,Y19/2.2046) -> 339.0975183 | AD19: =IFERROR(VLOOKUP(AS19,DATA!$A$2:$B$63,2,TRUE),0)*AC19 -> 339.0975183 | AE19: PL | AF19: 1005553 | AG19: NC | AH19: =IFERROR(VLOOKUP(A19,Setup!$Q$5:$R$20,2,FALSE),"") -> 0 | AI19: =IF(VALUE(INDIRECT(CONCATENATE($AI$11,ROW())))=0,"",ABS(INDIRECT(CONCATENATE($AI$11,ROW())))+0.000001*G19) -> 142.500307 | AJ19: 32 | AK19: 23 | AL19: 23 | AM19: =IF(ISERROR(SEARCH($AM$11,AE19)),0,1) -> 1 | AN19: =VLOOKUP(D19,Setup!$I$6:$K$93,3,FALSE) -> 1 | AO19: =ROUND(IFERROR(IF(AN19=1,Y19,IF(AN19=2,AC19,IF(AN19=3,AD19,AC19))),0),5) -> 315 | AQ19: =IFERROR(MATCH(D19,Setup!$I$6:$I$93,0),"") -> 8 | AR19: =IFERROR(CONCATENATE(LEFT(D19,FIND("-",D19)),IF(AS19="","O",VLOOKUP(AS19,DATA!$E$35:$F$53,2,TRUE))),"") -> FR-Jr | AS19: =IF(YEAR($AR$7)-YEAR(I19)<40,DATEDIF(I19,$AR$7,"Y"),YEAR($AR$7)-YEAR(I19)) -> 23 | AT19: =IF(AN19=1,MATCH(F19,DATA!$AB$2:$AB$34,0),0) -> 14 | AV19: =IF(MAX(K19:M19)>0,MAX(K19:M19),0) -> 110 | AW19: =IF(MAX(P19:R19)>0,MAX(P19:R19),0) -> 70 | AX19: =IF(MAX(U19:W19)>0,MAX(U19:W19),0) -> 135 | AY19: =AM19*IF($AM$11="PL",IF(MIN(AV19:AX19)=0,0,AV19+AW19+AX19),IF($AM$11="PP",IF(MIN(AW19:AX19)=0,0,AW19+AX19),IF($AM$11="BP",AW19,IF($AM$11="DL",AX19,AV19)))) -> 315 | AZ19: =ROUND(AY19*H19,5) -> 339.09752 | BA19: =ROUND(IFERROR(VLOOKUP(AS19,DATA!$A$2:$B$63,2,FALSE),1)*AZ19,5) -> 339.09752 | BB19: =IFERROR(IF(AN19=1,AY19,IF(AN19=2,AZ19,IF(AN19=3,BA19,AZ19))),0) -> 315 | BZ19: =IFERROR(IF(FIND("DT",AE19),"Y",""),"") ->  | CB19: =CONCATENATE(IF(AN19=4,"",D19),IF(AN19=1,F19,"")) -> FR-O63 | CC19: =IF($AM$11="SQ",AJ19,IF($AM$11="BP",AK19,AL19)) -> 23 | CD19: =1+COUNTIFS(INDIRECT("AN12:AN500"),AN19,INDIRECT("CB12:CB500"),CB19,INDIRECT("AO12:AO500"),">"&AO19) +COUNTIFS(INDIRECT("AO12:AO500"),AO19,INDIRECT("AN12:AN500"),1,INDIRECT("CB12:CB500"),CB19,INDIRECT("E12:E500"),"<"&E19) +COUNTIFS(INDIRECT("AO12:AO500"),AO19,INDIRECT("AN12:AN500"),1,INDIRECT("CB12:CB500"),CB19,INDIRECT("E12:E500"),E19,INDIRECT("CC12:CC500"),"<"&CC19) -> 2 | CE19: =1+COUNTIFS(INDIRECT("AN12:AN500"),AN19,INDIRECT("CB12:CB500"),CB19,INDIRECT("BB12:BB500"),">"&BB19) +COUNTIFS(INDIRECT("BB12:BB500"),BB19,INDIRECT("AN12:AN500"),1,INDIRECT("CB12:CB500"),CB19,INDIRECT("E12:E500"),"<"&E19) -> 2
A20: 2A | B20: Betty Polenik | C20: SC | D20: FR-O | E20: 61.45 | F20: =IFERROR(VLOOKUP(E20,DATA!$E$2:$G$22,IF(LEFT(D20,1)="M",2,3)),"") -> 63 | G20: 312 | H20: =IFERROR(IF(LEFT(D20,1)="M",Wilks_Men(IF($E$11="Bwt - Lb",E20/2.2046,E20)),Wilks_Women(IF($E$11="Bwt - Lb",E20/2.2046,E20))),"") -> 1.094499946 | I20: 1958-01-25 | J20: 8 | K20: 100 | L20: 107.5 | M20: 110 | N20: =IF(MAX(K20:M20)<=0,0,MAX(CELL("color",K20)*K20,CELL("color",L20)*L20,CELL("color",M20)*M20)) -> 110 | O20: 10-6 | P20: 55 | Q20: -60 | R20: -60 | S20: =IF(MAX(P20:R20)<=0,0,MAX(CELL("color",P20)*P20,CELL("color",Q20)*Q20,CELL("color",R20)*R20)) -> 55 | T20: =IF(OR(N20=0,S20=0),0,N20+S20) -> 165 | U20: 112.5 | V20: 122.5 | W20: 127.5 | X20: =IF(MAX(U20:W20)<=0,0,MAX(CELL("color",U20)*U20,CELL("color",V20)*V20,CELL("color",W20)*W20)) -> 127.5 | Y20: =AM20*IF($AM$11="SQ",N20,IF($AM$11="BP",S20,IF($AM$11="DL",X20,IF($AM$11="PP",IF(OR(S20=0,X20=0),0,S20+X20),IF(OR(T20=0,X20=0),0,T20+X20))))) -> 292.5 | Z20: =IF(Y20=0,"",CONCATENATE(CD20,"/",IF(AN20=4,"Wilks",D20),"/",IF(AN20>1,"",F20),"/",$AM$11)) -> 3/FR-O/63/PL | AA20: =BB20 -> 292.5 | AB20: =IF(AA20=0,"",CE20) -> 3 | AC20: =H20*IF($E$3="Kg",Y20,Y20/2.2046) -> 320.1412341 | AD20: =IFERROR(VLOOKUP(AS20,DATA!$A$2:$B$63,2,TRUE),0)*AC20 -> 428.9892537 | AE20: PL | AF20: 1029185 | AG20: SC | AH20: =IFERROR(VLOOKUP(A20,Setup!$Q$5:$R$20,2,FALSE),"") -> 0 | AI20: =IF(VALUE(INDIRECT(CONCATENATE($AI$11,ROW())))=0,"",ABS(INDIRECT(CONCATENATE($AI$11,ROW())))+0.000001*G20) -> 127.500312 | AJ20: 33 | AK20: 6 | AL20: 30 | AM20: =IF(ISERROR(SEARCH($AM$11,AE20)),0,1) -> 1 | AN20: =VLOOKUP(D20,Setup!$I$6:$K$93,3,FALSE) -> 1 | AO20: =ROUND(IFERROR(IF(AN20=1,Y20,IF(AN20=2,AC20,IF(AN20=3,AD20,AC20))),0),5) -> 292.5 | AQ20: =IFERROR(MATCH(D20,Setup!$I$6:$I$93,0),"") -> 8 | AR20: =IFERROR(CONCATENATE(LEFT(D20,FIND("-",D20)),IF(AS20="","O",VLOOKUP(AS20,DATA!$E$35:$F$53,2,TRUE))),"") -> FR-M3a | AS20: =IF(YEAR($AR$7)-YEAR(I20)<40,DATEDIF(I20,$AR$7,"Y"),YEAR($AR$7)-YEAR(I20)) -> 60 | AT20: =IF(AN20=1,MATCH(F20,DATA!$AB$2:$AB$34,0),0) -> 14 | AV20: =IF(MAX(K20:M20)>0,MAX(K20:M20),0) -> 110 | AW20: =IF(MAX(P20:R20)>0,MAX(P20:R20),0) -> 55 | AX20: =IF(MAX(U20:W20)>0,MAX(U20:W20),0) -> 127.5 | AY20: =AM20*IF($AM$11="PL",IF(MIN(AV20:AX20)=0,0,AV20+AW20+AX20),IF($AM$11="PP",IF(MIN(AW20:AX20)=0,0,AW20+AX20),IF($AM$11="BP",AW20,IF($AM$11="DL",AX20,AV20)))) -> 292.5 | AZ20: =ROUND(AY20*H20,5) -> 320.14123 | BA20: =ROUND(IFERROR(VLOOKUP(AS20,DATA!$A$2:$B$63,2,FALSE),1)*AZ20,5) -> 428.98925 | BB20: =IFERROR(IF(AN20=1,AY20,IF(AN20=2,AZ20,IF(AN20=3,BA20,AZ20))),0) -> 292.5 | BZ20: =IFERROR(IF(FIND("DT",AE20),"Y",""),"") ->  | CB20: =CONCATENATE(IF(AN20=4,"",D20),IF(AN20=1,F20,"")) -> FR-O63 | CC20: =IF($AM$11="SQ",AJ20,IF($AM$11="BP",AK20,AL20)) -> 30 | CD20: =1+COUNTIFS(INDIRECT("AN12:AN500"),AN20,INDIRECT("CB12:CB500"),CB20,INDIRECT("AO12:AO500"),">"&AO20) +COUNTIFS(INDIRECT("AO12:AO500"),AO20,INDIRECT("AN12:AN500"),1,INDIRECT("CB12:CB500"),CB20,INDIRECT("E12:E500"),"<"&E20) +COUNTIFS(INDIRECT("AO12:AO500"),AO20,INDIRECT("AN12:AN500"),1,INDIRECT("CB12:CB500"),CB20,INDIRECT("E12:E500"),E20,INDIRECT("CC12:CC500"),"<"&CC20) -> 3 | CE20: =1+COUNTIFS(INDIRECT("AN12:AN500"),AN20,INDIRECT("CB12:CB500"),CB20,INDIRECT("BB12:BB500"),">"&BB20) +COUNTIFS(INDIRECT("BB12:BB500"),BB20,INDIRECT("AN12:AN500"),1,INDIRECT("CB12:CB500"),CB20,INDIRECT("E12:E500"),"<"&E20) -> 3
A21: 2A | B21: Leslie Snapper | C21: NC | D21: FR-O | E21: 61.1 | F21: =IFERROR(VLOOKUP(E21,DATA!$E$2:$G$22,IF(LEFT(D21,1)="M",2,3)),"") -> 63 | G21: 308 | H21: =IFERROR(IF(LEFT(D21,1)="M",Wilks_Men(IF($E$11="Bwt - Lb",E21/2.2046,E21)),Wilks_Women(IF($E$11="Bwt - Lb",E21/2.2046,E21))),"") -> 1.099400043 | I21: 1993-01-02 | J21: 14 | K21: 85 | L21: 100 | M21: -105 | N21: =IF(MAX(K21:M21)<=0,0,MAX(CELL("color",K21)*K21,CELL("color",L21)*L21,CELL("color",M21)*M21)) -> 100 | O21: 10-7 | P21: 60 | Q21: 65 | R21: 70 | S21: =IF(MAX(P21:R21)<=0,0,MAX(CELL("color",P21)*P21,CELL("color",Q21)*Q21,CELL("color",R21)*R21)) -> 70 | T21: =IF(OR(N21=0,S21=0),0,N21+S21) -> 170 | U21: 97.5 | V21: 105 | W21: 115 | X21: =IF(MAX(U21:W21)<=0,0,MAX(CELL("color",U21)*U21,CELL("color",V21)*V21,CELL("color",W21)*W21)) -> 115 | Y21: =AM21*IF($AM$11="SQ",N21,IF($AM$11="BP",S21,IF($AM$11="DL",X21,IF($AM$11="PP",IF(OR(S21=0,X21=0),0,S21+X21),IF(OR(T21=0,X21=0),0,T21+X21))))) -> 285 | Z21: =IF(Y21=0,"",CONCATENATE(CD21,"/",IF(AN21=4,"Wilks",D21),"/",IF(AN21>1,"",F21),"/",$AM$11)) -> 4/FR-O/63/PL | AA21: =BB21 -> 285 | AB21: =IF(AA21=0,"",CE21) -> 4 | AC21: =H21*IF($E$3="Kg",Y21,Y21/2.2046) -> 313.3290124 | AD21: =IFERROR(VLOOKUP(AS21,DATA!$A$2:$B$63,2,TRUE),0)*AC21 -> 313.3290124 | AE21: PL BP | AG21: NC | AH21: =IFERROR(VLOOKUP(A21,Setup!$Q$5:$R$20,2,FALSE),"") -> 0 | AI21: =IF(VALUE(INDIRECT(CONCATENATE($AI$11,ROW())))=0,"",ABS(INDIRECT(CONCATENATE($AI$11,ROW())))+0.000001*G21) -> 115.000308 | AJ21: 18 | AK21: 25 | AL21: 29 | AM21: =IF(ISERROR(SEARCH($AM$11,AE21)),0,1) -> 1 | AN21: =VLOOKUP(D21,Setup!$I$6:$K$93,3,FALSE) -> 1 | AO21: =ROUND(IFERROR(IF(AN21=1,Y21,IF(AN21=2,AC21,IF(AN21=3,AD21,AC21))),0),5) -> 285 | AQ21: =IFERROR(MATCH(D21,Setup!$I$6:$I$93,0),"") -> 8 | AR21: =IFERROR(CONCATENATE(LEFT(D21,FIND("-",D21)),IF(AS21="","O",VLOOKUP(AS21,DATA!$E$35:$F$53,2,TRUE))),"") -> FR-O | AS21: =IF(YEAR($AR$7)-YEAR(I21)<40,DATEDIF(I21,$AR$7,"Y"),YEAR($AR$7)-YEAR(I21)) -> 25 | AT21: =IF(AN21=1,MATCH(F21,DATA!$AB$2:$AB$34,0),0) -> 14 | AV21: =IF(MAX(K21:M21)>0,MAX(K21:M21),0) -> 100 | AW21: =IF(MAX(P21:R21)>0,MAX(P21:R21),0) -> 70 | AX21: =IF(MAX(U21:W21)>0,MAX(U21:W21),0) -> 115 | AY21: =AM21*IF($AM$11="PL",IF(MIN(AV21:AX21)=0,0,AV21+AW21+AX21),IF($AM$11="PP",IF(MIN(AW21:AX21)=0,0,AW21+AX21),IF($AM$11="BP",AW21,IF($AM$11="DL",AX21,AV21)))) -> 285 | AZ21: =ROUND(AY21*H21,5) -> 313.32901 | BA21: =ROUND(IFERROR(VLOOKUP(AS21,DATA!$A$2:$B$63,2,FALSE),1)*AZ21,5) -> 313.32901 | BB21: =IFERROR(IF(AN21=1,AY21,IF(AN21=2,AZ21,IF(AN21=3,BA21,AZ21))),0) -> 285 | BZ21: =IFERROR(IF(FIND("DT",AE21),"Y",""),"") ->  | CB21: =CONCATENATE(IF(AN21=4,"",D21),IF(AN21=1,F21,"")) -> FR-O63 | CC21: =IF($AM$11="SQ",AJ21,IF($AM$11="BP",AK21,AL21)) -> 29 | CD21: =1+COUNTIFS(INDIRECT("AN12:AN500"),AN21,INDIRECT("CB12:CB500"),CB21,INDIRECT("AO12:AO500"),">"&AO21) +COUNTIFS(INDIRECT("AO12:AO500"),AO21,INDIRECT("AN12:AN500"),1,INDIRECT("CB12:CB500"),CB21,INDIRECT("E12:E500"),"<"&E21) +COUNTIFS(INDIRECT("AO12:AO500"),AO21,INDIRECT("AN12:AN500"),1,INDIRECT("CB12:CB500"),CB21,INDIRECT("E12:E500"),E21,INDIRECT("CC12:CC500"),"<"&CC21) -> 4 | CE21: =1+COUNTIFS(INDIRECT("AN12:AN500"),AN21,INDIRECT("CB12:CB500"),CB21,INDIRECT("BB12:BB500"),">"&BB21) +COUNTIFS(INDIRECT("BB12:BB500"),BB21,INDIRECT("AN12:AN500"),1,INDIRECT("CB12:CB500"),CB21,INDIRECT("E12:E500"),"<"&E21) -> 4
A22: 2A | B22: Michele Moe | C22: NC | D22: FR-O | E22: 62.1 | F22: =IFERROR(VLOOKUP(E22,DATA!$E$2:$G$22,IF(LEFT(D22,1)="M",2,3)),"") -> 63 | G22: 311 | H22: =IFERROR(IF(LEFT(D22,1)="M",Wilks_Men(IF($E$11="Bwt - Lb",E22/2.2046,E22)),Wilks_Women(IF($E$11="Bwt - Lb",E22/2.2046,E22))),"") -> 1.085800052 | I22: 1969-06-20 | J22: 10 | K22: 80 | L22: 85 | M22: 92.5 | N22: =IF(MAX(K22:M22)<=0,0,MAX(CELL("color",K22)*K22,CELL("color",L22)*L22,CELL("color",M22)*M22)) -> 92.5 | O22: 9-6 | P22: 52.5 | Q22: 57.5 | R22: -60 | S22: =IF(MAX(P22:R22)<=0,0,MAX(CELL("color",P22)*P22,CELL("color",Q22)*Q22,CELL("color",R22)*R22)) -> 57.5 | T22: =IF(OR(N22=0,S22=0),0,N22+S22) -> 150 | U22: 115 | V22: 125 | W22: 132.5 | X22: =IF(MAX(U22:W22)<=0,0,MAX(CELL("color",U22)*U22,CELL("color",V22)*V22,CELL("color",W22)*W22)) -> 132.5 | Y22: =AM22*IF($AM$11="SQ",N22,IF($AM$11="BP",S22,IF($AM$11="DL",X22,IF($AM$11="PP",IF(OR(S22=0,X22=0),0,S22+X22),IF(OR(T22=0,X22=0),0,T22+X22))))) -> 282.5 | Z22: =IF(Y22=0,"",CONCATENATE(CD22,"/",IF(AN22=4,"Wilks",D22),"/",IF(AN22>1,"",F22),"/",$AM$11)) -> 5/FR-O/63/PL | AA22: =BB22 -> 282.5 | AB22: =IF(AA22=0,"",CE22) -> 5 | AC22: =H22*IF($E$3="Kg",Y22,Y22/2.2046) -> 306.7385146 | AD22: =IFERROR(VLOOKUP(AS22,DATA!$A$2:$B$63,2,TRUE),0)*AC22 -> 341.3999668 | AE22: PL | AF22: 1009213 | AG22: NC | AH22: =IFERROR(VLOOKUP(A22,Setup!$Q$5:$R$20,2,FALSE),"") -> 0 | AI22: =IF(VALUE(INDIRECT(CONCATENATE($AI$11,ROW())))=0,"",ABS(INDIRECT(CONCATENATE($AI$11,ROW())))+0.000001*G22) -> 132.500311 | AJ22: 26 | AK22: 17 | AL22: 34 | AM22: =IF(ISERROR(SEARCH($AM$11,AE22)),0,1) -> 1 | AN22: =VLOOKUP(D22,Setup!$I$6:$K$93,3,FALSE) -> 1 | AO22: =ROUND(IFERROR(IF(AN22=1,Y22,IF(AN22=2,AC22,IF(AN22=3,AD22,AC22))),0),5) -> 282.5 | AQ22: =IFERROR(MATCH(D22,Setup!$I$6:$I$93,0),"") -> 8 | AR22: =IFERROR(CONCATENATE(LEFT(D22,FIND("-",D22)),IF(AS22="","O",VLOOKUP(AS22,DATA!$E$35:$F$53,2,TRUE))),"") -> FR-M1b | AS22: =IF(YEAR($AR$7)-YEAR(I22)<40,DATEDIF(I22,$AR$7,"Y"),YEAR($AR$7)-YEAR(I22)) -> 49 | AT22: =IF(AN22=1,MATCH(F22,DATA!$AB$2:$AB$34,0),0) -> 14 | AV22: =IF(MAX(K22:M22)>0,MAX(K22:M22),0) -> 92.5 | AW22: =IF(MAX(P22:R22)>0,MAX(P22:R22),0) -> 57.5 | AX22: =IF(MAX(U22:W22)>0,MAX(U22:W22),0) -> 132.5 | AY22: =AM22*IF($AM$11="PL",IF(MIN(AV22:AX22)=0,0,AV22+AW22+AX22),IF($AM$11="PP",IF(MIN(AW22:AX22)=0,0,AW22+AX22),IF($AM$11="BP",AW22,IF($AM$11="DL",AX22,AV22)))) -> 282.5 | AZ22: =ROUND(AY22*H22,5) -> 306.73851 | BA22: =ROUND(IFERROR(VLOOKUP(AS22,DATA!$A$2:$B$63,2,FALSE),1)*AZ22,5) -> 341.39996 | BB22: =IFERROR(IF(AN22=1,AY22,IF(AN22=2,AZ22,IF(AN22=3,BA22,AZ22))),0) -> 282.5 | BZ22: =IFERROR(IF(FIND("DT",AE22),"Y",""),"") ->  | CB22: =CONCATENATE(IF(AN22=4,"",D22),IF(AN22=1,F22,"")) -> FR-O63 | CC22: =IF($AM$11="SQ",AJ22,IF($AM$11="BP",AK22,AL22)) -> 34 | CD22: =1+COUNTIFS(INDIRECT("AN12:AN500"),AN22,INDIRECT("CB12:CB500"),CB22,INDIRECT("AO12:AO500"),">"&AO22) +COUNTIFS(INDIRECT("AO12:AO500"),AO22,INDIRECT("AN12:AN500"),1,INDIRECT("CB12:CB500"),CB22,INDIRECT("E12:E500"),"<"&E22) +COUNTIFS(INDIRECT("AO12:AO500"),AO22,INDIRECT("AN12:AN500"),1,INDIRECT("CB12:CB500"),CB22,INDIRECT("E12:E500"),E22,INDIRECT("CC12:CC500"),"<"&CC22) -> 5 | CE22: =1+COUNTIFS(INDIRECT("AN12:AN500"),AN22,INDIRECT("CB12:CB500"),CB22,INDIRECT("BB12:BB500"),">"&BB22) +COUNTIFS(INDIRECT("BB12:BB500"),BB22,INDIRECT("AN12:AN500"),1,INDIRECT("CB12:CB500"),CB22,INDIRECT("E12:E500"),"<"&E22) -> 5
A23: 2B | B23: Tracy Cook | C23: NC | D23: FR-O | E23: 70.2 | F23: =IFERROR(VLOOKUP(E23,DATA!$E$2:$G$22,IF(LEFT(D23,1)="M",2,3)),"") -> 72 | G23: 407 | H23: =IFERROR(IF(LEFT(D23,1)="M",Wilks_Men(IF($E$11="Bwt - Lb",E23/2.2046,E23)),Wilks_Women(IF($E$11="Bwt - Lb",E23/2.2046,E23))),"") -> 0.9929000139 | I23: 1970-07-10 | J23: 9 | K23: 127.5 | L23: 137.5 | M23: -140 | N23: =IF(MAX(K23:M23)<=0,0,MAX(CELL("color",K23)*K23,CELL("color",L23)*L23,CELL("color",M23)*M23)) -> 137.5 | O23: 11-6 | P23: 72.5 | Q23: 75 | R23: 80 | S23: =IF(MAX(P23:R23)<=0,0,MAX(CELL("color",P23)*P23,CELL("color",Q23)*Q23,CELL("color",R23)*R23)) -> 80 | T23: =IF(OR(N23=0,S23=0),0,N23+S23) -> 217.5 | U23: 155 | V23: 165 | W23: 170 | X23: =IF(MAX(U23:W23)<=0,0,MAX(CELL("color",U23)*U23,CELL("color",V23)*V23,CELL("color",W23)*W23)) -> 170 | Y23: =AM23*IF($AM$11="SQ",N23,IF($AM$11="BP",S23,IF($AM$11="DL",X23,IF($AM$11="PP",IF(OR(S23=0,X23=0),0,S23+X23),IF(OR(T23=0,X23=0),0,T23+X23))))) -> 387.5 | Z23: =IF(Y23=0,"",CONCATENATE(CD23,"/",IF(AN23=4,"Wilks",D23),"/",IF(AN23>1,"",F23),"/",$AM$11)) -> 1/FR-O/72/PL | AA23: =BB23 -> 387.5 | AB23: =IF(AA23=0,"",CE23) -> 1 | AC23: =H23*IF($E$3="Kg",Y23,Y23/2.2046) -> 384.7487554 | AD23: =IFERROR(VLOOKUP(AS23,DATA!$A$2:$B$63,2,TRUE),0)*AC23 -> 422.0693847 | AE23: PL BP | AF23: 920178 | AG23: NC | AH23: =IFERROR(VLOOKUP(A23,Setup!$Q$5:$R$20,2,FALSE),"") -> 1 | AI23: =IF(VALUE(INDIRECT(CONCATENATE($AI$11,ROW())))=0,"",ABS(INDIRECT(CONCATENATE($AI$11,ROW())))+0.000001*G23) -> 170.000407 | AJ23: 53 | AK23: 53 | AL23: 69 | AM23: =IF(ISERROR(SEARCH($AM$11,AE23)),0,1) -> 1 | AN23: =VLOOKUP(D23,Setup!$I$6:$K$93,3,FALSE) -> 1 | AO23: =ROUND(IFERROR(IF(AN23=1,Y23,IF(AN23=2,AC23,IF(AN23=3,AD23,AC23))),0),5) -> 387.5 | AQ23: =IFERROR(MATCH(D23,Setup!$I$6:$I$93,0),"") -> 8 | AR23: =IFERROR(CONCATENATE(LEFT(D23,FIND("-",D23)),IF(AS23="","O",VLOOKUP(AS23,DATA!$E$35:$F$53,2,TRUE))),"") -> FR-M1b | AS23: =IF(YEAR($AR$7)-YEAR(I23)<40,DATEDIF(I23,$AR$7,"Y"),YEAR($AR$7)-YEAR(I23)) -> 48 | AT23: =IF(AN23=1,MATCH(F23,DATA!$AB$2:$AB$34,0),0) -> 17 | AV23: =IF(MAX(K23:M23)>0,MAX(K23:M23),0) -> 137.5 | AW23: =IF(MAX(P23:R23)>0,MAX(P23:R23),0) -> 80 | AX23: =IF(MAX(U23:W23)>0,MAX(U23:W23),0) -> 170 | AY23: =AM23*IF($AM$11="PL",IF(MIN(AV23:AX23)=0,0,AV23+AW23+AX23),IF($AM$11="PP",IF(MIN(AW23:AX23)=0,0,AW23+AX23),IF($AM$11="BP",AW23,IF($AM$11="DL",AX23,AV23)))) -> 387.5 | AZ23: =ROUND(AY23*H23,5) -> 384.74876 | BA23: =ROUND(IFERROR(VLOOKUP(AS23,DATA!$A$2:$B$63,2,FALSE),1)*AZ23,5) -> 422.06939 | BB23: =IFERROR(IF(AN23=1,AY23,IF(AN23=2,AZ23,IF(AN23=3,BA23,AZ23))),0) -> 387.5 | BZ23: =IFERROR(IF(FIND("DT",AE23),"Y",""),"") ->  | CB23: =CONCATENATE(IF(AN23=4,"",D23),IF(AN23=1,F23,"")) -> FR-O72 | CC23: =IF($AM$11="SQ",AJ23,IF($AM$11="BP",AK23,AL23)) -> 69 | CD23: =1+COUNTIFS(INDIRECT("AN12:AN500"),AN23,INDIRECT("CB12:CB500"),CB23,INDIRECT("AO12:AO500"),">"&AO23) +COUNTIFS(INDIRECT("AO12:AO500"),AO23,INDIRECT("AN12:AN500"),1,INDIRECT("CB12:CB500"),CB23,INDIRECT("E12:E500"),"<"&E23) +COUNTIFS(INDIRECT("AO12:AO500"),AO23,INDIRECT("AN12:AN500"),1,INDIRECT("CB12:CB500"),CB23,INDIRECT("E12:E500"),E23,INDIRECT("CC12:CC500"),"<"&CC23) -> 1 | CE23: =1+COUNTIFS(INDIRECT("AN12:AN500"),AN23,INDIRECT("CB12:CB500"),CB23,INDIRECT("BB12:BB500"),">"&BB23) +COUNTIFS(INDIRECT("BB12:BB500"),BB23,INDIRECT("AN12:AN500"),1,INDIRECT("CB12:CB500"),CB23,INDIRECT("E12:E500"),"<"&E23) -> 1
A24: 2B | B24: Meghan Bradsher-James | C24: NC | D24: FR-O | E24: 66.55 | F24: =IFERROR(VLOOKUP(E24,DATA!$E$2:$G$22,IF(LEFT(D24,1)="M",2,3)),"") -> 72 | G24: 402 | H24: =IFERROR(IF(LEFT(D24,1)="M",Wilks_Men(IF($E$11="Bwt - Lb",E24/2.2046,E24)),Wilks_Women(IF($E$11="Bwt - Lb",E24/2.2046,E24))),"") -> 1.031100035 | I24: 1991-10-22 | J24: 11 | K24: 117.5 | L24: 125 | M24: 130 | N24: =IF(MAX(K24:M24)<=0,0,MAX(CELL("color",K24)*K24,CELL("color",L24)*L24,CELL("color",M24)*M24)) -> 130 | O24: 12-7 | P24: 67.5 | Q24: 72.5 | R24: 75 | S24: =IF(MAX(P24:R24)<=0,0,MAX(CELL("color",P24)*P24,CELL("color",Q24)*Q24,CELL("color",R24)*R24)) -> 75 | T24: =IF(OR(N24=0,S24=0),0,N24+S24) -> 205 | U24: 155 | V24: 165 | W24: 167.5 | X24: =IF(MAX(U24:W24)<=0,0,MAX(CELL("color",U24)*U24,CELL("color",V24)*V24,CELL("color",W24)*W24)) -> 167.5 | Y24: =AM24*IF($AM$11="SQ",N24,IF($AM$11="BP",S24,IF($AM$11="DL",X24,IF($AM$11="PP",IF(OR(S24=0,X24=0),0,S24+X24),IF(OR(T24=0,X24=0),0,T24+X24))))) -> 372.5 | Z24: =IF(Y24=0,"",CONCATENATE(CD24,"/",IF(AN24=4,"Wilks",D24),"/",IF(AN24>1,"",F24),"/",$AM$11)) -> 2/FR-O/72/PL | AA24: =BB24 -> 372.5 | AB24: =IF(AA24=0,"",CE24) -> 2 | AC24: =H24*IF($E$3="Kg",Y24,Y24/2.2046) -> 384.0847629 | AD24: =IFERROR(VLOOKUP(AS24,DATA!$A$2:$B$63,2,TRUE),0)*AC24 -> 384.0847629 | AE24: PL | AF24: 944717 | AG24: NC | AH24: =IFERROR(VLOOKUP(A24,Setup!$Q$5:$R$20,2,FALSE),"") -> 1 | AI24: =IF(VALUE(INDIRECT(CONCATENATE($AI$11,ROW())))=0,"",ABS(INDIRECT(CONCATENATE($AI$11,ROW())))+0.000001*G24) -> 167.500402 | AJ24: 61 | AK24: 52 | AL24: 68 | AM24: =IF(ISERROR(SEARCH($AM$11,AE24)),0,1) -> 1 | AN24: =VLOOKUP(D24,Setup!$I$6:$K$93,3,FALSE) -> 1 | AO24: =ROUND(IFERROR(IF(AN24=1,Y24,IF(AN24=2,AC24,IF(AN24=3,AD24,AC24))),0),5) -> 372.5 | AQ24: =IFERROR(MATCH(D24,Setup!$I$6:$I$93,0),"") -> 8 | AR24: =IFERROR(CONCATENATE(LEFT(D24,FIND("-",D24)),IF(AS24="","O",VLOOKUP(AS24,DATA!$E$35:$F$53,2,TRUE))),"") -> FR-O | AS24: =IF(YEAR($AR$7)-YEAR(I24)<40,DATEDIF(I24,$AR$7,"Y"),YEAR($AR$7)-YEAR(I24)) -> 26 | AT24: =IF(AN24=1,MATCH(F24,DATA!$AB$2:$AB$34,0),0) -> 17 | AV24: =IF(MAX(K24:M24)>0,MAX(K24:M24),0) -> 130 | AW24: =IF(MAX(P24:R24)>0,MAX(P24:R24),0) -> 75 | AX24: =IF(MAX(U24:W24)>0,MAX(U24:W24),0) -> 167.5 | AY24: =AM24*IF($AM$11="PL",IF(MIN(AV24:AX24)=0,0,AV24+AW24+AX24),IF($AM$11="PP",IF(MIN(AW24:AX24)=0,0,AW24+AX24),IF($AM$11="BP",AW24,IF($AM$11="DL",AX24,AV24)))) -> 372.5 | AZ24: =ROUND(AY24*H24,5) -> 384.08476 | BA24: =ROUND(IFERROR(VLOOKUP(AS24,DATA!$A$2:$B$63,2,FALSE),1)*AZ24,5) -> 384.08476 | BB24: =IFERROR(IF(AN24=1,AY24,IF(AN24=2,AZ24,IF(AN24=3,BA24,AZ24))),0) -> 372.5 | BZ24: =IFERROR(IF(FIND("DT",AE24),"Y",""),"") ->  | CB24: =CONCATENATE(IF(AN24=4,"",D24),IF(AN24=1,F24,"")) -> FR-O72 | CC24: =IF($AM$11="SQ",AJ24,IF($AM$11="BP",AK24,AL24)) -> 68 | CD24: =1+COUNTIFS(INDIRECT("AN12:AN500"),AN24,INDIRECT("CB12:CB500"),CB24,INDIRECT("AO12:AO500"),">"&AO24) +COUNTIFS(INDIRECT("AO12:AO500"),AO24,INDIRECT("AN12:AN500"),1,INDIRECT("CB12:CB500"),CB24,INDIRECT("E12:E500"),"<"&E24) +COUNTIFS(INDIRECT("AO12:AO500"),AO24,INDIRECT("AN12:AN500"),1,INDIRECT("CB12:CB500"),CB24,INDIRECT("E12:E500"),E24,INDIRECT("CC12:CC500"),"<"&CC24) -> 2 | CE24: =1+COUNTIFS(INDIRECT("AN12:AN500"),AN24,INDIRECT("CB12:CB500"),CB24,INDIRECT("BB12:BB500"),">"&BB24) +COUNTIFS(INDIRECT("BB12:BB500"),BB24,INDIRECT("AN12:AN500"),1,INDIRECT("CB12:CB500"),CB24,INDIRECT("E12:E500"),"<"&E24) -> 2
A25: 2B | B25: Jessica Dulkis | C25: NC | D25: FR-O | E25: 67.2 | F25: =IFERROR(VLOOKUP(E25,DATA!$E$2:$G$22,IF(LEFT(D25,1)="M",2,3)),"") -> 72 | G25: 401 | H25: =IFERROR(IF(LEFT(D25,1)="M",Wilks_Men(IF($E$11="Bwt - Lb",E25/2.2046,E25)),Wilks_Women(IF($E$11="Bwt - Lb",E25/2.2046,E25))),"") -> 1.023900032 | I25: 1994-03-06 | J25: 15 | K25: 110 | L25: 120 | M25: 122.5 | N25: =IF(MAX(K25:M25)<=0,0,MAX(CELL("color",K25)*K25,CELL("color",L25)*L25,CELL("color",M25)*M25)) -> 122.5 | O25: 12-5 | P25: 80 | Q25: 85 | R25: 87.5 | S25: =IF(MAX(P25:R25)<=0,0,MAX(CELL("color",P25)*P25,CELL("color",Q25)*Q25,CELL("color",R25)*R25)) -> 87.5 | T25: =IF(OR(N25=0,S25=0),0,N25+S25) -> 210 | U25: 137.5 | V25: 150 | W25: 155 | X25: =IF(MAX(U25:W25)<=0,0,MAX(CELL("color",U25)*U25,CELL("color",V25)*V25,CELL("color",W25)*W25)) -> 155 | Y25: =AM25*IF($AM$11="SQ",N25,IF($AM$11="BP",S25,IF($AM$11="DL",X25,IF($AM$11="PP",IF(OR(S25=0,X25=0),0,S25+X25),IF(OR(T25=0,X25=0),0,T25+X25))))) -> 365 | Z25: =IF(Y25=0,"",CONCATENATE(CD25,"/",IF(AN25=4,"Wilks",D25),"/",IF(AN25>1,"",F25),"/",$AM$11)) -> 3/FR-O/72/PL | AA25: =BB25 -> 365 | AB25: =IF(AA25=0,"",CE25) -> 3 | AC25: =H25*IF($E$3="Kg",Y25,Y25/2.2046) -> 373.7235117 | AD25: =IFERROR(VLOOKUP(AS25,DATA!$A$2:$B$63,2,TRUE),0)*AC25 -> 373.7235117 | AE25: PL BP | AF25: 1010365 | AG25: NC | AH25: =IFERROR(VLOOKUP(A25,Setup!$Q$5:$R$20,2,FALSE),"") -> 1 | AI25: =IF(VALUE(INDIRECT(CONCATENATE($AI$11,ROW())))=0,"",ABS(INDIRECT(CONCATENATE($AI$11,ROW())))+0.000001*G25) -> 155.000401 | AJ25: 60 | AK25: 55 | AL25: 67 | AM25: =IF(ISERROR(SEARCH($AM$11,AE25)),0,1) -> 1 | AN25: =VLOOKUP(D25,Setup!$I$6:$K$93,3,FALSE) -> 1 | AO25: =ROUND(IFERROR(IF(AN25=1,Y25,IF(AN25=2,AC25,IF(AN25=3,AD25,AC25))),0),5) -> 365 | AQ25: =IFERROR(MATCH(D25,Setup!$I$6:$I$93,0),"") -> 8 | AR25: =IFERROR(CONCATENATE(LEFT(D25,FIND("-",D25)),IF(AS25="","O",VLOOKUP(AS25,DATA!$E$35:$F$53,2,TRUE))),"") -> FR-O | AS25: =IF(YEAR($AR$7)-YEAR(I25)<40,DATEDIF(I25,$AR$7,"Y"),YEAR($AR$7)-YEAR(I25)) -> 24 | AT25: =IF(AN25=1,MATCH(F25,DATA!$AB$2:$AB$34,0),0) -> 17 | AV25: =IF(MAX(K25:M25)>0,MAX(K25:M25),0) -> 122.5 | AW25: =IF(MAX(P25:R25)>0,MAX(P25:R25),0) -> 87.5 | AX25: =IF(MAX(U25:W25)>0,MAX(U25:W25),0) -> 155 | AY25: =AM25*IF($AM$11="PL",IF(MIN(AV25:AX25)=0,0,AV25+AW25+AX25),IF($AM$11="PP",IF(MIN(AW25:AX25)=0,0,AW25+AX25),IF($AM$11="BP",AW25,IF($AM$11="DL",AX25,AV25)))) -> 365 | AZ25: =ROUND(AY25*H25,5) -> 373.72351 | BA25: =ROUND(IFERROR(VLOOKUP(AS25,DATA!$A$2:$B$63,2,FALSE),1)*AZ25,5) -> 373.72351 | BB25: =IFERROR(IF(AN25=1,AY25,IF(AN25=2,AZ25,IF(AN25=3,BA25,AZ25))),0) -> 365 | BZ25: =IFERROR(IF(FIND("DT",AE25),"Y",""),"") ->  | CB25: =CONCATENATE(IF(AN25=4,"",D25),IF(AN25=1,F25,"")) -> FR-O72 | CC25: =IF($AM$11="SQ",AJ25,IF($AM$11="BP",AK25,AL25)) -> 67 | CD25: =1+COUNTIFS(INDIRECT("AN12:AN500"),AN25,INDIRECT("CB12:CB500"),CB25,INDIRECT("AO12:AO500"),">"&AO25) +COUNTIFS(INDIRECT("AO12:AO500"),AO25,INDIRECT("AN12:AN500"),1,INDIRECT("CB12:CB500"),CB25,INDIRECT("E12:E500"),"<"&E25) +COUNTIFS(INDIRECT("AO12:AO500"),AO25,INDIRECT("AN12:AN500"),1,INDIRECT("CB12:CB500"),CB25,INDIRECT("E12:E500"),E25,INDIRECT("CC12:CC500"),"<"&CC25) -> 3 | CE25: =1+COUNTIFS(INDIRECT("AN12:AN500"),AN25,INDIRECT("CB12:CB500"),CB25,INDIRECT("BB12:BB500"),">"&BB25) +COUNTIFS(INDIRECT("BB12:BB500"),BB25,INDIRECT("AN12:AN500"),1,INDIRECT("CB12:CB500"),CB25,INDIRECT("E12:E500"),"<"&E25) -> 3
A26: 2B | B26: Linda Mertens | C26: MN | D26: FR-O | E26: 65.55 | F26: =IFERROR(VLOOKUP(E26,DATA!$E$2:$G$22,IF(LEFT(D26,1)="M",2,3)),"") -> 72 | G26: 408 | H26: =IFERROR(IF(LEFT(D26,1)="M",Wilks_Men(IF($E$11="Bwt - Lb",E26/2.2046,E26)),Wilks_Women(IF($E$11="Bwt - Lb",E26/2.2046,E26))),"") -> 1.042600036 | I26: 1966-03-30 | J26: 8 | K26: 90 | L26: 97.5 | M26: 102.5 | N26: =IF(MAX(K26:M26)<=0,0,MAX(CELL("color",K26)*K26,CELL("color",L26)*L26,CELL("color",M26)*M26)) -> 102.5 | P26: 47.5 | Q26: 52.5 | R26: 57.5 | S26: =IF(MAX(P26:R26)<=0,0,MAX(CELL("color",P26)*P26,CELL("color",Q26)*Q26,CELL("color",R26)*R26)) -> 57.5 | T26: =IF(OR(N26=0,S26=0),0,N26+S26) -> 160 | U26: 127.5 | V26: 135 | W26: 140 | X26: =IF(MAX(U26:W26)<=0,0,MAX(CELL("color",U26)*U26,CELL("color",V26)*V26,CELL("color",W26)*W26)) -> 140 | Y26: =AM26*IF($AM$11="SQ",N26,IF($AM$11="BP",S26,IF($AM$11="DL",X26,IF($AM$11="PP",IF(OR(S26=0,X26=0),0,S26+X26),IF(OR(T26=0,X26=0),0,T26+X26))))) -> 300 | Z26: =IF(Y26=0,"",CONCATENATE(CD26,"/",IF(AN26=4,"Wilks",D26),"/",IF(AN26>1,"",F26),"/",$AM$11)) -> 4/FR-O/72/PL | AA26: =BB26 -> 300 | AB26: =IF(AA26=0,"",CE26) -> 4 | AC26: =H26*IF($E$3="Kg",Y26,Y26/2.2046) -> 312.7800107 | AD26: =IFERROR(VLOOKUP(AS26,DATA!$A$2:$B$63,2,TRUE),0)*AC26 -> 364.3887125 | AE26: PL | AF26: 1026356 | AG26: MN | AH26: =IFERROR(VLOOKUP(A26,Setup!$Q$5:$R$20,2,FALSE),"") -> 1 | AI26: =IF(VALUE(INDIRECT(CONCATENATE($AI$11,ROW())))=0,"",ABS(INDIRECT(CONCATENATE($AI$11,ROW())))+0.000001*G26) -> 140.000408 | AJ26: 59 | AK26: 51 | AL26: 66 | AM26: =IF(ISERROR(SEARCH($AM$11,AE26)),0,1) -> 1 | AN26: =VLOOKUP(D26,Setup!$I$6:$K$93,3,FALSE) -> 1 | AO26: =ROUND(IFERROR(IF(AN26=1,Y26,IF(AN26=2,AC26,IF(AN26=3,AD26,AC26))),0),5) -> 300 | AQ26: =IFERROR(MATCH(D26,Setup!$I$6:$I$93,0),"") -> 8 | AR26: =IFERROR(CONCATENATE(LEFT(D26,FIND("-",D26)),IF(AS26="","O",VLOOKUP(AS26,DATA!$E$35:$F$53,2,TRUE))),"") -> FR-M2a | AS26: =IF(YEAR($AR$7)-YEAR(I26)<40,DATEDIF(I26,$AR$7,"Y"),YEAR($AR$7)-YEAR(I26)) -> 52 | AT26: =IF(AN26=1,MATCH(F26,DATA!$AB$2:$AB$34,0),0) -> 17 | AV26: =IF(MAX(K26:M26)>0,MAX(K26:M26),0) -> 102.5 | AW26: =IF(MAX(P26:R26)>0,MAX(P26:R26),0) -> 57.5 | AX26: =IF(MAX(U26:W26)>0,MAX(U26:W26),0) -> 140 | AY26: =AM26*IF($AM$11="PL",IF(MIN(AV26:AX26)=0,0,AV26+AW26+AX26),IF($AM$11="PP",IF(MIN(AW26:AX26)=0,0,AW26+AX26),IF($AM$11="BP",AW26,IF($AM$11="DL",AX26,AV26)))) -> 300 | AZ26: =ROUND(AY26*H26,5) -> 312.78001 | BA26: =ROUND(IFERROR(VLOOKUP(AS26,DATA!$A$2:$B$63,2,FALSE),1)*AZ26,5) -> 364.38871 | BB26: =IFERROR(IF(AN26=1,AY26,IF(AN26=2,AZ26,IF(AN26=3,BA26,AZ26))),0) -> 300 | BZ26: =IFERROR(IF(FIND("DT",AE26),"Y",""),"") ->  | CB26: =CONCATENATE(IF(AN26=4,"",D26),IF(AN26=1,F26,"")) -> FR-O72 | CC26: =IF($AM$11="SQ",AJ26,IF($AM$11="BP",AK26,AL26)) -> 66 | CD26: =1+COUNTIFS(INDIRECT("AN12:AN500"),AN26,INDIRECT("CB12:CB500"),CB26,INDIRECT("AO12:AO500"),">"&AO26) +COUNTIFS(INDIRECT("AO12:AO500"),AO26,INDIRECT("AN12:AN500"),1,INDIRECT("CB12:CB500"),CB26,INDIRECT("E12:E500"),"<"&E26) +COUNTIFS(INDIRECT("AO12:AO500"),AO26,INDIRECT("AN12:AN500"),1,INDIRECT("CB12:CB500"),CB26,INDIRECT("E12:E500"),E26,INDIRECT("CC12:CC500"),"<"&CC26) -> 4 | CE26: =1+COUNTIFS(INDIRECT("AN12:AN500"),AN26,INDIRECT("CB12:CB500"),CB26,INDIRECT("BB12:BB500"),">"&BB26) +COUNTIFS(INDIRECT("BB12:BB500"),BB26,INDIRECT("AN12:AN500"),1,INDIRECT("CB12:CB500"),CB26,INDIRECT("E12:E500"),"<"&E26) -> 4
A27: 2B | B27: Rebecca Marino | C27: NC | D27: FR-O | E27: 68.4 | F27: =IFERROR(VLOOKUP(E27,DATA!$E$2:$G$22,IF(LEFT(D27,1)="M",2,3)),"") -> 72 | G27: 405 | H27: =IFERROR(IF(LEFT(D27,1)="M",Wilks_Men(IF($E$11="Bwt - Lb",E27/2.2046,E27)),Wilks_Women(IF($E$11="Bwt - Lb",E27/2.2046,E27))),"") -> 1.011000037 | I27: 1987-11-20 | J27: 12 | K27: 77.5 | L27: 87.5 | M27: 95 | N27: =IF(MAX(K27:M27)<=0,0,MAX(CELL("color",K27)*K27,CELL("color",L27)*L27,CELL("color",M27)*M27)) -> 95 | O27: 12-5 | P27: 57.5 | Q27: 60 | R27: -62.5 | S27: =IF(MAX(P27:R27)<=0,0,MAX(CELL("color",P27)*P27,CELL("color",Q27)*Q27,CELL("color",R27)*R27)) -> 60 | T27: =IF(OR(N27=0,S27=0),0,N27+S27) -> 155 | U27: 117.5 | V27: 127.5 | W27: 137.5 | X27: =IF(MAX(U27:W27)<=0,0,MAX(CELL("color",U27)*U27,CELL("color",V27)*V27,CELL("color",W27)*W27)) -> 137.5 | Y27: =AM27*IF($AM$11="SQ",N27,IF($AM$11="BP",S27,IF($AM$11="DL",X27,IF($AM$11="PP",IF(OR(S27=0,X27=0),0,S27+X27),IF(OR(T27=0,X27=0),0,T27+X27))))) -> 292.5 | Z27: =IF(Y27=0,"",CONCATENATE(CD27,"/",IF(AN27=4,"Wilks",D27),"/",IF(AN27>1,"",F27),"/",$AM$11)) -> 5/FR-O/72/PL | AA27: =BB27 -> 292.5 | AB27: =IF(AA27=0,"",CE27) -> 5 | AC27: =H27*IF($E$3="Kg",Y27,Y27/2.2046) -> 295.7175109 | AD27: =IFERROR(VLOOKUP(AS27,DATA!$A$2:$B$63,2,TRUE),0)*AC27 -> 295.7175109 | AE27: PL | AF27: 995471 | AG27: NC | AH27: =IFERROR(VLOOKUP(A27,Setup!$Q$5:$R$20,2,FALSE),"") -> 1 | AI27: =IF(VALUE(INDIRECT(CONCATENATE($AI$11,ROW())))=0,"",ABS(INDIRECT(CONCATENATE($AI$11,ROW())))+0.000001*G27) -> 137.500405 | AJ27: 57 | AK27: 42 | AL27: 63 | AM27: =IF(ISERROR(SEARCH($AM$11,AE27)),0,1) -> 1 | AN27: =VLOOKUP(D27,Setup!$I$6:$K$93,3,FALSE) -> 1 | AO27: =ROUND(IFERROR(IF(AN27=1,Y27,IF(AN27=2,AC27,IF(AN27=3,AD27,AC27))),0),5) -> 292.5 | AQ27: =IFERROR(MATCH(D27,Setup!$I$6:$I$93,0),"") -> 8 | AR27: =IFERROR(CONCATENATE(LEFT(D27,FIND("-",D27)),IF(AS27="","O",VLOOKUP(AS27,DATA!$E$35:$F$53,2,TRUE))),"") -> FR-O | AS27: =IF(YEAR($AR$7)-YEAR(I27)<40,DATEDIF(I27,$AR$7,"Y"),YEAR($AR$7)-YEAR(I27)) -> 30 | AT27: =IF(AN27=1,MATCH(F27,DATA!$AB$2:$AB$34,0),0) -> 17 | AV27: =IF(MAX(K27:M27)>0,MAX(K27:M27),0) -> 95 | AW27: =IF(MAX(P27:R27)>0,MAX(P27:R27),0) -> 60 | AX27: =IF(MAX(U27:W27)>0,MAX(U27:W27),0) -> 137.5 | AY27: =AM27*IF($AM$11="PL",IF(MIN(AV27:AX27)=0,0,AV27+AW27+AX27),IF($AM$11="PP",IF(MIN(AW27:AX27)=0,0,AW27+AX27),IF($AM$11="BP",AW27,IF($AM$11="DL",AX27,AV27)))) -> 292.5 | AZ27: =ROUND(AY27*H27,5) -> 295.71751 | BA27: =ROUND(IFERROR(VLOOKUP(AS27,DATA!$A$2:$B$63,2,FALSE),1)*AZ27,5) -> 295.71751 | BB27: =IFERROR(IF(AN27=1,AY27,IF(AN27=2,AZ27,IF(AN27=3,BA27,AZ27))),0) -> 292.5 | BZ27: =IFERROR(IF(FIND("DT",AE27),"Y",""),"") ->  | CB27: =CONCATENATE(IF(AN27=4,"",D27),IF(AN27=1,F27,"")) -> FR-O72 | CC27: =IF($AM$11="SQ",AJ27,IF($AM$11="BP",AK27,AL27)) -> 63 | CD27: =1+COUNTIFS(INDIRECT("AN12:AN500"),AN27,INDIRECT("CB12:CB500"),CB27,INDIRECT("AO12:AO500"),">"&AO27) +COUNTIFS(INDIRECT("AO12:AO500"),AO27,INDIRECT("AN12:AN500"),1,INDIRECT("CB12:CB500"),CB27,INDIRECT("E12:E500"),"<"&E27) +COUNTIFS(INDIRECT("AO12:AO500"),AO27,INDIRECT("AN12:AN500"),1,INDIRECT("CB12:CB500"),CB27,INDIRECT("E12:E500"),E27,INDIRECT("CC12:CC500"),"<"&CC27) -> 5 | CE27: =1+COUNTIFS(INDIRECT("AN12:AN500"),AN27,INDIRECT("CB12:CB500"),CB27,INDIRECT("BB12:BB500"),">"&BB27) +COUNTIFS(INDIRECT("BB12:BB500"),BB27,INDIRECT("AN12:AN500"),1,INDIRECT("CB12:CB500"),CB27,INDIRECT("E12:E500"),"<"&E27) -> 5
A28: 2B | B28: Michelle Wittke | C28: SC | D28: FR-O | E28: 69.5 | F28: =IFERROR(VLOOKUP(E28,DATA!$E$2:$G$22,IF(LEFT(D28,1)="M",2,3)),"") -> 72 | G28: 404 | H28: =IFERROR(IF(LEFT(D28,1)="M",Wilks_Men(IF($E$11="Bwt - Lb",E28/2.2046,E28)),Wilks_Women(IF($E$11="Bwt - Lb",E28/2.2046,E28))),"") -> 0.9998000264 | I28: 1988-10-10 | J28: 12 | K28: 92.5 | L28: 102.5 | M28: -110 | N28: =IF(MAX(K28:M28)<=0,0,MAX(CELL("color",K28)*K28,CELL("color",L28)*L28,CELL("color",M28)*M28)) -> 102.5 | O28: 11-5 | P28: 47.5 | Q28: 52.5 | R28: 55 | S28: =IF(MAX(P28:R28)<=0,0,MAX(CELL("color",P28)*P28,CELL("color",Q28)*Q28,CELL("color",R28)*R28)) -> 55 | T28: =IF(OR(N28=0,S28=0),0,N28+S28) -> 157.5 | U28: 120 | V28: 127.5 | W28: -137.5 | X28: =IF(MAX(U28:W28)<=0,0,MAX(CELL("color",U28)*U28,CELL("color",V28)*V28,CELL("color",W28)*W28)) -> 127.5 | Y28: =AM28*IF($AM$11="SQ",N28,IF($AM$11="BP",S28,IF($AM$11="DL",X28,IF($AM$11="PP",IF(OR(S28=0,X28=0),0,S28+X28),IF(OR(T28=0,X28=0),0,T28+X28))))) -> 285 | Z28: =IF(Y28=0,"",CONCATENATE(CD28,"/",IF(AN28=4,"Wilks",D28),"/",IF(AN28>1,"",F28),"/",$AM$11)) -> 6/FR-O/72/PL | AA28: =BB28 -> 285 | AB28: =IF(AA28=0,"",CE28) -> 6 | AC28: =H28*IF($E$3="Kg",Y28,Y28/2.2046) -> 284.9430075 | AD28: =IFERROR(VLOOKUP(AS28,DATA!$A$2:$B$63,2,TRUE),0)*AC28 -> 284.9430075 | AE28: PL | AF28: 101072 | AG28: SC | AH28: =IFERROR(VLOOKUP(A28,Setup!$Q$5:$R$20,2,FALSE),"") -> 1 | AI28: =IF(VALUE(INDIRECT(CONCATENATE($AI$11,ROW())))=0,"",ABS(INDIRECT(CONCATENATE($AI$11,ROW())))+0.000001*G28) -> 137.500404 | AJ28: 50 | AK28: 49 | AL28: 64 | AM28: =IF(ISERROR(SEARCH($AM$11,AE28)),0,1) -> 1 | AN28: =VLOOKUP(D28,Setup!$I$6:$K$93,3,FALSE) -> 1 | AO28: =ROUND(IFERROR(IF(AN28=1,Y28,IF(AN28=2,AC28,IF(AN28=3,AD28,AC28))),0),5) -> 285 | AQ28: =IFERROR(MATCH(D28,Setup!$I$6:$I$93,0),"") -> 8 | AR28: =IFERROR(CONCATENATE(LEFT(D28,FIND("-",D28)),IF(AS28="","O",VLOOKUP(AS28,DATA!$E$35:$F$53,2,TRUE))),"") -> FR-O | AS28: =IF(YEAR($AR$7)-YEAR(I28)<40,DATEDIF(I28,$AR$7,"Y"),YEAR($AR$7)-YEAR(I28)) -> 29 | AT28: =IF(AN28=1,MATCH(F28,DATA!$AB$2:$AB$34,0),0) -> 17 | AV28: =IF(MAX(K28:M28)>0,MAX(K28:M28),0) -> 102.5 | AW28: =IF(MAX(P28:R28)>0,MAX(P28:R28),0) -> 55 | AX28: =IF(MAX(U28:W28)>0,MAX(U28:W28),0) -> 127.5 | AY28: =AM28*IF($AM$11="PL",IF(MIN(AV28:AX28)=0,0,AV28+AW28+AX28),IF($AM$11="PP",IF(MIN(AW28:AX28)=0,0,AW28+AX28),IF($AM$11="BP",AW28,IF($AM$11="DL",AX28,AV28)))) -> 285 | AZ28: =ROUND(AY28*H28,5) -> 284.94301 | BA28: =ROUND(IFERROR(VLOOKUP(AS28,DATA!$A$2:$B$63,2,FALSE),1)*AZ28,5) -> 284.94301 | BB28: =IFERROR(IF(AN28=1,AY28,IF(AN28=2,AZ28,IF(AN28=3,BA28,AZ28))),0) -> 285 | BZ28: =IFERROR(IF(FIND("DT",AE28),"Y",""),"") ->  | CB28: =CONCATENATE(IF(AN28=4,"",D28),IF(AN28=1,F28,"")) -> FR-O72 | CC28: =IF($AM$11="SQ",AJ28,IF($AM$11="BP",AK28,AL28)) -> 64 | CD28: =1+COUNTIFS(INDIRECT("AN12:AN500"),AN28,INDIRECT("CB12:CB500"),CB28,INDIRECT("AO12:AO500"),">"&AO28) +COUNTIFS(INDIRECT("AO12:AO500"),AO28,INDIRECT("AN12:AN500"),1,INDIRECT("CB12:CB500"),CB28,INDIRECT("E12:E500"),"<"&E28) +COUNTIFS(INDIRECT("AO12:AO500"),AO28,INDIRECT("AN12:AN500"),1,INDIRECT("CB12:CB500"),CB28,INDIRECT("E12:E500"),E28,INDIRECT("CC12:CC500"),"<"&CC28) -> 6 | CE28: =1+COUNTIFS(INDIRECT("AN12:AN500"),AN28,INDIRECT("CB12:CB500"),CB28,INDIRECT("BB12:BB500"),">"&BB28) +COUNTIFS(INDIRECT("BB12:BB500"),BB28,INDIRECT("AN12:AN500"),1,INDIRECT("CB12:CB500"),CB28,INDIRECT("E12:E500"),"<"&E28) -> 6
A29: 2B | B29: Erin Ball | C29: NC | D29: FR-O | E29: 71 | F29: =IFERROR(VLOOKUP(E29,DATA!$E$2:$G$22,IF(LEFT(D29,1)="M",2,3)),"") -> 72 | G29: 406 | H29: =IFERROR(IF(LEFT(D29,1)="M",Wilks_Men(IF($E$11="Bwt - Lb",E29/2.2046,E29)),Wilks_Women(IF($E$11="Bwt - Lb",E29/2.2046,E29))),"") -> 0.9851999879 | I29: 1976-09-19 | J29: 14 | K29: 72.5 | L29: 82.5 | M29: 87.5 | N29: =IF(MAX(K29:M29)<=0,0,MAX(CELL("color",K29)*K29,CELL("color",L29)*L29,CELL("color",M29)*M29)) -> 87.5 | O29: 12-7 | P29: 35 | Q29: 40 | R29: 45 | S29: =IF(MAX(P29:R29)<=0,0,MAX(CELL("color",P29)*P29,CELL("color",Q29)*Q29,CELL("color",R29)*R29)) -> 45 | T29: =IF(OR(N29=0,S29=0),0,N29+S29) -> 132.5 | U29: 82.5 | V29: 92.5 | W29: 105 | X29: =IF(MAX(U29:W29)<=0,0,MAX(CELL("color",U29)*U29,CELL("color",V29)*V29,CELL("color",W29)*W29)) -> 105 | Y29: =AM29*IF($AM$11="SQ",N29,IF($AM$11="BP",S29,IF($AM$11="DL",X29,IF($AM$11="PP",IF(OR(S29=0,X29=0),0,S29+X29),IF(OR(T29=0,X29=0),0,T29+X29))))) -> 237.5 | Z29: =IF(Y29=0,"",CONCATENATE(CD29,"/",IF(AN29=4,"Wilks",D29),"/",IF(AN29>1,"",F29),"/",$AM$11)) -> 7/FR-O/72/PL | AA29: =BB29 -> 237.5 | AB29: =IF(AA29=0,"",CE29) -> 7 | AC29: =H29*IF($E$3="Kg",Y29,Y29/2.2046) -> 233.9849971 | AD29: =IFERROR(VLOOKUP(AS29,DATA!$A$2:$B$63,2,TRUE),0)*AC29 -> 238.6646971 | AE29: PL | AG29: NC | AH29: =IFERROR(VLOOKUP(A29,Setup!$Q$5:$R$20,2,FALSE),"") -> 1 | AI29: =IF(VALUE(INDIRECT(CONCATENATE($AI$11,ROW())))=0,"",ABS(INDIRECT(CONCATENATE($AI$11,ROW())))+0.000001*G29) -> 105.000406 | AJ29: 55 | AK29: 47 | AL29: 61 | AM29: =IF(ISERROR(SEARCH($AM$11,AE29)),0,1) -> 1 | AN29: =VLOOKUP(D29,Setup!$I$6:$K$93,3,FALSE) -> 1 | AO29: =ROUND(IFERROR(IF(AN29=1,Y29,IF(AN29=2,AC29,IF(AN29=3,AD29,AC29))),0),5) -> 237.5 | AQ29: =IFERROR(MATCH(D29,Setup!$I$6:$I$93,0),"") -> 8 | AR29: =IFERROR(CONCATENATE(LEFT(D29,FIND("-",D29)),IF(AS29="","O",VLOOKUP(AS29,DATA!$E$35:$F$53,2,TRUE))),"") -> FR-M1a | AS29: =IF(YEAR($AR$7)-YEAR(I29)<40,DATEDIF(I29,$AR$7,"Y"),YEAR($AR$7)-YEAR(I29)) -> 42 | AT29: =IF(AN29=1,MATCH(F29,DATA!$AB$2:$AB$34,0),0) -> 17 | AV29: =IF(MAX(K29:M29)>0,MAX(K29:M29),0) -> 87.5 | AW29: =IF(MAX(P29:R29)>0,MAX(P29:R29),0) -> 45 | AX29: =IF(MAX(U29:W29)>0,MAX(U29:W29),0) -> 105 | AY29: =AM29*IF($AM$11="PL",IF(MIN(AV29:AX29)=0,0,AV29+AW29+AX29),IF($AM$11="PP",IF(MIN(AW29:AX29)=0,0,AW29+AX29),IF($AM$11="BP",AW29,IF($AM$11="DL",AX29,AV29)))) -> 237.5 | AZ29: =ROUND(AY29*H29,5) -> 233.985 | BA29: =ROUND(IFERROR(VLOOKUP(AS29,DATA!$A$2:$B$63,2,FALSE),1)*AZ29,5) -> 238.6647 | BB29: =IFERROR(IF(AN29=1,AY29,IF(AN29=2,AZ29,IF(AN29=3,BA29,AZ29))),0) -> 237.5 | BZ29: =IFERROR(IF(FIND("DT",AE29),"Y",""),"") ->  | CB29: =CONCATENATE(IF(AN29=4,"",D29),IF(AN29=1,F29,"")) -> FR-O72 | CC29: =IF($AM$11="SQ",AJ29,IF($AM$11="BP",AK29,AL29)) -> 61 | CD29: =1+COUNTIFS(INDIRECT("AN12:AN500"),AN29,INDIRECT("CB12:CB500"),CB29,INDIRECT("AO12:AO500"),">"&AO29) +COUNTIFS(INDIRECT("AO12:AO500"),AO29,INDIRECT("AN12:AN500"),1,INDIRECT("CB12:CB500"),CB29,INDIRECT("E12:E500"),"<"&E29) +COUNTIFS(INDIRECT("AO12:AO500"),AO29,INDIRECT("AN12:AN500"),1,INDIRECT("CB12:CB500"),CB29,INDIRECT("E12:E500"),E29,INDIRECT("CC12:CC500"),"<"&CC29) -> 7 | CE29: =1+COUNTIFS(INDIRECT("AN12:AN500"),AN29,INDIRECT("CB12:CB500"),CB29,INDIRECT("BB12:BB500"),">"&BB29) +COUNTIFS(INDIRECT("BB12:BB500"),BB29,INDIRECT("AN12:AN500"),1,INDIRECT("CB12:CB500"),CB29,INDIRECT("E12:E500"),"<"&E29) -> 7
A30: 2C | B30: Ashley Banks | C30: NC | D30: FR-O | E30: 83.4 | F30: =IFERROR(VLOOKUP(E30,DATA!$E$2:$G$22,IF(LEFT(D30,1)="M",2,3)),"") -> 84 | G30: 502 | H30: =IFERROR(IF(LEFT(D30,1)="M",Wilks_Men(IF($E$11="Bwt - Lb",E30/2.2046,E30)),Wilks_Women(IF($E$11="Bwt - Lb",E30/2.2046,E30))),"") -> 0.8949999809 | I30: 1989-06-05 | J30: 14 | K30: 142.5 | L30: 152.5 | M30: -155 | N30: =IF(MAX(K30:M30)<=0,0,MAX(CELL("color",K30)*K30,CELL("color",L30)*L30,CELL("color",M30)*M30)) -> 152.5 | O30: 13-7 | P30: 55 | Q30: 60 | R30: -62.5 | S30: =IF(MAX(P30:R30)<=0,0,MAX(CELL("color",P30)*P30,CELL("color",Q30)*Q30,CELL("color",R30)*R30)) -> 60 | T30: =IF(OR(N30=0,S30=0),0,N30+S30) -> 212.5 | U30: 152.5 | V30: 167.5 | W30: -177.5 | X30: =IF(MAX(U30:W30)<=0,0,MAX(CELL("color",U30)*U30,CELL("color",V30)*V30,CELL("color",W30)*W30)) -> 167.5 | Y30: =AM30*IF($AM$11="SQ",N30,IF($AM$11="BP",S30,IF($AM$11="DL",X30,IF($AM$11="PP",IF(OR(S30=0,X30=0),0,S30+X30),IF(OR(T30=0,X30=0),0,T30+X30))))) -> 380 | Z30: =IF(Y30=0,"",CONCATENATE(CD30,"/",IF(AN30=4,"Wilks",D30),"/",IF(AN30>1,"",F30),"/",$AM$11)) -> 1/FR-O/84/PL | AA30: =BB30 -> 380 | AB30: =IF(AA30=0,"",CE30) -> 1 | AC30: =H30*IF($E$3="Kg",Y30,Y30/2.2046) -> 340.0999928 | AD30: =IFERROR(VLOOKUP(AS30,DATA!$A$2:$B$63,2,TRUE),0)*AC30 -> 340.0999928 | AE30: PL | AF30: 967324 | AG30: NC | AH30: =IFERROR(VLOOKUP(A30,Setup!$Q$5:$R$20,2,FALSE),"") -> 2 | AI30: =IF(VALUE(INDIRECT(CONCATENATE($AI$11,ROW())))=0,"",ABS(INDIRECT(CONCATENATE($AI$11,ROW())))+0.000001*G30) -> 177.500502 | AJ30: 74 | AK30: 72 | AL30: 88 | AM30: =IF(ISERROR(SEARCH($AM$11,AE30)),0,1) -> 1 | AN30: =VLOOKUP(D30,Setup!$I$6:$K$93,3,FALSE) -> 1 | AO30: =ROUND(IFERROR(IF(AN30=1,Y30,IF(AN30=2,AC30,IF(AN30=3,AD30,AC30))),0),5) -> 380 | AQ30: =IFERROR(MATCH(D30,Setup!$I$6:$I$93,0),"") -> 8 | AR30: =IFERROR(CONCATENATE(LEFT(D30,FIND("-",D30)),IF(AS30="","O",VLOOKUP(AS30,DATA!$E$35:$F$53,2,TRUE))),"") -> FR-O | AS30: =IF(YEAR($AR$7)-YEAR(I30)<40,DATEDIF(I30,$AR$7,"Y"),YEAR($AR$7)-YEAR(I30)) -> 28 | AT30: =IF(AN30=1,MATCH(F30,DATA!$AB$2:$AB$34,0),0) -> 22 | AV30: =IF(MAX(K30:M30)>0,MAX(K30:M30),0) -> 152.5 | AW30: =IF(MAX(P30:R30)>0,MAX(P30:R30),0) -> 60 | AX30: =IF(MAX(U30:W30)>0,MAX(U30:W30),0) -> 167.5 | AY30: =AM30*IF($AM$11="PL",IF(MIN(AV30:AX30)=0,0,AV30+AW30+AX30),IF($AM$11="PP",IF(MIN(AW30:AX30)=0,0,AW30+AX30),IF($AM$11="BP",AW30,IF($AM$11="DL",AX30,AV30)))) -> 380 | AZ30: =ROUND(AY30*H30,5) -> 340.09999 | BA30: =ROUND(IFERROR(VLOOKUP(AS30,DATA!$A$2:$B$63,2,FALSE),1)*AZ30,5) -> 340.09999 | BB30: =IFERROR(IF(AN30=1,AY30,IF(AN30=2,AZ30,IF(AN30=3,BA30,AZ30))),0) -> 380 | BZ30: =IFERROR(IF(FIND("DT",AE30),"Y",""),"") ->  | CB30: =CONCATENATE(IF(AN30=4,"",D30),IF(AN30=1,F30,"")) -> FR-O84 | CC30: =IF($AM$11="SQ",AJ30,IF($AM$11="BP",AK30,AL30)) -> 88 | CD30: =1+COUNTIFS(INDIRECT("AN12:AN500"),AN30,INDIRECT("CB12:CB500"),CB30,INDIRECT("AO12:AO500"),">"&AO30) +COUNTIFS(INDIRECT("AO12:AO500"),AO30,INDIRECT("AN12:AN500"),1,INDIRECT("CB12:CB500"),CB30,INDIRECT("E12:E500"),"<"&E30) +COUNTIFS(INDIRECT("AO12:AO500"),AO30,INDIRECT("AN12:AN500"),1,INDIRECT("CB12:CB500"),CB30,INDIRECT("E12:E500"),E30,INDIRECT("CC12:CC500"),"<"&CC30) -> 1 | CE30: =1+COUNTIFS(INDIRECT("AN12:AN500"),AN30,INDIRECT("CB12:CB500"),CB30,INDIRECT("BB12:BB500"),">"&BB30) +COUNTIFS(INDIRECT("BB12:BB500"),BB30,INDIRECT("AN12:AN500"),1,INDIRECT("CB12:CB500"),CB30,INDIRECT("E12:E500"),"<"&E30) -> 1
A31: 2C | B31: Daynya Quigley | C31: NC | D31: FR-O | E31: 76.45 | F31: =IFERROR(VLOOKUP(E31,DATA!$E$2:$G$22,IF(LEFT(D31,1)="M",2,3)),"") -> 84 | G31: 504 | H31: =IFERROR(IF(LEFT(D31,1)="M",Wilks_Men(IF($E$11="Bwt - Lb",E31/2.2046,E31)),Wilks_Women(IF($E$11="Bwt - Lb",E31/2.2046,E31))),"") -> 0.9394999743 | I31: 1981-03-12 | J31: 11 | K31: 125 | L31: 132.5 | M31: 140 | N31: =IF(MAX(K31:M31)<=0,0,MAX(CELL("color",K31)*K31,CELL("color",L31)*L31,CELL("color",M31)*M31)) -> 140 | O31: 12-7 | P31: 55 | Q31: 60 | R31: -62.5 | S31: =IF(MAX(P31:R31)<=0,0,MAX(CELL("color",P31)*P31,CELL("color",Q31)*Q31,CELL("color",R31)*R31)) -> 60 | T31: =IF(OR(N31=0,S31=0),0,N31+S31) -> 200 | U31: 135 | V31: 142.5 | W31: -150 | X31: =IF(MAX(U31:W31)<=0,0,MAX(CELL("color",U31)*U31,CELL("color",V31)*V31,CELL("color",W31)*W31)) -> 142.5 | Y31: =AM31*IF($AM$11="SQ",N31,IF($AM$11="BP",S31,IF($AM$11="DL",X31,IF($AM$11="PP",IF(OR(S31=0,X31=0),0,S31+X31),IF(OR(T31=0,X31=0),0,T31+X31))))) -> 342.5 | Z31: =IF(Y31=0,"",CONCATENATE(CD31,"/",IF(AN31=4,"Wilks",D31),"/",IF(AN31>1,"",F31),"/",$AM$11)) -> 2/FR-O/84/PL | AA31: =BB31 -> 342.5 | AB31: =IF(AA31=0,"",CE31) -> 2 | AC31: =H31*IF($E$3="Kg",Y31,Y31/2.2046) -> 321.7787412 | AD31: =IFERROR(VLOOKUP(AS31,DATA!$A$2:$B$63,2,TRUE),0)*AC31 -> 321.7787412 | AE31: PL | AF31: 997736 | AG31: NC | AH31: =IFERROR(VLOOKUP(A31,Setup!$Q$5:$R$20,2,FALSE),"") -> 2 | AI31: =IF(VALUE(INDIRECT(CONCATENATE($AI$11,ROW())))=0,"",ABS(INDIRECT(CONCATENATE($AI$11,ROW())))+0.000001*G31) -> 150.000504 | AJ31: 80 | AK31: 73 | AL31: 85 | AM31: =IF(ISERROR(SEARCH($AM$11,AE31)),0,1) -> 1 | AN31: =VLOOKUP(D31,Setup!$I$6:$K$93,3,FALSE) -> 1 | AO31: =ROUND(IFERROR(IF(AN31=1,Y31,IF(AN31=2,AC31,IF(AN31=3,AD31,AC31))),0),5) -> 342.5 | AQ31: =IFERROR(MATCH(D31,Setup!$I$6:$I$93,0),"") -> 8 | AR31: =IFERROR(CONCATENATE(LEFT(D31,FIND("-",D31)),IF(AS31="","O",VLOOKUP(AS31,DATA!$E$35:$F$53,2,TRUE))),"") -> FR-O | AS31: =IF(YEAR($AR$7)-YEAR(I31)<40,DATEDIF(I31,$AR$7,"Y"),YEAR($AR$7)-YEAR(I31)) -> 37 | AT31: =IF(AN31=1,MATCH(F31,DATA!$AB$2:$AB$34,0),0) -> 22 | AV31: =IF(MAX(K31:M31)>0,MAX(K31:M31),0) -> 140 | AW31: =IF(MAX(P31:R31)>0,MAX(P31:R31),0) -> 60 | AX31: =IF(MAX(U31:W31)>0,MAX(U31:W31),0) -> 142.5 | AY31: =AM31*IF($AM$11="PL",IF(MIN(AV31:AX31)=0,0,AV31+AW31+AX31),IF($AM$11="PP",IF(MIN(AW31:AX31)=0,0,AW31+AX31),IF($AM$11="BP",AW31,IF($AM$11="DL",AX31,AV31)))) -> 342.5 | AZ31: =ROUND(AY31*H31,5) -> 321.77874 | BA31: =ROUND(IFERROR(VLOOKUP(AS31,DATA!$A$2:$B$63,2,FALSE),1)*AZ31,5) -> 321.77874 | BB31: =IFERROR(IF(AN31=1,AY31,IF(AN31=2,AZ31,IF(AN31=3,BA31,AZ31))),0) -> 342.5 | BZ31: =IFERROR(IF(FIND("DT",AE31),"Y",""),"") ->  | CB31: =CONCATENATE(IF(AN31=4,"",D31),IF(AN31=1,F31,"")) -> FR-O84 | CC31: =IF($AM$11="SQ",AJ31,IF($AM$11="BP",AK31,AL31)) -> 85 | CD31: =1+COUNTIFS(INDIRECT("AN12:AN500"),AN31,INDIRECT("CB12:CB500"),CB31,INDIRECT("AO12:AO500"),">"&AO31) +COUNTIFS(INDIRECT("AO12:AO500"),AO31,INDIRECT("AN12:AN500"),1,INDIRECT("CB12:CB500"),CB31,INDIRECT("E12:E500"),"<"&E31) +COUNTIFS(INDIRECT("AO12:AO500"),AO31,INDIRECT("AN12:AN500"),1,INDIRECT("CB12:CB500"),CB31,INDIRECT("E12:E500"),E31,INDIRECT("CC12:CC500"),"<"&CC31) -> 2 | CE31: =1+COUNTIFS(INDIRECT("AN12:AN500"),AN31,INDIRECT("CB12:CB500"),CB31,INDIRECT("BB12:BB500"),">"&BB31) +COUNTIFS(INDIRECT("BB12:BB500"),BB31,INDIRECT("AN12:AN500"),1,INDIRECT("CB12:CB500"),CB31,INDIRECT("E12:E500"),"<"&E31) -> 2
A32: 2C | B32: Tomika Baldwin | C32: NC | D32: FR-O | E32: 83.8 | F32: =IFERROR(VLOOKUP(E32,DATA!$E$2:$G$22,IF(LEFT(D32,1)="M",2,3)),"") -> 84 | G32: 506 | H32: =IFERROR(IF(LEFT(D32,1)="M",Wilks_Men(IF($E$11="Bwt - Lb",E32/2.2046,E32)),Wilks_Women(IF($E$11="Bwt - Lb",E32/2.2046,E32))),"") -> 0.8927999735 | I32: 1970-03-27 | J32: 13 | K32: -120 | L32: -120 | M32: -120 | N32: =IF(MAX(K32:M32)<=0,0,MAX(CELL("color",K32)*K32,CELL("color",L32)*L32,CELL("color",M32)*M32)) -> 0 | O32: 13-5 | P32: 72.5 | Q32: 75 | R32: -77.5 | S32: =IF(MAX(P32:R32)<=0,0,MAX(CELL("color",P32)*P32,CELL("color",Q32)*Q32,CELL("color",R32)*R32)) -> 75 | T32: =IF(OR(N32=0,S32=0),0,N32+S32) -> 0 | U32: 157.5 | V32: 0 | W32: 0 | X32: =IF(MAX(U32:W32)<=0,0,MAX(CELL("color",U32)*U32,CELL("color",V32)*V32,CELL("color",W32)*W32)) -> 157.5 | Y32: =AM32*IF($AM$11="SQ",N32,IF($AM$11="BP",S32,IF($AM$11="DL",X32,IF($AM$11="PP",IF(OR(S32=0,X32=0),0,S32+X32),IF(OR(T32=0,X32=0),0,T32+X32))))) -> 0 | Z32: =IF(Y32=0,"",CONCATENATE(CD32,"/",IF(AN32=4,"Wilks",D32),"/",IF(AN32>1,"",F32),"/",$AM$11)) ->  | AA32: =BB32 -> 0 | AB32: =IF(AA32=0,"",CE32) ->  | AC32: =H32*IF($E$3="Kg",Y32,Y32/2.2046) -> 0 | AD32: =IFERROR(VLOOKUP(AS32,DATA!$A$2:$B$63,2,TRUE),0)*AC32 -> 0 | AE32: PL | AG32: NC | AH32: =IFERROR(VLOOKUP(A32,Setup!$Q$5:$R$20,2,FALSE),"") -> 2 | AI32: =IF(VALUE(INDIRECT(CONCATENATE($AI$11,ROW())))=0,"",ABS(INDIRECT(CONCATENATE($AI$11,ROW())))+0.000001*G32) ->  | AJ32: 0 | AK32: 76 | AL32: 79 | AM32: =IF(ISERROR(SEARCH($AM$11,AE32)),0,1) -> 1 | AN32: =VLOOKUP(D32,Setup!$I$6:$K$93,3,FALSE) -> 1 | AO32: =ROUND(IFERROR(IF(AN32=1,Y32,IF(AN32=2,AC32,IF(AN32=3,AD32,AC32))),0),5) -> 0 | AQ32: =IFERROR(MATCH(D32,Setup!$I$6:$I$93,0),"") -> 8 | AR32: =IFERROR(CONCATENATE(LEFT(D32,FIND("-",D32)),IF(AS32="","O",VLOOKUP(AS32,DATA!$E$35:$F$53,2,TRUE))),"") -> FR-M1b | AS32: =IF(YEAR($AR$7)-YEAR(I32)<40,DATEDIF(I32,$AR$7,"Y"),YEAR($AR$7)-YEAR(I32)) -> 48 | AT32: =IF(AN32=1,MATCH(F32,DATA!$AB$2:$AB$34,0),0) -> 22 | AV32: =IF(MAX(K32:M32)>0,MAX(K32:M32),0) -> 0 | AW32: =IF(MAX(P32:R32)>0,MAX(P32:R32),0) -> 75 | AX32: =IF(MAX(U32:W32)>0,MAX(U32:W32),0) -> 157.5 | AY32: =AM32*IF($AM$11="PL",IF(MIN(AV32:AX32)=0,0,AV32+AW32+AX32),IF($AM$11="PP",IF(MIN(AW32:AX32)=0,0,AW32+AX32),IF($AM$11="BP",AW32,IF($AM$11="DL",AX32,AV32)))) -> 0 | AZ32: =ROUND(AY32*H32,5) -> 0 | BA32: =ROUND(IFERROR(VLOOKUP(AS32,DATA!$A$2:$B$63,2,FALSE),1)*AZ32,5) -> 0 | BB32: =IFERROR(IF(AN32=1,AY32,IF(AN32=2,AZ32,IF(AN32=3,BA32,AZ32))),0) -> 0 | BZ32: =IFERROR(IF(FIND("DT",AE32),"Y",""),"") ->  | CB32: =CONCATENATE(IF(AN32=4,"",D32),IF(AN32=1,F32,"")) -> FR-O84 | CC32: =IF($AM$11="SQ",AJ32,IF($AM$11="BP",AK32,AL32)) -> 79 | CD32: =1+COUNTIFS(INDIRECT("AN12:AN500"),AN32,INDIRECT("CB12:CB500"),CB32,INDIRECT("AO12:AO500"),">"&AO32) +COUNTIFS(INDIRECT("AO12:AO500"),AO32,INDIRECT("AN12:AN500"),1,INDIRECT("CB12:CB500"),CB32,INDIRECT("E12:E500"),"<"&E32) +COUNTIFS(INDIRECT("AO12:AO500"),AO32,INDIRECT("AN12:AN500"),1,INDIRECT("CB12:CB500"),CB32,INDIRECT("E12:E500"),E32,INDIRECT("CC12:CC500"),"<"&CC32) -> 3 | CE32: =1+COUNTIFS(INDIRECT("AN12:AN500"),AN32,INDIRECT("CB12:CB500"),CB32,INDIRECT("BB12:BB500"),">"&BB32) +COUNTIFS(INDIRECT("BB12:BB500"),BB32,INDIRECT("AN12:AN500"),1,INDIRECT("CB12:CB500"),CB32,INDIRECT("E12:E500"),"<"&E32) -> 3
A33: 2C | B33: Mary Rodriguez | C33: NC | D33: FR-O | E33: 103.85 | F33: =IFERROR(VLOOKUP(E33,DATA!$E$2:$G$22,IF(LEFT(D33,1)="M",2,3)),"") -> 84+ | G33: 509 | H33: =IFERROR(IF(LEFT(D33,1)="M",Wilks_Men(IF($E$11="Bwt - Lb",E33/2.2046,E33)),Wilks_Women(IF($E$11="Bwt - Lb",E33/2.2046,E33))),"") -> 0.824000001 | I33: 1990-02-16 | J33: 11 | K33: 160 | L33: 175 | M33: 192.5 | N33: =IF(MAX(K33:M33)<=0,0,MAX(CELL("color",K33)*K33,CELL("color",L33)*L33,CELL("color",M33)*M33)) -> 192.5 | O33: 13-6 | P33: 95 | Q33: 102.5 | R33: -112.5 | S33: =IF(MAX(P33:R33)<=0,0,MAX(CELL("color",P33)*P33,CELL("color",Q33)*Q33,CELL("color",R33)*R33)) -> 102.5 | T33: =IF(OR(N33=0,S33=0),0,N33+S33) -> 295 | U33: -150 | V33: 170 | W33: -175 | X33: =IF(MAX(U33:W33)<=0,0,MAX(CELL("color",U33)*U33,CELL("color",V33)*V33,CELL("color",W33)*W33)) -> 170 | Y33: =AM33*IF($AM$11="SQ",N33,IF($AM$11="BP",S33,IF($AM$11="DL",X33,IF($AM$11="PP",IF(OR(S33=0,X33=0),0,S33+X33),IF(OR(T33=0,X33=0),0,T33+X33))))) -> 465 | Z33: =IF(Y33=0,"",CONCATENATE(CD33,"/",IF(AN33=4,"Wilks",D33),"/",IF(AN33>1,"",F33),"/",$AM$11)) -> 1/FR-O/84+/PL | AA33: =BB33 -> 465 | AB33: =IF(AA33=0,"",CE33) -> 1 | AC33: =H33*IF($E$3="Kg",Y33,Y33/2.2046) -> 383.1600004 | AD33: =IFERROR(VLOOKUP(AS33,DATA!$A$2:$B$63,2,TRUE),0)*AC33 -> 383.1600004 | AE33: PL BP | AF33: 1009251 | AG33: NC | AH33: =IFERROR(VLOOKUP(A33,Setup!$Q$5:$R$20,2,FALSE),"") -> 2 | AI33: =IF(VALUE(INDIRECT(CONCATENATE($AI$11,ROW())))=0,"",ABS(INDIRECT(CONCATENATE($AI$11,ROW())))+0.000001*G33) -> 175.000509 | AJ33: 81 | AK33: 79 | AL33: 89 | AM33: =IF(ISERROR(SEARCH($AM$11,AE33)),0,1) -> 1 | AN33: =VLOOKUP(D33,Setup!$I$6:$K$93,3,FALSE) -> 1 | AO33: =ROUND(IFERROR(IF(AN33=1,Y33,IF(AN33=2,AC33,IF(AN33=3,AD33,AC33))),0),5) -> 465 | AQ33: =IFERROR(MATCH(D33,Setup!$I$6:$I$93,0),"") -> 8 | AR33: =IFERROR(CONCATENATE(LEFT(D33,FIND("-",D33)),IF(AS33="","O",VLOOKUP(AS33,DATA!$E$35:$F$53,2,TRUE))),"") -> FR-O | AS33: =IF(YEAR($AR$7)-YEAR(I33)<40,DATEDIF(I33,$AR$7,"Y"),YEAR($AR$7)-YEAR(I33)) -> 28 | AT33: =IF(AN33=1,MATCH(F33,DATA!$AB$2:$AB$34,0),0) -> 23 | AV33: =IF(MAX(K33:M33)>0,MAX(K33:M33),0) -> 192.5 | AW33: =IF(MAX(P33:R33)>0,MAX(P33:R33),0) -> 102.5 | AX33: =IF(MAX(U33:W33)>0,MAX(U33:W33),0) -> 170 | AY33: =AM33*IF($AM$11="PL",IF(MIN(AV33:AX33)=0,0,AV33+AW33+AX33),IF($AM$11="PP",IF(MIN(AW33:AX33)=0,0,AW33+AX33),IF($AM$11="BP",AW33,IF($AM$11="DL",AX33,AV33)))) -> 465 | AZ33: =ROUND(AY33*H33,5) -> 383.16 | BA33: =ROUND(IFERROR(VLOOKUP(AS33,DATA!$A$2:$B$63,2,FALSE),1)*AZ33,5) -> 383.16 | BB33: =IFERROR(IF(AN33=1,AY33,IF(AN33=2,AZ33,IF(AN33=3,BA33,AZ33))),0) -> 465 | BZ33: =IFERROR(IF(FIND("DT",AE33),"Y",""),"") ->  | CB33: =CONCATENATE(IF(AN33=4,"",D33),IF(AN33=1,F33,"")) -> FR-O84+ | CC33: =IF($AM$11="SQ",AJ33,IF($AM$11="BP",AK33,AL33)) -> 89 | CD33: =1+COUNTIFS(INDIRECT("AN12:AN500"),AN33,INDIRECT("CB12:CB500"),CB33,INDIRECT("AO12:AO500"),">"&AO33) +COUNTIFS(INDIRECT("AO12:AO500"),AO33,INDIRECT("AN12:AN500"),1,INDIRECT("CB12:CB500"),CB33,INDIRECT("E12:E500"),"<"&E33) +COUNTIFS(INDIRECT("AO12:AO500"),AO33,INDIRECT("AN12:AN500"),1,INDIRECT("CB12:CB500"),CB33,INDIRECT("E12:E500"),E33,INDIRECT("CC12:CC500"),"<"&CC33) -> 1 | CE33: =1+COUNTIFS(INDIRECT("AN12:AN500"),AN33,INDIRECT("CB12:CB500"),CB33,INDIRECT("BB12:BB500"),">"&BB33) +COUNTIFS(INDIRECT("BB12:BB500"),BB33,INDIRECT("AN12:AN500"),1,INDIRECT("CB12:CB500"),CB33,INDIRECT("E12:E500"),"<"&E33) -> 1
A34: 2C | B34: Kristin McCarthy | C34: NC | D34: FR-O | E34: 101.75 | F34: =IFERROR(VLOOKUP(E34,DATA!$E$2:$G$22,IF(LEFT(D34,1)="M",2,3)),"") -> 84+ | G34: 510 | H34: =IFERROR(IF(LEFT(D34,1)="M",Wilks_Men(IF($E$11="Bwt - Lb",E34/2.2046,E34)),Wilks_Women(IF($E$11="Bwt - Lb",E34/2.2046,E34))),"") -> 0.8284999728 | I34: 1973-01-18 | J34: 11 | K34: 125 | L34: 130 | M34: 132.5 | N34: =IF(MAX(K34:M34)<=0,0,MAX(CELL("color",K34)*K34,CELL("color",L34)*L34,CELL("color",M34)*M34)) -> 132.5 | O34: 13-7 | P34: 67.5 | Q34: 70 | R34: -72.5 | S34: =IF(MAX(P34:R34)<=0,0,MAX(CELL("color",P34)*P34,CELL("color",Q34)*Q34,CELL("color",R34)*R34)) -> 70 | T34: =IF(OR(N34=0,S34=0),0,N34+S34) -> 202.5 | U34: 140 | V34: 147.5 | W34: 155 | X34: =IF(MAX(U34:W34)<=0,0,MAX(CELL("color",U34)*U34,CELL("color",V34)*V34,CELL("color",W34)*W34)) -> 155 | Y34: =AM34*IF($AM$11="SQ",N34,IF($AM$11="BP",S34,IF($AM$11="DL",X34,IF($AM$11="PP",IF(OR(S34=0,X34=0),0,S34+X34),IF(OR(T34=0,X34=0),0,T34+X34))))) -> 357.5 | Z34: =IF(Y34=0,"",CONCATENATE(CD34,"/",IF(AN34=4,"Wilks",D34),"/",IF(AN34>1,"",F34),"/",$AM$11)) -> 2/FR-O/84+/PL | AA34: =BB34 -> 357.5 | AB34: =IF(AA34=0,"",CE34) -> 2 | AC34: =H34*IF($E$3="Kg",Y34,Y34/2.2046) -> 296.1887403 | AD34: =IFERROR(VLOOKUP(AS34,DATA!$A$2:$B$63,2,TRUE),0)*AC34 -> 312.479121 | AE34: PL | AF34: 1013477 | AG34: NC | AH34: =IFERROR(VLOOKUP(A34,Setup!$Q$5:$R$20,2,FALSE),"") -> 2 | AI34: =IF(VALUE(INDIRECT(CONCATENATE($AI$11,ROW())))=0,"",ABS(INDIRECT(CONCATENATE($AI$11,ROW())))+0.000001*G34) -> 155.00051 | AJ34: 78 | AK34: 74 | AL34: 92 | AM34: =IF(ISERROR(SEARCH($AM$11,AE34)),0,1) -> 1 | AN34: =VLOOKUP(D34,Setup!$I$6:$K$93,3,FALSE) -> 1 | AO34: =ROUND(IFERROR(IF(AN34=1,Y34,IF(AN34=2,AC34,IF(AN34=3,AD34,AC34))),0),5) -> 357.5 | AQ34: =IFERROR(MATCH(D34,Setup!$I$6:$I$93,0),"") -> 8 | AR34: =IFERROR(CONCATENATE(LEFT(D34,FIND("-",D34)),IF(AS34="","O",VLOOKUP(AS34,DATA!$E$35:$F$53,2,TRUE))),"") -> FR-M1b | AS34: =IF(YEAR($AR$7)-YEAR(I34)<40,DATEDIF(I34,$AR$7,"Y"),YEAR($AR$7)-YEAR(I34)) -> 45 | AT34: =IF(AN34=1,MATCH(F34,DATA!$AB$2:$AB$34,0),0) -> 23 | AV34: =IF(MAX(K34:M34)>0,MAX(K34:M34),0) -> 132.5 | AW34: =IF(MAX(P34:R34)>0,MAX(P34:R34),0) -> 70 | AX34: =IF(MAX(U34:W34)>0,MAX(U34:W34),0) -> 155 | AY34: =AM34*IF($AM$11="PL",IF(MIN(AV34:AX34)=0,0,AV34+AW34+AX34),IF($AM$11="PP",IF(MIN(AW34:AX34)=0,0,AW34+AX34),IF($AM$11="BP",AW34,IF($AM$11="DL",AX34,AV34)))) -> 357.5 | AZ34: =ROUND(AY34*H34,5) -> 296.18874 | BA34: =ROUND(IFERROR(VLOOKUP(AS34,DATA!$A$2:$B$63,2,FALSE),1)*AZ34,5) -> 312.47912 | BB34: =IFERROR(IF(AN34=1,AY34,IF(AN34=2,AZ34,IF(AN34=3,BA34,AZ34))),0) -> 357.5 | BZ34: =IFERROR(IF(FIND("DT",AE34),"Y",""),"") ->  | CB34: =CONCATENATE(IF(AN34=4,"",D34),IF(AN34=1,F34,"")) -> FR-O84+ | CC34: =IF($AM$11="SQ",AJ34,IF($AM$11="BP",AK34,AL34)) -> 92 | CD34: =1+COUNTIFS(INDIRECT("AN12:AN500"),AN34,INDIRECT("CB12:CB500"),CB34,INDIRECT("AO12:AO500"),">"&AO34) +COUNTIFS(INDIRECT("AO12:AO500"),AO34,INDIRECT("AN12:AN500"),1,INDIRECT("CB12:CB500"),CB34,INDIRECT("E12:E500"),"<"&E34) +COUNTIFS(INDIRECT("AO12:AO500"),AO34,INDIRECT("AN12:AN500"),1,INDIRECT("CB12:CB500"),CB34,INDIRECT("E12:E500"),E34,INDIRECT("CC12:CC500"),"<"&CC34) -> 2 | CE34: =1+COUNTIFS(INDIRECT("AN12:AN500"),AN34,INDIRECT("CB12:CB500"),CB34,INDIRECT("BB12:BB500"),">"&BB34) +COUNTIFS(INDIRECT("BB12:BB500"),BB34,INDIRECT("AN12:AN500"),1,INDIRECT("CB12:CB500"),CB34,INDIRECT("E12:E500"),"<"&E34) -> 2
A35: 2C | B35: Chrissy Helton | C35: NC | D35: FR-O | E35: 87.9 | F35: =IFERROR(VLOOKUP(E35,DATA!$E$2:$G$22,IF(LEFT(D35,1)="M",2,3)),"") -> 84+ | G35: 501 | H35: =IFERROR(IF(LEFT(D35,1)="M",Wilks_Men(IF($E$11="Bwt - Lb",E35/2.2046,E35)),Wilks_Women(IF($E$11="Bwt - Lb",E35/2.2046,E35))),"") -> 0.8729000092 | I35: 1992-03-16 | J35: 13 | K35: 102.5 | L35: 110 | M35: -117.5 | N35: =IF(MAX(K35:M35)<=0,0,MAX(CELL("color",K35)*K35,CELL("color",L35)*L35,CELL("color",M35)*M35)) -> 110 | O35: 11-6 | P35: 67.5 | Q35: -72.5 | R35: -72.5 | S35: =IF(MAX(P35:R35)<=0,0,MAX(CELL("color",P35)*P35,CELL("color",Q35)*Q35,CELL("color",R35)*R35)) -> 67.5 | T35: =IF(OR(N35=0,S35=0),0,N35+S35) -> 177.5 | U35: 130 | V35: 137.5 | W35: -145 | X35: =IF(MAX(U35:W35)<=0,0,MAX(CELL("color",U35)*U35,CELL("color",V35)*V35,CELL("color",W35)*W35)) -> 137.5 | Y35: =AM35*IF($AM$11="SQ",N35,IF($AM$11="BP",S35,IF($AM$11="DL",X35,IF($AM$11="PP",IF(OR(S35=0,X35=0),0,S35+X35),IF(OR(T35=0,X35=0),0,T35+X35))))) -> 315 | Z35: =IF(Y35=0,"",CONCATENATE(CD35,"/",IF(AN35=4,"Wilks",D35),"/",IF(AN35>1,"",F35),"/",$AM$11)) -> 3/FR-O/84+/PL | AA35: =BB35 -> 315 | AB35: =IF(AA35=0,"",CE35) -> 3 | AC35: =H35*IF($E$3="Kg",Y35,Y35/2.2046) -> 274.9635029 | AD35: =IFERROR(VLOOKUP(AS35,DATA!$A$2:$B$63,2,TRUE),0)*AC35 -> 274.9635029 | AE35: PL | AG35: NC | AH35: =IFERROR(VLOOKUP(A35,Setup!$Q$5:$R$20,2,FALSE),"") -> 2 | AI35: =IF(VALUE(INDIRECT(CONCATENATE($AI$11,ROW())))=0,"",ABS(INDIRECT(CONCATENATE($AI$11,ROW())))+0.000001*G35) -> 145.000501 | AJ35: 70 | AK35: 60 | AL35: 84 | AM35: =IF(ISERROR(SEARCH($AM$11,AE35)),0,1) -> 1 | AN35: =VLOOKUP(D35,Setup!$I$6:$K$93,3,FALSE) -> 1 | AO35: =ROUND(IFERROR(IF(AN35=1,Y35,IF(AN35=2,AC35,IF(AN35=3,AD35,AC35))),0),5) -> 315 | AQ35: =IFERROR(MATCH(D35,Setup!$I$6:$I$93,0),"") -> 8 | AR35: =IFERROR(CONCATENATE(LEFT(D35,FIND("-",D35)),IF(AS35="","O",VLOOKUP(AS35,DATA!$E$35:$F$53,2,TRUE))),"") -> FR-O | AS35: =IF(YEAR($AR$7)-YEAR(I35)<40,DATEDIF(I35,$AR$7,"Y"),YEAR($AR$7)-YEAR(I35)) -> 26 | AT35: =IF(AN35=1,MATCH(F35,DATA!$AB$2:$AB$34,0),0) -> 23 | AV35: =IF(MAX(K35:M35)>0,MAX(K35:M35),0) -> 110 | AW35: =IF(MAX(P35:R35)>0,MAX(P35:R35),0) -> 67.5 | AX35: =IF(MAX(U35:W35)>0,MAX(U35:W35),0) -> 137.5 | AY35: =AM35*IF($AM$11="PL",IF(MIN(AV35:AX35)=0,0,AV35+AW35+AX35),IF($AM$11="PP",IF(MIN(AW35:AX35)=0,0,AW35+AX35),IF($AM$11="BP",AW35,IF($AM$11="DL",AX35,AV35)))) -> 315 | AZ35: =ROUND(AY35*H35,5) -> 274.9635 | BA35: =ROUND(IFERROR(VLOOKUP(AS35,DATA!$A$2:$B$63,2,FALSE),1)*AZ35,5) -> 274.9635 | BB35: =IFERROR(IF(AN35=1,AY35,IF(AN35=2,AZ35,IF(AN35=3,BA35,AZ35))),0) -> 315 | BZ35: =IFERROR(IF(FIND("DT",AE35),"Y",""),"") ->  | CB35: =CONCATENATE(IF(AN35=4,"",D35),IF(AN35=1,F35,"")) -> FR-O84+ | CC35: =IF($AM$11="SQ",AJ35,IF($AM$11="BP",AK35,AL35)) -> 84 | CD35: =1+COUNTIFS(INDIRECT("AN12:AN500"),AN35,INDIRECT("CB12:CB500"),CB35,INDIRECT("AO12:AO500"),">"&AO35) +COUNTIFS(INDIRECT("AO12:AO500"),AO35,INDIRECT("AN12:AN500"),1,INDIRECT("CB12:CB500"),CB35,INDIRECT("E12:E500"),"<"&E35) +COUNTIFS(INDIRECT("AO12:AO500"),AO35,INDIRECT("AN12:AN500"),1,INDIRECT("CB12:CB500"),CB35,INDIRECT("E12:E500"),E35,INDIRECT("CC12:CC500"),"<"&CC35) -> 3 | CE35: =1+COUNTIFS(INDIRECT("AN12:AN500"),AN35,INDIRECT("CB12:CB500"),CB35,INDIRECT("BB12:BB500"),">"&BB35) +COUNTIFS(INDIRECT("BB12:BB500"),BB35,INDIRECT("AN12:AN500"),1,INDIRECT("CB12:CB500"),CB35,INDIRECT("E12:E500"),"<"&E35) -> 3
A36: 2C | B36: Jennifer Patton | C36: SC | D36: FR-O | E36: 105 | F36: =IFERROR(VLOOKUP(E36,DATA!$E$2:$G$22,IF(LEFT(D36,1)="M",2,3)),"") -> 84+ | G36: 503 | H36: =IFERROR(IF(LEFT(D36,1)="M",Wilks_Men(IF($E$11="Bwt - Lb",E36/2.2046,E36)),Wilks_Women(IF($E$11="Bwt - Lb",E36/2.2046,E36))),"") -> 0.8216999769 | I36: 1982-09-05 | N36: =IF(MAX(K36:M36)<=0,0,MAX(CELL("color",K36)*K36,CELL("color",L36)*L36,CELL("color",M36)*M36)) -> 0 | O36: 12-6 | P36: 85 | Q36: 90 | R36: 92.5 | S36: =IF(MAX(P36:R36)<=0,0,MAX(CELL("color",P36)*P36,CELL("color",Q36)*Q36,CELL("color",R36)*R36)) -> 92.5 | T36: =IF(OR(N36=0,S36=0),0,N36+S36) -> 0 | X36: =IF(MAX(U36:W36)<=0,0,MAX(CELL("color",U36)*U36,CELL("color",V36)*V36,CELL("color",W36)*W36)) -> 0 | Y36: =AM36*IF($AM$11="SQ",N36,IF($AM$11="BP",S36,IF($AM$11="DL",X36,IF($AM$11="PP",IF(OR(S36=0,X36=0),0,S36+X36),IF(OR(T36=0,X36=0),0,T36+X36))))) -> 0 | Z36: =IF(Y36=0,"",CONCATENATE(CD36,"/",IF(AN36=4,"Wilks",D36),"/",IF(AN36>1,"",F36),"/",$AM$11)) ->  | AA36: =BB36 -> 0 | AB36: =IF(AA36=0,"",CE36) ->  | AC36: =H36*IF($E$3="Kg",Y36,Y36/2.2046) -> 0 | AD36: =IFERROR(VLOOKUP(AS36,DATA!$A$2:$B$63,2,TRUE),0)*AC36 -> 0 | AE36: PL BP | AG36: SC | AH36: =IFERROR(VLOOKUP(A36,Setup!$Q$5:$R$20,2,FALSE),"") -> 2 | AI36: =IF(VALUE(INDIRECT(CONCATENATE($AI$11,ROW())))=0,"",ABS(INDIRECT(CONCATENATE($AI$11,ROW())))+0.000001*G36) ->  | AJ36: 0 | AK36: 82 | AL36: 0 | AM36: =IF(ISERROR(SEARCH($AM$11,AE36)),0,1) -> 1 | AN36: =VLOOKUP(D36,Setup!$I$6:$K$93,3,FALSE) -> 1 | AO36: =ROUND(IFERROR(IF(AN36=1,Y36,IF(AN36=2,AC36,IF(AN36=3,AD36,AC36))),0),5) -> 0 | AQ36: =IFERROR(MATCH(D36,Setup!$I$6:$I$93,0),"") -> 8 | AR36: =IFERROR(CONCATENATE(LEFT(D36,FIND("-",D36)),IF(AS36="","O",VLOOKUP(AS36,DATA!$E$35:$F$53,2,TRUE))),"") -> FR-O | AS36: =IF(YEAR($AR$7)-YEAR(I36)<40,DATEDIF(I36,$AR$7,"Y"),YEAR($AR$7)-YEAR(I36)) -> 35 | AT36: =IF(AN36=1,MATCH(F36,DATA!$AB$2:$AB$34,0),0) -> 23 | AV36: =IF(MAX(K36:M36)>0,MAX(K36:M36),0) -> 0 | AW36: =IF(MAX(P36:R36)>0,MAX(P36:R36),0) -> 92.5 | AX36: =IF(MAX(U36:W36)>0,MAX(U36:W36),0) -> 0 | AY36: =AM36*IF($AM$11="PL",IF(MIN(AV36:AX36)=0,0,AV36+AW36+AX36),IF($AM$11="PP",IF(MIN(AW36:AX36)=0,0,AW36+AX36),IF($AM$11="BP",AW36,IF($AM$11="DL",AX36,AV36)))) -> 0 | AZ36: =ROUND(AY36*H36,5) -> 0 | BA36: =ROUND(IFERROR(VLOOKUP(AS36,DATA!$A$2:$B$63,2,FALSE),1)*AZ36,5) -> 0 | BB36: =IFERROR(IF(AN36=1,AY36,IF(AN36=2,AZ36,IF(AN36=3,BA36,AZ36))),0) -> 0 | BZ36: =IFERROR(IF(FIND("DT",AE36),"Y",""),"") ->  | CB36: =CONCATENATE(IF(AN36=4,"",D36),IF(AN36=1,F36,"")) -> FR-O84+ | CC36: =IF($AM$11="SQ",AJ36,IF($AM$11="BP",AK36,AL36)) -> 0 | CD36: =1+COUNTIFS(INDIRECT("AN12:AN500"),AN36,INDIRECT("CB12:CB500"),CB36,INDIRECT("AO12:AO500"),">"&AO36) +COUNTIFS(INDIRECT("AO12:AO500"),AO36,INDIRECT("AN12:AN500"),1,INDIRECT("CB12:CB500"),CB36,INDIRECT("E12:E500"),"<"&E36) +COUNTIFS(INDIRECT("AO12:AO500"),AO36,INDIRECT("AN12:AN500"),1,INDIRECT("CB12:CB500"),CB36,INDIRECT("E12:E500"),E36,INDIRECT("CC12:CC500"),"<"&CC36) -> 4 | CE36: =1+COUNTIFS(INDIRECT("AN12:AN500"),AN36,INDIRECT("CB12:CB500"),CB36,INDIRECT("BB12:BB500"),">"&BB36) +COUNTIFS(INDIRECT("BB12:BB500"),BB36,INDIRECT("AN12:AN500"),1,INDIRECT("CB12:CB500"),CB36,INDIRECT("E12:E500"),"<"&E36) -> 4
A37: 2A | B37: Amy Mason | C37: NC | D37: FR-M1a | E37: 62.4 | F37: =IFERROR(VLOOKUP(E37,DATA!$E$2:$G$22,IF(LEFT(D37,1)="M",2,3)),"") -> 63 | G37: 309 | H37: =IFERROR(IF(LEFT(D37,1)="M",Wilks_Men(IF($E$11="Bwt - Lb",E37/2.2046,E37)),Wilks_Women(IF($E$11="Bwt - Lb",E37/2.2046,E37))),"") -> 1.081799984 | I37: 1976-03-17 | J37: 6 | K37: 132.5 | L37: 137.5 | M37: -140 | N37: =IF(MAX(K37:M37)<=0,0,MAX(CELL("color",K37)*K37,CELL("color",L37)*L37,CELL("color",M37)*M37)) -> 137.5 | O37: 9-4 | P37: 62.5 | Q37: 65 | R37: -67.5 | S37: =IF(MAX(P37:R37)<=0,0,MAX(CELL("color",P37)*P37,CELL("color",Q37)*Q37,CELL("color",R37)*R37)) -> 65 | T37: =IF(OR(N37=0,S37=0),0,N37+S37) -> 202.5 | U37: 150 | V37: 157.5 | W37: 165 | X37: =IF(MAX(U37:W37)<=0,0,MAX(CELL("color",U37)*U37,CELL("color",V37)*V37,CELL("color",W37)*W37)) -> 165 | Y37: =AM37*IF($AM$11="SQ",N37,IF($AM$11="BP",S37,IF($AM$11="DL",X37,IF($AM$11="PP",IF(OR(S37=0,X37=0),0,S37+X37),IF(OR(T37=0,X37=0),0,T37+X37))))) -> 367.5 | Z37: =IF(Y37=0,"",CONCATENATE(CD37,"/",IF(AN37=4,"Wilks",D37),"/",IF(AN37>1,"",F37),"/",$AM$11)) -> 1/FR-M1a//PL | AA37: =BB37 -> 397.56149 | AB37: =IF(AA37=0,"",CE37) -> 1 | AC37: =H37*IF($E$3="Kg",Y37,Y37/2.2046) -> 397.5614941 | AD37: =IFERROR(VLOOKUP(AS37,DATA!$A$2:$B$63,2,TRUE),0)*AC37 -> 405.512724 | AE37: PL | AF37: 961103 | AG37: NC | AH37: =IFERROR(VLOOKUP(A37,Setup!$Q$5:$R$20,2,FALSE),"") -> 0 | AI37: =IF(VALUE(INDIRECT(CONCATENATE($AI$11,ROW())))=0,"",ABS(INDIRECT(CONCATENATE($AI$11,ROW())))+0.000001*G37) -> 165.000309 | AJ37: 25 | AK37: 22 | AL37: 39 | AM37: =IF(ISERROR(SEARCH($AM$11,AE37)),0,1) -> 1 | AN37: =VLOOKUP(D37,Setup!$I$6:$K$93,3,FALSE) -> 2 | AO37: =ROUND(IFERROR(IF(AN37=1,Y37,IF(AN37=2,AC37,IF(AN37=3,AD37,AC37))),0),5) -> 397.56149 | AQ37: =IFERROR(MATCH(D37,Setup!$I$6:$I$93,0),"") -> 9 | AR37: =IFERROR(CONCATENATE(LEFT(D37,FIND("-",D37)),IF(AS37="","O",VLOOKUP(AS37,DATA!$E$35:$F$53,2,TRUE))),"") -> FR-M1a | AS37: =IF(YEAR($AR$7)-YEAR(I37)<40,DATEDIF(I37,$AR$7,"Y"),YEAR($AR$7)-YEAR(I37)) -> 42 | AT37: =IF(AN37=1,MATCH(F37,DATA!$AB$2:$AB$34,0),0) -> 0 | AV37: =IF(MAX(K37:M37)>0,MAX(K37:M37),0) -> 137.5 | AW37: =IF(MAX(P37:R37)>0,MAX(P37:R37),0) -> 65 | AX37: =IF(MAX(U37:W37)>0,MAX(U37:W37),0) -> 165 | AY37: =AM37*IF($AM$11="PL",IF(MIN(AV37:AX37)=0,0,AV37+AW37+AX37),IF($AM$11="PP",IF(MIN(AW37:AX37)=0,0,AW37+AX37),IF($AM$11="BP",AW37,IF($AM$11="DL",AX37,AV37)))) -> 367.5 | AZ37: =ROUND(AY37*H37,5) -> 397.56149 | BA37: =ROUND(IFERROR(VLOOKUP(AS37,DATA!$A$2:$B$63,2,FALSE),1)*AZ37,5) -> 405.51272 | BB37: =IFERROR(IF(AN37=1,AY37,IF(AN37=2,AZ37,IF(AN37=3,BA37,AZ37))),0) -> 397.56149 | BZ37: =IFERROR(IF(FIND("DT",AE37),"Y",""),"") ->  | CB37: =CONCATENATE(IF(AN37=4,"",D37),IF(AN37=1,F37,"")) -> FR-M1a | CC37: =IF($AM$11="SQ",AJ37,IF($AM$11="BP",AK37,AL37)) -> 39 | CD37: =1+COUNTIFS(INDIRECT("AN12:AN500"),AN37,INDIRECT("CB12:CB500"),CB37,INDIRECT("AO12:AO500"),">"&AO37) +COUNTIFS(INDIRECT("AO12:AO500"),AO37,INDIRECT("AN12:AN500"),1,INDIRECT("CB12:CB500"),CB37,INDIRECT("E12:E500"),"<"&E37) +COUNTIFS(INDIRECT("AO12:AO500"),AO37,INDIRECT("AN12:AN500"),1,INDIRECT("CB12:CB500"),CB37,INDIRECT("E12:E500"),E37,INDIRECT("CC12:CC500"),"<"&CC37) -> 1 | CE37: =1+COUNTIFS(INDIRECT("AN12:AN500"),AN37,INDIRECT("CB12:CB500"),CB37,INDIRECT("BB12:BB500"),">"&BB37) +COUNTIFS(INDIRECT("BB12:BB500"),BB37,INDIRECT("AN12:AN500"),1,INDIRECT("CB12:CB500"),CB37,INDIRECT("E12:E500"),"<"&E37) -> 1
A38: 2B | B38: Tracy Cook | C38: NC | D38: FR-M1a | E38: 70.2 | F38: =IFERROR(VLOOKUP(E38,DATA!$E$2:$G$22,IF(LEFT(D38,1)="M",2,3)),"") -> 72 | G38: 407 | H38: =IFERROR(IF(LEFT(D38,1)="M",Wilks_Men(IF($E$11="Bwt - Lb",E38/2.2046,E38)),Wilks_Women(IF($E$11="Bwt - Lb",E38/2.2046,E38))),"") -> 0.9929000139 | I38: 1970-07-10 | J38: 9 | K38: 127.5 | L38: 137.5 | M38: -140 | N38: =IF(MAX(K38:M38)<=0,0,MAX(CELL("color",K38)*K38,CELL("color",L38)*L38,CELL("color",M38)*M38)) -> 137.5 | O38: 12-6 | P38: 72.5 | Q38: 75 | R38: 80 | S38: =IF(MAX(P38:R38)<=0,0,MAX(CELL("color",P38)*P38,CELL("color",Q38)*Q38,CELL("color",R38)*R38)) -> 80 | T38: =IF(OR(N38=0,S38=0),0,N38+S38) -> 217.5 | U38: 155 | V38: 165 | W38: 170 | X38: =IF(MAX(U38:W38)<=0,0,MAX(CELL("color",U38)*U38,CELL("color",V38)*V38,CELL("color",W38)*W38)) -> 170 | Y38: =AM38*IF($AM$11="SQ",N38,IF($AM$11="BP",S38,IF($AM$11="DL",X38,IF($AM$11="PP",IF(OR(S38=0,X38=0),0,S38+X38),IF(OR(T38=0,X38=0),0,T38+X38))))) -> 387.5 | Z38: =IF(Y38=0,"",CONCATENATE(CD38,"/",IF(AN38=4,"Wilks",D38),"/",IF(AN38>1,"",F38),"/",$AM$11)) -> 2/FR-M1a//PL | AA38: =BB38 -> 384.74876 | AB38: =IF(AA38=0,"",CE38) -> 2 | AC38: =H38*IF($E$3="Kg",Y38,Y38/2.2046) -> 384.7487554 | AD38: =IFERROR(VLOOKUP(AS38,DATA!$A$2:$B$63,2,TRUE),0)*AC38 -> 422.0693847 | AE38: PL BP | AF38: 920178 | AG38: NC | AH38: =IFERROR(VLOOKUP(A38,Setup!$Q$5:$R$20,2,FALSE),"") -> 1 | AI38: =IF(VALUE(INDIRECT(CONCATENATE($AI$11,ROW())))=0,"",ABS(INDIRECT(CONCATENATE($AI$11,ROW())))+0.000001*G38) -> 170.000407 | AJ38: 54 | AK38: 54 | AL38: 70 | AM38: =IF(ISERROR(SEARCH($AM$11,AE38)),0,1) -> 1 | AN38: =VLOOKUP(D38,Setup!$I$6:$K$93,3,FALSE) -> 2 | AO38: =ROUND(IFERROR(IF(AN38=1,Y38,IF(AN38=2,AC38,IF(AN38=3,AD38,AC38))),0),5) -> 384.74876 | AQ38: =IFERROR(MATCH(D38,Setup!$I$6:$I$93,0),"") -> 9 | AR38: =IFERROR(CONCATENATE(LEFT(D38,FIND("-",D38)),IF(AS38="","O",VLOOKUP(AS38,DATA!$E$35:$F$53,2,TRUE))),"") -> FR-M1b | AS38: =IF(YEAR($AR$7)-YEAR(I38)<40,DATEDIF(I38,$AR$7,"Y"),YEAR($AR$7)-YEAR(I38)) -> 48 | AT38: =IF(AN38=1,MATCH(F38,DATA!$AB$2:$AB$34,0),0) -> 0 | AV38: =IF(MAX(K38:M38)>0,MAX(K38:M38),0) -> 137.5 | AW38: =IF(MAX(P38:R38)>0,MAX(P38:R38),0) -> 80 | AX38: =IF(MAX(U38:W38)>0,MAX(U38:W38),0) -> 170 | AY38: =AM38*IF($AM$11="PL",IF(MIN(AV38:AX38)=0,0,AV38+AW38+AX38),IF($AM$11="PP",IF(MIN(AW38:AX38)=0,0,AW38+AX38),IF($AM$11="BP",AW38,IF($AM$11="DL",AX38,AV38)))) -> 387.5 | AZ38: =ROUND(AY38*H38,5) -> 384.74876 | BA38: =ROUND(IFERROR(VLOOKUP(AS38,DATA!$A$2:$B$63,2,FALSE),1)*AZ38,5) -> 422.06939 | BB38: =IFERROR(IF(AN38=1,AY38,IF(AN38=2,AZ38,IF(AN38=3,BA38,AZ38))),0) -> 384.74876 | BZ38: =IFERROR(IF(FIND("DT",AE38),"Y",""),"") ->  | CB38: =CONCATENATE(IF(AN38=4,"",D38),IF(AN38=1,F38,"")) -> FR-M1a | CC38: =IF($AM$11="SQ",AJ38,IF($AM$11="BP",AK38,AL38)) -> 70 | CD38: =1+COUNTIFS(INDIRECT("AN12:AN500"),AN38,INDIRECT("CB12:CB500"),CB38,INDIRECT("AO12:AO500"),">"&AO38) +COUNTIFS(INDIRECT("AO12:AO500"),AO38,INDIRECT("AN12:AN500"),1,INDIRECT("CB12:CB500"),CB38,INDIRECT("E12:E500"),"<"&E38) +COUNTIFS(INDIRECT("AO12:AO500"),AO38,INDIRECT("AN12:AN500"),1,INDIRECT("CB12:CB500"),CB38,INDIRECT("E12:E500"),E38,INDIRECT("CC12:CC500"),"<"&CC38) -> 2 | CE38: =1+COUNTIFS(INDIRECT("AN12:AN500"),AN38,INDIRECT("CB12:CB500"),CB38,INDIRECT("BB12:BB500"),">"&BB38) +COUNTIFS(INDIRECT("BB12:BB500"),BB38,INDIRECT("AN12:AN500"),1,INDIRECT("CB12:CB500"),CB38,INDIRECT("E12:E500"),"<"&E38) -> 2
A39: 2A | B39: Lisa Womble | C39: NC | D39: FR-M1a | E39: 55.4 | F39: =IFERROR(VLOOKUP(E39,DATA!$E$2:$G$22,IF(LEFT(D39,1)="M",2,3)),"") -> 57 | G39: 305 | H39: =IFERROR(IF(LEFT(D39,1)="M",Wilks_Men(IF($E$11="Bwt - Lb",E39/2.2046,E39)),Wilks_Women(IF($E$11="Bwt - Lb",E39/2.2046,E39))),"") -> 1.18659997 | I39: 1977-03-29 | J39: 11 | K39: 95 | L39: -100 | M39: 105 | N39: =IF(MAX(K39:M39)<=0,0,MAX(CELL("color",K39)*K39,CELL("color",L39)*L39,CELL("color",M39)*M39)) -> 105 | O39: 14-4 | P39: 52.5 | Q39: 57.5 | R39: -60 | S39: =IF(MAX(P39:R39)<=0,0,MAX(CELL("color",P39)*P39,CELL("color",Q39)*Q39,CELL("color",R39)*R39)) -> 57.5 | T39: =IF(OR(N39=0,S39=0),0,N39+S39) -> 162.5 | U39: 112.5 | V39: 122.5 | W39: 130 | X39: =IF(MAX(U39:W39)<=0,0,MAX(CELL("color",U39)*U39,CELL("color",V39)*V39,CELL("color",W39)*W39)) -> 130 | Y39: =AM39*IF($AM$11="SQ",N39,IF($AM$11="BP",S39,IF($AM$11="DL",X39,IF($AM$11="PP",IF(OR(S39=0,X39=0),0,S39+X39),IF(OR(T39=0,X39=0),0,T39+X39))))) -> 292.5 | Z39: =IF(Y39=0,"",CONCATENATE(CD39,"/",IF(AN39=4,"Wilks",D39),"/",IF(AN39>1,"",F39),"/",$AM$11)) -> 3/FR-M1a//PL | AA39: =BB39 -> 347.08049 | AB39: =IF(AA39=0,"",CE39) -> 3 | AC39: =H39*IF($E$3="Kg",Y39,Y39/2.2046) -> 347.0804912 | AD39: =IFERROR(VLOOKUP(AS39,DATA!$A$2:$B$63,2,TRUE),0)*AC39 -> 350.5512961 | AE39: PL | AF39: 992752 | AG39: NC | AH39: =IFERROR(VLOOKUP(A39,Setup!$Q$5:$R$20,2,FALSE),"") -> 0 | AI39: =IF(VALUE(INDIRECT(CONCATENATE($AI$11,ROW())))=0,"",ABS(INDIRECT(CONCATENATE($AI$11,ROW())))+0.000001*G39) -> 130.000305 | AJ39: 31 | AK39: 16 | AL39: 33 | AM39: =IF(ISERROR(SEARCH($AM$11,AE39)),0,1) -> 1 | AN39: =VLOOKUP(D39,Setup!$I$6:$K$93,3,FALSE) -> 2 | AO39: =ROUND(IFERROR(IF(AN39=1,Y39,IF(AN39=2,AC39,IF(AN39=3,AD39,AC39))),0),5) -> 347.08049 | AQ39: =IFERROR(MATCH(D39,Setup!$I$6:$I$93,0),"") -> 9 | AR39: =IFERROR(CONCATENATE(LEFT(D39,FIND("-",D39)),IF(AS39="","O",VLOOKUP(AS39,DATA!$E$35:$F$53,2,TRUE))),"") -> FR-M1a | AS39: =IF(YEAR($AR$7)-YEAR(I39)<40,DATEDIF(I39,$AR$7,"Y"),YEAR($AR$7)-YEAR(I39)) -> 41 | AT39: =IF(AN39=1,MATCH(F39,DATA!$AB$2:$AB$34,0),0) -> 0 | AV39: =IF(MAX(K39:M39)>0,MAX(K39:M39),0) -> 105 | AW39: =IF(MAX(P39:R39)>0,MAX(P39:R39),0) -> 57.5 | AX39: =IF(MAX(U39:W39)>0,MAX(U39:W39),0) -> 130 | AY39: =AM39*IF($AM$11="PL",IF(MIN(AV39:AX39)=0,0,AV39+AW39+AX39),IF($AM$11="PP",IF(MIN(AW39:AX39)=0,0,AW39+AX39),IF($AM$11="BP",AW39,IF($AM$11="DL",AX39,AV39)))) -> 292.5 | AZ39: =ROUND(AY39*H39,5) -> 347.08049 | BA39: =ROUND(IFERROR(VLOOKUP(AS39,DATA!$A$2:$B$63,2,FALSE),1)*AZ39,5) -> 350.55129 | BB39: =IFERROR(IF(AN39=1,AY39,IF(AN39=2,AZ39,IF(AN39=3,BA39,AZ39))),0) -> 347.08049 | BZ39: =IFERROR(IF(FIND("DT",AE39),"Y",""),"") ->  | CB39: =CONCATENATE(IF(AN39=4,"",D39),IF(AN39=1,F39,"")) -> FR-M1a | CC39: =IF($AM$11="SQ",AJ39,IF($AM$11="BP",AK39,AL39)) -> 33 | CD39: =1+COUNTIFS(INDIRECT("AN12:AN500"),AN39,INDIRECT("CB12:CB500"),CB39,INDIRECT("AO12:AO500"),">"&AO39) +COUNTIFS(INDIRECT("AO12:AO500"),AO39,INDIRECT("AN12:AN500"),1,INDIRECT("CB12:CB500"),CB39,INDIRECT("E12:E500"),"<"&E39) +COUNTIFS(INDIRECT("AO12:AO500"),AO39,INDIRECT("AN12:AN500"),1,INDIRECT("CB12:CB500"),CB39,INDIRECT("E12:E500"),E39,INDIRECT("CC12:CC500"),"<"&CC39) -> 3 | CE39: =1+COUNTIFS(INDIRECT("AN12:AN500"),AN39,INDIRECT("CB12:CB500"),CB39,INDIRECT("BB12:BB500"),">"&BB39) +COUNTIFS(INDIRECT("BB12:BB500"),BB39,INDIRECT("AN12:AN500"),1,INDIRECT("CB12:CB500"),CB39,INDIRECT("E12:E500"),"<"&E39) -> 3
A40: 2A | B40: Michele Moe | C40: NC | D40: FR-M1a | E40: 62.1 | F40: =IFERROR(VLOOKUP(E40,DATA!$E$2:$G$22,IF(LEFT(D40,1)="M",2,3)),"") -> 63 | G40: 311 | H40: =IFERROR(IF(LEFT(D40,1)="M",Wilks_Men(IF($E$11="Bwt - Lb",E40/2.2046,E40)),Wilks_Women(IF($E$11="Bwt - Lb",E40/2.2046,E40))),"") -> 1.085800052 | I40: 1969-06-20 | J40: 10 | K40: 80 | L40: 85 | M40: 92.5 | N40: =IF(MAX(K40:M40)<=0,0,MAX(CELL("color",K40)*K40,CELL("color",L40)*L40,CELL("color",M40)*M40)) -> 92.5 | O40: 9-6 | P40: 52.5 | Q40: 57.5 | R40: -60 | S40: =IF(MAX(P40:R40)<=0,0,MAX(CELL("color",P40)*P40,CELL("color",Q40)*Q40,CELL("color",R40)*R40)) -> 57.5 | T40: =IF(OR(N40=0,S40=0),0,N40+S40) -> 150 | U40: 115 | V40: 125 | W40: 132.5 | X40: =IF(MAX(U40:W40)<=0,0,MAX(CELL("color",U40)*U40,CELL("color",V40)*V40,CELL("color",W40)*W40)) -> 132.5 | Y40: =AM40*IF($AM$11="SQ",N40,IF($AM$11="BP",S40,IF($AM$11="DL",X40,IF($AM$11="PP",IF(OR(S40=0,X40=0),0,S40+X40),IF(OR(T40=0,X40=0),0,T40+X40))))) -> 282.5 | Z40: =IF(Y40=0,"",CONCATENATE(CD40,"/",IF(AN40=4,"Wilks",D40),"/",IF(AN40>1,"",F40),"/",$AM$11)) -> 4/FR-M1a//PL | AA40: =BB40 -> 306.73851 | AB40: =IF(AA40=0,"",CE40) -> 4 | AC40: =H40*IF($E$3="Kg",Y40,Y40/2.2046) -> 306.7385146 | AD40: =IFERROR(VLOOKUP(AS40,DATA!$A$2:$B$63,2,TRUE),0)*AC40 -> 341.3999668 | AE40: PL | AF40: 1009213 | AG40: NC | AH40: =IFERROR(VLOOKUP(A40,Setup!$Q$5:$R$20,2,FALSE),"") -> 0 | AI40: =IF(VALUE(INDIRECT(CONCATENATE($AI$11,ROW())))=0,"",ABS(INDIRECT(CONCATENATE($AI$11,ROW())))+0.000001*G40) -> 132.500311 | AJ40: 27 | AK40: 18 | AL40: 35 | AM40: =IF(ISERROR(SEARCH($AM$11,AE40)),0,1) -> 1 | AN40: =VLOOKUP(D40,Setup!$I$6:$K$93,3,FALSE) -> 2 | AO40: =ROUND(IFERROR(IF(AN40=1,Y40,IF(AN40=2,AC40,IF(AN40=3,AD40,AC40))),0),5) -> 306.73851 | AQ40: =IFERROR(MATCH(D40,Setup!$I$6:$I$93,0),"") -> 9 | AR40: =IFERROR(CONCATENATE(LEFT(D40,FIND("-",D40)),IF(AS40="","O",VLOOKUP(AS40,DATA!$E$35:$F$53,2,TRUE))),"") -> FR-M1b | AS40: =IF(YEAR($AR$7)-YEAR(I40)<40,DATEDIF(I40,$AR$7,"Y"),YEAR($AR$7)-YEAR(I40)) -> 49 | AT40: =IF(AN40=1,MATCH(F40,DATA!$AB$2:$AB$34,0),0) -> 0 | AV40: =IF(MAX(K40:M40)>0,MAX(K40:M40),0) -> 92.5 | AW40: =IF(MAX(P40:R40)>0,MAX(P40:R40),0) -> 57.5 | AX40: =IF(MAX(U40:W40)>0,MAX(U40:W40),0) -> 132.5 | AY40: =AM40*IF($AM$11="PL",IF(MIN(AV40:AX40)=0,0,AV40+AW40+AX40),IF($AM$11="PP",IF(MIN(AW40:AX40)=0,0,AW40+AX40),IF($AM$11="BP",AW40,IF($AM$11="DL",AX40,AV40)))) -> 282.5 | AZ40: =ROUND(AY40*H40,5) -> 306.73851 | BA40: =ROUND(IFERROR(VLOOKUP(AS40,DATA!$A$2:$B$63,2,FALSE),1)*AZ40,5) -> 341.39996 | BB40: =IFERROR(IF(AN40=1,AY40,IF(AN40=2,AZ40,IF(AN40=3,BA40,AZ40))),0) -> 306.73851 | BZ40: =IFERROR(IF(FIND("DT",AE40),"Y",""),"") ->  | CB40: =CONCATENATE(IF(AN40=4,"",D40),IF(AN40=1,F40,"")) -> FR-M1a | CC40: =IF($AM$11="SQ",AJ40,IF($AM$11="BP",AK40,AL40)) -> 35 | CD40: =1+COUNTIFS(INDIRECT("AN12:AN500"),AN40,INDIRECT("CB12:CB500"),CB40,INDIRECT("AO12:AO500"),">"&AO40) +COUNTIFS(INDIRECT("AO12:AO500"),AO40,INDIRECT("AN12:AN500"),1,INDIRECT("CB12:CB500"),CB40,INDIRECT("E12:E500"),"<"&E40) +COUNTIFS(INDIRECT("AO12:AO500"),AO40,INDIRECT("AN12:AN500"),1,INDIRECT("CB12:CB500"),CB40,INDIRECT("E12:E500"),E40,INDIRECT("CC12:CC500"),"<"&CC40) -> 4 | CE40: =1+COUNTIFS(INDIRECT("AN12:AN500"),AN40,INDIRECT("CB12:CB500"),CB40,INDIRECT("BB12:BB500"),">"&BB40) +COUNTIFS(INDIRECT("BB12:BB500"),BB40,INDIRECT("AN12:AN500"),1,INDIRECT("CB12:CB500"),CB40,INDIRECT("E12:E500"),"<"&E40) -> 4
A41: 2C | B41: Kristin McCarthy | C41: NC | D41: FR-M1a | E41: 101.75 | F41: =IFERROR(VLOOKUP(E41,DATA!$E$2:$G$22,IF(LEFT(D41,1)="M",2,3)),"") -> 84+ | G41: 510 | H41: =IFERROR(IF(LEFT(D41,1)="M",Wilks_Men(IF($E$11="Bwt - Lb",E41/2.2046,E41)),Wilks_Women(IF($E$11="Bwt - Lb",E41/2.2046,E41))),"") -> 0.8284999728 | I41: 1973-01-18 | J41: 11 | K41: 125 | L41: 130 | M41: 132.5 | N41: =IF(MAX(K41:M41)<=0,0,MAX(CELL("color",K41)*K41,CELL("color",L41)*L41,CELL("color",M41)*M41)) -> 132.5 | O41: 13-7 | P41: 67.5 | Q41: 70 | R41: -72.5 | S41: =IF(MAX(P41:R41)<=0,0,MAX(CELL("color",P41)*P41,CELL("color",Q41)*Q41,CELL("color",R41)*R41)) -> 70 | T41: =IF(OR(N41=0,S41=0),0,N41+S41) -> 202.5 | U41: 140 | V41: 147.5 | W41: 155 | X41: =IF(MAX(U41:W41)<=0,0,MAX(CELL("color",U41)*U41,CELL("color",V41)*V41,CELL("color",W41)*W41)) -> 155 | Y41: =AM41*IF($AM$11="SQ",N41,IF($AM$11="BP",S41,IF($AM$11="DL",X41,IF($AM$11="PP",IF(OR(S41=0,X41=0),0,S41+X41),IF(OR(T41=0,X41=0),0,T41+X41))))) -> 357.5 | Z41: =IF(Y41=0,"",CONCATENATE(CD41,"/",IF(AN41=4,"Wilks",D41),"/",IF(AN41>1,"",F41),"/",$AM$11)) -> 5/FR-M1a//PL | AA41: =BB41 -> 296.18874 | AB41: =IF(AA41=0,"",CE41) -> 5 | AC41: =H41*IF($E$3="Kg",Y41,Y41/2.2046) -> 296.1887403 | AD41: =IFERROR(VLOOKUP(AS41,DATA!$A$2:$B$63,2,TRUE),0)*AC41 -> 312.479121 | AE41: PL | AF41: 1013477 | AG41: NC | AH41: =IFERROR(VLOOKUP(A41,Setup!$Q$5:$R$20,2,FALSE),"") -> 2 | AI41: =IF(VALUE(INDIRECT(CONCATENATE($AI$11,ROW())))=0,"",ABS(INDIRECT(CONCATENATE($AI$11,ROW())))+0.000001*G41) -> 155.00051 | AJ41: 79 | AK41: 75 | AL41: 93 | AM41: =IF(ISERROR(SEARCH($AM$11,AE41)),0,1) -> 1 | AN41: =VLOOKUP(D41,Setup!$I$6:$K$93,3,FALSE) -> 2 | AO41: =ROUND(IFERROR(IF(AN41=1,Y41,IF(AN41=2,AC41,IF(AN41=3,AD41,AC41))),0),5) -> 296.18874 | AQ41: =IFERROR(MATCH(D41,Setup!$I$6:$I$93,0),"") -> 9 | AR41: =IFERROR(CONCATENATE(LEFT(D41,FIND("-",D41)),IF(AS41="","O",VLOOKUP(AS41,DATA!$E$35:$F$53,2,TRUE))),"") -> FR-M1b | AS41: =IF(YEAR($AR$7)-YEAR(I41)<40,DATEDIF(I41,$AR$7,"Y"),YEAR($AR$7)-YEAR(I41)) -> 45 | AT41: =IF(AN41=1,MATCH(F41,DATA!$AB$2:$AB$34,0),0) -> 0 | AV41: =IF(MAX(K41:M41)>0,MAX(K41:M41),0) -> 132.5 | AW41: =IF(MAX(P41:R41)>0,MAX(P41:R41),0) -> 70 | AX41: =IF(MAX(U41:W41)>0,MAX(U41:W41),0) -> 155 | AY41: =AM41*IF($AM$11="PL",IF(MIN(AV41:AX41)=0,0,AV41+AW41+AX41),IF($AM$11="PP",IF(MIN(AW41:AX41)=0,0,AW41+AX41),IF($AM$11="BP",AW41,IF($AM$11="DL",AX41,AV41)))) -> 357.5 | AZ41: =ROUND(AY41*H41,5) -> 296.18874 | BA41: =ROUND(IFERROR(VLOOKUP(AS41,DATA!$A$2:$B$63,2,FALSE),1)*AZ41,5) -> 312.47912 | BB41: =IFERROR(IF(AN41=1,AY41,IF(AN41=2,AZ41,IF(AN41=3,BA41,AZ41))),0) -> 296.18874 | BZ41: =IFERROR(IF(FIND("DT",AE41),"Y",""),"") ->  | CB41: =CONCATENATE(IF(AN41=4,"",D41),IF(AN41=1,F41,"")) -> FR-M1a | CC41: =IF($AM$11="SQ",AJ41,IF($AM$11="BP",AK41,AL41)) -> 93 | CD41: =1+COUNTIFS(INDIRECT("AN12:AN500"),AN41,INDIRECT("CB12:CB500"),CB41,INDIRECT("AO12:AO500"),">"&AO41) +COUNTIFS(INDIRECT("AO12:AO500"),AO41,INDIRECT("AN12:AN500"),1,INDIRECT("CB12:CB500"),CB41,INDIRECT("E12:E500"),"<"&E41) +COUNTIFS(INDIRECT("AO12:AO500"),AO41,INDIRECT("AN12:AN500"),1,INDIRECT("CB12:CB500"),CB41,INDIRECT("E12:E500"),E41,INDIRECT("CC12:CC500"),"<"&CC41) -> 5 | CE41: =1+COUNTIFS(INDIRECT("AN12:AN500"),AN41,INDIRECT("CB12:CB500"),CB41,INDIRECT("BB12:BB500"),">"&BB41) +COUNTIFS(INDIRECT("BB12:BB500"),BB41,INDIRECT("AN12:AN500"),1,INDIRECT("CB12:CB500"),CB41,INDIRECT("E12:E500"),"<"&E41) -> 5
A42: 2B | B42: Erin Ball | C42: NC | D42: FR-M1a | E42: 71 | F42: =IFERROR(VLOOKUP(E42,DATA!$E$2:$G$22,IF(LEFT(D42,1)="M",2,3)),"") -> 72 | G42: 406 | H42: =IFERROR(IF(LEFT(D42,1)="M",Wilks_Men(IF($E$11="Bwt - Lb",E42/2.2046,E42)),Wilks_Women(IF($E$11="Bwt - Lb",E42/2.2046,E42))),"") -> 0.9851999879 | I42: 1976-09-19 | J42: 14 | K42: 72.5 | L42: 82.5 | M42: 87.5 | N42: =IF(MAX(K42:M42)<=0,0,MAX(CELL("color",K42)*K42,CELL("color",L42)*L42,CELL("color",M42)*M42)) -> 87.5 | O42: 12-7 | P42: 35 | Q42: 40 | R42: 45 | S42: =IF(MAX(P42:R42)<=0,0,MAX(CELL("color",P42)*P42,CELL("color",Q42)*Q42,CELL("color",R42)*R42)) -> 45 | T42: =IF(OR(N42=0,S42=0),0,N42+S42) -> 132.5 | U42: 82.5 | V42: 92.5 | W42: 105 | X42: =IF(MAX(U42:W42)<=0,0,MAX(CELL("color",U42)*U42,CELL("color",V42)*V42,CELL("color",W42)*W42)) -> 105 | Y42: =AM42*IF($AM$11="SQ",N42,IF($AM$11="BP",S42,IF($AM$11="DL",X42,IF($AM$11="PP",IF(OR(S42=0,X42=0),0,S42+X42),IF(OR(T42=0,X42=0),0,T42+X42))))) -> 237.5 | Z42: =IF(Y42=0,"",CONCATENATE(CD42,"/",IF(AN42=4,"Wilks",D42),"/",IF(AN42>1,"",F42),"/",$AM$11)) -> 6/FR-M1a//PL | AA42: =BB42 -> 233.985 | AB42: =IF(AA42=0,"",CE42) -> 6 | AC42: =H42*IF($E$3="Kg",Y42,Y42/2.2046) -> 233.9849971 | AD42: =IFERROR(VLOOKUP(AS42,DATA!$A$2:$B$63,2,TRUE),0)*AC42 -> 238.6646971 | AE42: PL | AG42: NC | AH42: =IFERROR(VLOOKUP(A42,Setup!$Q$5:$R$20,2,FALSE),"") -> 1 | AI42: =IF(VALUE(INDIRECT(CONCATENATE($AI$11,ROW())))=0,"",ABS(INDIRECT(CONCATENATE($AI$11,ROW())))+0.000001*G42) -> 105.000406 | AJ42: 56 | AK42: 48 | AL42: 62 | AM42: =IF(ISERROR(SEARCH($AM$11,AE42)),0,1) -> 1 | AN42: =VLOOKUP(D42,Setup!$I$6:$K$93,3,FALSE) -> 2 | AO42: =ROUND(IFERROR(IF(AN42=1,Y42,IF(AN42=2,AC42,IF(AN42=3,AD42,AC42))),0),5) -> 233.985 | AQ42: =IFERROR(MATCH(D42,Setup!$I$6:$I$93,0),"") -> 9 | AR42: =IFERROR(CONCATENATE(LEFT(D42,FIND("-",D42)),IF(AS42="","O",VLOOKUP(AS42,DATA!$E$35:$F$53,2,TRUE))),"") -> FR-M1a | AS42: =IF(YEAR($AR$7)-YEAR(I42)<40,DATEDIF(I42,$AR$7,"Y"),YEAR($AR$7)-YEAR(I42)) -> 42 | AT42: =IF(AN42=1,MATCH(F42,DATA!$AB$2:$AB$34,0),0) -> 0 | AV42: =IF(MAX(K42:M42)>0,MAX(K42:M42),0) -> 87.5 | AW42: =IF(MAX(P42:R42)>0,MAX(P42:R42),0) -> 45 | AX42: =IF(MAX(U42:W42)>0,MAX(U42:W42),0) -> 105 | AY42: =AM42*IF($AM$11="PL",IF(MIN(AV42:AX42)=0,0,AV42+AW42+AX42),IF($AM$11="PP",IF(MIN(AW42:AX42)=0,0,AW42+AX42),IF($AM$11="BP",AW42,IF($AM$11="DL",AX42,AV42)))) -> 237.5 | AZ42: =ROUND(AY42*H42,5) -> 233.985 | BA42: =ROUND(IFERROR(VLOOKUP(AS42,DATA!$A$2:$B$63,2,FALSE),1)*AZ42,5) -> 238.6647 | BB42: =IFERROR(IF(AN42=1,AY42,IF(AN42=2,AZ42,IF(AN42=3,BA42,AZ42))),0) -> 233.985 | BZ42: =IFERROR(IF(FIND("DT",AE42),"Y",""),"") ->  | CB42: =CONCATENATE(IF(AN42=4,"",D42),IF(AN42=1,F42,"")) -> FR-M1a | CC42: =IF($AM$11="SQ",AJ42,IF($AM$11="BP",AK42,AL42)) -> 62 | CD42: =1+COUNTIFS(INDIRECT("AN12:AN500"),AN42,INDIRECT("CB12:CB500"),CB42,INDIRECT("AO12:AO500"),">"&AO42) +COUNTIFS(INDIRECT("AO12:AO500"),AO42,INDIRECT("AN12:AN500"),1,INDIRECT("CB12:CB500"),CB42,INDIRECT("E12:E500"),"<"&E42) +COUNTIFS(INDIRECT("AO12:AO500"),AO42,INDIRECT("AN12:AN500"),1,INDIRECT("CB12:CB500"),CB42,INDIRECT("E12:E500"),E42,INDIRECT("CC12:CC500"),"<"&CC42) -> 6 | CE42: =1+COUNTIFS(INDIRECT("AN12:AN500"),AN42,INDIRECT("CB12:CB500"),CB42,INDIRECT("BB12:BB500"),">"&BB42) +COUNTIFS(INDIRECT("BB12:BB500"),BB42,INDIRECT("AN12:AN500"),1,INDIRECT("CB12:CB500"),CB42,INDIRECT("E12:E500"),"<"&E42) -> 6
A43: 2C | B43: Tomika Baldwin | C43: NC | D43: FR-M1a | E43: 83.8 | F43: =IFERROR(VLOOKUP(E43,DATA!$E$2:$G$22,IF(LEFT(D43,1)="M",2,3)),"") -> 84 | G43: 506 | H43: =IFERROR(IF(LEFT(D43,1)="M",Wilks_Men(IF($E$11="Bwt - Lb",E43/2.2046,E43)),Wilks_Women(IF($E$11="Bwt - Lb",E43/2.2046,E43))),"") -> 0.8927999735 | I43: 1970-03-27 | J43: 13 | K43: -120 | L43: -120 | M43: -120 | N43: =IF(MAX(K43:M43)<=0,0,MAX(CELL("color",K43)*K43,CELL("color",L43)*L43,CELL("color",M43)*M43)) -> 0 | O43: 13-5 | P43: 72.5 | Q43: 75 | R43: -77.5 | S43: =IF(MAX(P43:R43)<=0,0,MAX(CELL("color",P43)*P43,CELL("color",Q43)*Q43,CELL("color",R43)*R43)) -> 75 | T43: =IF(OR(N43=0,S43=0),0,N43+S43) -> 0 | U43: 157.5 | V43: 0 | W43: 0 | X43: =IF(MAX(U43:W43)<=0,0,MAX(CELL("color",U43)*U43,CELL("color",V43)*V43,CELL("color",W43)*W43)) -> 157.5 | Y43: =AM43*IF($AM$11="SQ",N43,IF($AM$11="BP",S43,IF($AM$11="DL",X43,IF($AM$11="PP",IF(OR(S43=0,X43=0),0,S43+X43),IF(OR(T43=0,X43=0),0,T43+X43))))) -> 0 | Z43: =IF(Y43=0,"",CONCATENATE(CD43,"/",IF(AN43=4,"Wilks",D43),"/",IF(AN43>1,"",F43),"/",$AM$11)) ->  | AA43: =BB43 -> 0 | AB43: =IF(AA43=0,"",CE43) ->  | AC43: =H43*IF($E$3="Kg",Y43,Y43/2.2046) -> 0 | AD43: =IFERROR(VLOOKUP(AS43,DATA!$A$2:$B$63,2,TRUE),0)*AC43 -> 0 | AE43: PL | AG43: NC | AH43: =IFERROR(VLOOKUP(A43,Setup!$Q$5:$R$20,2,FALSE),"") -> 2 | AI43: =IF(VALUE(INDIRECT(CONCATENATE($AI$11,ROW())))=0,"",ABS(INDIRECT(CONCATENATE($AI$11,ROW())))+0.000001*G43) ->  | AJ43: 0 | AK43: 77 | AL43: 80 | AM43: =IF(ISERROR(SEARCH($AM$11,AE43)),0,1) -> 1 | AN43: =VLOOKUP(D43,Setup!$I$6:$K$93,3,FALSE) -> 2 | AO43: =ROUND(IFERROR(IF(AN43=1,Y43,IF(AN43=2,AC43,IF(AN43=3,AD43,AC43))),0),5) -> 0 | AQ43: =IFERROR(MATCH(D43,Setup!$I$6:$I$93,0),"") -> 9 | AR43: =IFERROR(CONCATENATE(LEFT(D43,FIND("-",D43)),IF(AS43="","O",VLOOKUP(AS43,DATA!$E$35:$F$53,2,TRUE))),"") -> FR-M1b | AS43: =IF(YEAR($AR$7)-YEAR(I43)<40,DATEDIF(I43,$AR$7,"Y"),YEAR($AR$7)-YEAR(I43)) -> 48 | AT43: =IF(AN43=1,MATCH(F43,DATA!$AB$2:$AB$34,0),0) -> 0 | AV43: =IF(MAX(K43:M43)>0,MAX(K43:M43),0) -> 0 | AW43: =IF(MAX(P43:R43)>0,MAX(P43:R43),0) -> 75 | AX43: =IF(MAX(U43:W43)>0,MAX(U43:W43),0) -> 157.5 | AY43: =AM43*IF($AM$11="PL",IF(MIN(AV43:AX43)=0,0,AV43+AW43+AX43),IF($AM$11="PP",IF(MIN(AW43:AX43)=0,0,AW43+AX43),IF($AM$11="BP",AW43,IF($AM$11="DL",AX43,AV43)))) -> 0 | AZ43: =ROUND(AY43*H43,5) -> 0 | BA43: =ROUND(IFERROR(VLOOKUP(AS43,DATA!$A$2:$B$63,2,FALSE),1)*AZ43,5) -> 0 | BB43: =IFERROR(IF(AN43=1,AY43,IF(AN43=2,AZ43,IF(AN43=3,BA43,AZ43))),0) -> 0 | BZ43: =IFERROR(IF(FIND("DT",AE43),"Y",""),"") ->  | CB43: =CONCATENATE(IF(AN43=4,"",D43),IF(AN43=1,F43,"")) -> FR-M1a | CC43: =IF($AM$11="SQ",AJ43,IF($AM$11="BP",AK43,AL43)) -> 80 | CD43: =1+COUNTIFS(INDIRECT("AN12:AN500"),AN43,INDIRECT("CB12:CB500"),CB43,INDIRECT("AO12:AO500"),">"&AO43) +COUNTIFS(INDIRECT("AO12:AO500"),AO43,INDIRECT("AN12:AN500"),1,INDIRECT("CB12:CB500"),CB43,INDIRECT("E12:E500"),"<"&E43) +COUNTIFS(INDIRECT("AO12:AO500"),AO43,INDIRECT("AN12:AN500"),1,INDIRECT("CB12:CB500"),CB43,INDIRECT("E12:E500"),E43,INDIRECT("CC12:CC500"),"<"&CC43) -> 7 | CE43: =1+COUNTIFS(INDIRECT("AN12:AN500"),AN43,INDIRECT("CB12:CB500"),CB43,INDIRECT("BB12:BB500"),">"&BB43) +COUNTIFS(INDIRECT("BB12:BB500"),BB43,INDIRECT("AN12:AN500"),1,INDIRECT("CB12:CB500"),CB43,INDIRECT("E12:E500"),"<"&E43) -> 7
A44: 2B | B44: Linda Mertens | C44: MN | D44: FR-M2a | E44: 65.55 | F44: =IFERROR(VLOOKUP(E44,DATA!$E$2:$G$22,IF(LEFT(D44,1)="M",2,3)),"") -> 72 | G44: 408 | H44: =IFERROR(IF(LEFT(D44,1)="M",Wilks_Men(IF($E$11="Bwt - Lb",E44/2.2046,E44)),Wilks_Women(IF($E$11="Bwt - Lb",E44/2.2046,E44))),"") -> 1.042600036 | I44: 1966-03-30 | J44: 8 | K44: 90 | L44: 97.5 | M44: 102.5 | N44: =IF(MAX(K44:M44)<=0,0,MAX(CELL("color",K44)*K44,CELL("color",L44)*L44,CELL("color",M44)*M44)) -> 102.5 | O44: 12-6 | P44: 47.5 | Q44: 52.5 | R44: 57.5 | S44: =IF(MAX(P44:R44)<=0,0,MAX(CELL("color",P44)*P44,CELL("color",Q44)*Q44,CELL("color",R44)*R44)) -> 57.5 | T44: =IF(OR(N44=0,S44=0),0,N44+S44) -> 160 | U44: 127.5 | V44: 135 | W44: 140 | X44: =IF(MAX(U44:W44)<=0,0,MAX(CELL("color",U44)*U44,CELL("color",V44)*V44,CELL("color",W44)*W44)) -> 140 | Y44: =AM44*IF($AM$11="SQ",N44,IF($AM$11="BP",S44,IF($AM$11="DL",X44,IF($AM$11="PP",IF(OR(S44=0,X44=0),0,S44+X44),IF(OR(T44=0,X44=0),0,T44+X44))))) -> 300 | Z44: =IF(Y44=0,"",CONCATENATE(CD44,"/",IF(AN44=4,"Wilks",D44),"/",IF(AN44>1,"",F44),"/",$AM$11)) -> 1/FR-M2a//PL | AA44: =BB44 -> 312.78001 | AB44: =IF(AA44=0,"",CE44) -> 1 | AC44: =H44*IF($E$3="Kg",Y44,Y44/2.2046) -> 312.7800107 | AD44: =IFERROR(VLOOKUP(AS44,DATA!$A$2:$B$63,2,TRUE),0)*AC44 -> 364.3887125 | AE44: PL | AF44: 1026356 | AG44: MN | AH44: =IFERROR(VLOOKUP(A44,Setup!$Q$5:$R$20,2,FALSE),"") -> 1 | AI44: =IF(VALUE(INDIRECT(CONCATENATE($AI$11,ROW())))=0,"",ABS(INDIRECT(CONCATENATE($AI$11,ROW())))+0.000001*G44) -> 140.000408 | AJ44: 58 | AK44: 50 | AL44: 65 | AM44: =IF(ISERROR(SEARCH($AM$11,AE44)),0,1) -> 1 | AN44: =VLOOKUP(D44,Setup!$I$6:$K$93,3,FALSE) -> 2 | AO44: =ROUND(IFERROR(IF(AN44=1,Y44,IF(AN44=2,AC44,IF(AN44=3,AD44,AC44))),0),5) -> 312.78001 | AQ44: =IFERROR(MATCH(D44,Setup!$I$6:$I$93,0),"") -> 11 | AR44: =IFERROR(CONCATENATE(LEFT(D44,FIND("-",D44)),IF(AS44="","O",VLOOKUP(AS44,DATA!$E$35:$F$53,2,TRUE))),"") -> FR-M2a | AS44: =IF(YEAR($AR$7)-YEAR(I44)<40,DATEDIF(I44,$AR$7,"Y"),YEAR($AR$7)-YEAR(I44)) -> 52 | AT44: =IF(AN44=1,MATCH(F44,DATA!$AB$2:$AB$34,0),0) -> 0 | AV44: =IF(MAX(K44:M44)>0,MAX(K44:M44),0) -> 102.5 | AW44: =IF(MAX(P44:R44)>0,MAX(P44:R44),0) -> 57.5 | AX44: =IF(MAX(U44:W44)>0,MAX(U44:W44),0) -> 140 | AY44: =AM44*IF($AM$11="PL",IF(MIN(AV44:AX44)=0,0,AV44+AW44+AX44),IF($AM$11="PP",IF(MIN(AW44:AX44)=0,0,AW44+AX44),IF($AM$11="BP",AW44,IF($AM$11="DL",AX44,AV44)))) -> 300 | AZ44: =ROUND(AY44*H44,5) -> 312.78001 | BA44: =ROUND(IFERROR(VLOOKUP(AS44,DATA!$A$2:$B$63,2,FALSE),1)*AZ44,5) -> 364.38871 | BB44: =IFERROR(IF(AN44=1,AY44,IF(AN44=2,AZ44,IF(AN44=3,BA44,AZ44))),0) -> 312.78001 | BZ44: =IFERROR(IF(FIND("DT",AE44),"Y",""),"") ->  | CB44: =CONCATENATE(IF(AN44=4,"",D44),IF(AN44=1,F44,"")) -> FR-M2a | CC44: =IF($AM$11="SQ",AJ44,IF($AM$11="BP",AK44,AL44)) -> 65 | CD44: =1+COUNTIFS(INDIRECT("AN12:AN500"),AN44,INDIRECT("CB12:CB500"),CB44,INDIRECT("AO12:AO500"),">"&AO44) +COUNTIFS(INDIRECT("AO12:AO500"),AO44,INDIRECT("AN12:AN500"),1,INDIRECT("CB12:CB500"),CB44,INDIRECT("E12:E500"),"<"&E44) +COUNTIFS(INDIRECT("AO12:AO500"),AO44,INDIRECT("AN12:AN500"),1,INDIRECT("CB12:CB500"),CB44,INDIRECT("E12:E500"),E44,INDIRECT("CC12:CC500"),"<"&CC44) -> 1 | CE44: =1+COUNTIFS(INDIRECT("AN12:AN500"),AN44,INDIRECT("CB12:CB500"),CB44,INDIRECT("BB12:BB500"),">"&BB44) +COUNTIFS(INDIRECT("BB12:BB500"),BB44,INDIRECT("AN12:AN500"),1,INDIRECT("CB12:CB500"),CB44,INDIRECT("E12:E500"),"<"&E44) -> 1
A45: 2C | B45: Kim Lewis | C45: NC | D45: FR-M2a | E45: 74.4 | F45: =IFERROR(VLOOKUP(E45,DATA!$E$2:$G$22,IF(LEFT(D45,1)="M",2,3)),"") -> 84 | G45: 507 | H45: =IFERROR(IF(LEFT(D45,1)="M",Wilks_Men(IF($E$11="Bwt - Lb",E45/2.2046,E45)),Wilks_Women(IF($E$11="Bwt - Lb",E45/2.2046,E45))),"") -> 0.9555000067 | I45: 1967-12-20 | J45: 13 | K45: -97.5 | L45: -97.5 | M45: 97.5 | N45: =IF(MAX(K45:M45)<=0,0,MAX(CELL("color",K45)*K45,CELL("color",L45)*L45,CELL("color",M45)*M45)) -> 97.5 | O45: 13-6 | P45: 40 | Q45: 47.5 | R45: 55 | S45: =IF(MAX(P45:R45)<=0,0,MAX(CELL("color",P45)*P45,CELL("color",Q45)*Q45,CELL("color",R45)*R45)) -> 55 | T45: =IF(OR(N45=0,S45=0),0,N45+S45) -> 152.5 | U45: 120 | V45: 127.5 | W45: 137.5 | X45: =IF(MAX(U45:W45)<=0,0,MAX(CELL("color",U45)*U45,CELL("color",V45)*V45,CELL("color",W45)*W45)) -> 137.5 | Y45: =AM45*IF($AM$11="SQ",N45,IF($AM$11="BP",S45,IF($AM$11="DL",X45,IF($AM$11="PP",IF(OR(S45=0,X45=0),0,S45+X45),IF(OR(T45=0,X45=0),0,T45+X45))))) -> 290 | Z45: =IF(Y45=0,"",CONCATENATE(CD45,"/",IF(AN45=4,"Wilks",D45),"/",IF(AN45>1,"",F45),"/",$AM$11)) -> 2/FR-M2a//PL | AA45: =BB45 -> 277.095 | AB45: =IF(AA45=0,"",CE45) -> 2 | AC45: =H45*IF($E$3="Kg",Y45,Y45/2.2046) -> 277.0950019 | AD45: =IFERROR(VLOOKUP(AS45,DATA!$A$2:$B$63,2,TRUE),0)*AC45 -> 317.8279672 | AE45: PL | AF45: 1018982 | AG45: NC | AH45: =IFERROR(VLOOKUP(A45,Setup!$Q$5:$R$20,2,FALSE),"") -> 2 | AI45: =IF(VALUE(INDIRECT(CONCATENATE($AI$11,ROW())))=0,"",ABS(INDIRECT(CONCATENATE($AI$11,ROW())))+0.000001*G45) -> 137.500507 | AJ45: 77 | AK45: 81 | AL45: 91 | AM45: =IF(ISERROR(SEARCH($AM$11,AE45)),0,1) -> 1 | AN45: =VLOOKUP(D45,Setup!$I$6:$K$93,3,FALSE) -> 2 | AO45: =ROUND(IFERROR(IF(AN45=1,Y45,IF(AN45=2,AC45,IF(AN45=3,AD45,AC45))),0),5) -> 277.095 | AQ45: =IFERROR(MATCH(D45,Setup!$I$6:$I$93,0),"") -> 11 | AR45: =IFERROR(CONCATENATE(LEFT(D45,FIND("-",D45)),IF(AS45="","O",VLOOKUP(AS45,DATA!$E$35:$F$53,2,TRUE))),"") -> FR-M2a | AS45: =IF(YEAR($AR$7)-YEAR(I45)<40,DATEDIF(I45,$AR$7,"Y"),YEAR($AR$7)-YEAR(I45)) -> 51 | AT45: =IF(AN45=1,MATCH(F45,DATA!$AB$2:$AB$34,0),0) -> 0 | AV45: =IF(MAX(K45:M45)>0,MAX(K45:M45),0) -> 97.5 | AW45: =IF(MAX(P45:R45)>0,MAX(P45:R45),0) -> 55 | AX45: =IF(MAX(U45:W45)>0,MAX(U45:W45),0) -> 137.5 | AY45: =AM45*IF($AM$11="PL",IF(MIN(AV45:AX45)=0,0,AV45+AW45+AX45),IF($AM$11="PP",IF(MIN(AW45:AX45)=0,0,AW45+AX45),IF($AM$11="BP",AW45,IF($AM$11="DL",AX45,AV45)))) -> 290 | AZ45: =ROUND(AY45*H45,5) -> 277.095 | BA45: =ROUND(IFERROR(VLOOKUP(AS45,DATA!$A$2:$B$63,2,FALSE),1)*AZ45,5) -> 317.82797 | BB45: =IFERROR(IF(AN45=1,AY45,IF(AN45=2,AZ45,IF(AN45=3,BA45,AZ45))),0) -> 277.095 | BZ45: =IFERROR(IF(FIND("DT",AE45),"Y",""),"") ->  | CB45: =CONCATENATE(IF(AN45=4,"",D45),IF(AN45=1,F45,"")) -> FR-M2a | CC45: =IF($AM$11="SQ",AJ45,IF($AM$11="BP",AK45,AL45)) -> 91 | CD45: =1+COUNTIFS(INDIRECT("AN12:AN500"),AN45,INDIRECT("CB12:CB500"),CB45,INDIRECT("AO12:AO500"),">"&AO45) +COUNTIFS(INDIRECT("AO12:AO500"),AO45,INDIRECT("AN12:AN500"),1,INDIRECT("CB12:CB500"),CB45,INDIRECT("E12:E500"),"<"&E45) +COUNTIFS(INDIRECT("AO12:AO500"),AO45,INDIRECT("AN12:AN500"),1,INDIRECT("CB12:CB500"),CB45,INDIRECT("E12:E500"),E45,INDIRECT("CC12:CC500"),"<"&CC45) -> 2 | CE45: =1+COUNTIFS(INDIRECT("AN12:AN500"),AN45,INDIRECT("CB12:CB500"),CB45,INDIRECT("BB12:BB500"),">"&BB45) +COUNTIFS(INDIRECT("BB12:BB500"),BB45,INDIRECT("AN12:AN500"),1,INDIRECT("CB12:CB500"),CB45,INDIRECT("E12:E500"),"<"&E45) -> 2
A46: 2C | B46: Patricia Rumsey | C46: NC | D46: FR-M2a | E46: 79.7 | F46: =IFERROR(VLOOKUP(E46,DATA!$E$2:$G$22,IF(LEFT(D46,1)="M",2,3)),"") -> 84 | G46: 409 | H46: =IFERROR(IF(LEFT(D46,1)="M",Wilks_Men(IF($E$11="Bwt - Lb",E46/2.2046,E46)),Wilks_Women(IF($E$11="Bwt - Lb",E46/2.2046,E46))),"") -> 0.9168999791 | I46: 1960-03-20 | J46: 10 | K46: -107.5 | L46: -107.5 | M46: -107.5 | N46: =IF(MAX(K46:M46)<=0,0,MAX(CELL("color",K46)*K46,CELL("color",L46)*L46,CELL("color",M46)*M46)) -> 0 | O46: 11-6 | P46: 52.5 | Q46: 55 | R46: -57.5 | S46: =IF(MAX(P46:R46)<=0,0,MAX(CELL("color",P46)*P46,CELL("color",Q46)*Q46,CELL("color",R46)*R46)) -> 55 | T46: =IF(OR(N46=0,S46=0),0,N46+S46) -> 0 | U46: 105 | V46: 110 | W46: -117.5 | X46: =IF(MAX(U46:W46)<=0,0,MAX(CELL("color",U46)*U46,CELL("color",V46)*V46,CELL("color",W46)*W46)) -> 110 | Y46: =AM46*IF($AM$11="SQ",N46,IF($AM$11="BP",S46,IF($AM$11="DL",X46,IF($AM$11="PP",IF(OR(S46=0,X46=0),0,S46+X46),IF(OR(T46=0,X46=0),0,T46+X46))))) -> 0 | Z46: =IF(Y46=0,"",CONCATENATE(CD46,"/",IF(AN46=4,"Wilks",D46),"/",IF(AN46>1,"",F46),"/",$AM$11)) ->  | AA46: =BB46 -> 0 | AB46: =IF(AA46=0,"",CE46) ->  | AC46: =H46*IF($E$3="Kg",Y46,Y46/2.2046) -> 0 | AD46: =IFERROR(VLOOKUP(AS46,DATA!$A$2:$B$63,2,TRUE),0)*AC46 -> 0 | AE46: PL BP | AF46: 985361 | AG46: NC | AH46: =IFERROR(VLOOKUP(A46,Setup!$Q$5:$R$20,2,FALSE),"") -> 2 | AI46: =IF(VALUE(INDIRECT(CONCATENATE($AI$11,ROW())))=0,"",ABS(INDIRECT(CONCATENATE($AI$11,ROW())))+0.000001*G46) -> 117.500409 | AJ46: 0 | AK46: 71 | AL46: 82 | AM46: =IF(ISERROR(SEARCH($AM$11,AE46)),0,1) -> 1 | AN46: =VLOOKUP(D46,Setup!$I$6:$K$93,3,FALSE) -> 2 | AO46: =ROUND(IFERROR(IF(AN46=1,Y46,IF(AN46=2,AC46,IF(AN46=3,AD46,AC46))),0),5) -> 0 | AQ46: =IFERROR(MATCH(D46,Setup!$I$6:$I$93,0),"") -> 11 | AR46: =IFERROR(CONCATENATE(LEFT(D46,FIND("-",D46)),IF(AS46="","O",VLOOKUP(AS46,DATA!$E$35:$F$53,2,TRUE))),"") -> FR-M2b | AS46: =IF(YEAR($AR$7)-YEAR(I46)<40,DATEDIF(I46,$AR$7,"Y"),YEAR($AR$7)-YEAR(I46)) -> 58 | AT46: =IF(AN46=1,MATCH(F46,DATA!$AB$2:$AB$34,0),0) -> 0 | AV46: =IF(MAX(K46:M46)>0,MAX(K46:M46),0) -> 0 | AW46: =IF(MAX(P46:R46)>0,MAX(P46:R46),0) -> 55 | AX46: =IF(MAX(U46:W46)>0,MAX(U46:W46),0) -> 110 | AY46: =AM46*IF($AM$11="PL",IF(MIN(AV46:AX46)=0,0,AV46+AW46+AX46),IF($AM$11="PP",IF(MIN(AW46:AX46)=0,0,AW46+AX46),IF($AM$11="BP",AW46,IF($AM$11="DL",AX46,AV46)))) -> 0 | AZ46: =ROUND(AY46*H46,5) -> 0 | BA46: =ROUND(IFERROR(VLOOKUP(AS46,DATA!$A$2:$B$63,2,FALSE),1)*AZ46,5) -> 0 | BB46: =IFERROR(IF(AN46=1,AY46,IF(AN46=2,AZ46,IF(AN46=3,BA46,AZ46))),0) -> 0 | BZ46: =IFERROR(IF(FIND("DT",AE46),"Y",""),"") ->  | CB46: =CONCATENATE(IF(AN46=4,"",D46),IF(AN46=1,F46,"")) -> FR-M2a | CC46: =IF($AM$11="SQ",AJ46,IF($AM$11="BP",AK46,AL46)) -> 82 | CD46: =1+COUNTIFS(INDIRECT("AN12:AN500"),AN46,INDIRECT("CB12:CB500"),CB46,INDIRECT("AO12:AO500"),">"&AO46) +COUNTIFS(INDIRECT("AO12:AO500"),AO46,INDIRECT("AN12:AN500"),1,INDIRECT("CB12:CB500"),CB46,INDIRECT("E12:E500"),"<"&E46) +COUNTIFS(INDIRECT("AO12:AO500"),AO46,INDIRECT("AN12:AN500"),1,INDIRECT("CB12:CB500"),CB46,INDIRECT("E12:E500"),E46,INDIRECT("CC12:CC500"),"<"&CC46) -> 3 | CE46: =1+COUNTIFS(INDIRECT("AN12:AN500"),AN46,INDIRECT("CB12:CB500"),CB46,INDIRECT("BB12:BB500"),">"&BB46) +COUNTIFS(INDIRECT("BB12:BB500"),BB46,INDIRECT("AN12:AN500"),1,INDIRECT("CB12:CB500"),CB46,INDIRECT("E12:E500"),"<"&E46) -> 3
A47: 2A | B47: Betty Polenik | C47: SC | D47: FR-M3a | E47: 61.45 | F47: =IFERROR(VLOOKUP(E47,DATA!$E$2:$G$22,IF(LEFT(D47,1)="M",2,3)),"") -> 63 | G47: 312 | H47: =IFERROR(IF(LEFT(D47,1)="M",Wilks_Men(IF($E$11="Bwt - Lb",E47/2.2046,E47)),Wilks_Women(IF($E$11="Bwt - Lb",E47/2.2046,E47))),"") -> 1.094499946 | I47: 1958-01-25 | K47: 100 | L47: 107.5 | M47: 110 | N47: =IF(MAX(K47:M47)<=0,0,MAX(CELL("color",K47)*K47,CELL("color",L47)*L47,CELL("color",M47)*M47)) -> 110 | O47: 10-6 | P47: 55 | Q47: -60 | R47: -60 | S47: =IF(MAX(P47:R47)<=0,0,MAX(CELL("color",P47)*P47,CELL("color",Q47)*Q47,CELL("color",R47)*R47)) -> 55 | T47: =IF(OR(N47=0,S47=0),0,N47+S47) -> 165 | U47: 112.5 | V47: 122.5 | W47: 127.5 | X47: =IF(MAX(U47:W47)<=0,0,MAX(CELL("color",U47)*U47,CELL("color",V47)*V47,CELL("color",W47)*W47)) -> 127.5 | Y47: =AM47*IF($AM$11="SQ",N47,IF($AM$11="BP",S47,IF($AM$11="DL",X47,IF($AM$11="PP",IF(OR(S47=0,X47=0),0,S47+X47),IF(OR(T47=0,X47=0),0,T47+X47))))) -> 292.5 | Z47: =IF(Y47=0,"",CONCATENATE(CD47,"/",IF(AN47=4,"Wilks",D47),"/",IF(AN47>1,"",F47),"/",$AM$11)) -> 1/FR-M3a//PL | AA47: =BB47 -> 320.14123 | AB47: =IF(AA47=0,"",CE47) -> 1 | AC47: =H47*IF($E$3="Kg",Y47,Y47/2.2046) -> 320.1412341 | AD47: =IFERROR(VLOOKUP(AS47,DATA!$A$2:$B$63,2,TRUE),0)*AC47 -> 428.9892537 | AE47: PL | AF47: 1029185 | AG47: SC | AH47: =IFERROR(VLOOKUP(A47,Setup!$Q$5:$R$20,2,FALSE),"") -> 0 | AI47: =IF(VALUE(INDIRECT(CONCATENATE($AI$11,ROW())))=0,"",ABS(INDIRECT(CONCATENATE($AI$11,ROW())))+0.000001*G47) -> 127.500312 | AJ47: 34 | AK47: 7 | AL47: 31 | AM47: =IF(ISERROR(SEARCH($AM$11,AE47)),0,1) -> 1 | AN47: =VLOOKUP(D47,Setup!$I$6:$K$93,3,FALSE) -> 2 | AO47: =ROUND(IFERROR(IF(AN47=1,Y47,IF(AN47=2,AC47,IF(AN47=3,AD47,AC47))),0),5) -> 320.14123 | AQ47: =IFERROR(MATCH(D47,Setup!$I$6:$I$93,0),"") -> 13 | AR47: =IFERROR(CONCATENATE(LEFT(D47,FIND("-",D47)),IF(AS47="","O",VLOOKUP(AS47,DATA!$E$35:$F$53,2,TRUE))),"") -> FR-M3a | AS47: =IF(YEAR($AR$7)-YEAR(I47)<40,DATEDIF(I47,$AR$7,"Y"),YEAR($AR$7)-YEAR(I47)) -> 60 | AT47: =IF(AN47=1,MATCH(F47,DATA!$AB$2:$AB$34,0),0) -> 0 | AV47: =IF(MAX(K47:M47)>0,MAX(K47:M47),0) -> 110 | AW47: =IF(MAX(P47:R47)>0,MAX(P47:R47),0) -> 55 | AX47: =IF(MAX(U47:W47)>0,MAX(U47:W47),0) -> 127.5 | AY47: =AM47*IF($AM$11="PL",IF(MIN(AV47:AX47)=0,0,AV47+AW47+AX47),IF($AM$11="PP",IF(MIN(AW47:AX47)=0,0,AW47+AX47),IF($AM$11="BP",AW47,IF($AM$11="DL",AX47,AV47)))) -> 292.5 | AZ47: =ROUND(AY47*H47,5) -> 320.14123 | BA47: =ROUND(IFERROR(VLOOKUP(AS47,DATA!$A$2:$B$63,2,FALSE),1)*AZ47,5) -> 428.98925 | BB47: =IFERROR(IF(AN47=1,AY47,IF(AN47=2,AZ47,IF(AN47=3,BA47,AZ47))),0) -> 320.14123 | BZ47: =IFERROR(IF(FIND("DT",AE47),"Y",""),"") ->  | CB47: =CONCATENATE(IF(AN47=4,"",D47),IF(AN47=1,F47,"")) -> FR-M3a | CC47: =IF($AM$11="SQ",AJ47,IF($AM$11="BP",AK47,AL47)) -> 31 | CD47: =1+COUNTIFS(INDIRECT("AN12:AN500"),AN47,INDIRECT("CB12:CB500"),CB47,INDIRECT("AO12:AO500"),">"&AO47) +COUNTIFS(INDIRECT("AO12:AO500"),AO47,INDIRECT("AN12:AN500"),1,INDIRECT("CB12:CB500"),CB47,INDIRECT("E12:E500"),"<"&E47) +COUNTIFS(INDIRECT("AO12:AO500"),AO47,INDIRECT("AN12:AN500"),1,INDIRECT("CB12:CB500"),CB47,INDIRECT("E12:E500"),E47,INDIRECT("CC12:CC500"),"<"&CC47) -> 1 | CE47: =1+COUNTIFS(INDIRECT("AN12:AN500"),AN47,INDIRECT("CB12:CB500"),CB47,INDIRECT("BB12:BB500"),">"&BB47) +COUNTIFS(INDIRECT("BB12:BB500"),BB47,INDIRECT("AN12:AN500"),1,INDIRECT("CB12:CB500"),CB47,INDIRECT("E12:E500"),"<"&E47) -> 1
A48: 2C | B48: Linda Odum | C48: VA | D48: FR-M4a | E48: 74 | F48: =IFERROR(VLOOKUP(E48,DATA!$E$2:$G$22,IF(LEFT(D48,1)="M",2,3)),"") -> 84 | G48: 410 | H48: =IFERROR(IF(LEFT(D48,1)="M",Wilks_Men(IF($E$11="Bwt - Lb",E48/2.2046,E48)),Wilks_Women(IF($E$11="Bwt - Lb",E48/2.2046,E48))),"") -> 0.9587000012 | I48: 1945-05-04 | J48: 9 | K48: 45 | L48: 52.5 | M48: 57.5 | N48: =IF(MAX(K48:M48)<=0,0,MAX(CELL("color",K48)*K48,CELL("color",L48)*L48,CELL("color",M48)*M48)) -> 57.5 | O48: 14-5 | P48: -32.5 | Q48: 32.5 | R48: 37.5 | S48: =IF(MAX(P48:R48)<=0,0,MAX(CELL("color",P48)*P48,CELL("color",Q48)*Q48,CELL("color",R48)*R48)) -> 37.5 | T48: =IF(OR(N48=0,S48=0),0,N48+S48) -> 95 | U48: 87.5 | V48: 97.5 | W48: 105 | X48: =IF(MAX(U48:W48)<=0,0,MAX(CELL("color",U48)*U48,CELL("color",V48)*V48,CELL("color",W48)*W48)) -> 105 | Y48: =AM48*IF($AM$11="SQ",N48,IF($AM$11="BP",S48,IF($AM$11="DL",X48,IF($AM$11="PP",IF(OR(S48=0,X48=0),0,S48+X48),IF(OR(T48=0,X48=0),0,T48+X48))))) -> 200 | Z48: =IF(Y48=0,"",CONCATENATE(CD48,"/",IF(AN48=4,"Wilks",D48),"/",IF(AN48>1,"",F48),"/",$AM$11)) -> 1/FR-M4a//PL | AA48: =BB48 -> 191.74 | AB48: =IF(AA48=0,"",CE48) -> 1 | AC48: =H48*IF($E$3="Kg",Y48,Y48/2.2046) -> 191.7400002 | AD48: =IFERROR(VLOOKUP(AS48,DATA!$A$2:$B$63,2,TRUE),0)*AC48 -> 336.6954404 | AE48: PL | AF48: 1007279 | AG48: VA | AH48: =IFERROR(VLOOKUP(A48,Setup!$Q$5:$R$20,2,FALSE),"") -> 2 | AI48: =IF(VALUE(INDIRECT(CONCATENATE($AI$11,ROW())))=0,"",ABS(INDIRECT(CONCATENATE($AI$11,ROW())))+0.000001*G48) -> 105.00041 | AJ48: 76 | AK48: 80 | AL48: 90 | AM48: =IF(ISERROR(SEARCH($AM$11,AE48)),0,1) -> 1 | AN48: =VLOOKUP(D48,Setup!$I$6:$K$93,3,FALSE) -> 2 | AO48: =ROUND(IFERROR(IF(AN48=1,Y48,IF(AN48=2,AC48,IF(AN48=3,AD48,AC48))),0),5) -> 191.74 | AQ48: =IFERROR(MATCH(D48,Setup!$I$6:$I$93,0),"") -> 15 | AR48: =IFERROR(CONCATENATE(LEFT(D48,FIND("-",D48)),IF(AS48="","O",VLOOKUP(AS48,DATA!$E$35:$F$53,2,TRUE))),"") -> FR-M4a | AS48: =IF(YEAR($AR$7)-YEAR(I48)<40,DATEDIF(I48,$AR$7,"Y"),YEAR($AR$7)-YEAR(I48)) -> 73 | AT48: =IF(AN48=1,MATCH(F48,DATA!$AB$2:$AB$34,0),0) -> 0 | AV48: =IF(MAX(K48:M48)>0,MAX(K48:M48),0) -> 57.5 | AW48: =IF(MAX(P48:R48)>0,MAX(P48:R48),0) -> 37.5 | AX48: =IF(MAX(U48:W48)>0,MAX(U48:W48),0) -> 105 | AY48: =AM48*IF($AM$11="PL",IF(MIN(AV48:AX48)=0,0,AV48+AW48+AX48),IF($AM$11="PP",IF(MIN(AW48:AX48)=0,0,AW48+AX48),IF($AM$11="BP",AW48,IF($AM$11="DL",AX48,AV48)))) -> 200 | AZ48: =ROUND(AY48*H48,5) -> 191.74 | BA48: =ROUND(IFERROR(VLOOKUP(AS48,DATA!$A$2:$B$63,2,FALSE),1)*AZ48,5) -> 336.69544 | BB48: =IFERROR(IF(AN48=1,AY48,IF(AN48=2,AZ48,IF(AN48=3,BA48,AZ48))),0) -> 191.74 | BZ48: =IFERROR(IF(FIND("DT",AE48),"Y",""),"") ->  | CB48: =CONCATENATE(IF(AN48=4,"",D48),IF(AN48=1,F48,"")) -> FR-M4a | CC48: =IF($AM$11="SQ",AJ48,IF($AM$11="BP",AK48,AL48)) -> 90 | CD48: =1+COUNTIFS(INDIRECT("AN12:AN500"),AN48,INDIRECT("CB12:CB500"),CB48,INDIRECT("AO12:AO500"),">"&AO48) +COUNTIFS(INDIRECT("AO12:AO500"),AO48,INDIRECT("AN12:AN500"),1,INDIRECT("CB12:CB500"),CB48,INDIRECT("E12:E500"),"<"&E48) +COUNTIFS(INDIRECT("AO12:AO500"),AO48,INDIRECT("AN12:AN500"),1,INDIRECT("CB12:CB500"),CB48,INDIRECT("E12:E500"),E48,INDIRECT("CC12:CC500"),"<"&CC48) -> 1 | CE48: =1+COUNTIFS(INDIRECT("AN12:AN500"),AN48,INDIRECT("CB12:CB500"),CB48,INDIRECT("BB12:BB500"),">"&BB48) +COUNTIFS(INDIRECT("BB12:BB500"),BB48,INDIRECT("AN12:AN500"),1,INDIRECT("CB12:CB500"),CB48,INDIRECT("E12:E500"),"<"&E48) -> 1
A49: 1A | B49: Tucker Thompson | C49: NC | D49: MR-T1 | E49: 50.32 | F49: =IFERROR(VLOOKUP(E49,[2]DATA!$E$2:$G$22,IF(LEFT(D49,1)="M",2,3)),"") -> 53 | G49: 1 | H49: =IFERROR(IF(LEFT(D49,1)="M",Wilks_Men(IF($E$11="Bwt - Lb",E49/2.2046,E49)),Wilks_Women(IF($E$11="Bwt - Lb",E49/2.2046,E49))),"") -> 1.016100049 | I49: 2003-11-08 | J49: 7 | K49: 95 | L49: 102.5 | M49: 110 | N49: =IF(MAX(K49:M49)<=0,0,MAX(CELL("color",K49)*K49,CELL("color",L49)*L49,CELL("color",M49)*M49)) -> 110 | O49: 7-4 | P49: 52.5 | Q49: 60 | R49: 65 | S49: =IF(MAX(P49:R49)<=0,0,MAX(CELL("color",P49)*P49,CELL("color",Q49)*Q49,CELL("color",R49)*R49)) -> 65 | T49: =IF(OR(N49=0,S49=0),0,N49+S49) -> 175 | U49: 100 | V49: 107.5 | W49: 117.5 | X49: =IF(MAX(U49:W49)<=0,0,MAX(CELL("color",U49)*U49,CELL("color",V49)*V49,CELL("color",W49)*W49)) -> 117.5 | Y49: =AM49*IF($AM$11="SQ",N49,IF($AM$11="BP",S49,IF($AM$11="DL",X49,IF($AM$11="PP",IF(OR(S49=0,X49=0),0,S49+X49),IF(OR(T49=0,X49=0),0,T49+X49))))) -> 292.5 | Z49: =IF(Y49=0,"",CONCATENATE(CD49,"/",IF(AN49=4,"Wilks",D49),"/",IF(AN49>1,"",F49),"/",$AM$11)) -> 1/MR-T1/53/PL | AA49: =BB49 -> 292.5 | AB49: =IF(AA49=0,"",CE49) -> 1 | AC49: =H49*IF($E$3="Kg",Y49,Y49/2.2046) -> 297.2092643 | AD49: =IFERROR(VLOOKUP(AS49,[2]DATA!$A$2:$B$63,2,TRUE),0)*AC49 -> 365.5673951 | AE49: PL | AG49: NC | AH49: =IFERROR(VLOOKUP(A49,[2]Setup!$Q$5:$R$20,2,FALSE),"") -> 0 | AI49: =IF(VALUE(INDIRECT(CONCATENATE($AI$11,ROW())))=0,"",ABS(INDIRECT(CONCATENATE($AI$11,ROW())))+0.000001*G49) -> 117.500001 | AJ49: 24 | AK49: 21 | AL49: 24 | AM49: =IF(ISERROR(SEARCH($AM$11,AE49)),0,1) -> 1 | AN49: =VLOOKUP(D49,[2]Setup!$I$6:$K$93,3,FALSE) -> 1 | AO49: =ROUND(IFERROR(IF(AN49=1,Y49,IF(AN49=2,AC49,IF(AN49=3,AD49,AC49))),0),5) -> 292.5 | AQ49: =IFERROR(MATCH(D49,[2]Setup!$I$6:$I$93,0),"") -> 23 | AR49: =IFERROR(CONCATENATE(LEFT(D49,FIND("-",D49)),IF(AS49="","O",VLOOKUP(AS49,[2]DATA!$E$35:$F$53,2,TRUE))),"") -> MR-T1 | AS49: =IF(YEAR($AR$7)-YEAR(I49)<40,DATEDIF(I49,$AR$7,"Y"),YEAR($AR$7)-YEAR(I49)) -> 14 | AT49: =IF(AN49=1,MATCH(F49,[2]DATA!$AB$2:$AB$34,0),0) -> 9 | AV49: =IF(MAX(K49:M49)>0,MAX(K49:M49),0) -> 110 | AW49: =IF(MAX(P49:R49)>0,MAX(P49:R49),0) -> 65 | AX49: =IF(MAX(U49:W49)>0,MAX(U49:W49),0) -> 117.5 | AY49: =AM49*IF($AM$11="PL",IF(MIN(AV49:AX49)=0,0,AV49+AW49+AX49),IF($AM$11="PP",IF(MIN(AW49:AX49)=0,0,AW49+AX49),IF($AM$11="BP",AW49,IF($AM$11="DL",AX49,AV49)))) -> 292.5 | AZ49: =ROUND(AY49*H49,5) -> 297.20926 | BA49: =ROUND(IFERROR(VLOOKUP(AS49,[2]DATA!$A$2:$B$63,2,FALSE),1)*AZ49,5) -> 365.56739 | BB49: =IFERROR(IF(AN49=1,AY49,IF(AN49=2,AZ49,IF(AN49=3,BA49,AZ49))),0) -> 292.5 | BZ49: =IFERROR(IF(FIND("DT",AE49),"Y",""),"") ->  | CB49: =CONCATENATE(IF(AN49=4,"",D49),IF(AN49=1,F49,"")) -> MR-T153 | CC49: =IF($AM$11="SQ",AJ49,IF($AM$11="BP",AK49,AL49)) -> 24 | CD49: =1+COUNTIFS(INDIRECT("AN12:AN500"),AN49,INDIRECT("CB12:CB500"),CB49,INDIRECT("AO12:AO500"),">"&AO49) +COUNTIFS(INDIRECT("AO12:AO500"),AO49,INDIRECT("AN12:AN500"),1,INDIRECT("CB12:CB500"),CB49,INDIRECT("E12:E500"),"<"&E49) +COUNTIFS(INDIRECT("AO12:AO500"),AO49,INDIRECT("AN12:AN500"),1,INDIRECT("CB12:CB500"),CB49,INDIRECT("E12:E500"),E49,INDIRECT("CC12:CC500"),"<"&CC49) -> 1 | CE49: =1+COUNTIFS(INDIRECT("AN12:AN500"),AN49,INDIRECT("CB12:CB500"),CB49,INDIRECT("BB12:BB500"),">"&BB49) +COUNTIFS(INDIRECT("BB12:BB500"),BB49,INDIRECT("AN12:AN500"),1,INDIRECT("CB12:CB500"),CB49,INDIRECT("E12:E500"),"<"&E49) -> 1
A50: 1A | B50: Ryan O'Connor | C50: NC | D50: MR-T1 | E50: 68.96 | F50: =IFERROR(VLOOKUP(E50,[2]DATA!$E$2:$G$22,IF(LEFT(D50,1)="M",2,3)),"") -> 74 | G50: 3 | H50: =IFERROR(IF(LEFT(D50,1)="M",Wilks_Men(IF($E$11="Bwt - Lb",E50/2.2046,E50)),Wilks_Women(IF($E$11="Bwt - Lb",E50/2.2046,E50))),"") -> 0.7580999732 | I50: 2002-08-16 | J50: 17 | K50: 90 | L50: 100 | M50: 107.5 | N50: =IF(MAX(K50:M50)<=0,0,MAX(CELL("color",K50)*K50,CELL("color",L50)*L50,CELL("color",M50)*M50)) -> 107.5 | O50: 13-5 | P50: 47.5 | Q50: 52.5 | R50: -57.5 | S50: =IF(MAX(P50:R50)<=0,0,MAX(CELL("color",P50)*P50,CELL("color",Q50)*Q50,CELL("color",R50)*R50)) -> 52.5 | T50: =IF(OR(N50=0,S50=0),0,N50+S50) -> 160 | U50: 115 | V50: -125 | W50: 125 | X50: =IF(MAX(U50:W50)<=0,0,MAX(CELL("color",U50)*U50,CELL("color",V50)*V50,CELL("color",W50)*W50)) -> 125 | Y50: =AM50*IF($AM$11="SQ",N50,IF($AM$11="BP",S50,IF($AM$11="DL",X50,IF($AM$11="PP",IF(OR(S50=0,X50=0),0,S50+X50),IF(OR(T50=0,X50=0),0,T50+X50))))) -> 285 | Z50: =IF(Y50=0,"",CONCATENATE(CD50,"/",IF(AN50=4,"Wilks",D50),"/",IF(AN50>1,"",F50),"/",$AM$11)) -> 1/MR-T1/74/PL | AA50: =BB50 -> 285 | AB50: =IF(AA50=0,"",CE50) -> 1 | AC50: =H50*IF($E$3="Kg",Y50,Y50/2.2046) -> 216.0584924 | AD50: =IFERROR(VLOOKUP(AS50,[2]DATA!$A$2:$B$63,2,TRUE),0)*AC50 -> 254.949021 | AE50: PL | AF50: 1013719 | AG50: NC | AH50: =IFERROR(VLOOKUP(A50,[2]Setup!$Q$5:$R$20,2,FALSE),"") -> 0 | AI50: =IF(VALUE(INDIRECT(CONCATENATE($AI$11,ROW())))=0,"",ABS(INDIRECT(CONCATENATE($AI$11,ROW())))+0.000001*G50) -> 125.000003 | AJ50: 23 | AK50: 13 | AL50: 25 | AM50: =IF(ISERROR(SEARCH($AM$11,AE50)),0,1) -> 1 | AN50: =VLOOKUP(D50,[2]Setup!$I$6:$K$93,3,FALSE) -> 1 | AO50: =ROUND(IFERROR(IF(AN50=1,Y50,IF(AN50=2,AC50,IF(AN50=3,AD50,AC50))),0),5) -> 285 | AQ50: =IFERROR(MATCH(D50,[2]Setup!$I$6:$I$93,0),"") -> 23 | AR50: =IFERROR(CONCATENATE(LEFT(D50,FIND("-",D50)),IF(AS50="","O",VLOOKUP(AS50,[2]DATA!$E$35:$F$53,2,TRUE))),"") -> MR-T1 | AS50: =IF(YEAR($AR$7)-YEAR(I50)<40,DATEDIF(I50,$AR$7,"Y"),YEAR($AR$7)-YEAR(I50)) -> 15 | AT50: =IF(AN50=1,MATCH(F50,[2]DATA!$AB$2:$AB$34,0),0) -> 18 | AV50: =IF(MAX(K50:M50)>0,MAX(K50:M50),0) -> 107.5 | AW50: =IF(MAX(P50:R50)>0,MAX(P50:R50),0) -> 52.5 | AX50: =IF(MAX(U50:W50)>0,MAX(U50:W50),0) -> 125 | AY50: =AM50*IF($AM$11="PL",IF(MIN(AV50:AX50)=0,0,AV50+AW50+AX50),IF($AM$11="PP",IF(MIN(AW50:AX50)=0,0,AW50+AX50),IF($AM$11="BP",AW50,IF($AM$11="DL",AX50,AV50)))) -> 285 | AZ50: =ROUND(AY50*H50,5) -> 216.05849 | BA50: =ROUND(IFERROR(VLOOKUP(AS50,[2]DATA!$A$2:$B$63,2,FALSE),1)*AZ50,5) -> 254.94902 | BB50: =IFERROR(IF(AN50=1,AY50,IF(AN50=2,AZ50,IF(AN50=3,BA50,AZ50))),0) -> 285 | BZ50: =IFERROR(IF(FIND("DT",AE50),"Y",""),"") ->  | CB50: =CONCATENATE(IF(AN50=4,"",D50),IF(AN50=1,F50,"")) -> MR-T174 | CC50: =IF($AM$11="SQ",AJ50,IF($AM$11="BP",AK50,AL50)) -> 25 | CD50: =1+COUNTIFS(INDIRECT("AN12:AN500"),AN50,INDIRECT("CB12:CB500"),CB50,INDIRECT("AO12:AO500"),">"&AO50) +COUNTIFS(INDIRECT("AO12:AO500"),AO50,INDIRECT("AN12:AN500"),1,INDIRECT("CB12:CB500"),CB50,INDIRECT("E12:E500"),"<"&E50) +COUNTIFS(INDIRECT("AO12:AO500"),AO50,INDIRECT("AN12:AN500"),1,INDIRECT("CB12:CB500"),CB50,INDIRECT("E12:E500"),E50,INDIRECT("CC12:CC500"),"<"&CC50) -> 1 | CE50: =1+COUNTIFS(INDIRECT("AN12:AN500"),AN50,INDIRECT("CB12:CB500"),CB50,INDIRECT("BB12:BB500"),">"&BB50) +COUNTIFS(INDIRECT("BB12:BB500"),BB50,INDIRECT("AN12:AN500"),1,INDIRECT("CB12:CB500"),CB50,INDIRECT("E12:E500"),"<"&E50) -> 1
A51: 1A | B51: Noah Anderson | C51: NC | D51: MR-T1 | E51: 77.5 | F51: =IFERROR(VLOOKUP(E51,[2]DATA!$E$2:$G$22,IF(LEFT(D51,1)="M",2,3)),"") -> 83 | G51: 5 | H51: =IFERROR(IF(LEFT(D51,1)="M",Wilks_Men(IF($E$11="Bwt - Lb",E51/2.2046,E51)),Wilks_Women(IF($E$11="Bwt - Lb",E51/2.2046,E51))),"") -> 0.6969000101 | I51: 2003-03-16 | J51: 16 | K51: 70 | L51: 77.5 | M51: 87.5 | N51: =IF(MAX(K51:M51)<=0,0,MAX(CELL("color",K51)*K51,CELL("color",L51)*L51,CELL("color",M51)*M51)) -> 87.5 | O51: 14-5 | P51: 47.5 | Q51: 55 | R51: -62.5 | S51: =IF(MAX(P51:R51)<=0,0,MAX(CELL("color",P51)*P51,CELL("color",Q51)*Q51,CELL("color",R51)*R51)) -> 55 | T51: =IF(OR(N51=0,S51=0),0,N51+S51) -> 142.5 | U51: 112.5 | V51: 125 | W51: 137.5 | X51: =IF(MAX(U51:W51)<=0,0,MAX(CELL("color",U51)*U51,CELL("color",V51)*V51,CELL("color",W51)*W51)) -> 137.5 | Y51: =AM51*IF($AM$11="SQ",N51,IF($AM$11="BP",S51,IF($AM$11="DL",X51,IF($AM$11="PP",IF(OR(S51=0,X51=0),0,S51+X51),IF(OR(T51=0,X51=0),0,T51+X51))))) -> 280 | Z51: =IF(Y51=0,"",CONCATENATE(CD51,"/",IF(AN51=4,"Wilks",D51),"/",IF(AN51>1,"",F51),"/",$AM$11)) -> 1/MR-T1/83/PL | AA51: =BB51 -> 280 | AB51: =IF(AA51=0,"",CE51) -> 1 | AC51: =H51*IF($E$3="Kg",Y51,Y51/2.2046) -> 195.1320028 | AD51: =IFERROR(VLOOKUP(AS51,[2]DATA!$A$2:$B$63,2,TRUE),0)*AC51 -> 230.2557633 | AE51: PL | AG51: NC | AH51: =IFERROR(VLOOKUP(A51,[2]Setup!$Q$5:$R$20,2,FALSE),"") -> 0 | AI51: =IF(VALUE(INDIRECT(CONCATENATE($AI$11,ROW())))=0,"",ABS(INDIRECT(CONCATENATE($AI$11,ROW())))+0.000001*G51) -> 137.500005 | AJ51: 22 | AK51: 14 | AL51: 27 | AM51: =IF(ISERROR(SEARCH($AM$11,AE51)),0,1) -> 1 | AN51: =VLOOKUP(D51,[2]Setup!$I$6:$K$93,3,FALSE) -> 1 | AO51: =ROUND(IFERROR(IF(AN51=1,Y51,IF(AN51=2,AC51,IF(AN51=3,AD51,AC51))),0),5) -> 280 | AQ51: =IFERROR(MATCH(D51,[2]Setup!$I$6:$I$93,0),"") -> 23 | AR51: =IFERROR(CONCATENATE(LEFT(D51,FIND("-",D51)),IF(AS51="","O",VLOOKUP(AS51,[2]DATA!$E$35:$F$53,2,TRUE))),"") -> MR-T1 | AS51: =IF(YEAR($AR$7)-YEAR(I51)<40,DATEDIF(I51,$AR$7,"Y"),YEAR($AR$7)-YEAR(I51)) -> 15 | AT51: =IF(AN51=1,MATCH(F51,[2]DATA!$AB$2:$AB$34,0),0) -> 21 | AV51: =IF(MAX(K51:M51)>0,MAX(K51:M51),0) -> 87.5 | AW51: =IF(MAX(P51:R51)>0,MAX(P51:R51),0) -> 55 | AX51: =IF(MAX(U51:W51)>0,MAX(U51:W51),0) -> 137.5 | AY51: =AM51*IF($AM$11="PL",IF(MIN(AV51:AX51)=0,0,AV51+AW51+AX51),IF($AM$11="PP",IF(MIN(AW51:AX51)=0,0,AW51+AX51),IF($AM$11="BP",AW51,IF($AM$11="DL",AX51,AV51)))) -> 280 | AZ51: =ROUND(AY51*H51,5) -> 195.132 | BA51: =ROUND(IFERROR(VLOOKUP(AS51,[2]DATA!$A$2:$B$63,2,FALSE),1)*AZ51,5) -> 230.25576 | BB51: =IFERROR(IF(AN51=1,AY51,IF(AN51=2,AZ51,IF(AN51=3,BA51,AZ51))),0) -> 280 | BZ51: =IFERROR(IF(FIND("DT",AE51),"Y",""),"") ->  | CB51: =CONCATENATE(IF(AN51=4,"",D51),IF(AN51=1,F51,"")) -> MR-T183 | CC51: =IF($AM$11="SQ",AJ51,IF($AM$11="BP",AK51,AL51)) -> 27 | CD51: =1+COUNTIFS(INDIRECT("AN12:AN500"),AN51,INDIRECT("CB12:CB500"),CB51,INDIRECT("AO12:AO500"),">"&AO51) +COUNTIFS(INDIRECT("AO12:AO500"),AO51,INDIRECT("AN12:AN500"),1,INDIRECT("CB12:CB500"),CB51,INDIRECT("E12:E500"),"<"&E51) +COUNTIFS(INDIRECT("AO12:AO500"),AO51,INDIRECT("AN12:AN500"),1,INDIRECT("CB12:CB500"),CB51,INDIRECT("E12:E500"),E51,INDIRECT("CC12:CC500"),"<"&CC51) -> 1 | CE51: =1+COUNTIFS(INDIRECT("AN12:AN500"),AN51,INDIRECT("CB12:CB500"),CB51,INDIRECT("BB12:BB500"),">"&BB51) +COUNTIFS(INDIRECT("BB12:BB500"),BB51,INDIRECT("AN12:AN500"),1,INDIRECT("CB12:CB500"),CB51,INDIRECT("E12:E500"),"<"&E51) -> 1
A52: 1A | B52: Konner Stoneberg | C52: NC | D52: MR-T1 | E52: 91.8 | F52: =IFERROR(VLOOKUP(E52,[2]DATA!$E$2:$G$22,IF(LEFT(D52,1)="M",2,3)),"") -> 93 | G52: 12 | H52: =IFERROR(IF(LEFT(D52,1)="M",Wilks_Men(IF($E$11="Bwt - Lb",E52/2.2046,E52)),Wilks_Women(IF($E$11="Bwt - Lb",E52/2.2046,E52))),"") -> 0.6320999861 | I52: 2002-09-17 | J52: 16 | K52: 120 | L52: 120 | M52: -140 | N52: =IF(MAX(K52:M52)<=0,0,MAX(CELL("color",K52)*K52,CELL("color",L52)*L52,CELL("color",M52)*M52)) -> 120 | O52: 15-6 | P52: 60 | Q52: 65 | R52: -77.5 | S52: =IF(MAX(P52:R52)<=0,0,MAX(CELL("color",P52)*P52,CELL("color",Q52)*Q52,CELL("color",R52)*R52)) -> 65 | T52: =IF(OR(N52=0,S52=0),0,N52+S52) -> 185 | U52: 157.5 | V52: 165 | W52: -172.5 | X52: =IF(MAX(U52:W52)<=0,0,MAX(CELL("color",U52)*U52,CELL("color",V52)*V52,CELL("color",W52)*W52)) -> 165 | Y52: =AM52*IF($AM$11="SQ",N52,IF($AM$11="BP",S52,IF($AM$11="DL",X52,IF($AM$11="PP",IF(OR(S52=0,X52=0),0,S52+X52),IF(OR(T52=0,X52=0),0,T52+X52))))) -> 350 | Z52: =IF(Y52=0,"",CONCATENATE(CD52,"/",IF(AN52=4,"Wilks",D52),"/",IF(AN52>1,"",F52),"/",$AM$11)) -> 1/MR-T1/93/PL | AA52: =BB52 -> 350 | AB52: =IF(AA52=0,"",CE52) -> 1 | AC52: =H52*IF($E$3="Kg",Y52,Y52/2.2046) -> 221.2349951 | AD52: =IFERROR(VLOOKUP(AS52,[2]DATA!$A$2:$B$63,2,TRUE),0)*AC52 -> 261.0572942 | AE52: PL | AF52: 1013614 | AG52: NC | AH52: =IFERROR(VLOOKUP(A52,[2]Setup!$Q$5:$R$20,2,FALSE),"") -> 0 | AI52: =IF(VALUE(INDIRECT(CONCATENATE($AI$11,ROW())))=0,"",ABS(INDIRECT(CONCATENATE($AI$11,ROW())))+0.000001*G52) -> 172.500012 | AJ52: 14 | AK52: 16 | AL52: 18 | AM52: =IF(ISERROR(SEARCH($AM$11,AE52)),0,1) -> 1 | AN52: =VLOOKUP(D52,[2]Setup!$I$6:$K$93,3,FALSE) -> 1 | AO52: =ROUND(IFERROR(IF(AN52=1,Y52,IF(AN52=2,AC52,IF(AN52=3,AD52,AC52))),0),5) -> 350 | AQ52: =IFERROR(MATCH(D52,[2]Setup!$I$6:$I$93,0),"") -> 23 | AR52: =IFERROR(CONCATENATE(LEFT(D52,FIND("-",D52)),IF(AS52="","O",VLOOKUP(AS52,[2]DATA!$E$35:$F$53,2,TRUE))),"") -> MR-T1 | AS52: =IF(YEAR($AR$7)-YEAR(I52)<40,DATEDIF(I52,$AR$7,"Y"),YEAR($AR$7)-YEAR(I52)) -> 15 | AT52: =IF(AN52=1,MATCH(F52,[2]DATA!$AB$2:$AB$34,0),0) -> 26 | AV52: =IF(MAX(K52:M52)>0,MAX(K52:M52),0) -> 120 | AW52: =IF(MAX(P52:R52)>0,MAX(P52:R52),0) -> 65 | AX52: =IF(MAX(U52:W52)>0,MAX(U52:W52),0) -> 165 | AY52: =AM52*IF($AM$11="PL",IF(MIN(AV52:AX52)=0,0,AV52+AW52+AX52),IF($AM$11="PP",IF(MIN(AW52:AX52)=0,0,AW52+AX52),IF($AM$11="BP",AW52,IF($AM$11="DL",AX52,AV52)))) -> 350 | AZ52: =ROUND(AY52*H52,5) -> 221.235 | BA52: =ROUND(IFERROR(VLOOKUP(AS52,[2]DATA!$A$2:$B$63,2,FALSE),1)*AZ52,5) -> 261.0573 | BB52: =IFERROR(IF(AN52=1,AY52,IF(AN52=2,AZ52,IF(AN52=3,BA52,AZ52))),0) -> 350 | BZ52: =IFERROR(IF(FIND("DT",AE52),"Y",""),"") ->  | CB52: =CONCATENATE(IF(AN52=4,"",D52),IF(AN52=1,F52,"")) -> MR-T193 | CC52: =IF($AM$11="SQ",AJ52,IF($AM$11="BP",AK52,AL52)) -> 18 | CD52: =1+COUNTIFS(INDIRECT("AN12:AN500"),AN52,INDIRECT("CB12:CB500"),CB52,INDIRECT("AO12:AO500"),">"&AO52) +COUNTIFS(INDIRECT("AO12:AO500"),AO52,INDIRECT("AN12:AN500"),1,INDIRECT("CB12:CB500"),CB52,INDIRECT("E12:E500"),"<"&E52) +COUNTIFS(INDIRECT("AO12:AO500"),AO52,INDIRECT("AN12:AN500"),1,INDIRECT("CB12:CB500"),CB52,INDIRECT("E12:E500"),E52,INDIRECT("CC12:CC500"),"<"&CC52) -> 1 | CE52: =1+COUNTIFS(INDIRECT("AN12:AN500"),AN52,INDIRECT("CB12:CB500"),CB52,INDIRECT("BB12:BB500"),">"&BB52) +COUNTIFS(INDIRECT("BB12:BB500"),BB52,INDIRECT("AN12:AN500"),1,INDIRECT("CB12:CB500"),CB52,INDIRECT("E12:E500"),"<"&E52) -> 1
A53: 1A | B53: Om Desai | C53: NC | D53: MR-T1 | E53: 85.64 | F53: =IFERROR(VLOOKUP(E53,[2]DATA!$E$2:$G$22,IF(LEFT(D53,1)="M",2,3)),"") -> 93 | G53: 9 | H53: =IFERROR(IF(LEFT(D53,1)="M",Wilks_Men(IF($E$11="Bwt - Lb",E53/2.2046,E53)),Wilks_Women(IF($E$11="Bwt - Lb",E53/2.2046,E53))),"") -> 0.6556000113 | I53: 2003-05-05 | J53: 13 | K53: -82.5 | L53: -82.5 | M53: 82.5 | N53: =IF(MAX(K53:M53)<=0,0,MAX(CELL("color",K53)*K53,CELL("color",L53)*L53,CELL("color",M53)*M53)) -> 82.5 | O53: 12-5 | P53: -37.5 | Q53: 37.5 | R53: -42.5 | S53: =IF(MAX(P53:R53)<=0,0,MAX(CELL("color",P53)*P53,CELL("color",Q53)*Q53,CELL("color",R53)*R53)) -> 37.5 | T53: =IF(OR(N53=0,S53=0),0,N53+S53) -> 120 | U53: 115 | V53: 120 | W53: -137.5 | X53: =IF(MAX(U53:W53)<=0,0,MAX(CELL("color",U53)*U53,CELL("color",V53)*V53,CELL("color",W53)*W53)) -> 120 | Y53: =AM53*IF($AM$11="SQ",N53,IF($AM$11="BP",S53,IF($AM$11="DL",X53,IF($AM$11="PP",IF(OR(S53=0,X53=0),0,S53+X53),IF(OR(T53=0,X53=0),0,T53+X53))))) -> 240 | Z53: =IF(Y53=0,"",CONCATENATE(CD53,"/",IF(AN53=4,"Wilks",D53),"/",IF(AN53>1,"",F53),"/",$AM$11)) -> 2/MR-T1/93/PL | AA53: =BB53 -> 240 | AB53: =IF(AA53=0,"",CE53) -> 2 | AC53: =H53*IF($E$3="Kg",Y53,Y53/2.2046) -> 157.3440027 | AD53: =IFERROR(VLOOKUP(AS53,[2]DATA!$A$2:$B$63,2,TRUE),0)*AC53 -> 193.5331234 | AE53: PL | AG53: NC | AH53: =IFERROR(VLOOKUP(A53,[2]Setup!$Q$5:$R$20,2,FALSE),"") -> 0 | AI53: =IF(VALUE(INDIRECT(CONCATENATE($AI$11,ROW())))=0,"",ABS(INDIRECT(CONCATENATE($AI$11,ROW())))+0.000001*G53) -> 137.500009 | AJ53: 21 | AK53: 12 | AL53: 14 | AM53: =IF(ISERROR(SEARCH($AM$11,AE53)),0,1) -> 1 | AN53: =VLOOKUP(D53,[2]Setup!$I$6:$K$93,3,FALSE) -> 1 | AO53: =ROUND(IFERROR(IF(AN53=1,Y53,IF(AN53=2,AC53,IF(AN53=3,AD53,AC53))),0),5) -> 240 | AQ53: =IFERROR(MATCH(D53,[2]Setup!$I$6:$I$93,0),"") -> 23 | AR53: =IFERROR(CONCATENATE(LEFT(D53,FIND("-",D53)),IF(AS53="","O",VLOOKUP(AS53,[2]DATA!$E$35:$F$53,2,TRUE))),"") -> MR-T1 | AS53: =IF(YEAR($AR$7)-YEAR(I53)<40,DATEDIF(I53,$AR$7,"Y"),YEAR($AR$7)-YEAR(I53)) -> 14 | AT53: =IF(AN53=1,MATCH(F53,[2]DATA!$AB$2:$AB$34,0),0) -> 26 | AV53: =IF(MAX(K53:M53)>0,MAX(K53:M53),0) -> 82.5 | AW53: =IF(MAX(P53:R53)>0,MAX(P53:R53),0) -> 37.5 | AX53: =IF(MAX(U53:W53)>0,MAX(U53:W53),0) -> 120 | AY53: =AM53*IF($AM$11="PL",IF(MIN(AV53:AX53)=0,0,AV53+AW53+AX53),IF($AM$11="PP",IF(MIN(AW53:AX53)=0,0,AW53+AX53),IF($AM$11="BP",AW53,IF($AM$11="DL",AX53,AV53)))) -> 240 | AZ53: =ROUND(AY53*H53,5) -> 157.344 | BA53: =ROUND(IFERROR(VLOOKUP(AS53,[2]DATA!$A$2:$B$63,2,FALSE),1)*AZ53,5) -> 193.53312 | BB53: =IFERROR(IF(AN53=1,AY53,IF(AN53=2,AZ53,IF(AN53=3,BA53,AZ53))),0) -> 240 | BZ53: =IFERROR(IF(FIND("DT",AE53),"Y",""),"") ->  | CB53: =CONCATENATE(IF(AN53=4,"",D53),IF(AN53=1,F53,"")) -> MR-T193 | CC53: =IF($AM$11="SQ",AJ53,IF($AM$11="BP",AK53,AL53)) -> 14 | CD53: =1+COUNTIFS(INDIRECT("AN12:AN500"),AN53,INDIRECT("CB12:CB500"),CB53,INDIRECT("AO12:AO500"),">"&AO53) +COUNTIFS(INDIRECT("AO12:AO500"),AO53,INDIRECT("AN12:AN500"),1,INDIRECT("CB12:CB500"),CB53,INDIRECT("E12:E500"),"<"&E53) +COUNTIFS(INDIRECT("AO12:AO500"),AO53,INDIRECT("AN12:AN500"),1,INDIRECT("CB12:CB500"),CB53,INDIRECT("E12:E500"),E53,INDIRECT("CC12:CC500"),"<"&CC53) -> 2 | CE53: =1+COUNTIFS(INDIRECT("AN12:AN500"),AN53,INDIRECT("CB12:CB500"),CB53,INDIRECT("BB12:BB500"),">"&BB53) +COUNTIFS(INDIRECT("BB12:BB500"),BB53,INDIRECT("AN12:AN500"),1,INDIRECT("CB12:CB500"),CB53,INDIRECT("E12:E500"),"<"&E53) -> 2
A54: 1A | B54: Joshua Lynch | C54: NC | D54: MR-T2 | E54: 58.14 | F54: =IFERROR(VLOOKUP(E54,[2]DATA!$E$2:$G$22,IF(LEFT(D54,1)="M",2,3)),"") -> 59 | G54: 2 | H54: =IFERROR(IF(LEFT(D54,1)="M",Wilks_Men(IF($E$11="Bwt - Lb",E54/2.2046,E54)),Wilks_Women(IF($E$11="Bwt - Lb",E54/2.2046,E54))),"") -> 0.8781999946 | I54: 2001-02-15 | J54: 11 | K54: 117.5 | L54: 130 | M54: 140 | N54: =IF(MAX(K54:M54)<=0,0,MAX(CELL("color",K54)*K54,CELL("color",L54)*L54,CELL("color",M54)*M54)) -> 140 | O54: 11-6 | P54: 72.5 | Q54: 80 | R54: -90 | S54: =IF(MAX(P54:R54)<=0,0,MAX(CELL("color",P54)*P54,CELL("color",Q54)*Q54,CELL("color",R54)*R54)) -> 80 | T54: =IF(OR(N54=0,S54=0),0,N54+S54) -> 220 | U54: 120 | V54: 132.5 | W54: 137.5 | X54: =IF(MAX(U54:W54)<=0,0,MAX(CELL("color",U54)*U54,CELL("color",V54)*V54,CELL("color",W54)*W54)) -> 137.5 | Y54: =AM54*IF($AM$11="SQ",N54,IF($AM$11="BP",S54,IF($AM$11="DL",X54,IF($AM$11="PP",IF(OR(S54=0,X54=0),0,S54+X54),IF(OR(T54=0,X54=0),0,T54+X54))))) -> 357.5 | Z54: =IF(Y54=0,"",CONCATENATE(CD54,"/",IF(AN54=4,"Wilks",D54),"/",IF(AN54>1,"",F54),"/",$AM$11)) -> 1/MR-T2/59/PL | AA54: =BB54 -> 357.5 | AB54: =IF(AA54=0,"",CE54) -> 1 | AC54: =H54*IF($E$3="Kg",Y54,Y54/2.2046) -> 313.9564981 | AD54: =IFERROR(VLOOKUP(AS54,[2]DATA!$A$2:$B$63,2,TRUE),0)*AC54 -> 339.0730179 | AE54: PL | AF54: 1016962 | AG54: NC | AH54: =IFERROR(VLOOKUP(A54,[2]Setup!$Q$5:$R$20,2,FALSE),"") -> 0 | AI54: =IF(VALUE(INDIRECT(CONCATENATE($AI$11,ROW())))=0,"",ABS(INDIRECT(CONCATENATE($AI$11,ROW())))+0.000001*G54) -> 137.500002 | AJ54: 27 | AK54: 17 | AL54: 26 | AM54: =IF(ISERROR(SEARCH($AM$11,AE54)),0,1) -> 1 | AN54: =VLOOKUP(D54,[2]Setup!$I$6:$K$93,3,FALSE) -> 1 | AO54: =ROUND(IFERROR(IF(AN54=1,Y54,IF(AN54=2,AC54,IF(AN54=3,AD54,AC54))),0),5) -> 357.5 | AQ54: =IFERROR(MATCH(D54,[2]Setup!$I$6:$I$93,0),"") -> 24 | AR54: =IFERROR(CONCATENATE(LEFT(D54,FIND("-",D54)),IF(AS54="","O",VLOOKUP(AS54,[2]DATA!$E$35:$F$53,2,TRUE))),"") -> MR-T2 | AS54: =IF(YEAR($AR$7)-YEAR(I54)<40,DATEDIF(I54,$AR$7,"Y"),YEAR($AR$7)-YEAR(I54)) -> 17 | AT54: =IF(AN54=1,MATCH(F54,[2]DATA!$AB$2:$AB$34,0),0) -> 12 | AV54: =IF(MAX(K54:M54)>0,MAX(K54:M54),0) -> 140 | AW54: =IF(MAX(P54:R54)>0,MAX(P54:R54),0) -> 80 | AX54: =IF(MAX(U54:W54)>0,MAX(U54:W54),0) -> 137.5 | AY54: =AM54*IF($AM$11="PL",IF(MIN(AV54:AX54)=0,0,AV54+AW54+AX54),IF($AM$11="PP",IF(MIN(AW54:AX54)=0,0,AW54+AX54),IF($AM$11="BP",AW54,IF($AM$11="DL",AX54,AV54)))) -> 357.5 | AZ54: =ROUND(AY54*H54,5) -> 313.9565 | BA54: =ROUND(IFERROR(VLOOKUP(AS54,[2]DATA!$A$2:$B$63,2,FALSE),1)*AZ54,5) -> 339.07302 | BB54: =IFERROR(IF(AN54=1,AY54,IF(AN54=2,AZ54,IF(AN54=3,BA54,AZ54))),0) -> 357.5 | BZ54: =IFERROR(IF(FIND("DT",AE54),"Y",""),"") ->  | CB54: =CONCATENATE(IF(AN54=4,"",D54),IF(AN54=1,F54,"")) -> MR-T259 | CC54: =IF($AM$11="SQ",AJ54,IF($AM$11="BP",AK54,AL54)) -> 26 | CD54: =1+COUNTIFS(INDIRECT("AN12:AN500"),AN54,INDIRECT("CB12:CB500"),CB54,INDIRECT("AO12:AO500"),">"&AO54) +COUNTIFS(INDIRECT("AO12:AO500"),AO54,INDIRECT("AN12:AN500"),1,INDIRECT("CB12:CB500"),CB54,INDIRECT("E12:E500"),"<"&E54) +COUNTIFS(INDIRECT("AO12:AO500"),AO54,INDIRECT("AN12:AN500"),1,INDIRECT("CB12:CB500"),CB54,INDIRECT("E12:E500"),E54,INDIRECT("CC12:CC500"),"<"&CC54) -> 1 | CE54: =1+COUNTIFS(INDIRECT("AN12:AN500"),AN54,INDIRECT("CB12:CB500"),CB54,INDIRECT("BB12:BB500"),">"&BB54) +COUNTIFS(INDIRECT("BB12:BB500"),BB54,INDIRECT("AN12:AN500"),1,INDIRECT("CB12:CB500"),CB54,INDIRECT("E12:E500"),"<"&E54) -> 1
A55: 1A | B55: Keegan Gaddy | C55: NC | D55: MR-T2 | E55: 80.48 | F55: =IFERROR(VLOOKUP(E55,[2]DATA!$E$2:$G$22,IF(LEFT(D55,1)="M",2,3)),"") -> 83 | G55: 7 | H55: =IFERROR(IF(LEFT(D55,1)="M",Wilks_Men(IF($E$11="Bwt - Lb",E55/2.2046,E55)),Wilks_Women(IF($E$11="Bwt - Lb",E55/2.2046,E55))),"") -> 0.6801000237 | I55: 2000-12-08 | J55: 15 | K55: 180 | L55: 195 | M55: 205 | N55: =IF(MAX(K55:M55)<=0,0,MAX(CELL("color",K55)*K55,CELL("color",L55)*L55,CELL("color",M55)*M55)) -> 205 | O55: 11-6 | P55: 130 | Q55: 140 | R55: 150 | S55: =IF(MAX(P55:R55)<=0,0,MAX(CELL("color",P55)*P55,CELL("color",Q55)*Q55,CELL("color",R55)*R55)) -> 150 | T55: =IF(OR(N55=0,S55=0),0,N55+S55) -> 355 | U55: 200 | V55: 212.5 | W55: 220 | X55: =IF(MAX(U55:W55)<=0,0,MAX(CELL("color",U55)*U55,CELL("color",V55)*V55,CELL("color",W55)*W55)) -> 220 | Y55: =AM55*IF($AM$11="SQ",N55,IF($AM$11="BP",S55,IF($AM$11="DL",X55,IF($AM$11="PP",IF(OR(S55=0,X55=0),0,S55+X55),IF(OR(T55=0,X55=0),0,T55+X55))))) -> 575 | Z55: =IF(Y55=0,"",CONCATENATE(CD55,"/",IF(AN55=4,"Wilks",D55),"/",IF(AN55>1,"",F55),"/",$AM$11)) -> 1/MR-T2/83/PL | AA55: =BB55 -> 575 | AB55: =IF(AA55=0,"",CE55) -> 1 | AC55: =H55*IF($E$3="Kg",Y55,Y55/2.2046) -> 391.0575137 | AD55: =IFERROR(VLOOKUP(AS55,[2]DATA!$A$2:$B$63,2,TRUE),0)*AC55 -> 422.3421147 | AE55: PL | AF55: 1000412 | AG55: NC | AH55: =IFERROR(VLOOKUP(A55,[2]Setup!$Q$5:$R$20,2,FALSE),"") -> 0 | AI55: =IF(VALUE(INDIRECT(CONCATENATE($AI$11,ROW())))=0,"",ABS(INDIRECT(CONCATENATE($AI$11,ROW())))+0.000001*G55) -> 220.000007 | AJ55: 29 | AK55: 24 | AL55: 31 | AM55: =IF(ISERROR(SEARCH($AM$11,AE55)),0,1) -> 1 | AN55: =VLOOKUP(D55,[2]Setup!$I$6:$K$93,3,FALSE) -> 1 | AO55: =ROUND(IFERROR(IF(AN55=1,Y55,IF(AN55=2,AC55,IF(AN55=3,AD55,AC55))),0),5) -> 575 | AQ55: =IFERROR(MATCH(D55,[2]Setup!$I$6:$I$93,0),"") -> 24 | AR55: =IFERROR(CONCATENATE(LEFT(D55,FIND("-",D55)),IF(AS55="","O",VLOOKUP(AS55,[2]DATA!$E$35:$F$53,2,TRUE))),"") -> MR-T2 | AS55: =IF(YEAR($AR$7)-YEAR(I55)<40,DATEDIF(I55,$AR$7,"Y"),YEAR($AR$7)-YEAR(I55)) -> 17 | AT55: =IF(AN55=1,MATCH(F55,[2]DATA!$AB$2:$AB$34,0),0) -> 21 | AV55: =IF(MAX(K55:M55)>0,MAX(K55:M55),0) -> 205 | AW55: =IF(MAX(P55:R55)>0,MAX(P55:R55),0) -> 150 | AX55: =IF(MAX(U55:W55)>0,MAX(U55:W55),0) -> 220 | AY55: =AM55*IF($AM$11="PL",IF(MIN(AV55:AX55)=0,0,AV55+AW55+AX55),IF($AM$11="PP",IF(MIN(AW55:AX55)=0,0,AW55+AX55),IF($AM$11="BP",AW55,IF($AM$11="DL",AX55,AV55)))) -> 575 | AZ55: =ROUND(AY55*H55,5) -> 391.05751 | BA55: =ROUND(IFERROR(VLOOKUP(AS55,[2]DATA!$A$2:$B$63,2,FALSE),1)*AZ55,5) -> 422.34211 | BB55: =IFERROR(IF(AN55=1,AY55,IF(AN55=2,AZ55,IF(AN55=3,BA55,AZ55))),0) -> 575 | BZ55: =IFERROR(IF(FIND("DT",AE55),"Y",""),"") ->  | CB55: =CONCATENATE(IF(AN55=4,"",D55),IF(AN55=1,F55,"")) -> MR-T283 | CC55: =IF($AM$11="SQ",AJ55,IF($AM$11="BP",AK55,AL55)) -> 31 | CD55: =1+COUNTIFS(INDIRECT("AN12:AN500"),AN55,INDIRECT("CB12:CB500"),CB55,INDIRECT("AO12:AO500"),">"&AO55) +COUNTIFS(INDIRECT("AO12:AO500"),AO55,INDIRECT("AN12:AN500"),1,INDIRECT("CB12:CB500"),CB55,INDIRECT("E12:E500"),"<"&E55) +COUNTIFS(INDIRECT("AO12:AO500"),AO55,INDIRECT("AN12:AN500"),1,INDIRECT("CB12:CB500"),CB55,INDIRECT("E12:E500"),E55,INDIRECT("CC12:CC500"),"<"&CC55) -> 1 | CE55: =1+COUNTIFS(INDIRECT("AN12:AN500"),AN55,INDIRECT("CB12:CB500"),CB55,INDIRECT("BB12:BB500"),">"&BB55) +COUNTIFS(INDIRECT("BB12:BB500"),BB55,INDIRECT("AN12:AN500"),1,INDIRECT("CB12:CB500"),CB55,INDIRECT("E12:E500"),"<"&E55) -> 1
A56: 1A | B56: Tyler O'Neal | C56: NC | D56: MR-T2 | E56: 77.14 | F56: =IFERROR(VLOOKUP(E56,[2]DATA!$E$2:$G$22,IF(LEFT(D56,1)="M",2,3)),"") -> 83 | G56: 4 | H56: =IFERROR(IF(LEFT(D56,1)="M",Wilks_Men(IF($E$11="Bwt - Lb",E56/2.2046,E56)),Wilks_Women(IF($E$11="Bwt - Lb",E56/2.2046,E56))),"") -> 0.699000001 | I56: 2001-03-21 | J56: 15 | K56: 137.5 | L56: 152.5 | M56: 165 | N56: =IF(MAX(K56:M56)<=0,0,MAX(CELL("color",K56)*K56,CELL("color",L56)*L56,CELL("color",M56)*M56)) -> 165 | O56: 12-7 | P56: 92.5 | Q56: 105 | R56: 115 | S56: =IF(MAX(P56:R56)<=0,0,MAX(CELL("color",P56)*P56,CELL("color",Q56)*Q56,CELL("color",R56)*R56)) -> 115 | T56: =IF(OR(N56=0,S56=0),0,N56+S56) -> 280 | U56: 182.5 | V56: 195 | W56: 205 | X56: =IF(MAX(U56:W56)<=0,0,MAX(CELL("color",U56)*U56,CELL("color",V56)*V56,CELL("color",W56)*W56)) -> 205 | Y56: =AM56*IF($AM$11="SQ",N56,IF($AM$11="BP",S56,IF($AM$11="DL",X56,IF($AM$11="PP",IF(OR(S56=0,X56=0),0,S56+X56),IF(OR(T56=0,X56=0),0,T56+X56))))) -> 485 | Z56: =IF(Y56=0,"",CONCATENATE(CD56,"/",IF(AN56=4,"Wilks",D56),"/",IF(AN56>1,"",F56),"/",$AM$11)) -> 2/MR-T2/83/PL | AA56: =BB56 -> 485 | AB56: =IF(AA56=0,"",CE56) -> 2 | AC56: =H56*IF($E$3="Kg",Y56,Y56/2.2046) -> 339.0150005 | AD56: =IFERROR(VLOOKUP(AS56,[2]DATA!$A$2:$B$63,2,TRUE),0)*AC56 -> 366.1362005 | AE56: PL | AF56: 1016960 | AG56: NC | AH56: =IFERROR(VLOOKUP(A56,[2]Setup!$Q$5:$R$20,2,FALSE),"") -> 0 | AI56: =IF(VALUE(INDIRECT(CONCATENATE($AI$11,ROW())))=0,"",ABS(INDIRECT(CONCATENATE($AI$11,ROW())))+0.000001*G56) -> 205.000004 | AJ56: 28 | AK56: 23 | AL56: 30 | AM56: =IF(ISERROR(SEARCH($AM$11,AE56)),0,1) -> 1 | AN56: =VLOOKUP(D56,[2]Setup!$I$6:$K$93,3,FALSE) -> 1 | AO56: =ROUND(IFERROR(IF(AN56=1,Y56,IF(AN56=2,AC56,IF(AN56=3,AD56,AC56))),0),5) -> 485 | AQ56: =IFERROR(MATCH(D56,[2]Setup!$I$6:$I$93,0),"") -> 24 | AR56: =IFERROR(CONCATENATE(LEFT(D56,FIND("-",D56)),IF(AS56="","O",VLOOKUP(AS56,[2]DATA!$E$35:$F$53,2,TRUE))),"") -> MR-T2 | AS56: =IF(YEAR($AR$7)-YEAR(I56)<40,DATEDIF(I56,$AR$7,"Y"),YEAR($AR$7)-YEAR(I56)) -> 17 | AT56: =IF(AN56=1,MATCH(F56,[2]DATA!$AB$2:$AB$34,0),0) -> 21 | AV56: =IF(MAX(K56:M56)>0,MAX(K56:M56),0) -> 165 | AW56: =IF(MAX(P56:R56)>0,MAX(P56:R56),0) -> 115 | AX56: =IF(MAX(U56:W56)>0,MAX(U56:W56),0) -> 205 | AY56: =AM56*IF($AM$11="PL",IF(MIN(AV56:AX56)=0,0,AV56+AW56+AX56),IF($AM$11="PP",IF(MIN(AW56:AX56)=0,0,AW56+AX56),IF($AM$11="BP",AW56,IF($AM$11="DL",AX56,AV56)))) -> 485 | AZ56: =ROUND(AY56*H56,5) -> 339.015 | BA56: =ROUND(IFERROR(VLOOKUP(AS56,[2]DATA!$A$2:$B$63,2,FALSE),1)*AZ56,5) -> 366.1362 | BB56: =IFERROR(IF(AN56=1,AY56,IF(AN56=2,AZ56,IF(AN56=3,BA56,AZ56))),0) -> 485 | BZ56: =IFERROR(IF(FIND("DT",AE56),"Y",""),"") ->  | CB56: =CONCATENATE(IF(AN56=4,"",D56),IF(AN56=1,F56,"")) -> MR-T283 | CC56: =IF($AM$11="SQ",AJ56,IF($AM$11="BP",AK56,AL56)) -> 30 | CD56: =1+COUNTIFS(INDIRECT("AN12:AN500"),AN56,INDIRECT("CB12:CB500"),CB56,INDIRECT("AO12:AO500"),">"&AO56) +COUNTIFS(INDIRECT("AO12:AO500"),AO56,INDIRECT("AN12:AN500"),1,INDIRECT("CB12:CB500"),CB56,INDIRECT("E12:E500"),"<"&E56) +COUNTIFS(INDIRECT("AO12:AO500"),AO56,INDIRECT("AN12:AN500"),1,INDIRECT("CB12:CB500"),CB56,INDIRECT("E12:E500"),E56,INDIRECT("CC12:CC500"),"<"&CC56) -> 2 | CE56: =1+COUNTIFS(INDIRECT("AN12:AN500"),AN56,INDIRECT("CB12:CB500"),CB56,INDIRECT("BB12:BB500"),">"&BB56) +COUNTIFS(INDIRECT("BB12:BB500"),BB56,INDIRECT("AN12:AN500"),1,INDIRECT("CB12:CB500"),CB56,INDIRECT("E12:E500"),"<"&E56) -> 2
A57: 1A | B57: Roberto Valle | C57: NC | D57: MR-T2 | E57: 81.32 | F57: =IFERROR(VLOOKUP(E57,[2]DATA!$E$2:$G$22,IF(LEFT(D57,1)="M",2,3)),"") -> 83 | G57: 6 | H57: =IFERROR(IF(LEFT(D57,1)="M",Wilks_Men(IF($E$11="Bwt - Lb",E57/2.2046,E57)),Wilks_Women(IF($E$11="Bwt - Lb",E57/2.2046,E57))),"") -> 0.6758000255 | I57: 2001-08-07 | J57: 16 | K57: 122.5 | L57: -137.5 | M57: 137.5 | N57: =IF(MAX(K57:M57)<=0,0,MAX(CELL("color",K57)*K57,CELL("color",L57)*L57,CELL("color",M57)*M57)) -> 137.5 | O57: 13-5 | P57: 77.5 | Q57: -85 | R57: -85 | S57: =IF(MAX(P57:R57)<=0,0,MAX(CELL("color",P57)*P57,CELL("color",Q57)*Q57,CELL("color",R57)*R57)) -> 77.5 | T57: =IF(OR(N57=0,S57=0),0,N57+S57) -> 215 | U57: 162.5 | V57: 165 | W57: 167.5 | X57: =IF(MAX(U57:W57)<=0,0,MAX(CELL("color",U57)*U57,CELL("color",V57)*V57,CELL("color",W57)*W57)) -> 167.5 | Y57: =AM57*IF($AM$11="SQ",N57,IF($AM$11="BP",S57,IF($AM$11="DL",X57,IF($AM$11="PP",IF(OR(S57=0,X57=0),0,S57+X57),IF(OR(T57=0,X57=0),0,T57+X57))))) -> 382.5 | Z57: =IF(Y57=0,"",CONCATENATE(CD57,"/",IF(AN57=4,"Wilks",D57),"/",IF(AN57>1,"",F57),"/",$AM$11)) -> 3/MR-T2/83/PL | AA57: =BB57 -> 382.5 | AB57: =IF(AA57=0,"",CE57) -> 3 | AC57: =H57*IF($E$3="Kg",Y57,Y57/2.2046) -> 258.4935097 | AD57: =IFERROR(VLOOKUP(AS57,[2]DATA!$A$2:$B$63,2,TRUE),0)*AC57 -> 292.097666 | AE57: PL | AF57: 1015387 | AG57: NC | AH57: =IFERROR(VLOOKUP(A57,[2]Setup!$Q$5:$R$20,2,FALSE),"") -> 0 | AI57: =IF(VALUE(INDIRECT(CONCATENATE($AI$11,ROW())))=0,"",ABS(INDIRECT(CONCATENATE($AI$11,ROW())))+0.000001*G57) -> 167.500006 | AJ57: 26 | AK57: 6 | AL57: 28 | AM57: =IF(ISERROR(SEARCH($AM$11,AE57)),0,1) -> 1 | AN57: =VLOOKUP(D57,[2]Setup!$I$6:$K$93,3,FALSE) -> 1 | AO57: =ROUND(IFERROR(IF(AN57=1,Y57,IF(AN57=2,AC57,IF(AN57=3,AD57,AC57))),0),5) -> 382.5 | AQ57: =IFERROR(MATCH(D57,[2]Setup!$I$6:$I$93,0),"") -> 24 | AR57: =IFERROR(CONCATENATE(LEFT(D57,FIND("-",D57)),IF(AS57="","O",VLOOKUP(AS57,[2]DATA!$E$35:$F$53,2,TRUE))),"") -> MR-T2 | AS57: =IF(YEAR($AR$7)-YEAR(I57)<40,DATEDIF(I57,$AR$7,"Y"),YEAR($AR$7)-YEAR(I57)) -> 16 | AT57: =IF(AN57=1,MATCH(F57,[2]DATA!$AB$2:$AB$34,0),0) -> 21 | AV57: =IF(MAX(K57:M57)>0,MAX(K57:M57),0) -> 137.5 | AW57: =IF(MAX(P57:R57)>0,MAX(P57:R57),0) -> 77.5 | AX57: =IF(MAX(U57:W57)>0,MAX(U57:W57),0) -> 167.5 | AY57: =AM57*IF($AM$11="PL",IF(MIN(AV57:AX57)=0,0,AV57+AW57+AX57),IF($AM$11="PP",IF(MIN(AW57:AX57)=0,0,AW57+AX57),IF($AM$11="BP",AW57,IF($AM$11="DL",AX57,AV57)))) -> 382.5 | AZ57: =ROUND(AY57*H57,5) -> 258.49351 | BA57: =ROUND(IFERROR(VLOOKUP(AS57,[2]DATA!$A$2:$B$63,2,FALSE),1)*AZ57,5) -> 292.09767 | BB57: =IFERROR(IF(AN57=1,AY57,IF(AN57=2,AZ57,IF(AN57=3,BA57,AZ57))),0) -> 382.5 | BZ57: =IFERROR(IF(FIND("DT",AE57),"Y",""),"") ->  | CB57: =CONCATENATE(IF(AN57=4,"",D57),IF(AN57=1,F57,"")) -> MR-T283 | CC57: =IF($AM$11="SQ",AJ57,IF($AM$11="BP",AK57,AL57)) -> 28 | CD57: =1+COUNTIFS(INDIRECT("AN12:AN500"),AN57,INDIRECT("CB12:CB500"),CB57,INDIRECT("AO12:AO500"),">"&AO57) +COUNTIFS(INDIRECT("AO12:AO500"),AO57,INDIRECT("AN12:AN500"),1,INDIRECT("CB12:CB500"),CB57,INDIRECT("E12:E500"),"<"&E57) +COUNTIFS(INDIRECT("AO12:AO500"),AO57,INDIRECT("AN12:AN500"),1,INDIRECT("CB12:CB500"),CB57,INDIRECT("E12:E500"),E57,INDIRECT("CC12:CC500"),"<"&CC57) -> 3 | CE57: =1+COUNTIFS(INDIRECT("AN12:AN500"),AN57,INDIRECT("CB12:CB500"),CB57,INDIRECT("BB12:BB500"),">"&BB57) +COUNTIFS(INDIRECT("BB12:BB500"),BB57,INDIRECT("AN12:AN500"),1,INDIRECT("CB12:CB500"),CB57,INDIRECT("E12:E500"),"<"&E57) -> 3
A58: 1A | B58: Colton Hurley | C58: NC | D58: MR-T2 | E58: 91.54 | F58: =IFERROR(VLOOKUP(E58,[2]DATA!$E$2:$G$22,IF(LEFT(D58,1)="M",2,3)),"") -> 93 | G58: 10 | H58: =IFERROR(IF(LEFT(D58,1)="M",Wilks_Men(IF($E$11="Bwt - Lb",E58/2.2046,E58)),Wilks_Women(IF($E$11="Bwt - Lb",E58/2.2046,E58))),"") -> 0.6330000162 | I58: 2001-06-06 | J58: 15 | K58: 225 | L58: 237.5 | M58: 250 | N58: =IF(MAX(K58:M58)<=0,0,MAX(CELL("color",K58)*K58,CELL("color",L58)*L58,CELL("color",M58)*M58)) -> 250 | O58: 13-6 | P58: 127.5 | Q58: -132.5 | R58: -132.5 | S58: =IF(MAX(P58:R58)<=0,0,MAX(CELL("color",P58)*P58,CELL("color",Q58)*Q58,CELL("color",R58)*R58)) -> 127.5 | T58: =IF(OR(N58=0,S58=0),0,N58+S58) -> 377.5 | U58: 185 | V58: 202.5 | W58: 220 | X58: =IF(MAX(U58:W58)<=0,0,MAX(CELL("color",U58)*U58,CELL("color",V58)*V58,CELL("color",W58)*W58)) -> 220 | Y58: =AM58*IF($AM$11="SQ",N58,IF($AM$11="BP",S58,IF($AM$11="DL",X58,IF($AM$11="PP",IF(OR(S58=0,X58=0),0,S58+X58),IF(OR(T58=0,X58=0),0,T58+X58))))) -> 597.5 | Z58: =IF(Y58=0,"",CONCATENATE(CD58,"/",IF(AN58=4,"Wilks",D58),"/",IF(AN58>1,"",F58),"/",$AM$11)) -> 1/MR-T2/93/PL | AA58: =BB58 -> 597.5 | AB58: =IF(AA58=0,"",CE58) -> 1 | AC58: =H58*IF($E$3="Kg",Y58,Y58/2.2046) -> 378.2175097 | AD58: =IFERROR(VLOOKUP(AS58,[2]DATA!$A$2:$B$63,2,TRUE),0)*AC58 -> 427.3857859 | AE58: PL | AG58: NC | AH58: =IFERROR(VLOOKUP(A58,[2]Setup!$Q$5:$R$20,2,FALSE),"") -> 0 | AI58: =IF(VALUE(INDIRECT(CONCATENATE($AI$11,ROW())))=0,"",ABS(INDIRECT(CONCATENATE($AI$11,ROW())))+0.000001*G58) -> 220.00001 | AJ58: 30 | AK58: 9 | AL58: 32 | AM58: =IF(ISERROR(SEARCH($AM$11,AE58)),0,1) -> 1 | AN58: =VLOOKUP(D58,[2]Setup!$I$6:$K$93,3,FALSE) -> 1 | AO58: =ROUND(IFERROR(IF(AN58=1,Y58,IF(AN58=2,AC58,IF(AN58=3,AD58,AC58))),0),5) -> 597.5 | AQ58: =IFERROR(MATCH(D58,[2]Setup!$I$6:$I$93,0),"") -> 24 | AR58: =IFERROR(CONCATENATE(LEFT(D58,FIND("-",D58)),IF(AS58="","O",VLOOKUP(AS58,[2]DATA!$E$35:$F$53,2,TRUE))),"") -> MR-T2 | AS58: =IF(YEAR($AR$7)-YEAR(I58)<40,DATEDIF(I58,$AR$7,"Y"),YEAR($AR$7)-YEAR(I58)) -> 16 | AT58: =IF(AN58=1,MATCH(F58,[2]DATA!$AB$2:$AB$34,0),0) -> 26 | AV58: =IF(MAX(K58:M58)>0,MAX(K58:M58),0) -> 250 | AW58: =IF(MAX(P58:R58)>0,MAX(P58:R58),0) -> 127.5 | AX58: =IF(MAX(U58:W58)>0,MAX(U58:W58),0) -> 220 | AY58: =AM58*IF($AM$11="PL",IF(MIN(AV58:AX58)=0,0,AV58+AW58+AX58),IF($AM$11="PP",IF(MIN(AW58:AX58)=0,0,AW58+AX58),IF($AM$11="BP",AW58,IF($AM$11="DL",AX58,AV58)))) -> 597.5 | AZ58: =ROUND(AY58*H58,5) -> 378.21751 | BA58: =ROUND(IFERROR(VLOOKUP(AS58,[2]DATA!$A$2:$B$63,2,FALSE),1)*AZ58,5) -> 427.38579 | BB58: =IFERROR(IF(AN58=1,AY58,IF(AN58=2,AZ58,IF(AN58=3,BA58,AZ58))),0) -> 597.5 | BZ58: =IFERROR(IF(FIND("DT",AE58),"Y",""),"") ->  | CB58: =CONCATENATE(IF(AN58=4,"",D58),IF(AN58=1,F58,"")) -> MR-T293 | CC58: =IF($AM$11="SQ",AJ58,IF($AM$11="BP",AK58,AL58)) -> 32 | CD58: =1+COUNTIFS(INDIRECT("AN12:AN500"),AN58,INDIRECT("CB12:CB500"),CB58,INDIRECT("AO12:AO500"),">"&AO58) +COUNTIFS(INDIRECT("AO12:AO500"),AO58,INDIRECT("AN12:AN500"),1,INDIRECT("CB12:CB500"),CB58,INDIRECT("E12:E500"),"<"&E58) +COUNTIFS(INDIRECT("AO12:AO500"),AO58,INDIRECT("AN12:AN500"),1,INDIRECT("CB12:CB500"),CB58,INDIRECT("E12:E500"),E58,INDIRECT("CC12:CC500"),"<"&CC58) -> 1 | CE58: =1+COUNTIFS(INDIRECT("AN12:AN500"),AN58,INDIRECT("CB12:CB500"),CB58,INDIRECT("BB12:BB500"),">"&BB58) +COUNTIFS(INDIRECT("BB12:BB500"),BB58,INDIRECT("AN12:AN500"),1,INDIRECT("CB12:CB500"),CB58,INDIRECT("E12:E500"),"<"&E58) -> 1
A59: 1A | B59: Logan Wagner | C59: NC | D59: MR-T3 | E59: 115 | F59: =IFERROR(VLOOKUP(E59,[2]DATA!$E$2:$G$22,IF(LEFT(D59,1)="M",2,3)),"") -> 120 | G59: 13 | H59: =IFERROR(IF(LEFT(D59,1)="M",Wilks_Men(IF($E$11="Bwt - Lb",E59/2.2046,E59)),Wilks_Women(IF($E$11="Bwt - Lb",E59/2.2046,E59))),"") -> 0.581099987 | I59: 2000-07-14 | J59: 18 | K59: -120 | L59: 120 | M59: 127.5 | N59: =IF(MAX(K59:M59)<=0,0,MAX(CELL("color",K59)*K59,CELL("color",L59)*L59,CELL("color",M59)*M59)) -> 127.5 | O59: 15-7 | P59: 77.5 | Q59: 85 | R59: 92.5 | S59: =IF(MAX(P59:R59)<=0,0,MAX(CELL("color",P59)*P59,CELL("color",Q59)*Q59,CELL("color",R59)*R59)) -> 92.5 | T59: =IF(OR(N59=0,S59=0),0,N59+S59) -> 220 | U59: 170 | V59: 192.5 | W59: 200 | X59: =IF(MAX(U59:W59)<=0,0,MAX(CELL("color",U59)*U59,CELL("color",V59)*V59,CELL("color",W59)*W59)) -> 200 | Y59: =AM59*IF($AM$11="SQ",N59,IF($AM$11="BP",S59,IF($AM$11="DL",X59,IF($AM$11="PP",IF(OR(S59=0,X59=0),0,S59+X59),IF(OR(T59=0,X59=0),0,T59+X59))))) -> 420 | Z59: =IF(Y59=0,"",CONCATENATE(CD59,"/",IF(AN59=4,"Wilks",D59),"/",IF(AN59>1,"",F59),"/",$AM$11)) -> 1/MR-T3/120/PL | AA59: =BB59 -> 420 | AB59: =IF(AA59=0,"",CE59) -> 1 | AC59: =H59*IF($E$3="Kg",Y59,Y59/2.2046) -> 244.0619946 | AD59: =IFERROR(VLOOKUP(AS59,[2]DATA!$A$2:$B$63,2,TRUE),0)*AC59 -> 263.5869541 | AE59: PL | AG59: NC | AH59: =IFERROR(VLOOKUP(A59,[2]Setup!$Q$5:$R$20,2,FALSE),"") -> 0 | AI59: =IF(VALUE(INDIRECT(CONCATENATE($AI$11,ROW())))=0,"",ABS(INDIRECT(CONCATENATE($AI$11,ROW())))+0.000001*G59) -> 200.000013 | AJ59: 25 | AK59: 22 | AL59: 29 | AM59: =IF(ISERROR(SEARCH($AM$11,AE59)),0,1) -> 1 | AN59: =VLOOKUP(D59,[2]Setup!$I$6:$K$93,3,FALSE) -> 1 | AO59: =ROUND(IFERROR(IF(AN59=1,Y59,IF(AN59=2,AC59,IF(AN59=3,AD59,AC59))),0),5) -> 420 | AQ59: =IFERROR(MATCH(D59,[2]Setup!$I$6:$I$93,0),"") -> 25 | AR59: =IFERROR(CONCATENATE(LEFT(D59,FIND("-",D59)),IF(AS59="","O",VLOOKUP(AS59,[2]DATA!$E$35:$F$53,2,TRUE))),"") -> MR-T2 | AS59: =IF(YEAR($AR$7)-YEAR(I59)<40,DATEDIF(I59,$AR$7,"Y"),YEAR($AR$7)-YEAR(I59)) -> 17 | AT59: =IF(AN59=1,MATCH(F59,[2]DATA!$AB$2:$AB$34,0),0) -> 30 | AV59: =IF(MAX(K59:M59)>0,MAX(K59:M59),0) -> 127.5 | AW59: =IF(MAX(P59:R59)>0,MAX(P59:R59),0) -> 92.5 | AX59: =IF(MAX(U59:W59)>0,MAX(U59:W59),0) -> 200 | AY59: =AM59*IF($AM$11="PL",IF(MIN(AV59:AX59)=0,0,AV59+AW59+AX59),IF($AM$11="PP",IF(MIN(AW59:AX59)=0,0,AW59+AX59),IF($AM$11="BP",AW59,IF($AM$11="DL",AX59,AV59)))) -> 420 | AZ59: =ROUND(AY59*H59,5) -> 244.06199 | BA59: =ROUND(IFERROR(VLOOKUP(AS59,[2]DATA!$A$2:$B$63,2,FALSE),1)*AZ59,5) -> 263.58695 | BB59: =IFERROR(IF(AN59=1,AY59,IF(AN59=2,AZ59,IF(AN59=3,BA59,AZ59))),0) -> 420 | BZ59: =IFERROR(IF(FIND("DT",AE59),"Y",""),"") ->  | CB59: =CONCATENATE(IF(AN59=4,"",D59),IF(AN59=1,F59,"")) -> MR-T3120 | CC59: =IF($AM$11="SQ",AJ59,IF($AM$11="BP",AK59,AL59)) -> 29 | CD59: =1+COUNTIFS(INDIRECT("AN12:AN500"),AN59,INDIRECT("CB12:CB500"),CB59,INDIRECT("AO12:AO500"),">"&AO59) +COUNTIFS(INDIRECT("AO12:AO500"),AO59,INDIRECT("AN12:AN500"),1,INDIRECT("CB12:CB500"),CB59,INDIRECT("E12:E500"),"<"&E59) +COUNTIFS(INDIRECT("AO12:AO500"),AO59,INDIRECT("AN12:AN500"),1,INDIRECT("CB12:CB500"),CB59,INDIRECT("E12:E500"),E59,INDIRECT("CC12:CC500"),"<"&CC59) -> 1 | CE59: =1+COUNTIFS(INDIRECT("AN12:AN500"),AN59,INDIRECT("CB12:CB500"),CB59,INDIRECT("BB12:BB500"),">"&BB59) +COUNTIFS(INDIRECT("BB12:BB500"),BB59,INDIRECT("AN12:AN500"),1,INDIRECT("CB12:CB500"),CB59,INDIRECT("E12:E500"),"<"&E59) -> 1
A60: 2D | B60: Frank Bottone Jr. | C60: NC | D60: MR-O | E60: 64.54 | F60: =IFERROR(VLOOKUP(E60,DATA!$E$2:$G$22,IF(LEFT(D60,1)="M",2,3)),"") -> 66 | G60: 901 | H60: =IFERROR(IF(LEFT(D60,1)="M",Wilks_Men(IF($E$11="Bwt - Lb",E60/2.2046,E60)),Wilks_Women(IF($E$11="Bwt - Lb",E60/2.2046,E60))),"") -> 0.8000000119 | I60: 1969-11-13 | J60: 15 | K60: 120 | L60: 130 | M60: -137.5 | N60: =IF(MAX(K60:M60)<=0,0,MAX(CELL("color",K60)*K60,CELL("color",L60)*L60,CELL("color",M60)*M60)) -> 130 | O60: 14-5 | P60: 87.5 | Q60: 92.5 | R60: 97.5 | S60: =IF(MAX(P60:R60)<=0,0,MAX(CELL("color",P60)*P60,CELL("color",Q60)*Q60,CELL("color",R60)*R60)) -> 97.5 | T60: =IF(OR(N60=0,S60=0),0,N60+S60) -> 227.5 | U60: 142.5 | V60: 155 | W60: 160 | X60: =IF(MAX(U60:W60)<=0,0,MAX(CELL("color",U60)*U60,CELL("color",V60)*V60,CELL("color",W60)*W60)) -> 160 | Y60: =AM60*IF($AM$11="SQ",N60,IF($AM$11="BP",S60,IF($AM$11="DL",X60,IF($AM$11="PP",IF(OR(S60=0,X60=0),0,S60+X60),IF(OR(T60=0,X60=0),0,T60+X60))))) -> 387.5 | Z60: =IF(Y60=0,"",CONCATENATE(CD60,"/",IF(AN60=4,"Wilks",D60),"/",IF(AN60>1,"",F60),"/",$AM$11)) -> 1/MR-O/66/PL | AA60: =BB60 -> 387.5 | AB60: =IF(AA60=0,"",CE60) -> 1 | AC60: =H60*IF($E$3="Kg",Y60,Y60/2.2046) -> 310.0000046 | AD60: =IFERROR(VLOOKUP(AS60,DATA!$A$2:$B$63,2,TRUE),0)*AC60 -> 345.0300051 | AE60: PL | AF60: 988924 | AG60: NC | AH60: =IFERROR(VLOOKUP(A60,Setup!$Q$5:$R$20,2,FALSE),"") -> 3 | AI60: =IF(VALUE(INDIRECT(CONCATENATE($AI$11,ROW())))=0,"",ABS(INDIRECT(CONCATENATE($AI$11,ROW())))+0.000001*G60) -> 160.000901 | AJ60: 89 | AK60: 96 | AL60: 107 | AM60: =IF(ISERROR(SEARCH($AM$11,AE60)),0,1) -> 1 | AN60: =VLOOKUP(D60,Setup!$I$6:$K$93,3,FALSE) -> 1 | AO60: =ROUND(IFERROR(IF(AN60=1,Y60,IF(AN60=2,AC60,IF(AN60=3,AD60,AC60))),0),5) -> 387.5 | AQ60: =IFERROR(MATCH(D60,Setup!$I$6:$I$93,0),"") -> 27 | AR60: =IFERROR(CONCATENATE(LEFT(D60,FIND("-",D60)),IF(AS60="","O",VLOOKUP(AS60,DATA!$E$35:$F$53,2,TRUE))),"") -> MR-M1b | AS60: =IF(YEAR($AR$7)-YEAR(I60)<40,DATEDIF(I60,$AR$7,"Y"),YEAR($AR$7)-YEAR(I60)) -> 49 | AT60: =IF(AN60=1,MATCH(F60,DATA!$AB$2:$AB$34,0),0) -> 15 | AV60: =IF(MAX(K60:M60)>0,MAX(K60:M60),0) -> 130 | AW60: =IF(MAX(P60:R60)>0,MAX(P60:R60),0) -> 97.5 | AX60: =IF(MAX(U60:W60)>0,MAX(U60:W60),0) -> 160 | AY60: =AM60*IF($AM$11="PL",IF(MIN(AV60:AX60)=0,0,AV60+AW60+AX60),IF($AM$11="PP",IF(MIN(AW60:AX60)=0,0,AW60+AX60),IF($AM$11="BP",AW60,IF($AM$11="DL",AX60,AV60)))) -> 387.5 | AZ60: =ROUND(AY60*H60,5) -> 310 | BA60: =ROUND(IFERROR(VLOOKUP(AS60,DATA!$A$2:$B$63,2,FALSE),1)*AZ60,5) -> 345.03 | BB60: =IFERROR(IF(AN60=1,AY60,IF(AN60=2,AZ60,IF(AN60=3,BA60,AZ60))),0) -> 387.5 | BG60: 16:11:10 | BZ60: =IFERROR(IF(FIND("DT",AE60),"Y",""),"") ->  | CB60: =CONCATENATE(IF(AN60=4,"",D60),IF(AN60=1,F60,"")) -> MR-O66 | CC60: =IF($AM$11="SQ",AJ60,IF($AM$11="BP",AK60,AL60)) -> 107 | CD60: =1+COUNTIFS(INDIRECT("AN12:AN500"),AN60,INDIRECT("CB12:CB500"),CB60,INDIRECT("AO12:AO500"),">"&AO60) +COUNTIFS(INDIRECT("AO12:AO500"),AO60,INDIRECT("AN12:AN500"),1,INDIRECT("CB12:CB500"),CB60,INDIRECT("E12:E500"),"<"&E60) +COUNTIFS(INDIRECT("AO12:AO500"),AO60,INDIRECT("AN12:AN500"),1,INDIRECT("CB12:CB500"),CB60,INDIRECT("E12:E500"),E60,INDIRECT("CC12:CC500"),"<"&CC60) -> 1 | CE60: =1+COUNTIFS(INDIRECT("AN12:AN500"),AN60,INDIRECT("CB12:CB500"),CB60,INDIRECT("BB12:BB500"),">"&BB60) +COUNTIFS(INDIRECT("BB12:BB500"),BB60,INDIRECT("AN12:AN500"),1,INDIRECT("CB12:CB500"),CB60,INDIRECT("E12:E500"),"<"&E60) -> 1
A61: 2D | B61: Rodney Alexander | C61: NC | D61: MR-O | E61: 70.26 | F61: =IFERROR(VLOOKUP(E61,DATA!$E$2:$G$22,IF(LEFT(D61,1)="M",2,3)),"") -> 74 | G61: 908 | H61: =IFERROR(IF(LEFT(D61,1)="M",Wilks_Men(IF($E$11="Bwt - Lb",E61/2.2046,E61)),Wilks_Women(IF($E$11="Bwt - Lb",E61/2.2046,E61))),"") -> 0.7473000288 | I61: 1987-02-24 | J61: 11 | K61: 200 | L61: 212.5 | M61: 220 | N61: =IF(MAX(K61:M61)<=0,0,MAX(CELL("color",K61)*K61,CELL("color",L61)*L61,CELL("color",M61)*M61)) -> 220 | O61: 11-5 | P61: 135 | Q61: 140 | R61: -145 | S61: =IF(MAX(P61:R61)<=0,0,MAX(CELL("color",P61)*P61,CELL("color",Q61)*Q61,CELL("color",R61)*R61)) -> 140 | T61: =IF(OR(N61=0,S61=0),0,N61+S61) -> 360 | U61: 222.5 | V61: -232.5 | W61: 232.5 | X61: =IF(MAX(U61:W61)<=0,0,MAX(CELL("color",U61)*U61,CELL("color",V61)*V61,CELL("color",W61)*W61)) -> 232.5 | Y61: =AM61*IF($AM$11="SQ",N61,IF($AM$11="BP",S61,IF($AM$11="DL",X61,IF($AM$11="PP",IF(OR(S61=0,X61=0),0,S61+X61),IF(OR(T61=0,X61=0),0,T61+X61))))) -> 592.5 | Z61: =IF(Y61=0,"",CONCATENATE(CD61,"/",IF(AN61=4,"Wilks",D61),"/",IF(AN61>1,"",F61),"/",$AM$11)) -> 1/MR-O/74/PL | AA61: =BB61 -> 592.5 | AB61: =IF(AA61=0,"",CE61) -> 1 | AC61: =H61*IF($E$3="Kg",Y61,Y61/2.2046) -> 442.7752671 | AD61: =IFERROR(VLOOKUP(AS61,DATA!$A$2:$B$63,2,TRUE),0)*AC61 -> 442.7752671 | AE61: PL | AF61: 92002 | AG61: NC | AH61: =IFERROR(VLOOKUP(A61,Setup!$Q$5:$R$20,2,FALSE),"") -> 3 | AI61: =IF(VALUE(INDIRECT(CONCATENATE($AI$11,ROW())))=0,"",ABS(INDIRECT(CONCATENATE($AI$11,ROW())))+0.000001*G61) -> 232.500908 | AJ61: 99 | AK61: 95 | AL61: 113 | AM61: =IF(ISERROR(SEARCH($AM$11,AE61)),0,1) -> 1 | AN61: =VLOOKUP(D61,Setup!$I$6:$K$93,3,FALSE) -> 1 | AO61: =ROUND(IFERROR(IF(AN61=1,Y61,IF(AN61=2,AC61,IF(AN61=3,AD61,AC61))),0),5) -> 592.5 | AQ61: =IFERROR(MATCH(D61,Setup!$I$6:$I$93,0),"") -> 27 | AR61: =IFERROR(CONCATENATE(LEFT(D61,FIND("-",D61)),IF(AS61="","O",VLOOKUP(AS61,DATA!$E$35:$F$53,2,TRUE))),"") -> MR-O | AS61: =IF(YEAR($AR$7)-YEAR(I61)<40,DATEDIF(I61,$AR$7,"Y"),YEAR($AR$7)-YEAR(I61)) -> 31 | AT61: =IF(AN61=1,MATCH(F61,DATA!$AB$2:$AB$34,0),0) -> 18 | AV61: =IF(MAX(K61:M61)>0,MAX(K61:M61),0) -> 220 | AW61: =IF(MAX(P61:R61)>0,MAX(P61:R61),0) -> 140 | AX61: =IF(MAX(U61:W61)>0,MAX(U61:W61),0) -> 232.5 | AY61: =AM61*IF($AM$11="PL",IF(MIN(AV61:AX61)=0,0,AV61+AW61+AX61),IF($AM$11="PP",IF(MIN(AW61:AX61)=0,0,AW61+AX61),IF($AM$11="BP",AW61,IF($AM$11="DL",AX61,AV61)))) -> 592.5 | AZ61: =ROUND(AY61*H61,5) -> 442.77527 | BA61: =ROUND(IFERROR(VLOOKUP(AS61,DATA!$A$2:$B$63,2,FALSE),1)*AZ61,5) -> 442.77527 | BB61: =IFERROR(IF(AN61=1,AY61,IF(AN61=2,AZ61,IF(AN61=3,BA61,AZ61))),0) -> 592.5 | BG61: 16:18:12 | BZ61: =IFERROR(IF(FIND("DT",AE61),"Y",""),"") ->  | CB61: =CONCATENATE(IF(AN61=4,"",D61),IF(AN61=1,F61,"")) -> MR-O74 | CC61: =IF($AM$11="SQ",AJ61,IF($AM$11="BP",AK61,AL61)) -> 113 | CD61: =1+COUNTIFS(INDIRECT("AN12:AN500"),AN61,INDIRECT("CB12:CB500"),CB61,INDIRECT("AO12:AO500"),">"&AO61) +COUNTIFS(INDIRECT("AO12:AO500"),AO61,INDIRECT("AN12:AN500"),1,INDIRECT("CB12:CB500"),CB61,INDIRECT("E12:E500"),"<"&E61) +COUNTIFS(INDIRECT("AO12:AO500"),AO61,INDIRECT("AN12:AN500"),1,INDIRECT("CB12:CB500"),CB61,INDIRECT("E12:E500"),E61,INDIRECT("CC12:CC500"),"<"&CC61) -> 1 | CE61: =1+COUNTIFS(INDIRECT("AN12:AN500"),AN61,INDIRECT("CB12:CB500"),CB61,INDIRECT("BB12:BB500"),">"&BB61) +COUNTIFS(INDIRECT("BB12:BB500"),BB61,INDIRECT("AN12:AN500"),1,INDIRECT("CB12:CB500"),CB61,INDIRECT("E12:E500"),"<"&E61) -> 1
A62: 2D | B62: Scottie Duncan | C62: SC | D62: MR-O | E62: 73.18 | F62: =IFERROR(VLOOKUP(E62,DATA!$E$2:$G$22,IF(LEFT(D62,1)="M",2,3)),"") -> 74 | G62: 905 | H62: =IFERROR(IF(LEFT(D62,1)="M",Wilks_Men(IF($E$11="Bwt - Lb",E62/2.2046,E62)),Wilks_Women(IF($E$11="Bwt - Lb",E62/2.2046,E62))),"") -> 0.7250999808 | I62: 1993-06-10 | J62: 14 | K62: 200 | L62: 212.5 | M62: 222.5 | N62: =IF(MAX(K62:M62)<=0,0,MAX(CELL("color",K62)*K62,CELL("color",L62)*L62,CELL("color",M62)*M62)) -> 222.5 | O62: 14-8 | P62: -140 | Q62: 140 | R62: -142.5 | S62: =IF(MAX(P62:R62)<=0,0,MAX(CELL("color",P62)*P62,CELL("color",Q62)*Q62,CELL("color",R62)*R62)) -> 140 | T62: =IF(OR(N62=0,S62=0),0,N62+S62) -> 362.5 | U62: 215 | V62: 225 | W62: -230 | X62: =IF(MAX(U62:W62)<=0,0,MAX(CELL("color",U62)*U62,CELL("color",V62)*V62,CELL("color",W62)*W62)) -> 225 | Y62: =AM62*IF($AM$11="SQ",N62,IF($AM$11="BP",S62,IF($AM$11="DL",X62,IF($AM$11="PP",IF(OR(S62=0,X62=0),0,S62+X62),IF(OR(T62=0,X62=0),0,T62+X62))))) -> 587.5 | Z62: =IF(Y62=0,"",CONCATENATE(CD62,"/",IF(AN62=4,"Wilks",D62),"/",IF(AN62>1,"",F62),"/",$AM$11)) -> 2/MR-O/74/PL | AA62: =BB62 -> 587.5 | AB62: =IF(AA62=0,"",CE62) -> 2 | AC62: =H62*IF($E$3="Kg",Y62,Y62/2.2046) -> 425.9962387 | AD62: =IFERROR(VLOOKUP(AS62,DATA!$A$2:$B$63,2,TRUE),0)*AC62 -> 425.9962387 | AE62: PL BP | AG62: SC | AH62: =IFERROR(VLOOKUP(A62,Setup!$Q$5:$R$20,2,FALSE),"") -> 3 | AI62: =IF(VALUE(INDIRECT(CONCATENATE($AI$11,ROW())))=0,"",ABS(INDIRECT(CONCATENATE($AI$11,ROW())))+0.000001*G62) -> 230.000905 | AJ62: 100 | AK62: 94 | AL62: 106 | AM62: =IF(ISERROR(SEARCH($AM$11,AE62)),0,1) -> 1 | AN62: =VLOOKUP(D62,Setup!$I$6:$K$93,3,FALSE) -> 1 | AO62: =ROUND(IFERROR(IF(AN62=1,Y62,IF(AN62=2,AC62,IF(AN62=3,AD62,AC62))),0),5) -> 587.5 | AQ62: =IFERROR(MATCH(D62,Setup!$I$6:$I$93,0),"") -> 27 | AR62: =IFERROR(CONCATENATE(LEFT(D62,FIND("-",D62)),IF(AS62="","O",VLOOKUP(AS62,DATA!$E$35:$F$53,2,TRUE))),"") -> MR-O | AS62: =IF(YEAR($AR$7)-YEAR(I62)<40,DATEDIF(I62,$AR$7,"Y"),YEAR($AR$7)-YEAR(I62)) -> 24 | AT62: =IF(AN62=1,MATCH(F62,DATA!$AB$2:$AB$34,0),0) -> 18 | AV62: =IF(MAX(K62:M62)>0,MAX(K62:M62),0) -> 222.5 | AW62: =IF(MAX(P62:R62)>0,MAX(P62:R62),0) -> 140 | AX62: =IF(MAX(U62:W62)>0,MAX(U62:W62),0) -> 225 | AY62: =AM62*IF($AM$11="PL",IF(MIN(AV62:AX62)=0,0,AV62+AW62+AX62),IF($AM$11="PP",IF(MIN(AW62:AX62)=0,0,AW62+AX62),IF($AM$11="BP",AW62,IF($AM$11="DL",AX62,AV62)))) -> 587.5 | AZ62: =ROUND(AY62*H62,5) -> 425.99624 | BA62: =ROUND(IFERROR(VLOOKUP(AS62,DATA!$A$2:$B$63,2,FALSE),1)*AZ62,5) -> 425.99624 | BB62: =IFERROR(IF(AN62=1,AY62,IF(AN62=2,AZ62,IF(AN62=3,BA62,AZ62))),0) -> 587.5 | BG62: 16:16:36 | BZ62: =IFERROR(IF(FIND("DT",AE62),"Y",""),"") ->  | CB62: =CONCATENATE(IF(AN62=4,"",D62),IF(AN62=1,F62,"")) -> MR-O74 | CC62: =IF($AM$11="SQ",AJ62,IF($AM$11="BP",AK62,AL62)) -> 106 | CD62: =1+COUNTIFS(INDIRECT("AN12:AN500"),AN62,INDIRECT("CB12:CB500"),CB62,INDIRECT("AO12:AO500"),">"&AO62) +COUNTIFS(INDIRECT("AO12:AO500"),AO62,INDIRECT("AN12:AN500"),1,INDIRECT("CB12:CB500"),CB62,INDIRECT("E12:E500"),"<"&E62) +COUNTIFS(INDIRECT("AO12:AO500"),AO62,INDIRECT("AN12:AN500"),1,INDIRECT("CB12:CB500"),CB62,INDIRECT("E12:E500"),E62,INDIRECT("CC12:CC500"),"<"&CC62) -> 2 | CE62: =1+COUNTIFS(INDIRECT("AN12:AN500"),AN62,INDIRECT("CB12:CB500"),CB62,INDIRECT("BB12:BB500"),">"&BB62) +COUNTIFS(INDIRECT("BB12:BB500"),BB62,INDIRECT("AN12:AN500"),1,INDIRECT("CB12:CB500"),CB62,INDIRECT("E12:E500"),"<"&E62) -> 2
A63: 2D | B63: Simon Jiang | C63: NC | D63: MR-O | E63: 72.4 | F63: =IFERROR(VLOOKUP(E63,DATA!$E$2:$G$22,IF(LEFT(D63,1)="M",2,3)),"") -> 74 | G63: 902 | H63: =IFERROR(IF(LEFT(D63,1)="M",Wilks_Men(IF($E$11="Bwt - Lb",E63/2.2046,E63)),Wilks_Women(IF($E$11="Bwt - Lb",E63/2.2046,E63))),"") -> 0.730700016 | I63: 1995-11-23 | J63: 13 | K63: 165 | L63: 175 | M63: 185 | N63: =IF(MAX(K63:M63)<=0,0,MAX(CELL("color",K63)*K63,CELL("color",L63)*L63,CELL("color",M63)*M63)) -> 185 | O63: 13-5 | P63: 120 | Q63: 130 | R63: -135 | S63: =IF(MAX(P63:R63)<=0,0,MAX(CELL("color",P63)*P63,CELL("color",Q63)*Q63,CELL("color",R63)*R63)) -> 130 | T63: =IF(OR(N63=0,S63=0),0,N63+S63) -> 315 | U63: 200 | V63: 215 | W63: 227.5 | X63: =IF(MAX(U63:W63)<=0,0,MAX(CELL("color",U63)*U63,CELL("color",V63)*V63,CELL("color",W63)*W63)) -> 227.5 | Y63: =AM63*IF($AM$11="SQ",N63,IF($AM$11="BP",S63,IF($AM$11="DL",X63,IF($AM$11="PP",IF(OR(S63=0,X63=0),0,S63+X63),IF(OR(T63=0,X63=0),0,T63+X63))))) -> 542.5 | Z63: =IF(Y63=0,"",CONCATENATE(CD63,"/",IF(AN63=4,"Wilks",D63),"/",IF(AN63>1,"",F63),"/",$AM$11)) -> 3/MR-O/74/PL | AA63: =BB63 -> 542.5 | AB63: =IF(AA63=0,"",CE63) -> 3 | AC63: =H63*IF($E$3="Kg",Y63,Y63/2.2046) -> 396.4047587 | AD63: =IFERROR(VLOOKUP(AS63,DATA!$A$2:$B$63,2,TRUE),0)*AC63 -> 400.3688063 | AE63: PL | AF63: 921742 | AG63: NC | AH63: =IFERROR(VLOOKUP(A63,Setup!$Q$5:$R$20,2,FALSE),"") -> 3 | AI63: =IF(VALUE(INDIRECT(CONCATENATE($AI$11,ROW())))=0,"",ABS(INDIRECT(CONCATENATE($AI$11,ROW())))+0.000001*G63) -> 227.500902 | AJ63: 98 | AK63: 93 | AL63: 111 | AM63: =IF(ISERROR(SEARCH($AM$11,AE63)),0,1) -> 1 | AN63: =VLOOKUP(D63,Setup!$I$6:$K$93,3,FALSE) -> 1 | AO63: =ROUND(IFERROR(IF(AN63=1,Y63,IF(AN63=2,AC63,IF(AN63=3,AD63,AC63))),0),5) -> 542.5 | AQ63: =IFERROR(MATCH(D63,Setup!$I$6:$I$93,0),"") -> 27 | AR63: =IFERROR(CONCATENATE(LEFT(D63,FIND("-",D63)),IF(AS63="","O",VLOOKUP(AS63,DATA!$E$35:$F$53,2,TRUE))),"") -> MR-Jr | AS63: =IF(YEAR($AR$7)-YEAR(I63)<40,DATEDIF(I63,$AR$7,"Y"),YEAR($AR$7)-YEAR(I63)) -> 22 | AT63: =IF(AN63=1,MATCH(F63,DATA!$AB$2:$AB$34,0),0) -> 18 | AV63: =IF(MAX(K63:M63)>0,MAX(K63:M63),0) -> 185 | AW63: =IF(MAX(P63:R63)>0,MAX(P63:R63),0) -> 130 | AX63: =IF(MAX(U63:W63)>0,MAX(U63:W63),0) -> 227.5 | AY63: =AM63*IF($AM$11="PL",IF(MIN(AV63:AX63)=0,0,AV63+AW63+AX63),IF($AM$11="PP",IF(MIN(AW63:AX63)=0,0,AW63+AX63),IF($AM$11="BP",AW63,IF($AM$11="DL",AX63,AV63)))) -> 542.5 | AZ63: =ROUND(AY63*H63,5) -> 396.40476 | BA63: =ROUND(IFERROR(VLOOKUP(AS63,DATA!$A$2:$B$63,2,FALSE),1)*AZ63,5) -> 400.36881 | BB63: =IFERROR(IF(AN63=1,AY63,IF(AN63=2,AZ63,IF(AN63=3,BA63,AZ63))),0) -> 542.5 | BG63: 16:15:45 | BZ63: =IFERROR(IF(FIND("DT",AE63),"Y",""),"") ->  | CB63: =CONCATENATE(IF(AN63=4,"",D63),IF(AN63=1,F63,"")) -> MR-O74 | CC63: =IF($AM$11="SQ",AJ63,IF($AM$11="BP",AK63,AL63)) -> 111 | CD63: =1+COUNTIFS(INDIRECT("AN12:AN500"),AN63,INDIRECT("CB12:CB500"),CB63,INDIRECT("AO12:AO500"),">"&AO63) +COUNTIFS(INDIRECT("AO12:AO500"),AO63,INDIRECT("AN12:AN500"),1,INDIRECT("CB12:CB500"),CB63,INDIRECT("E12:E500"),"<"&E63) +COUNTIFS(INDIRECT("AO12:AO500"),AO63,INDIRECT("AN12:AN500"),1,INDIRECT("CB12:CB500"),CB63,INDIRECT("E12:E500"),E63,INDIRECT("CC12:CC500"),"<"&CC63) -> 3 | CE63: =1+COUNTIFS(INDIRECT("AN12:AN500"),AN63,INDIRECT("CB12:CB500"),CB63,INDIRECT("BB12:BB500"),">"&BB63) +COUNTIFS(INDIRECT("BB12:BB500"),BB63,INDIRECT("AN12:AN500"),1,INDIRECT("CB12:CB500"),CB63,INDIRECT("E12:E500"),"<"&E63) -> 3
A64: 2D | B64: Mark Langley | C64: NC | D64: MR-O | E64: 72.96 | F64: =IFERROR(VLOOKUP(E64,DATA!$E$2:$G$22,IF(LEFT(D64,1)="M",2,3)),"") -> 74 | G64: 909 | H64: =IFERROR(IF(LEFT(D64,1)="M",Wilks_Men(IF($E$11="Bwt - Lb",E64/2.2046,E64)),Wilks_Women(IF($E$11="Bwt - Lb",E64/2.2046,E64))),"") -> 0.7265999913 | I64: 1984-11-02 | J64: 14 | K64: 175 | L64: 187.5 | M64: -190 | N64: =IF(MAX(K64:M64)<=0,0,MAX(CELL("color",K64)*K64,CELL("color",L64)*L64,CELL("color",M64)*M64)) -> 187.5 | O64: 10-8 | P64: 115 | Q64: 122.5 | R64: -127.5 | S64: =IF(MAX(P64:R64)<=0,0,MAX(CELL("color",P64)*P64,CELL("color",Q64)*Q64,CELL("color",R64)*R64)) -> 122.5 | T64: =IF(OR(N64=0,S64=0),0,N64+S64) -> 310 | U64: 190 | V64: 205 | W64: 212.5 | X64: =IF(MAX(U64:W64)<=0,0,MAX(CELL("color",U64)*U64,CELL("color",V64)*V64,CELL("color",W64)*W64)) -> 212.5 | Y64: =AM64*IF($AM$11="SQ",N64,IF($AM$11="BP",S64,IF($AM$11="DL",X64,IF($AM$11="PP",IF(OR(S64=0,X64=0),0,S64+X64),IF(OR(T64=0,X64=0),0,T64+X64))))) -> 522.5 | Z64: =IF(Y64=0,"",CONCATENATE(CD64,"/",IF(AN64=4,"Wilks",D64),"/",IF(AN64>1,"",F64),"/",$AM$11)) -> 4/MR-O/74/PL | AA64: =BB64 -> 522.5 | AB64: =IF(AA64=0,"",CE64) -> 4 | AC64: =H64*IF($E$3="Kg",Y64,Y64/2.2046) -> 379.6484955 | AD64: =IFERROR(VLOOKUP(AS64,DATA!$A$2:$B$63,2,TRUE),0)*AC64 -> 379.6484955 | AE64: PL | AF64: 1000799 | AG64: NC | AH64: =IFERROR(VLOOKUP(A64,Setup!$Q$5:$R$20,2,FALSE),"") -> 3 | AI64: =IF(VALUE(INDIRECT(CONCATENATE($AI$11,ROW())))=0,"",ABS(INDIRECT(CONCATENATE($AI$11,ROW())))+0.000001*G64) -> 212.500909 | AJ64: 93 | AK64: 92 | AL64: 110 | AM64: =IF(ISERROR(SEARCH($AM$11,AE64)),0,1) -> 1 | AN64: =VLOOKUP(D64,Setup!$I$6:$K$93,3,FALSE) -> 1 | AO64: =ROUND(IFERROR(IF(AN64=1,Y64,IF(AN64=2,AC64,IF(AN64=3,AD64,AC64))),0),5) -> 522.5 | AQ64: =IFERROR(MATCH(D64,Setup!$I$6:$I$93,0),"") -> 27 | AR64: =IFERROR(CONCATENATE(LEFT(D64,FIND("-",D64)),IF(AS64="","O",VLOOKUP(AS64,DATA!$E$35:$F$53,2,TRUE))),"") -> MR-O | AS64: =IF(YEAR($AR$7)-YEAR(I64)<40,DATEDIF(I64,$AR$7,"Y"),YEAR($AR$7)-YEAR(I64)) -> 33 | AT64: =IF(AN64=1,MATCH(F64,DATA!$AB$2:$AB$34,0),0) -> 18 | AV64: =IF(MAX(K64:M64)>0,MAX(K64:M64),0) -> 187.5 | AW64: =IF(MAX(P64:R64)>0,MAX(P64:R64),0) -> 122.5 | AX64: =IF(MAX(U64:W64)>0,MAX(U64:W64),0) -> 212.5 | AY64: =AM64*IF($AM$11="PL",IF(MIN(AV64:AX64)=0,0,AV64+AW64+AX64),IF($AM$11="PP",IF(MIN(AW64:AX64)=0,0,AW64+AX64),IF($AM$11="BP",AW64,IF($AM$11="DL",AX64,AV64)))) -> 522.5 | AZ64: =ROUND(AY64*H64,5) -> 379.6485 | BA64: =ROUND(IFERROR(VLOOKUP(AS64,DATA!$A$2:$B$63,2,FALSE),1)*AZ64,5) -> 379.6485 | BB64: =IFERROR(IF(AN64=1,AY64,IF(AN64=2,AZ64,IF(AN64=3,BA64,AZ64))),0) -> 522.5 | BG64: 16:14:26 | BZ64: =IFERROR(IF(FIND("DT",AE64),"Y",""),"") ->  | CB64: =CONCATENATE(IF(AN64=4,"",D64),IF(AN64=1,F64,"")) -> MR-O74 | CC64: =IF($AM$11="SQ",AJ64,IF($AM$11="BP",AK64,AL64)) -> 110 | CD64: =1+COUNTIFS(INDIRECT("AN12:AN500"),AN64,INDIRECT("CB12:CB500"),CB64,INDIRECT("AO12:AO500"),">"&AO64) +COUNTIFS(INDIRECT("AO12:AO500"),AO64,INDIRECT("AN12:AN500"),1,INDIRECT("CB12:CB500"),CB64,INDIRECT("E12:E500"),"<"&E64) +COUNTIFS(INDIRECT("AO12:AO500"),AO64,INDIRECT("AN12:AN500"),1,INDIRECT("CB12:CB500"),CB64,INDIRECT("E12:E500"),E64,INDIRECT("CC12:CC500"),"<"&CC64) -> 4 | CE64: =1+COUNTIFS(INDIRECT("AN12:AN500"),AN64,INDIRECT("CB12:CB500"),CB64,INDIRECT("BB12:BB500"),">"&BB64) +COUNTIFS(INDIRECT("BB12:BB500"),BB64,INDIRECT("AN12:AN500"),1,INDIRECT("CB12:CB500"),CB64,INDIRECT("E12:E500"),"<"&E64) -> 4
A65: 2D | B65: Zach Henderson | C65: TN | D65: MR-O | E65: 67.24 | F65: =IFERROR(VLOOKUP(E65,DATA!$E$2:$G$22,IF(LEFT(D65,1)="M",2,3)),"") -> 74 | G65: 907 | H65: =IFERROR(IF(LEFT(D65,1)="M",Wilks_Men(IF($E$11="Bwt - Lb",E65/2.2046,E65)),Wilks_Women(IF($E$11="Bwt - Lb",E65/2.2046,E65))),"") -> 0.7734000087 | I65: 1988-07-11 | J65: 13 | K65: 152.5 | L65: 157.5 | M65: 167.5 | N65: =IF(MAX(K65:M65)<=0,0,MAX(CELL("color",K65)*K65,CELL("color",L65)*L65,CELL("color",M65)*M65)) -> 167.5 | O65: 13-5 | P65: 92.5 | Q65: 100 | R65: 107.5 | S65: =IF(MAX(P65:R65)<=0,0,MAX(CELL("color",P65)*P65,CELL("color",Q65)*Q65,CELL("color",R65)*R65)) -> 107.5 | T65: =IF(OR(N65=0,S65=0),0,N65+S65) -> 275 | U65: 185 | V65: 190 | W65: 195 | X65: =IF(MAX(U65:W65)<=0,0,MAX(CELL("color",U65)*U65,CELL("color",V65)*V65,CELL("color",W65)*W65)) -> 195 | Y65: =AM65*IF($AM$11="SQ",N65,IF($AM$11="BP",S65,IF($AM$11="DL",X65,IF($AM$11="PP",IF(OR(S65=0,X65=0),0,S65+X65),IF(OR(T65=0,X65=0),0,T65+X65))))) -> 470 | Z65: =IF(Y65=0,"",CONCATENATE(CD65,"/",IF(AN65=4,"Wilks",D65),"/",IF(AN65>1,"",F65),"/",$AM$11)) -> 5/MR-O/74/PL | AA65: =BB65 -> 470 | AB65: =IF(AA65=0,"",CE65) -> 5 | AC65: =H65*IF($E$3="Kg",Y65,Y65/2.2046) -> 363.4980041 | AD65: =IFERROR(VLOOKUP(AS65,DATA!$A$2:$B$63,2,TRUE),0)*AC65 -> 363.4980041 | AE65: PL | AG65: TN | AH65: =IFERROR(VLOOKUP(A65,Setup!$Q$5:$R$20,2,FALSE),"") -> 3 | AI65: =IF(VALUE(INDIRECT(CONCATENATE($AI$11,ROW())))=0,"",ABS(INDIRECT(CONCATENATE($AI$11,ROW())))+0.000001*G65) -> 195.000907 | AJ65: 97 | AK65: 97 | AL65: 109 | AM65: =IF(ISERROR(SEARCH($AM$11,AE65)),0,1) -> 1 | AN65: =VLOOKUP(D65,Setup!$I$6:$K$93,3,FALSE) -> 1 | AO65: =ROUND(IFERROR(IF(AN65=1,Y65,IF(AN65=2,AC65,IF(AN65=3,AD65,AC65))),0),5) -> 470 | AQ65: =IFERROR(MATCH(D65,Setup!$I$6:$I$93,0),"") -> 27 | AR65: =IFERROR(CONCATENATE(LEFT(D65,FIND("-",D65)),IF(AS65="","O",VLOOKUP(AS65,DATA!$E$35:$F$53,2,TRUE))),"") -> MR-O | AS65: =IF(YEAR($AR$7)-YEAR(I65)<40,DATEDIF(I65,$AR$7,"Y"),YEAR($AR$7)-YEAR(I65)) -> 29 | AT65: =IF(AN65=1,MATCH(F65,DATA!$AB$2:$AB$34,0),0) -> 18 | AV65: =IF(MAX(K65:M65)>0,MAX(K65:M65),0) -> 167.5 | AW65: =IF(MAX(P65:R65)>0,MAX(P65:R65),0) -> 107.5 | AX65: =IF(MAX(U65:W65)>0,MAX(U65:W65),0) -> 195 | AY65: =AM65*IF($AM$11="PL",IF(MIN(AV65:AX65)=0,0,AV65+AW65+AX65),IF($AM$11="PP",IF(MIN(AW65:AX65)=0,0,AW65+AX65),IF($AM$11="BP",AW65,IF($AM$11="DL",AX65,AV65)))) -> 470 | AZ65: =ROUND(AY65*H65,5) -> 363.498 | BA65: =ROUND(IFERROR(VLOOKUP(AS65,DATA!$A$2:$B$63,2,FALSE),1)*AZ65,5) -> 363.498 | BB65: =IFERROR(IF(AN65=1,AY65,IF(AN65=2,AZ65,IF(AN65=3,BA65,AZ65))),0) -> 470 | BG65: 16:13:19 | BZ65: =IFERROR(IF(FIND("DT",AE65),"Y",""),"") ->  | CB65: =CONCATENATE(IF(AN65=4,"",D65),IF(AN65=1,F65,"")) -> MR-O74 | CC65: =IF($AM$11="SQ",AJ65,IF($AM$11="BP",AK65,AL65)) -> 109 | CD65: =1+COUNTIFS(INDIRECT("AN12:AN500"),AN65,INDIRECT("CB12:CB500"),CB65,INDIRECT("AO12:AO500"),">"&AO65) +COUNTIFS(INDIRECT("AO12:AO500"),AO65,INDIRECT("AN12:AN500"),1,INDIRECT("CB12:CB500"),CB65,INDIRECT("E12:E500"),"<"&E65) +COUNTIFS(INDIRECT("AO12:AO500"),AO65,INDIRECT("AN12:AN500"),1,INDIRECT("CB12:CB500"),CB65,INDIRECT("E12:E500"),E65,INDIRECT("CC12:CC500"),"<"&CC65) -> 5 | CE65: =1+COUNTIFS(INDIRECT("AN12:AN500"),AN65,INDIRECT("CB12:CB500"),CB65,INDIRECT("BB12:BB500"),">"&BB65) +COUNTIFS(INDIRECT("BB12:BB500"),BB65,INDIRECT("AN12:AN500"),1,INDIRECT("CB12:CB500"),CB65,INDIRECT("E12:E500"),"<"&E65) -> 5
A66: 2D | B66: Mike Jordan | C66: NC | D66: MR-O | E66: 73.52 | F66: =IFERROR(VLOOKUP(E66,DATA!$E$2:$G$22,IF(LEFT(D66,1)="M",2,3)),"") -> 74 | G66: 906 | H66: =IFERROR(IF(LEFT(D66,1)="M",Wilks_Men(IF($E$11="Bwt - Lb",E66/2.2046,E66)),Wilks_Women(IF($E$11="Bwt - Lb",E66/2.2046,E66))),"") -> 0.7226999998 | I66: 1990-08-09 | J66: 12 | K66: 122.5 | L66: 132.5 | M66: 142.5 | N66: =IF(MAX(K66:M66)<=0,0,MAX(CELL("color",K66)*K66,CELL("color",L66)*L66,CELL("color",M66)*M66)) -> 142.5 | O66: 13-7 | P66: 110 | Q66: 117.5 | R66: 122.5 | S66: =IF(MAX(P66:R66)<=0,0,MAX(CELL("color",P66)*P66,CELL("color",Q66)*Q66,CELL("color",R66)*R66)) -> 122.5 | T66: =IF(OR(N66=0,S66=0),0,N66+S66) -> 265 | U66: 170 | V66: 175 | W66: 182.5 | X66: =IF(MAX(U66:W66)<=0,0,MAX(CELL("color",U66)*U66,CELL("color",V66)*V66,CELL("color",W66)*W66)) -> 182.5 | Y66: =AM66*IF($AM$11="SQ",N66,IF($AM$11="BP",S66,IF($AM$11="DL",X66,IF($AM$11="PP",IF(OR(S66=0,X66=0),0,S66+X66),IF(OR(T66=0,X66=0),0,T66+X66))))) -> 447.5 | Z66: =IF(Y66=0,"",CONCATENATE(CD66,"/",IF(AN66=4,"Wilks",D66),"/",IF(AN66>1,"",F66),"/",$AM$11)) -> 6/MR-O/74/PL | AA66: =BB66 -> 447.5 | AB66: =IF(AA66=0,"",CE66) -> 6 | AC66: =H66*IF($E$3="Kg",Y66,Y66/2.2046) -> 323.4082499 | AD66: =IFERROR(VLOOKUP(AS66,DATA!$A$2:$B$63,2,TRUE),0)*AC66 -> 323.4082499 | AE66: PL | AF66: 1013401 | AG66: NC | AH66: =IFERROR(VLOOKUP(A66,Setup!$Q$5:$R$20,2,FALSE),"") -> 3 | AI66: =IF(VALUE(INDIRECT(CONCATENATE($AI$11,ROW())))=0,"",ABS(INDIRECT(CONCATENATE($AI$11,ROW())))+0.000001*G66) -> 182.500906 | AJ66: 96 | AK66: 98 | AL66: 108 | AM66: =IF(ISERROR(SEARCH($AM$11,AE66)),0,1) -> 1 | AN66: =VLOOKUP(D66,Setup!$I$6:$K$93,3,FALSE) -> 1 | AO66: =ROUND(IFERROR(IF(AN66=1,Y66,IF(AN66=2,AC66,IF(AN66=3,AD66,AC66))),0),5) -> 447.5 | AQ66: =IFERROR(MATCH(D66,Setup!$I$6:$I$93,0),"") -> 27 | AR66: =IFERROR(CONCATENATE(LEFT(D66,FIND("-",D66)),IF(AS66="","O",VLOOKUP(AS66,DATA!$E$35:$F$53,2,TRUE))),"") -> MR-O | AS66: =IF(YEAR($AR$7)-YEAR(I66)<40,DATEDIF(I66,$AR$7,"Y"),YEAR($AR$7)-YEAR(I66)) -> 27 | AT66: =IF(AN66=1,MATCH(F66,DATA!$AB$2:$AB$34,0),0) -> 18 | AV66: =IF(MAX(K66:M66)>0,MAX(K66:M66),0) -> 142.5 | AW66: =IF(MAX(P66:R66)>0,MAX(P66:R66),0) -> 122.5 | AX66: =IF(MAX(U66:W66)>0,MAX(U66:W66),0) -> 182.5 | AY66: =AM66*IF($AM$11="PL",IF(MIN(AV66:AX66)=0,0,AV66+AW66+AX66),IF($AM$11="PP",IF(MIN(AW66:AX66)=0,0,AW66+AX66),IF($AM$11="BP",AW66,IF($AM$11="DL",AX66,AV66)))) -> 447.5 | AZ66: =ROUND(AY66*H66,5) -> 323.40825 | BA66: =ROUND(IFERROR(VLOOKUP(AS66,DATA!$A$2:$B$63,2,FALSE),1)*AZ66,5) -> 323.40825 | BB66: =IFERROR(IF(AN66=1,AY66,IF(AN66=2,AZ66,IF(AN66=3,BA66,AZ66))),0) -> 447.5 | BG66: 16:12:04 | BZ66: =IFERROR(IF(FIND("DT",AE66),"Y",""),"") ->  | CB66: =CONCATENATE(IF(AN66=4,"",D66),IF(AN66=1,F66,"")) -> MR-O74 | CC66: =IF($AM$11="SQ",AJ66,IF($AM$11="BP",AK66,AL66)) -> 108 | CD66: =1+COUNTIFS(INDIRECT("AN12:AN500"),AN66,INDIRECT("CB12:CB500"),CB66,INDIRECT("AO12:AO500"),">"&AO66) +COUNTIFS(INDIRECT("AO12:AO500"),AO66,INDIRECT("AN12:AN500"),1,INDIRECT("CB12:CB500"),CB66,INDIRECT("E12:E500"),"<"&E66) +COUNTIFS(INDIRECT("AO12:AO500"),AO66,INDIRECT("AN12:AN500"),1,INDIRECT("CB12:CB500"),CB66,INDIRECT("E12:E500"),E66,INDIRECT("CC12:CC500"),"<"&CC66) -> 6 | CE66: =1+COUNTIFS(INDIRECT("AN12:AN500"),AN66,INDIRECT("CB12:CB500"),CB66,INDIRECT("BB12:BB500"),">"&BB66) +COUNTIFS(INDIRECT("BB12:BB500"),BB66,INDIRECT("AN12:AN500"),1,INDIRECT("CB12:CB500"),CB66,INDIRECT("E12:E500"),"<"&E66) -> 6
A67: 1C | B67: JamaRR Royster | C67: NC | D67: MR-O | E67: 82.92 | F67: =IFERROR(VLOOKUP(E67,[2]DATA!$E$2:$G$22,IF(LEFT(D67,1)="M",2,3)),"") -> 83 | G67: 211 | H67: =IFERROR(IF(LEFT(D67,1)="M",Wilks_Men(IF($E$11="Bwt - Lb",E67/2.2046,E67)),Wilks_Women(IF($E$11="Bwt - Lb",E67/2.2046,E67))),"") -> 0.6679000258 | I67: 1991-01-09 | J67: 12 | K67: 265 | L67: 277.5 | M67: -287.5 | N67: =IF(MAX(K67:M67)<=0,0,MAX(CELL("color",K67)*K67,CELL("color",L67)*L67,CELL("color",M67)*M67)) -> 277.5 | O67: 14-7 | P67: 155 | Q67: 165 | R67: 170 | S67: =IF(MAX(P67:R67)<=0,0,MAX(CELL("color",P67)*P67,CELL("color",Q67)*Q67,CELL("color",R67)*R67)) -> 170 | T67: =IF(OR(N67=0,S67=0),0,N67+S67) -> 447.5 | U67: 270 | V67: 282.5 | W67: 290 | X67: =IF(MAX(U67:W67)<=0,0,MAX(CELL("color",U67)*U67,CELL("color",V67)*V67,CELL("color",W67)*W67)) -> 290 | Y67: =AM67*IF($AM$11="SQ",N67,IF($AM$11="BP",S67,IF($AM$11="DL",X67,IF($AM$11="PP",IF(OR(S67=0,X67=0),0,S67+X67),IF(OR(T67=0,X67=0),0,T67+X67))))) -> 737.5 | Z67: =IF(Y67=0,"",CONCATENATE(CD67,"/",IF(AN67=4,"Wilks",D67),"/",IF(AN67>1,"",F67),"/",$AM$11)) -> 1/MR-O/83/PL | AA67: =BB67 -> 737.5 | AB67: =IF(AA67=0,"",CE67) -> 1 | AC67: =H67*IF($E$3="Kg",Y67,Y67/2.2046) -> 492.5762691 | AD67: =IFERROR(VLOOKUP(AS67,[2]DATA!$A$2:$B$63,2,TRUE),0)*AC67 -> 492.5762691 | AE67: PL | AG67: NC | AH67: =IFERROR(VLOOKUP(A67,[2]Setup!$Q$5:$R$20,2,FALSE),"") -> 2 | AI67: =IF(VALUE(INDIRECT(CONCATENATE($AI$11,ROW())))=0,"",ABS(INDIRECT(CONCATENATE($AI$11,ROW())))+0.000001*G67) -> 290.000211 | AJ67: 99 | AK67: 95 | AL67: 110 | AM67: =IF(ISERROR(SEARCH($AM$11,AE67)),0,1) -> 1 | AN67: =VLOOKUP(D67,[2]Setup!$I$6:$K$93,3,FALSE) -> 1 | AO67: =ROUND(IFERROR(IF(AN67=1,Y67,IF(AN67=2,AC67,IF(AN67=3,AD67,AC67))),0),5) -> 737.5 | AQ67: =IFERROR(MATCH(D67,[2]Setup!$I$6:$I$93,0),"") -> 27 | AR67: =IFERROR(CONCATENATE(LEFT(D67,FIND("-",D67)),IF(AS67="","O",VLOOKUP(AS67,[2]DATA!$E$35:$F$53,2,TRUE))),"") -> MR-O | AS67: =IF(YEAR($AR$7)-YEAR(I67)<40,DATEDIF(I67,$AR$7,"Y"),YEAR($AR$7)-YEAR(I67)) -> 27 | AT67: =IF(AN67=1,MATCH(F67,[2]DATA!$AB$2:$AB$34,0),0) -> 21 | AV67: =IF(MAX(K67:M67)>0,MAX(K67:M67),0) -> 277.5 | AW67: =IF(MAX(P67:R67)>0,MAX(P67:R67),0) -> 170 | AX67: =IF(MAX(U67:W67)>0,MAX(U67:W67),0) -> 290 | AY67: =AM67*IF($AM$11="PL",IF(MIN(AV67:AX67)=0,0,AV67+AW67+AX67),IF($AM$11="PP",IF(MIN(AW67:AX67)=0,0,AW67+AX67),IF($AM$11="BP",AW67,IF($AM$11="DL",AX67,AV67)))) -> 737.5 | AZ67: =ROUND(AY67*H67,5) -> 492.57627 | BA67: =ROUND(IFERROR(VLOOKUP(AS67,[2]DATA!$A$2:$B$63,2,FALSE),1)*AZ67,5) -> 492.57627 | BB67: =IFERROR(IF(AN67=1,AY67,IF(AN67=2,AZ67,IF(AN67=3,BA67,AZ67))),0) -> 737.5 | BG67: 16:23:50 | BZ67: =IFERROR(IF(FIND("DT",AE67),"Y",""),"") ->  | CB67: =CONCATENATE(IF(AN67=4,"",D67),IF(AN67=1,F67,"")) -> MR-O83 | CC67: =IF($AM$11="SQ",AJ67,IF($AM$11="BP",AK67,AL67)) -> 110 | CD67: =1+COUNTIFS(INDIRECT("AN12:AN500"),AN67,INDIRECT("CB12:CB500"),CB67,INDIRECT("AO12:AO500"),">"&AO67) +COUNTIFS(INDIRECT("AO12:AO500"),AO67,INDIRECT("AN12:AN500"),1,INDIRECT("CB12:CB500"),CB67,INDIRECT("E12:E500"),"<"&E67) +COUNTIFS(INDIRECT("AO12:AO500"),AO67,INDIRECT("AN12:AN500"),1,INDIRECT("CB12:CB500"),CB67,INDIRECT("E12:E500"),E67,INDIRECT("CC12:CC500"),"<"&CC67) -> 1 | CE67: =1+COUNTIFS(INDIRECT("AN12:AN500"),AN67,INDIRECT("CB12:CB500"),CB67,INDIRECT("BB12:BB500"),">"&BB67) +COUNTIFS(INDIRECT("BB12:BB500"),BB67,INDIRECT("AN12:AN500"),1,INDIRECT("CB12:CB500"),CB67,INDIRECT("E12:E500"),"<"&E67) -> 1
A68: 1C | B68: Todd Talford | C68: SC | D68: MR-O | E68: 82.7 | F68: =IFERROR(VLOOKUP(E68,[2]DATA!$E$2:$G$22,IF(LEFT(D68,1)="M",2,3)),"") -> 83 | G68: 210 | H68: =IFERROR(IF(LEFT(D68,1)="M",Wilks_Men(IF($E$11="Bwt - Lb",E68/2.2046,E68)),Wilks_Women(IF($E$11="Bwt - Lb",E68/2.2046,E68))),"") -> 0.668900013 | I68: 1990-07-22 | J68: 17 | K68: 227.5 | L68: 237.5 | M68: 240 | N68: =IF(MAX(K68:M68)<=0,0,MAX(CELL("color",K68)*K68,CELL("color",L68)*L68,CELL("color",M68)*M68)) -> 240 | O68: 14-5 | P68: 187.5 | Q68: 197.5 | R68: 205 | S68: =IF(MAX(P68:R68)<=0,0,MAX(CELL("color",P68)*P68,CELL("color",Q68)*Q68,CELL("color",R68)*R68)) -> 205 | T68: =IF(OR(N68=0,S68=0),0,N68+S68) -> 445 | U68: 262.5 | V68: 282.5 | W68: 290 | X68: =IF(MAX(U68:W68)<=0,0,MAX(CELL("color",U68)*U68,CELL("color",V68)*V68,CELL("color",W68)*W68)) -> 290 | Y68: =AM68*IF($AM$11="SQ",N68,IF($AM$11="BP",S68,IF($AM$11="DL",X68,IF($AM$11="PP",IF(OR(S68=0,X68=0),0,S68+X68),IF(OR(T68=0,X68=0),0,T68+X68))))) -> 735 | Z68: =IF(Y68=0,"",CONCATENATE(CD68,"/",IF(AN68=4,"Wilks",D68),"/",IF(AN68>1,"",F68),"/",$AM$11)) -> 2/MR-O/83/PL | AA68: =BB68 -> 735 | AB68: =IF(AA68=0,"",CE68) -> 2 | AC68: =H68*IF($E$3="Kg",Y68,Y68/2.2046) -> 491.6415095 | AD68: =IFERROR(VLOOKUP(AS68,[2]DATA!$A$2:$B$63,2,TRUE),0)*AC68 -> 491.6415095 | AE68: PL BP | AG68: SC | AH68: =IFERROR(VLOOKUP(A68,[2]Setup!$Q$5:$R$20,2,FALSE),"") -> 2 | AI68: =IF(VALUE(INDIRECT(CONCATENATE($AI$11,ROW())))=0,"",ABS(INDIRECT(CONCATENATE($AI$11,ROW())))+0.000001*G68) -> 290.00021 | AJ68: 104 | AK68: 96 | AL68: 109 | AM68: =IF(ISERROR(SEARCH($AM$11,AE68)),0,1) -> 1 | AN68: =VLOOKUP(D68,[2]Setup!$I$6:$K$93,3,FALSE) -> 1 | AO68: =ROUND(IFERROR(IF(AN68=1,Y68,IF(AN68=2,AC68,IF(AN68=3,AD68,AC68))),0),5) -> 735 | AQ68: =IFERROR(MATCH(D68,[2]Setup!$I$6:$I$93,0),"") -> 27 | AR68: =IFERROR(CONCATENATE(LEFT(D68,FIND("-",D68)),IF(AS68="","O",VLOOKUP(AS68,[2]DATA!$E$35:$F$53,2,TRUE))),"") -> MR-O | AS68: =IF(YEAR($AR$7)-YEAR(I68)<40,DATEDIF(I68,$AR$7,"Y"),YEAR($AR$7)-YEAR(I68)) -> 27 | AT68: =IF(AN68=1,MATCH(F68,[2]DATA!$AB$2:$AB$34,0),0) -> 21 | AV68: =IF(MAX(K68:M68)>0,MAX(K68:M68),0) -> 240 | AW68: =IF(MAX(P68:R68)>0,MAX(P68:R68),0) -> 205 | AX68: =IF(MAX(U68:W68)>0,MAX(U68:W68),0) -> 290 | AY68: =AM68*IF($AM$11="PL",IF(MIN(AV68:AX68)=0,0,AV68+AW68+AX68),IF($AM$11="PP",IF(MIN(AW68:AX68)=0,0,AW68+AX68),IF($AM$11="BP",AW68,IF($AM$11="DL",AX68,AV68)))) -> 735 | AZ68: =ROUND(AY68*H68,5) -> 491.64151 | BA68: =ROUND(IFERROR(VLOOKUP(AS68,[2]DATA!$A$2:$B$63,2,FALSE),1)*AZ68,5) -> 491.64151 | BB68: =IFERROR(IF(AN68=1,AY68,IF(AN68=2,AZ68,IF(AN68=3,BA68,AZ68))),0) -> 735 | BG68: 16:22:55 | BZ68: =IFERROR(IF(FIND("DT",AE68),"Y",""),"") ->  | CB68: =CONCATENATE(IF(AN68=4,"",D68),IF(AN68=1,F68,"")) -> MR-O83 | CC68: =IF($AM$11="SQ",AJ68,IF($AM$11="BP",AK68,AL68)) -> 109 | CD68: =1+COUNTIFS(INDIRECT("AN12:AN500"),AN68,INDIRECT("CB12:CB500"),CB68,INDIRECT("AO12:AO500"),">"&AO68) +COUNTIFS(INDIRECT("AO12:AO500"),AO68,INDIRECT("AN12:AN500"),1,INDIRECT("CB12:CB500"),CB68,INDIRECT("E12:E500"),"<"&E68) +COUNTIFS(INDIRECT("AO12:AO500"),AO68,INDIRECT("AN12:AN500"),1,INDIRECT("CB12:CB500"),CB68,INDIRECT("E12:E500"),E68,INDIRECT("CC12:CC500"),"<"&CC68) -> 2 | CE68: =1+COUNTIFS(INDIRECT("AN12:AN500"),AN68,INDIRECT("CB12:CB500"),CB68,INDIRECT("BB12:BB500"),">"&BB68) +COUNTIFS(INDIRECT("BB12:BB500"),BB68,INDIRECT("AN12:AN500"),1,INDIRECT("CB12:CB500"),CB68,INDIRECT("E12:E500"),"<"&E68) -> 2
A69: 1C | B69: Maurice McFadden | C69: SC | D69: MR-O | E69: 81.94 | F69: =IFERROR(VLOOKUP(E69,[2]DATA!$E$2:$G$22,IF(LEFT(D69,1)="M",2,3)),"") -> 83 | G69: 207 | H69: =IFERROR(IF(LEFT(D69,1)="M",Wilks_Men(IF($E$11="Bwt - Lb",E69/2.2046,E69)),Wilks_Women(IF($E$11="Bwt - Lb",E69/2.2046,E69))),"") -> 0.6726999879 | I69: 1990-11-24 | J69: 14 | K69: 232.5 | L69: 245 | M69: 252.5 | N69: =IF(MAX(K69:M69)<=0,0,MAX(CELL("color",K69)*K69,CELL("color",L69)*L69,CELL("color",M69)*M69)) -> 252.5 | O69: 13-6 | P69: 145 | Q69: 150 | R69: -157.5 | S69: =IF(MAX(P69:R69)<=0,0,MAX(CELL("color",P69)*P69,CELL("color",Q69)*Q69,CELL("color",R69)*R69)) -> 150 | T69: =IF(OR(N69=0,S69=0),0,N69+S69) -> 402.5 | U69: 250 | V69: 262.5 | W69: 272.5 | X69: =IF(MAX(U69:W69)<=0,0,MAX(CELL("color",U69)*U69,CELL("color",V69)*V69,CELL("color",W69)*W69)) -> 272.5 | Y69: =AM69*IF($AM$11="SQ",N69,IF($AM$11="BP",S69,IF($AM$11="DL",X69,IF($AM$11="PP",IF(OR(S69=0,X69=0),0,S69+X69),IF(OR(T69=0,X69=0),0,T69+X69))))) -> 675 | Z69: =IF(Y69=0,"",CONCATENATE(CD69,"/",IF(AN69=4,"Wilks",D69),"/",IF(AN69>1,"",F69),"/",$AM$11)) -> 3/MR-O/83/PL | AA69: =BB69 -> 675 | AB69: =IF(AA69=0,"",CE69) -> 3 | AC69: =H69*IF($E$3="Kg",Y69,Y69/2.2046) -> 454.0724918 | AD69: =IFERROR(VLOOKUP(AS69,[2]DATA!$A$2:$B$63,2,TRUE),0)*AC69 -> 454.0724918 | AE69: PL | AG69: SC | AH69: =IFERROR(VLOOKUP(A69,[2]Setup!$Q$5:$R$20,2,FALSE),"") -> 2 | AI69: =IF(VALUE(INDIRECT(CONCATENATE($AI$11,ROW())))=0,"",ABS(INDIRECT(CONCATENATE($AI$11,ROW())))+0.000001*G69) -> 272.500207 | AJ69: 105 | AK69: 88 | AL69: 108 | AM69: =IF(ISERROR(SEARCH($AM$11,AE69)),0,1) -> 1 | AN69: =VLOOKUP(D69,[2]Setup!$I$6:$K$93,3,FALSE) -> 1 | AO69: =ROUND(IFERROR(IF(AN69=1,Y69,IF(AN69=2,AC69,IF(AN69=3,AD69,AC69))),0),5) -> 675 | AQ69: =IFERROR(MATCH(D69,[2]Setup!$I$6:$I$93,0),"") -> 27 | AR69: =IFERROR(CONCATENATE(LEFT(D69,FIND("-",D69)),IF(AS69="","O",VLOOKUP(AS69,[2]DATA!$E$35:$F$53,2,TRUE))),"") -> MR-O | AS69: =IF(YEAR($AR$7)-YEAR(I69)<40,DATEDIF(I69,$AR$7,"Y"),YEAR($AR$7)-YEAR(I69)) -> 27 | AT69: =IF(AN69=1,MATCH(F69,[2]DATA!$AB$2:$AB$34,0),0) -> 21 | AV69: =IF(MAX(K69:M69)>0,MAX(K69:M69),0) -> 252.5 | AW69: =IF(MAX(P69:R69)>0,MAX(P69:R69),0) -> 150 | AX69: =IF(MAX(U69:W69)>0,MAX(U69:W69),0) -> 272.5 | AY69: =AM69*IF($AM$11="PL",IF(MIN(AV69:AX69)=0,0,AV69+AW69+AX69),IF($AM$11="PP",IF(MIN(AW69:AX69)=0,0,AW69+AX69),IF($AM$11="BP",AW69,IF($AM$11="DL",AX69,AV69)))) -> 675 | AZ69: =ROUND(AY69*H69,5) -> 454.07249 | BA69: =ROUND(IFERROR(VLOOKUP(AS69,[2]DATA!$A$2:$B$63,2,FALSE),1)*AZ69,5) -> 454.07249 | BB69: =IFERROR(IF(AN69=1,AY69,IF(AN69=2,AZ69,IF(AN69=3,BA69,AZ69))),0) -> 675 | BG69: 16:21:29 | BZ69: =IFERROR(IF(FIND("DT",AE69),"Y",""),"") ->  | CB69: =CONCATENATE(IF(AN69=4,"",D69),IF(AN69=1,F69,"")) -> MR-O83 | CC69: =IF($AM$11="SQ",AJ69,IF($AM$11="BP",AK69,AL69)) -> 108 | CD69: =1+COUNTIFS(INDIRECT("AN12:AN500"),AN69,INDIRECT("CB12:CB500"),CB69,INDIRECT("AO12:AO500"),">"&AO69) +COUNTIFS(INDIRECT("AO12:AO500"),AO69,INDIRECT("AN12:AN500"),1,INDIRECT("CB12:CB500"),CB69,INDIRECT("E12:E500"),"<"&E69) +COUNTIFS(INDIRECT("AO12:AO500"),AO69,INDIRECT("AN12:AN500"),1,INDIRECT("CB12:CB500"),CB69,INDIRECT("E12:E500"),E69,INDIRECT("CC12:CC500"),"<"&CC69) -> 3 | CE69: =1+COUNTIFS(INDIRECT("AN12:AN500"),AN69,INDIRECT("CB12:CB500"),CB69,INDIRECT("BB12:BB500"),">"&BB69) +COUNTIFS(INDIRECT("BB12:BB500"),BB69,INDIRECT("AN12:AN500"),1,INDIRECT("CB12:CB500"),CB69,INDIRECT("E12:E500"),"<"&E69) -> 3
A70: 1C | B70: Dominic Rowden | C70: NC | D70: MR-O | E70: 80.02 | F70: =IFERROR(VLOOKUP(E70,[2]DATA!$E$2:$G$22,IF(LEFT(D70,1)="M",2,3)),"") -> 83 | G70: 203 | H70: =IFERROR(IF(LEFT(D70,1)="M",Wilks_Men(IF($E$11="Bwt - Lb",E70/2.2046,E70)),Wilks_Women(IF($E$11="Bwt - Lb",E70/2.2046,E70))),"") -> 0.6826000214 | I70: 1996-12-19 | J70: 13 | K70: 210 | L70: 217.5 | M70: -230 | N70: =IF(MAX(K70:M70)<=0,0,MAX(CELL("color",K70)*K70,CELL("color",L70)*L70,CELL("color",M70)*M70)) -> 217.5 | O70: 15-6 | P70: 125 | Q70: 135 | R70: -140 | S70: =IF(MAX(P70:R70)<=0,0,MAX(CELL("color",P70)*P70,CELL("color",Q70)*Q70,CELL("color",R70)*R70)) -> 135 | T70: =IF(OR(N70=0,S70=0),0,N70+S70) -> 352.5 | U70: 230 | V70: 245 | W70: 260 | X70: =IF(MAX(U70:W70)<=0,0,MAX(CELL("color",U70)*U70,CELL("color",V70)*V70,CELL("color",W70)*W70)) -> 260 | Y70: =AM70*IF($AM$11="SQ",N70,IF($AM$11="BP",S70,IF($AM$11="DL",X70,IF($AM$11="PP",IF(OR(S70=0,X70=0),0,S70+X70),IF(OR(T70=0,X70=0),0,T70+X70))))) -> 612.5 | Z70: =IF(Y70=0,"",CONCATENATE(CD70,"/",IF(AN70=4,"Wilks",D70),"/",IF(AN70>1,"",F70),"/",$AM$11)) -> 4/MR-O/83/PL | AA70: =BB70 -> 612.5 | AB70: =IF(AA70=0,"",CE70) -> 4 | AC70: =H70*IF($E$3="Kg",Y70,Y70/2.2046) -> 418.0925131 | AD70: =IFERROR(VLOOKUP(AS70,[2]DATA!$A$2:$B$63,2,TRUE),0)*AC70 -> 426.4543633 | AE70: PL | AF70: 991217 | AG70: NC | AH70: =IFERROR(VLOOKUP(A70,[2]Setup!$Q$5:$R$20,2,FALSE),"") -> 2 | AI70: =IF(VALUE(INDIRECT(CONCATENATE($AI$11,ROW())))=0,"",ABS(INDIRECT(CONCATENATE($AI$11,ROW())))+0.000001*G70) -> 260.000203 | AJ70: 96 | AK70: 86 | AL70: 107 | AM70: =IF(ISERROR(SEARCH($AM$11,AE70)),0,1) -> 1 | AN70: =VLOOKUP(D70,[2]Setup!$I$6:$K$93,3,FALSE) -> 1 | AO70: =ROUND(IFERROR(IF(AN70=1,Y70,IF(AN70=2,AC70,IF(AN70=3,AD70,AC70))),0),5) -> 612.5 | AQ70: =IFERROR(MATCH(D70,[2]Setup!$I$6:$I$93,0),"") -> 27 | AR70: =IFERROR(CONCATENATE(LEFT(D70,FIND("-",D70)),IF(AS70="","O",VLOOKUP(AS70,[2]DATA!$E$35:$F$53,2,TRUE))),"") -> MR-Jr | AS70: =IF(YEAR($AR$7)-YEAR(I70)<40,DATEDIF(I70,$AR$7,"Y"),YEAR($AR$7)-YEAR(I70)) -> 21 | AT70: =IF(AN70=1,MATCH(F70,[2]DATA!$AB$2:$AB$34,0),0) -> 21 | AV70: =IF(MAX(K70:M70)>0,MAX(K70:M70),0) -> 217.5 | AW70: =IF(MAX(P70:R70)>0,MAX(P70:R70),0) -> 135 | AX70: =IF(MAX(U70:W70)>0,MAX(U70:W70),0) -> 260 | AY70: =AM70*IF($AM$11="PL",IF(MIN(AV70:AX70)=0,0,AV70+AW70+AX70),IF($AM$11="PP",IF(MIN(AW70:AX70)=0,0,AW70+AX70),IF($AM$11="BP",AW70,IF($AM$11="DL",AX70,AV70)))) -> 612.5 | AZ70: =ROUND(AY70*H70,5) -> 418.09251 | BA70: =ROUND(IFERROR(VLOOKUP(AS70,[2]DATA!$A$2:$B$63,2,FALSE),1)*AZ70,5) -> 426.45436 | BB70: =IFERROR(IF(AN70=1,AY70,IF(AN70=2,AZ70,IF(AN70=3,BA70,AZ70))),0) -> 612.5 | BG70: 16:20:34 | BZ70: =IFERROR(IF(FIND("DT",AE70),"Y",""),"") ->  | CB70: =CONCATENATE(IF(AN70=4,"",D70),IF(AN70=1,F70,"")) -> MR-O83 | CC70: =IF($AM$11="SQ",AJ70,IF($AM$11="BP",AK70,AL70)) -> 107 | CD70: =1+COUNTIFS(INDIRECT("AN12:AN500"),AN70,INDIRECT("CB12:CB500"),CB70,INDIRECT("AO12:AO500"),">"&AO70) +COUNTIFS(INDIRECT("AO12:AO500"),AO70,INDIRECT("AN12:AN500"),1,INDIRECT("CB12:CB500"),CB70,INDIRECT("E12:E500"),"<"&E70) +COUNTIFS(INDIRECT("AO12:AO500"),AO70,INDIRECT("AN12:AN500"),1,INDIRECT("CB12:CB500"),CB70,INDIRECT("E12:E500"),E70,INDIRECT("CC12:CC500"),"<"&CC70) -> 4 | CE70: =1+COUNTIFS(INDIRECT("AN12:AN500"),AN70,INDIRECT("CB12:CB500"),CB70,INDIRECT("BB12:BB500"),">"&BB70) +COUNTIFS(INDIRECT("BB12:BB500"),BB70,INDIRECT("AN12:AN500"),1,INDIRECT("CB12:CB500"),CB70,INDIRECT("E12:E500"),"<"&E70) -> 4
A71: 1B | B71: Michael Barringer | C71: NC | D71: MR-O | E71: 82.7 | F71: =IFERROR(VLOOKUP(E71,[2]DATA!$E$2:$G$22,IF(LEFT(D71,1)="M",2,3)),"") -> 83 | G71: 107 | H71: =IFERROR(IF(LEFT(D71,1)="M",Wilks_Men(IF($E$11="Bwt - Lb",E71/2.2046,E71)),Wilks_Women(IF($E$11="Bwt - Lb",E71/2.2046,E71))),"") -> 0.668900013 | I71: 1971-01-23 | J71: 13 | K71: 220 | L71: -230 | M71: 230 | N71: =IF(MAX(K71:M71)<=0,0,MAX(CELL("color",K71)*K71,CELL("color",L71)*L71,CELL("color",M71)*M71)) -> 230 | O71: 11-6 | P71: 125 | Q71: -130 | R71: 130 | S71: =IF(MAX(P71:R71)<=0,0,MAX(CELL("color",P71)*P71,CELL("color",Q71)*Q71,CELL("color",R71)*R71)) -> 130 | T71: =IF(OR(N71=0,S71=0),0,N71+S71) -> 360 | U71: 225 | V71: 237.5 | W71: 252.5 | X71: =IF(MAX(U71:W71)<=0,0,MAX(CELL("color",U71)*U71,CELL("color",V71)*V71,CELL("color",W71)*W71)) -> 252.5 | Y71: =AM71*IF($AM$11="SQ",N71,IF($AM$11="BP",S71,IF($AM$11="DL",X71,IF($AM$11="PP",IF(OR(S71=0,X71=0),0,S71+X71),IF(OR(T71=0,X71=0),0,T71+X71))))) -> 612.5 | Z71: =IF(Y71=0,"",CONCATENATE(CD71,"/",IF(AN71=4,"Wilks",D71),"/",IF(AN71>1,"",F71),"/",$AM$11)) -> 5/MR-O/83/PL | AA71: =BB71 -> 612.5 | AB71: =IF(AA71=0,"",CE71) -> 5 | AC71: =H71*IF($E$3="Kg",Y71,Y71/2.2046) -> 409.7012579 | AD71: =IFERROR(VLOOKUP(AS71,[2]DATA!$A$2:$B$63,2,TRUE),0)*AC71 -> 443.2967611 | AE71: PL | AF71: 989371 | AG71: NC | AH71: =IFERROR(VLOOKUP(A71,[2]Setup!$Q$5:$R$20,2,FALSE),"") -> 1 | AI71: =IF(VALUE(INDIRECT(CONCATENATE($AI$11,ROW())))=0,"",ABS(INDIRECT(CONCATENATE($AI$11,ROW())))+0.000001*G71) -> 252.500107 | AJ71: 75 | AK71: 69 | AL71: 75 | AM71: =IF(ISERROR(SEARCH($AM$11,AE71)),0,1) -> 1 | AN71: =VLOOKUP(D71,[2]Setup!$I$6:$K$93,3,FALSE) -> 1 | AO71: =ROUND(IFERROR(IF(AN71=1,Y71,IF(AN71=2,AC71,IF(AN71=3,AD71,AC71))),0),5) -> 612.5 | AQ71: =IFERROR(MATCH(D71,[2]Setup!$I$6:$I$93,0),"") -> 27 | AR71: =IFERROR(CONCATENATE(LEFT(D71,FIND("-",D71)),IF(AS71="","O",VLOOKUP(AS71,[2]DATA!$E$35:$F$53,2,TRUE))),"") -> MR-M1b | AS71: =IF(YEAR($AR$7)-YEAR(I71)<40,DATEDIF(I71,$AR$7,"Y"),YEAR($AR$7)-YEAR(I71)) -> 47 | AT71: =IF(AN71=1,MATCH(F71,[2]DATA!$AB$2:$AB$34,0),0) -> 21 | AV71: =IF(MAX(K71:M71)>0,MAX(K71:M71),0) -> 230 | AW71: =IF(MAX(P71:R71)>0,MAX(P71:R71),0) -> 130 | AX71: =IF(MAX(U71:W71)>0,MAX(U71:W71),0) -> 252.5 | AY71: =AM71*IF($AM$11="PL",IF(MIN(AV71:AX71)=0,0,AV71+AW71+AX71),IF($AM$11="PP",IF(MIN(AW71:AX71)=0,0,AW71+AX71),IF($AM$11="BP",AW71,IF($AM$11="DL",AX71,AV71)))) -> 612.5 | AZ71: =ROUND(AY71*H71,5) -> 409.70126 | BA71: =ROUND(IFERROR(VLOOKUP(AS71,[2]DATA!$A$2:$B$63,2,FALSE),1)*AZ71,5) -> 443.29676 | BB71: =IFERROR(IF(AN71=1,AY71,IF(AN71=2,AZ71,IF(AN71=3,BA71,AZ71))),0) -> 612.5 | BZ71: =IFERROR(IF(FIND("DT",AE71),"Y",""),"") ->  | CB71: =CONCATENATE(IF(AN71=4,"",D71),IF(AN71=1,F71,"")) -> MR-O83 | CC71: =IF($AM$11="SQ",AJ71,IF($AM$11="BP",AK71,AL71)) -> 75 | CD71: =1+COUNTIFS(INDIRECT("AN12:AN500"),AN71,INDIRECT("CB12:CB500"),CB71,INDIRECT("AO12:AO500"),">"&AO71) +COUNTIFS(INDIRECT("AO12:AO500"),AO71,INDIRECT("AN12:AN500"),1,INDIRECT("CB12:CB500"),CB71,INDIRECT("E12:E500"),"<"&E71) +COUNTIFS(INDIRECT("AO12:AO500"),AO71,INDIRECT("AN12:AN500"),1,INDIRECT("CB12:CB500"),CB71,INDIRECT("E12:E500"),E71,INDIRECT("CC12:CC500"),"<"&CC71) -> 5 | CE71: =1+COUNTIFS(INDIRECT("AN12:AN500"),AN71,INDIRECT("CB12:CB500"),CB71,INDIRECT("BB12:BB500"),">"&BB71) +COUNTIFS(INDIRECT("BB12:BB500"),BB71,INDIRECT("AN12:AN500"),1,INDIRECT("CB12:CB500"),CB71,INDIRECT("E12:E500"),"<"&E71) -> 5
A72: 1C | B72: Terry Zervos | C72: NH | D72: MR-O | E72: 80.6 | F72: =IFERROR(VLOOKUP(E72,[2]DATA!$E$2:$G$22,IF(LEFT(D72,1)="M",2,3)),"") -> 83 | G72: 201 | H72: =IFERROR(IF(LEFT(D72,1)="M",Wilks_Men(IF($E$11="Bwt - Lb",E72/2.2046,E72)),Wilks_Women(IF($E$11="Bwt - Lb",E72/2.2046,E72))),"") -> 0.6794999838 | I72: 1997-09-30 | J72: 14 | K72: 182.5 | L72: 192.5 | M72: -202.5 | N72: =IF(MAX(K72:M72)<=0,0,MAX(CELL("color",K72)*K72,CELL("color",L72)*L72,CELL("color",M72)*M72)) -> 192.5 | O72: 12-6 | P72: 132.5 | Q72: 140 | R72: 145 | S72: =IF(MAX(P72:R72)<=0,0,MAX(CELL("color",P72)*P72,CELL("color",Q72)*Q72,CELL("color",R72)*R72)) -> 145 | T72: =IF(OR(N72=0,S72=0),0,N72+S72) -> 337.5 | U72: 205 | V72: 217.5 | W72: 227.5 | X72: =IF(MAX(U72:W72)<=0,0,MAX(CELL("color",U72)*U72,CELL("color",V72)*V72,CELL("color",W72)*W72)) -> 227.5 | Y72: =AM72*IF($AM$11="SQ",N72,IF($AM$11="BP",S72,IF($AM$11="DL",X72,IF($AM$11="PP",IF(OR(S72=0,X72=0),0,S72+X72),IF(OR(T72=0,X72=0),0,T72+X72))))) -> 565 | Z72: =IF(Y72=0,"",CONCATENATE(CD72,"/",IF(AN72=4,"Wilks",D72),"/",IF(AN72>1,"",F72),"/",$AM$11)) -> 6/MR-O/83/PL | AA72: =BB72 -> 565 | AB72: =IF(AA72=0,"",CE72) -> 6 | AC72: =H72*IF($E$3="Kg",Y72,Y72/2.2046) -> 383.9174908 | AD72: =IFERROR(VLOOKUP(AS72,[2]DATA!$A$2:$B$63,2,TRUE),0)*AC72 -> 395.4350156 | AE72: PL | AF72: 1013810 | AG72: NH | AH72: =IFERROR(VLOOKUP(A72,[2]Setup!$Q$5:$R$20,2,FALSE),"") -> 2 | AI72: =IF(VALUE(INDIRECT(CONCATENATE($AI$11,ROW())))=0,"",ABS(INDIRECT(CONCATENATE($AI$11,ROW())))+0.000001*G72) -> 227.500201 | AJ72: 93 | AK72: 94 | AL72: 105 | AM72: =IF(ISERROR(SEARCH($AM$11,AE72)),0,1) -> 1 | AN72: =VLOOKUP(D72,[2]Setup!$I$6:$K$93,3,FALSE) -> 1 | AO72: =ROUND(IFERROR(IF(AN72=1,Y72,IF(AN72=2,AC72,IF(AN72=3,AD72,AC72))),0),5) -> 565 | AQ72: =IFERROR(MATCH(D72,[2]Setup!$I$6:$I$93,0),"") -> 27 | AR72: =IFERROR(CONCATENATE(LEFT(D72,FIND("-",D72)),IF(AS72="","O",VLOOKUP(AS72,[2]DATA!$E$35:$F$53,2,TRUE))),"") -> MR-Jr | AS72: =IF(YEAR($AR$7)-YEAR(I72)<40,DATEDIF(I72,$AR$7,"Y"),YEAR($AR$7)-YEAR(I72)) -> 20 | AT72: =IF(AN72=1,MATCH(F72,[2]DATA!$AB$2:$AB$34,0),0) -> 21 | AV72: =IF(MAX(K72:M72)>0,MAX(K72:M72),0) -> 192.5 | AW72: =IF(MAX(P72:R72)>0,MAX(P72:R72),0) -> 145 | AX72: =IF(MAX(U72:W72)>0,MAX(U72:W72),0) -> 227.5 | AY72: =AM72*IF($AM$11="PL",IF(MIN(AV72:AX72)=0,0,AV72+AW72+AX72),IF($AM$11="PP",IF(MIN(AW72:AX72)=0,0,AW72+AX72),IF($AM$11="BP",AW72,IF($AM$11="DL",AX72,AV72)))) -> 565 | AZ72: =ROUND(AY72*H72,5) -> 383.91749 | BA72: =ROUND(IFERROR(VLOOKUP(AS72,[2]DATA!$A$2:$B$63,2,FALSE),1)*AZ72,5) -> 395.43501 | BB72: =IFERROR(IF(AN72=1,AY72,IF(AN72=2,AZ72,IF(AN72=3,BA72,AZ72))),0) -> 565 | BG72: 16:18:21 | BZ72: =IFERROR(IF(FIND("DT",AE72),"Y",""),"") ->  | CB72: =CONCATENATE(IF(AN72=4,"",D72),IF(AN72=1,F72,"")) -> MR-O83 | CC72: =IF($AM$11="SQ",AJ72,IF($AM$11="BP",AK72,AL72)) -> 105 | CD72: =1+COUNTIFS(INDIRECT("AN12:AN500"),AN72,INDIRECT("CB12:CB500"),CB72,INDIRECT("AO12:AO500"),">"&AO72) +COUNTIFS(INDIRECT("AO12:AO500"),AO72,INDIRECT("AN12:AN500"),1,INDIRECT("CB12:CB500"),CB72,INDIRECT("E12:E500"),"<"&E72) +COUNTIFS(INDIRECT("AO12:AO500"),AO72,INDIRECT("AN12:AN500"),1,INDIRECT("CB12:CB500"),CB72,INDIRECT("E12:E500"),E72,INDIRECT("CC12:CC500"),"<"&CC72) -> 6 | CE72: =1+COUNTIFS(INDIRECT("AN12:AN500"),AN72,INDIRECT("CB12:CB500"),CB72,INDIRECT("BB12:BB500"),">"&BB72) +COUNTIFS(INDIRECT("BB12:BB500"),BB72,INDIRECT("AN12:AN500"),1,INDIRECT("CB12:CB500"),CB72,INDIRECT("E12:E500"),"<"&E72) -> 6
A73: 1C | B73: Mason Dwinnell | C73: NC | D73: MR-O | E73: 82.38 | F73: =IFERROR(VLOOKUP(E73,[2]DATA!$E$2:$G$22,IF(LEFT(D73,1)="M",2,3)),"") -> 83 | G73: 202 | H73: =IFERROR(IF(LEFT(D73,1)="M",Wilks_Men(IF($E$11="Bwt - Lb",E73/2.2046,E73)),Wilks_Women(IF($E$11="Bwt - Lb",E73/2.2046,E73))),"") -> 0.6704999804 | I73: 1997-01-11 | J73: 18 | K73: 182.5 | L73: 192.5 | M73: -200 | N73: =IF(MAX(K73:M73)<=0,0,MAX(CELL("color",K73)*K73,CELL("color",L73)*L73,CELL("color",M73)*M73)) -> 192.5 | O73: 14-7 | P73: 102.5 | Q73: 107.5 | R73: 120 | S73: =IF(MAX(P73:R73)<=0,0,MAX(CELL("color",P73)*P73,CELL("color",Q73)*Q73,CELL("color",R73)*R73)) -> 120 | T73: =IF(OR(N73=0,S73=0),0,N73+S73) -> 312.5 | U73: 205 | V73: 215 | W73: 222.5 | X73: =IF(MAX(U73:W73)<=0,0,MAX(CELL("color",U73)*U73,CELL("color",V73)*V73,CELL("color",W73)*W73)) -> 222.5 | Y73: =AM73*IF($AM$11="SQ",N73,IF($AM$11="BP",S73,IF($AM$11="DL",X73,IF($AM$11="PP",IF(OR(S73=0,X73=0),0,S73+X73),IF(OR(T73=0,X73=0),0,T73+X73))))) -> 535 | Z73: =IF(Y73=0,"",CONCATENATE(CD73,"/",IF(AN73=4,"Wilks",D73),"/",IF(AN73>1,"",F73),"/",$AM$11)) -> 7/MR-O/83/PL | AA73: =BB73 -> 535 | AB73: =IF(AA73=0,"",CE73) -> 7 | AC73: =H73*IF($E$3="Kg",Y73,Y73/2.2046) -> 358.7174895 | AD73: =IFERROR(VLOOKUP(AS73,[2]DATA!$A$2:$B$63,2,TRUE),0)*AC73 -> 365.8918393 | AE73: PL | AF73: 1013802 | AG73: NC | AH73: =IFERROR(VLOOKUP(A73,[2]Setup!$Q$5:$R$20,2,FALSE),"") -> 2 | AI73: =IF(VALUE(INDIRECT(CONCATENATE($AI$11,ROW())))=0,"",ABS(INDIRECT(CONCATENATE($AI$11,ROW())))+0.000001*G73) -> 222.500202 | AJ73: 94 | AK73: 91 | AL73: 104 | AM73: =IF(ISERROR(SEARCH($AM$11,AE73)),0,1) -> 1 | AN73: =VLOOKUP(D73,[2]Setup!$I$6:$K$93,3,FALSE) -> 1 | AO73: =ROUND(IFERROR(IF(AN73=1,Y73,IF(AN73=2,AC73,IF(AN73=3,AD73,AC73))),0),5) -> 535 | AQ73: =IFERROR(MATCH(D73,[2]Setup!$I$6:$I$93,0),"") -> 27 | AR73: =IFERROR(CONCATENATE(LEFT(D73,FIND("-",D73)),IF(AS73="","O",VLOOKUP(AS73,[2]DATA!$E$35:$F$53,2,TRUE))),"") -> MR-Jr | AS73: =IF(YEAR($AR$7)-YEAR(I73)<40,DATEDIF(I73,$AR$7,"Y"),YEAR($AR$7)-YEAR(I73)) -> 21 | AT73: =IF(AN73=1,MATCH(F73,[2]DATA!$AB$2:$AB$34,0),0) -> 21 | AV73: =IF(MAX(K73:M73)>0,MAX(K73:M73),0) -> 192.5 | AW73: =IF(MAX(P73:R73)>0,MAX(P73:R73),0) -> 120 | AX73: =IF(MAX(U73:W73)>0,MAX(U73:W73),0) -> 222.5 | AY73: =AM73*IF($AM$11="PL",IF(MIN(AV73:AX73)=0,0,AV73+AW73+AX73),IF($AM$11="PP",IF(MIN(AW73:AX73)=0,0,AW73+AX73),IF($AM$11="BP",AW73,IF($AM$11="DL",AX73,AV73)))) -> 535 | AZ73: =ROUND(AY73*H73,5) -> 358.71749 | BA73: =ROUND(IFERROR(VLOOKUP(AS73,[2]DATA!$A$2:$B$63,2,FALSE),1)*AZ73,5) -> 365.89184 | BB73: =IFERROR(IF(AN73=1,AY73,IF(AN73=2,AZ73,IF(AN73=3,BA73,AZ73))),0) -> 535 | BG73: 16:17:12 | BZ73: =IFERROR(IF(FIND("DT",AE73),"Y",""),"") ->  | CB73: =CONCATENATE(IF(AN73=4,"",D73),IF(AN73=1,F73,"")) -> MR-O83 | CC73: =IF($AM$11="SQ",AJ73,IF($AM$11="BP",AK73,AL73)) -> 104 | CD73: =1+COUNTIFS(INDIRECT("AN12:AN500"),AN73,INDIRECT("CB12:CB500"),CB73,INDIRECT("AO12:AO500"),">"&AO73) +COUNTIFS(INDIRECT("AO12:AO500"),AO73,INDIRECT("AN12:AN500"),1,INDIRECT("CB12:CB500"),CB73,INDIRECT("E12:E500"),"<"&E73) +COUNTIFS(INDIRECT("AO12:AO500"),AO73,INDIRECT("AN12:AN500"),1,INDIRECT("CB12:CB500"),CB73,INDIRECT("E12:E500"),E73,INDIRECT("CC12:CC500"),"<"&CC73) -> 7 | CE73: =1+COUNTIFS(INDIRECT("AN12:AN500"),AN73,INDIRECT("CB12:CB500"),CB73,INDIRECT("BB12:BB500"),">"&BB73) +COUNTIFS(INDIRECT("BB12:BB500"),BB73,INDIRECT("AN12:AN500"),1,INDIRECT("CB12:CB500"),CB73,INDIRECT("E12:E500"),"<"&E73) -> 7
A74: 1C | B74: DJ Redmond | C74: NC | D74: MR-O | E74: 82.26 | F74: =IFERROR(VLOOKUP(E74,[2]DATA!$E$2:$G$22,IF(LEFT(D74,1)="M",2,3)),"") -> 83 | G74: 212 | H74: =IFERROR(IF(LEFT(D74,1)="M",Wilks_Men(IF($E$11="Bwt - Lb",E74/2.2046,E74)),Wilks_Women(IF($E$11="Bwt - Lb",E74/2.2046,E74))),"") -> 0.6711000204 | I74: 1990-11-02 | J74: 16 | K74: 172.5 | L74: 177.5 | M74: 182.5 | N74: =IF(MAX(K74:M74)<=0,0,MAX(CELL("color",K74)*K74,CELL("color",L74)*L74,CELL("color",M74)*M74)) -> 182.5 | O74: 13-7 | P74: 120 | Q74: 125 | R74: -130 | S74: =IF(MAX(P74:R74)<=0,0,MAX(CELL("color",P74)*P74,CELL("color",Q74)*Q74,CELL("color",R74)*R74)) -> 125 | T74: =IF(OR(N74=0,S74=0),0,N74+S74) -> 307.5 | U74: 202.5 | V74: 210 | W74: -215 | X74: =IF(MAX(U74:W74)<=0,0,MAX(CELL("color",U74)*U74,CELL("color",V74)*V74,CELL("color",W74)*W74)) -> 210 | Y74: =AM74*IF($AM$11="SQ",N74,IF($AM$11="BP",S74,IF($AM$11="DL",X74,IF($AM$11="PP",IF(OR(S74=0,X74=0),0,S74+X74),IF(OR(T74=0,X74=0),0,T74+X74))))) -> 517.5 | Z74: =IF(Y74=0,"",CONCATENATE(CD74,"/",IF(AN74=4,"Wilks",D74),"/",IF(AN74>1,"",F74),"/",$AM$11)) -> 8/MR-O/83/PL | AA74: =BB74 -> 517.5 | AB74: =IF(AA74=0,"",CE74) -> 8 | AC74: =H74*IF($E$3="Kg",Y74,Y74/2.2046) -> 347.2942606 | AD74: =IFERROR(VLOOKUP(AS74,[2]DATA!$A$2:$B$63,2,TRUE),0)*AC74 -> 347.2942606 | AE74: PL | AF74: 995507 | AG74: NC | AH74: =IFERROR(VLOOKUP(A74,[2]Setup!$Q$5:$R$20,2,FALSE),"") -> 2 | AI74: =IF(VALUE(INDIRECT(CONCATENATE($AI$11,ROW())))=0,"",ABS(INDIRECT(CONCATENATE($AI$11,ROW())))+0.000001*G74) -> 215.000212 | AJ74: 102 | AK74: 85 | AL74: 93 | AM74: =IF(ISERROR(SEARCH($AM$11,AE74)),0,1) -> 1 | AN74: =VLOOKUP(D74,[2]Setup!$I$6:$K$93,3,FALSE) -> 1 | AO74: =ROUND(IFERROR(IF(AN74=1,Y74,IF(AN74=2,AC74,IF(AN74=3,AD74,AC74))),0),5) -> 517.5 | AQ74: =IFERROR(MATCH(D74,[2]Setup!$I$6:$I$93,0),"") -> 27 | AR74: =IFERROR(CONCATENATE(LEFT(D74,FIND("-",D74)),IF(AS74="","O",VLOOKUP(AS74,[2]DATA!$E$35:$F$53,2,TRUE))),"") -> MR-O | AS74: =IF(YEAR($AR$7)-YEAR(I74)<40,DATEDIF(I74,$AR$7,"Y"),YEAR($AR$7)-YEAR(I74)) -> 27 | AT74: =IF(AN74=1,MATCH(F74,[2]DATA!$AB$2:$AB$34,0),0) -> 21 | AV74: =IF(MAX(K74:M74)>0,MAX(K74:M74),0) -> 182.5 | AW74: =IF(MAX(P74:R74)>0,MAX(P74:R74),0) -> 125 | AX74: =IF(MAX(U74:W74)>0,MAX(U74:W74),0) -> 210 | AY74: =AM74*IF($AM$11="PL",IF(MIN(AV74:AX74)=0,0,AV74+AW74+AX74),IF($AM$11="PP",IF(MIN(AW74:AX74)=0,0,AW74+AX74),IF($AM$11="BP",AW74,IF($AM$11="DL",AX74,AV74)))) -> 517.5 | AZ74: =ROUND(AY74*H74,5) -> 347.29426 | BA74: =ROUND(IFERROR(VLOOKUP(AS74,[2]DATA!$A$2:$B$63,2,FALSE),1)*AZ74,5) -> 347.29426 | BB74: =IFERROR(IF(AN74=1,AY74,IF(AN74=2,AZ74,IF(AN74=3,BA74,AZ74))),0) -> 517.5 | BG74: 16:16:12 | BZ74: =IFERROR(IF(FIND("DT",AE74),"Y",""),"") ->  | CB74: =CONCATENATE(IF(AN74=4,"",D74),IF(AN74=1,F74,"")) -> MR-O83 | CC74: =IF($AM$11="SQ",AJ74,IF($AM$11="BP",AK74,AL74)) -> 93 | CD74: =1+COUNTIFS(INDIRECT("AN12:AN500"),AN74,INDIRECT("CB12:CB500"),CB74,INDIRECT("AO12:AO500"),">"&AO74) +COUNTIFS(INDIRECT("AO12:AO500"),AO74,INDIRECT("AN12:AN500"),1,INDIRECT("CB12:CB500"),CB74,INDIRECT("E12:E500"),"<"&E74) +COUNTIFS(INDIRECT("AO12:AO500"),AO74,INDIRECT("AN12:AN500"),1,INDIRECT("CB12:CB500"),CB74,INDIRECT("E12:E500"),E74,INDIRECT("CC12:CC500"),"<"&CC74) -> 8 | CE74: =1+COUNTIFS(INDIRECT("AN12:AN500"),AN74,INDIRECT("CB12:CB500"),CB74,INDIRECT("BB12:BB500"),">"&BB74) +COUNTIFS(INDIRECT("BB12:BB500"),BB74,INDIRECT("AN12:AN500"),1,INDIRECT("CB12:CB500"),CB74,INDIRECT("E12:E500"),"<"&E74) -> 8
A75: 1C | B75: Kaleb Johnson | C75: NC | D75: MR-O | E75: 82.7 | F75: =IFERROR(VLOOKUP(E75,[2]DATA!$E$2:$G$22,IF(LEFT(D75,1)="M",2,3)),"") -> 83 | G75: 205 | H75: =IFERROR(IF(LEFT(D75,1)="M",Wilks_Men(IF($E$11="Bwt - Lb",E75/2.2046,E75)),Wilks_Women(IF($E$11="Bwt - Lb",E75/2.2046,E75))),"") -> 0.668900013 | I75: 1993-07-22 | J75: 17 | K75: 152.5 | L75: 162.5 | M75: 167.5 | N75: =IF(MAX(K75:M75)<=0,0,MAX(CELL("color",K75)*K75,CELL("color",L75)*L75,CELL("color",M75)*M75)) -> 167.5 | O75: 12-5 | P75: 110 | Q75: 120 | R75: 125 | S75: =IF(MAX(P75:R75)<=0,0,MAX(CELL("color",P75)*P75,CELL("color",Q75)*Q75,CELL("color",R75)*R75)) -> 125 | T75: =IF(OR(N75=0,S75=0),0,N75+S75) -> 292.5 | U75: 185 | V75: 200 | W75: 210 | X75: =IF(MAX(U75:W75)<=0,0,MAX(CELL("color",U75)*U75,CELL("color",V75)*V75,CELL("color",W75)*W75)) -> 210 | Y75: =AM75*IF($AM$11="SQ",N75,IF($AM$11="BP",S75,IF($AM$11="DL",X75,IF($AM$11="PP",IF(OR(S75=0,X75=0),0,S75+X75),IF(OR(T75=0,X75=0),0,T75+X75))))) -> 502.5 | Z75: =IF(Y75=0,"",CONCATENATE(CD75,"/",IF(AN75=4,"Wilks",D75),"/",IF(AN75>1,"",F75),"/",$AM$11)) -> 9/MR-O/83/PL | AA75: =BB75 -> 502.5 | AB75: =IF(AA75=0,"",CE75) -> 9 | AC75: =H75*IF($E$3="Kg",Y75,Y75/2.2046) -> 336.1222565 | AD75: =IFERROR(VLOOKUP(AS75,[2]DATA!$A$2:$B$63,2,TRUE),0)*AC75 -> 336.1222565 | AE75: PL | AF75: 928351 | AG75: NC | AH75: =IFERROR(VLOOKUP(A75,[2]Setup!$Q$5:$R$20,2,FALSE),"") -> 2 | AI75: =IF(VALUE(INDIRECT(CONCATENATE($AI$11,ROW())))=0,"",ABS(INDIRECT(CONCATENATE($AI$11,ROW())))+0.000001*G75) -> 210.000205 | AJ75: 100 | AK75: 92 | AL75: 103 | AM75: =IF(ISERROR(SEARCH($AM$11,AE75)),0,1) -> 1 | AN75: =VLOOKUP(D75,[2]Setup!$I$6:$K$93,3,FALSE) -> 1 | AO75: =ROUND(IFERROR(IF(AN75=1,Y75,IF(AN75=2,AC75,IF(AN75=3,AD75,AC75))),0),5) -> 502.5 | AQ75: =IFERROR(MATCH(D75,[2]Setup!$I$6:$I$93,0),"") -> 27 | AR75: =IFERROR(CONCATENATE(LEFT(D75,FIND("-",D75)),IF(AS75="","O",VLOOKUP(AS75,[2]DATA!$E$35:$F$53,2,TRUE))),"") -> MR-O | AS75: =IF(YEAR($AR$7)-YEAR(I75)<40,DATEDIF(I75,$AR$7,"Y"),YEAR($AR$7)-YEAR(I75)) -> 24 | AT75: =IF(AN75=1,MATCH(F75,[2]DATA!$AB$2:$AB$34,0),0) -> 21 | AV75: =IF(MAX(K75:M75)>0,MAX(K75:M75),0) -> 167.5 | AW75: =IF(MAX(P75:R75)>0,MAX(P75:R75),0) -> 125 | AX75: =IF(MAX(U75:W75)>0,MAX(U75:W75),0) -> 210 | AY75: =AM75*IF($AM$11="PL",IF(MIN(AV75:AX75)=0,0,AV75+AW75+AX75),IF($AM$11="PP",IF(MIN(AW75:AX75)=0,0,AW75+AX75),IF($AM$11="BP",AW75,IF($AM$11="DL",AX75,AV75)))) -> 502.5 | AZ75: =ROUND(AY75*H75,5) -> 336.12226 | BA75: =ROUND(IFERROR(VLOOKUP(AS75,[2]DATA!$A$2:$B$63,2,FALSE),1)*AZ75,5) -> 336.12226 | BB75: =IFERROR(IF(AN75=1,AY75,IF(AN75=2,AZ75,IF(AN75=3,BA75,AZ75))),0) -> 502.5 | BG75: 16:15:13 | BZ75: =IFERROR(IF(FIND("DT",AE75),"Y",""),"") ->  | CB75: =CONCATENATE(IF(AN75=4,"",D75),IF(AN75=1,F75,"")) -> MR-O83 | CC75: =IF($AM$11="SQ",AJ75,IF($AM$11="BP",AK75,AL75)) -> 103 | CD75: =1+COUNTIFS(INDIRECT("AN12:AN500"),AN75,INDIRECT("CB12:CB500"),CB75,INDIRECT("AO12:AO500"),">"&AO75) +COUNTIFS(INDIRECT("AO12:AO500"),AO75,INDIRECT("AN12:AN500"),1,INDIRECT("CB12:CB500"),CB75,INDIRECT("E12:E500"),"<"&E75) +COUNTIFS(INDIRECT("AO12:AO500"),AO75,INDIRECT("AN12:AN500"),1,INDIRECT("CB12:CB500"),CB75,INDIRECT("E12:E500"),E75,INDIRECT("CC12:CC500"),"<"&CC75) -> 9 | CE75: =1+COUNTIFS(INDIRECT("AN12:AN500"),AN75,INDIRECT("CB12:CB500"),CB75,INDIRECT("BB12:BB500"),">"&BB75) +COUNTIFS(INDIRECT("BB12:BB500"),BB75,INDIRECT("AN12:AN500"),1,INDIRECT("CB12:CB500"),CB75,INDIRECT("E12:E500"),"<"&E75) -> 9
A76: 1C | B76: Justin Mugno | C76: NC | D76: MR-O | E76: 78.42 | F76: =IFERROR(VLOOKUP(E76,[2]DATA!$E$2:$G$22,IF(LEFT(D76,1)="M",2,3)),"") -> 83 | G76: 213 | H76: =IFERROR(IF(LEFT(D76,1)="M",Wilks_Men(IF($E$11="Bwt - Lb",E76/2.2046,E76)),Wilks_Women(IF($E$11="Bwt - Lb",E76/2.2046,E76))),"") -> 0.6915000081 | I76: 1989-01-02 | J76: 16 | K76: 160 | L76: 175 | M76: 180 | N76: =IF(MAX(K76:M76)<=0,0,MAX(CELL("color",K76)*K76,CELL("color",L76)*L76,CELL("color",M76)*M76)) -> 180 | O76: 15-6 | P76: 112.5 | Q76: 120 | R76: 130 | S76: =IF(MAX(P76:R76)<=0,0,MAX(CELL("color",P76)*P76,CELL("color",Q76)*Q76,CELL("color",R76)*R76)) -> 130 | T76: =IF(OR(N76=0,S76=0),0,N76+S76) -> 310 | U76: 175 | V76: 185 | W76: 190 | X76: =IF(MAX(U76:W76)<=0,0,MAX(CELL("color",U76)*U76,CELL("color",V76)*V76,CELL("color",W76)*W76)) -> 190 | Y76: =AM76*IF($AM$11="SQ",N76,IF($AM$11="BP",S76,IF($AM$11="DL",X76,IF($AM$11="PP",IF(OR(S76=0,X76=0),0,S76+X76),IF(OR(T76=0,X76=0),0,T76+X76))))) -> 500 | Z76: =IF(Y76=0,"",CONCATENATE(CD76,"/",IF(AN76=4,"Wilks",D76),"/",IF(AN76>1,"",F76),"/",$AM$11)) -> 10/MR-O/83/PL | AA76: =BB76 -> 500 | AB76: =IF(AA76=0,"",CE76) -> 10 | AC76: =H76*IF($E$3="Kg",Y76,Y76/2.2046) -> 345.7500041 | AD76: =IFERROR(VLOOKUP(AS76,[2]DATA!$A$2:$B$63,2,TRUE),0)*AC76 -> 345.7500041 | AE76: PL | AF76: 1015766 | AG76: NC | AH76: =IFERROR(VLOOKUP(A76,[2]Setup!$Q$5:$R$20,2,FALSE),"") -> 2 | AI76: =IF(VALUE(INDIRECT(CONCATENATE($AI$11,ROW())))=0,"",ABS(INDIRECT(CONCATENATE($AI$11,ROW())))+0.000001*G76) -> 190.000213 | AJ76: 101 | AK76: 93 | AL76: 102 | AM76: =IF(ISERROR(SEARCH($AM$11,AE76)),0,1) -> 1 | AN76: =VLOOKUP(D76,[2]Setup!$I$6:$K$93,3,FALSE) -> 1 | AO76: =ROUND(IFERROR(IF(AN76=1,Y76,IF(AN76=2,AC76,IF(AN76=3,AD76,AC76))),0),5) -> 500 | AQ76: =IFERROR(MATCH(D76,[2]Setup!$I$6:$I$93,0),"") -> 27 | AR76: =IFERROR(CONCATENATE(LEFT(D76,FIND("-",D76)),IF(AS76="","O",VLOOKUP(AS76,[2]DATA!$E$35:$F$53,2,TRUE))),"") -> MR-O | AS76: =IF(YEAR($AR$7)-YEAR(I76)<40,DATEDIF(I76,$AR$7,"Y"),YEAR($AR$7)-YEAR(I76)) -> 29 | AT76: =IF(AN76=1,MATCH(F76,[2]DATA!$AB$2:$AB$34,0),0) -> 21 | AV76: =IF(MAX(K76:M76)>0,MAX(K76:M76),0) -> 180 | AW76: =IF(MAX(P76:R76)>0,MAX(P76:R76),0) -> 130 | AX76: =IF(MAX(U76:W76)>0,MAX(U76:W76),0) -> 190 | AY76: =AM76*IF($AM$11="PL",IF(MIN(AV76:AX76)=0,0,AV76+AW76+AX76),IF($AM$11="PP",IF(MIN(AW76:AX76)=0,0,AW76+AX76),IF($AM$11="BP",AW76,IF($AM$11="DL",AX76,AV76)))) -> 500 | AZ76: =ROUND(AY76*H76,5) -> 345.75 | BA76: =ROUND(IFERROR(VLOOKUP(AS76,[2]DATA!$A$2:$B$63,2,FALSE),1)*AZ76,5) -> 345.75 | BB76: =IFERROR(IF(AN76=1,AY76,IF(AN76=2,AZ76,IF(AN76=3,BA76,AZ76))),0) -> 500 | BG76: 16:14:02 | BZ76: =IFERROR(IF(FIND("DT",AE76),"Y",""),"") ->  | CB76: =CONCATENATE(IF(AN76=4,"",D76),IF(AN76=1,F76,"")) -> MR-O83 | CC76: =IF($AM$11="SQ",AJ76,IF($AM$11="BP",AK76,AL76)) -> 102 | CD76: =1+COUNTIFS(INDIRECT("AN12:AN500"),AN76,INDIRECT("CB12:CB500"),CB76,INDIRECT("AO12:AO500"),">"&AO76) +COUNTIFS(INDIRECT("AO12:AO500"),AO76,INDIRECT("AN12:AN500"),1,INDIRECT("CB12:CB500"),CB76,INDIRECT("E12:E500"),"<"&E76) +COUNTIFS(INDIRECT("AO12:AO500"),AO76,INDIRECT("AN12:AN500"),1,INDIRECT("CB12:CB500"),CB76,INDIRECT("E12:E500"),E76,INDIRECT("CC12:CC500"),"<"&CC76) -> 10 | CE76: =1+COUNTIFS(INDIRECT("AN12:AN500"),AN76,INDIRECT("CB12:CB500"),CB76,INDIRECT("BB12:BB500"),">"&BB76) +COUNTIFS(INDIRECT("BB12:BB500"),BB76,INDIRECT("AN12:AN500"),1,INDIRECT("CB12:CB500"),CB76,INDIRECT("E12:E500"),"<"&E76) -> 10
A77: 1B | B77: John Demchak | C77: SC | D77: MR-O | E77: 82.84 | F77: =IFERROR(VLOOKUP(E77,[2]DATA!$E$2:$G$22,IF(LEFT(D77,1)="M",2,3)),"") -> 83 | G77: 101 | H77: =IFERROR(IF(LEFT(D77,1)="M",Wilks_Men(IF($E$11="Bwt - Lb",E77/2.2046,E77)),Wilks_Women(IF($E$11="Bwt - Lb",E77/2.2046,E77))),"") -> 0.668299973 | I77: 1967-07-14 | J77: 14 | K77: 165 | L77: 175 | M77: -182.5 | N77: =IF(MAX(K77:M77)<=0,0,MAX(CELL("color",K77)*K77,CELL("color",L77)*L77,CELL("color",M77)*M77)) -> 175 | O77: 11-6 | P77: 75 | Q77: 82.5 | R77: -90 | S77: =IF(MAX(P77:R77)<=0,0,MAX(CELL("color",P77)*P77,CELL("color",Q77)*Q77,CELL("color",R77)*R77)) -> 82.5 | T77: =IF(OR(N77=0,S77=0),0,N77+S77) -> 257.5 | U77: 205 | V77: 227.5 | W77: -235 | X77: =IF(MAX(U77:W77)<=0,0,MAX(CELL("color",U77)*U77,CELL("color",V77)*V77,CELL("color",W77)*W77)) -> 227.5 | Y77: =AM77*IF($AM$11="SQ",N77,IF($AM$11="BP",S77,IF($AM$11="DL",X77,IF($AM$11="PP",IF(OR(S77=0,X77=0),0,S77+X77),IF(OR(T77=0,X77=0),0,T77+X77))))) -> 485 | Z77: =IF(Y77=0,"",CONCATENATE(CD77,"/",IF(AN77=4,"Wilks",D77),"/",IF(AN77>1,"",F77),"/",$AM$11)) -> 11/MR-O/83/PL | AA77: =BB77 -> 485 | AB77: =IF(AA77=0,"",CE77) -> 11 | AC77: =H77*IF($E$3="Kg",Y77,Y77/2.2046) -> 324.1254869 | AD77: =IFERROR(VLOOKUP(AS77,[2]DATA!$A$2:$B$63,2,TRUE),0)*AC77 -> 371.7719335 | AE77: PL | AF77: 12416 | AG77: SC | AH77: =IFERROR(VLOOKUP(A77,[2]Setup!$Q$5:$R$20,2,FALSE),"") -> 1 | AI77: =IF(VALUE(INDIRECT(CONCATENATE($AI$11,ROW())))=0,"",ABS(INDIRECT(CONCATENATE($AI$11,ROW())))+0.000001*G77) -> 235.000101 | AJ77: 55 | AK77: 48 | AL77: 59 | AM77: =IF(ISERROR(SEARCH($AM$11,AE77)),0,1) -> 1 | AN77: =VLOOKUP(D77,[2]Setup!$I$6:$K$93,3,FALSE) -> 1 | AO77: =ROUND(IFERROR(IF(AN77=1,Y77,IF(AN77=2,AC77,IF(AN77=3,AD77,AC77))),0),5) -> 485 | AQ77: =IFERROR(MATCH(D77,[2]Setup!$I$6:$I$93,0),"") -> 27 | AR77: =IFERROR(CONCATENATE(LEFT(D77,FIND("-",D77)),IF(AS77="","O",VLOOKUP(AS77,[2]DATA!$E$35:$F$53,2,TRUE))),"") -> MR-M2a | AS77: =IF(YEAR($AR$7)-YEAR(I77)<40,DATEDIF(I77,$AR$7,"Y"),YEAR($AR$7)-YEAR(I77)) -> 51 | AT77: =IF(AN77=1,MATCH(F77,[2]DATA!$AB$2:$AB$34,0),0) -> 21 | AV77: =IF(MAX(K77:M77)>0,MAX(K77:M77),0) -> 175 | AW77: =IF(MAX(P77:R77)>0,MAX(P77:R77),0) -> 82.5 | AX77: =IF(MAX(U77:W77)>0,MAX(U77:W77),0) -> 227.5 | AY77: =AM77*IF($AM$11="PL",IF(MIN(AV77:AX77)=0,0,AV77+AW77+AX77),IF($AM$11="PP",IF(MIN(AW77:AX77)=0,0,AW77+AX77),IF($AM$11="BP",AW77,IF($AM$11="DL",AX77,AV77)))) -> 485 | AZ77: =ROUND(AY77*H77,5) -> 324.12549 | BA77: =ROUND(IFERROR(VLOOKUP(AS77,[2]DATA!$A$2:$B$63,2,FALSE),1)*AZ77,5) -> 371.77194 | BB77: =IFERROR(IF(AN77=1,AY77,IF(AN77=2,AZ77,IF(AN77=3,BA77,AZ77))),0) -> 485 | BZ77: =IFERROR(IF(FIND("DT",AE77),"Y",""),"") ->  | CB77: =CONCATENATE(IF(AN77=4,"",D77),IF(AN77=1,F77,"")) -> MR-O83 | CC77: =IF($AM$11="SQ",AJ77,IF($AM$11="BP",AK77,AL77)) -> 59 | CD77: =1+COUNTIFS(INDIRECT("AN12:AN500"),AN77,INDIRECT("CB12:CB500"),CB77,INDIRECT("AO12:AO500"),">"&AO77) +COUNTIFS(INDIRECT("AO12:AO500"),AO77,INDIRECT("AN12:AN500"),1,INDIRECT("CB12:CB500"),CB77,INDIRECT("E12:E500"),"<"&E77) +COUNTIFS(INDIRECT("AO12:AO500"),AO77,INDIRECT("AN12:AN500"),1,INDIRECT("CB12:CB500"),CB77,INDIRECT("E12:E500"),E77,INDIRECT("CC12:CC500"),"<"&CC77) -> 11 | CE77: =1+COUNTIFS(INDIRECT("AN12:AN500"),AN77,INDIRECT("CB12:CB500"),CB77,INDIRECT("BB12:BB500"),">"&BB77) +COUNTIFS(INDIRECT("BB12:BB500"),BB77,INDIRECT("AN12:AN500"),1,INDIRECT("CB12:CB500"),CB77,INDIRECT("E12:E500"),"<"&E77) -> 11
A78: 1C | B78: Jacob Melvin | C78: NC | D78: MR-O | E78: 80.62 | F78: =IFERROR(VLOOKUP(E78,[2]DATA!$E$2:$G$22,IF(LEFT(D78,1)="M",2,3)),"") -> 83 | G78: 209 | H78: =IFERROR(IF(LEFT(D78,1)="M",Wilks_Men(IF($E$11="Bwt - Lb",E78/2.2046,E78)),Wilks_Women(IF($E$11="Bwt - Lb",E78/2.2046,E78))),"") -> 0.6794000268 | I78: 1991-03-10 | J78: 15 | K78: 207.5 | L78: 210 | M78: 215 | N78: =IF(MAX(K78:M78)<=0,0,MAX(CELL("color",K78)*K78,CELL("color",L78)*L78,CELL("color",M78)*M78)) -> 215 | O78: 14-7 | P78: -145 | Q78: -145 | R78: -145 | S78: =IF(MAX(P78:R78)<=0,0,MAX(CELL("color",P78)*P78,CELL("color",Q78)*Q78,CELL("color",R78)*R78)) -> 0 | T78: =IF(OR(N78=0,S78=0),0,N78+S78) -> 0 | U78: 237.5 | V78: 245 | W78: 250 | X78: =IF(MAX(U78:W78)<=0,0,MAX(CELL("color",U78)*U78,CELL("color",V78)*V78,CELL("color",W78)*W78)) -> 250 | Y78: =AM78*IF($AM$11="SQ",N78,IF($AM$11="BP",S78,IF($AM$11="DL",X78,IF($AM$11="PP",IF(OR(S78=0,X78=0),0,S78+X78),IF(OR(T78=0,X78=0),0,T78+X78))))) -> 0 | Z78: =IF(Y78=0,"",CONCATENATE(CD78,"/",IF(AN78=4,"Wilks",D78),"/",IF(AN78>1,"",F78),"/",$AM$11)) ->  | AA78: =BB78 -> 0 | AB78: =IF(AA78=0,"",CE78) ->  | AC78: =H78*IF($E$3="Kg",Y78,Y78/2.2046) -> 0 | AD78: =IFERROR(VLOOKUP(AS78,[2]DATA!$A$2:$B$63,2,TRUE),0)*AC78 -> 0 | AE78: PL | AF78: 995460 | AG78: NC | AH78: =IFERROR(VLOOKUP(A78,[2]Setup!$Q$5:$R$20,2,FALSE),"") -> 2 | AI78: =IF(VALUE(INDIRECT(CONCATENATE($AI$11,ROW())))=0,"",ABS(INDIRECT(CONCATENATE($AI$11,ROW())))+0.000001*G78) -> 250.000209 | AJ78: 103 | AK78: 0 | AL78: 106 | AM78: =IF(ISERROR(SEARCH($AM$11,AE78)),0,1) -> 1 | AN78: =VLOOKUP(D78,[2]Setup!$I$6:$K$93,3,FALSE) -> 1 | AO78: =ROUND(IFERROR(IF(AN78=1,Y78,IF(AN78=2,AC78,IF(AN78=3,AD78,AC78))),0),5) -> 0 | AQ78: =IFERROR(MATCH(D78,[2]Setup!$I$6:$I$93,0),"") -> 27 | AR78: =IFERROR(CONCATENATE(LEFT(D78,FIND("-",D78)),IF(AS78="","O",VLOOKUP(AS78,[2]DATA!$E$35:$F$53,2,TRUE))),"") -> MR-O | AS78: =IF(YEAR($AR$7)-YEAR(I78)<40,DATEDIF(I78,$AR$7,"Y"),YEAR($AR$7)-YEAR(I78)) -> 27 | AT78: =IF(AN78=1,MATCH(F78,[2]DATA!$AB$2:$AB$34,0),0) -> 21 | AV78: =IF(MAX(K78:M78)>0,MAX(K78:M78),0) -> 215 | AW78: =IF(MAX(P78:R78)>0,MAX(P78:R78),0) -> 0 | AX78: =IF(MAX(U78:W78)>0,MAX(U78:W78),0) -> 250 | AY78: =AM78*IF($AM$11="PL",IF(MIN(AV78:AX78)=0,0,AV78+AW78+AX78),IF($AM$11="PP",IF(MIN(AW78:AX78)=0,0,AW78+AX78),IF($AM$11="BP",AW78,IF($AM$11="DL",AX78,AV78)))) -> 0 | AZ78: =ROUND(AY78*H78,5) -> 0 | BA78: =ROUND(IFERROR(VLOOKUP(AS78,[2]DATA!$A$2:$B$63,2,FALSE),1)*AZ78,5) -> 0 | BB78: =IFERROR(IF(AN78=1,AY78,IF(AN78=2,AZ78,IF(AN78=3,BA78,AZ78))),0) -> 0 | BG78: 16:19:18 | BZ78: =IFERROR(IF(FIND("DT",AE78),"Y",""),"") ->  | CB78: =CONCATENATE(IF(AN78=4,"",D78),IF(AN78=1,F78,"")) -> MR-O83 | CC78: =IF($AM$11="SQ",AJ78,IF($AM$11="BP",AK78,AL78)) -> 106 | CD78: =1+COUNTIFS(INDIRECT("AN12:AN500"),AN78,INDIRECT("CB12:CB500"),CB78,INDIRECT("AO12:AO500"),">"&AO78) +COUNTIFS(INDIRECT("AO12:AO500"),AO78,INDIRECT("AN12:AN500"),1,INDIRECT("CB12:CB500"),CB78,INDIRECT("E12:E500"),"<"&E78) +COUNTIFS(INDIRECT("AO12:AO500"),AO78,INDIRECT("AN12:AN500"),1,INDIRECT("CB12:CB500"),CB78,INDIRECT("E12:E500"),E78,INDIRECT("CC12:CC500"),"<"&CC78) -> 12 | CE78: =1+COUNTIFS(INDIRECT("AN12:AN500"),AN78,INDIRECT("CB12:CB500"),CB78,INDIRECT("BB12:BB500"),">"&BB78) +COUNTIFS(INDIRECT("BB12:BB500"),BB78,INDIRECT("AN12:AN500"),1,INDIRECT("CB12:CB500"),CB78,INDIRECT("E12:E500"),"<"&E78) -> 12
A79: 3A | B79: Andre' Easter II | C79: NC | D79: MR-O | E79: 91.8 | F79: =IFERROR(VLOOKUP(E79,[3]DATA!$E$2:$G$22,IF(LEFT(D79,1)="M",2,3)),"") -> 93 | G79: 606 | H79: =IFERROR(IF(LEFT(D79,1)="M",Wilks_Men(IF($E$11="Bwt - Lb",E79/2.2046,E79)),Wilks_Women(IF($E$11="Bwt - Lb",E79/2.2046,E79))),"") -> 0.6320999861 | I79: 1990-09-28 | J79: 14 | K79: 267.5 | L79: 275 | M79: -285 | N79: =IF(MAX(K79:M79)<=0,0,MAX(CELL("color",K79)*K79,CELL("color",L79)*L79,CELL("color",M79)*M79)) -> 275 | O79: 14-8 | P79: 190 | Q79: 195 | R79: -202.5 | S79: =IF(MAX(P79:R79)<=0,0,MAX(CELL("color",P79)*P79,CELL("color",Q79)*Q79,CELL("color",R79)*R79)) -> 195 | T79: =IF(OR(N79=0,S79=0),0,N79+S79) -> 470 | U79: 270 | V79: 287.5 | W79: 300 | X79: =IF(MAX(U79:W79)<=0,0,MAX(CELL("color",U79)*U79,CELL("color",V79)*V79,CELL("color",W79)*W79)) -> 300 | Y79: =AM79*IF($AM$11="SQ",N79,IF($AM$11="BP",S79,IF($AM$11="DL",X79,IF($AM$11="PP",IF(OR(S79=0,X79=0),0,S79+X79),IF(OR(T79=0,X79=0),0,T79+X79))))) -> 770 | Z79: =IF(Y79=0,"",CONCATENATE(CD79,"/",IF(AN79=4,"Wilks",D79),"/",IF(AN79>1,"",F79),"/",$AM$11)) -> 1/MR-O/93/PL | AA79: =BB79 -> 770 | AB79: =IF(AA79=0,"",CE79) -> 1 | AC79: =H79*IF($E$3="Kg",Y79,Y79/2.2046) -> 486.7169893 | AD79: =IFERROR(VLOOKUP(AS79,[3]DATA!$A$2:$B$63,2,TRUE),0)*AC79 -> 486.7169893 | AE79: PL BP | AF79: 967174 | AG79: NC | AH79: =IFERROR(VLOOKUP(A79,[3]Setup!$Q$5:$R$20,2,FALSE),"") -> 0 | AI79: =IF(VALUE(INDIRECT(CONCATENATE($AI$11,ROW())))=0,"",ABS(INDIRECT(CONCATENATE($AI$11,ROW())))+0.000001*G79) -> 300.000606 | AJ79: 27 | AK79: 22 | AL79: 32 | AM79: =IF(ISERROR(SEARCH($AM$11,AE79)),0,1) -> 1 | AN79: =VLOOKUP(D79,[3]Setup!$I$6:$K$93,3,FALSE) -> 1 | AO79: =ROUND(IFERROR(IF(AN79=1,Y79,IF(AN79=2,AC79,IF(AN79=3,AD79,AC79))),0),5) -> 770 | AQ79: =IFERROR(MATCH(D79,[3]Setup!$I$6:$I$93,0),"") -> 27 | AR79: =IFERROR(CONCATENATE(LEFT(D79,FIND("-",D79)),IF(AS79="","O",VLOOKUP(AS79,[3]DATA!$E$35:$F$53,2,TRUE))),"") -> MR-O | AS79: =IF(YEAR($AR$7)-YEAR(I79)<40,DATEDIF(I79,$AR$7,"Y"),YEAR($AR$7)-YEAR(I79)) -> 27 | AT79: =IF(AN79=1,MATCH(F79,[3]DATA!$AB$2:$AB$34,0),0) -> 26 | AV79: =IF(MAX(K79:M79)>0,MAX(K79:M79),0) -> 275 | AW79: =IF(MAX(P79:R79)>0,MAX(P79:R79),0) -> 195 | AX79: =IF(MAX(U79:W79)>0,MAX(U79:W79),0) -> 300 | AY79: =AM79*IF($AM$11="PL",IF(MIN(AV79:AX79)=0,0,AV79+AW79+AX79),IF($AM$11="PP",IF(MIN(AW79:AX79)=0,0,AW79+AX79),IF($AM$11="BP",AW79,IF($AM$11="DL",AX79,AV79)))) -> 770 | AZ79: =ROUND(AY79*H79,5) -> 486.71699 | BA79: =ROUND(IFERROR(VLOOKUP(AS79,[3]DATA!$A$2:$B$63,2,FALSE),1)*AZ79,5) -> 486.71699 | BB79: =IFERROR(IF(AN79=1,AY79,IF(AN79=2,AZ79,IF(AN79=3,BA79,AZ79))),0) -> 770 | BZ79: =IFERROR(IF(FIND("DT",AE79),"Y",""),"") ->  | CB79: =CONCATENATE(IF(AN79=4,"",D79),IF(AN79=1,F79,"")) -> MR-O93 | CC79: =IF($AM$11="SQ",AJ79,IF($AM$11="BP",AK79,AL79)) -> 32 | CD79: =1+COUNTIFS(INDIRECT("AN12:AN500"),AN79,INDIRECT("CB12:CB500"),CB79,INDIRECT("AO12:AO500"),">"&AO79) +COUNTIFS(INDIRECT("AO12:AO500"),AO79,INDIRECT("AN12:AN500"),1,INDIRECT("CB12:CB500"),CB79,INDIRECT("E12:E500"),"<"&E79) +COUNTIFS(INDIRECT("AO12:AO500"),AO79,INDIRECT("AN12:AN500"),1,INDIRECT("CB12:CB500"),CB79,INDIRECT("E12:E500"),E79,INDIRECT("CC12:CC500"),"<"&CC79) -> 1 | CE79: =1+COUNTIFS(INDIRECT("AN12:AN500"),AN79,INDIRECT("CB12:CB500"),CB79,INDIRECT("BB12:BB500"),">"&BB79) +COUNTIFS(INDIRECT("BB12:BB500"),BB79,INDIRECT("AN12:AN500"),1,INDIRECT("CB12:CB500"),CB79,INDIRECT("E12:E500"),"<"&E79) -> 1
A80: 3A | B80: Rob Rykowski | C80: NC | D80: MR-O | E80: 92.26 | F80: =IFERROR(VLOOKUP(E80,[3]DATA!$E$2:$G$22,IF(LEFT(D80,1)="M",2,3)),"") -> 93 | G80: 612 | H80: =IFERROR(IF(LEFT(D80,1)="M",Wilks_Men(IF($E$11="Bwt - Lb",E80/2.2046,E80)),Wilks_Women(IF($E$11="Bwt - Lb",E80/2.2046,E80))),"") -> 0.6305999756 | I80: 1984-07-17 | J80: 18 | K80: 230 | L80: 242.5 | M80: 250 | N80: =IF(MAX(K80:M80)<=0,0,MAX(CELL("color",K80)*K80,CELL("color",L80)*L80,CELL("color",M80)*M80)) -> 250 | O80: 16-7 | P80: 137.5 | Q80: 142.5 | S80: =IF(MAX(P80:R80)<=0,0,MAX(CELL("color",P80)*P80,CELL("color",Q80)*Q80,CELL("color",R80)*R80)) -> 142.5 | T80: =IF(OR(N80=0,S80=0),0,N80+S80) -> 392.5 | U80: 300 | V80: 310 | W80: -317.5 | X80: =IF(MAX(U80:W80)<=0,0,MAX(CELL("color",U80)*U80,CELL("color",V80)*V80,CELL("color",W80)*W80)) -> 310 | Y80: =AM80*IF($AM$11="SQ",N80,IF($AM$11="BP",S80,IF($AM$11="DL",X80,IF($AM$11="PP",IF(OR(S80=0,X80=0),0,S80+X80),IF(OR(T80=0,X80=0),0,T80+X80))))) -> 702.5 | Z80: =IF(Y80=0,"",CONCATENATE(CD80,"/",IF(AN80=4,"Wilks",D80),"/",IF(AN80>1,"",F80),"/",$AM$11)) -> 2/MR-O/93/PL | AA80: =BB80 -> 702.5 | AB80: =IF(AA80=0,"",CE80) -> 2 | AC80: =H80*IF($E$3="Kg",Y80,Y80/2.2046) -> 442.9964828 | AD80: =IFERROR(VLOOKUP(AS80,[3]DATA!$A$2:$B$63,2,TRUE),0)*AC80 -> 442.9964828 | AE80: PL | AF80: 967293 | AG80: NC | AH80: =IFERROR(VLOOKUP(A80,[3]Setup!$Q$5:$R$20,2,FALSE),"") -> 0 | AI80: =IF(VALUE(INDIRECT(CONCATENATE($AI$11,ROW())))=0,"",ABS(INDIRECT(CONCATENATE($AI$11,ROW())))+0.000001*G80) -> 317.500612 | AJ80: 34 | AK80: 20 | AL80: 26 | AM80: =IF(ISERROR(SEARCH($AM$11,AE80)),0,1) -> 1 | AN80: =VLOOKUP(D80,[3]Setup!$I$6:$K$93,3,FALSE) -> 1 | AO80: =ROUND(IFERROR(IF(AN80=1,Y80,IF(AN80=2,AC80,IF(AN80=3,AD80,AC80))),0),5) -> 702.5 | AQ80: =IFERROR(MATCH(D80,[3]Setup!$I$6:$I$93,0),"") -> 27 | AR80: =IFERROR(CONCATENATE(LEFT(D80,FIND("-",D80)),IF(AS80="","O",VLOOKUP(AS80,[3]DATA!$E$35:$F$53,2,TRUE))),"") -> MR-O | AS80: =IF(YEAR($AR$7)-YEAR(I80)<40,DATEDIF(I80,$AR$7,"Y"),YEAR($AR$7)-YEAR(I80)) -> 33 | AT80: =IF(AN80=1,MATCH(F80,[3]DATA!$AB$2:$AB$34,0),0) -> 26 | AV80: =IF(MAX(K80:M80)>0,MAX(K80:M80),0) -> 250 | AW80: =IF(MAX(P80:R80)>0,MAX(P80:R80),0) -> 142.5 | AX80: =IF(MAX(U80:W80)>0,MAX(U80:W80),0) -> 310 | AY80: =AM80*IF($AM$11="PL",IF(MIN(AV80:AX80)=0,0,AV80+AW80+AX80),IF($AM$11="PP",IF(MIN(AW80:AX80)=0,0,AW80+AX80),IF($AM$11="BP",AW80,IF($AM$11="DL",AX80,AV80)))) -> 702.5 | AZ80: =ROUND(AY80*H80,5) -> 442.99648 | BA80: =ROUND(IFERROR(VLOOKUP(AS80,[3]DATA!$A$2:$B$63,2,FALSE),1)*AZ80,5) -> 442.99648 | BB80: =IFERROR(IF(AN80=1,AY80,IF(AN80=2,AZ80,IF(AN80=3,BA80,AZ80))),0) -> 702.5 | BZ80: =IFERROR(IF(FIND("DT",AE80),"Y",""),"") ->  | CB80: =CONCATENATE(IF(AN80=4,"",D80),IF(AN80=1,F80,"")) -> MR-O93 | CC80: =IF($AM$11="SQ",AJ80,IF($AM$11="BP",AK80,AL80)) -> 26 | CD80: =1+COUNTIFS(INDIRECT("AN12:AN500"),AN80,INDIRECT("CB12:CB500"),CB80,INDIRECT("AO12:AO500"),">"&AO80) +COUNTIFS(INDIRECT("AO12:AO500"),AO80,INDIRECT("AN12:AN500"),1,INDIRECT("CB12:CB500"),CB80,INDIRECT("E12:E500"),"<"&E80) +COUNTIFS(INDIRECT("AO12:AO500"),AO80,INDIRECT("AN12:AN500"),1,INDIRECT("CB12:CB500"),CB80,INDIRECT("E12:E500"),E80,INDIRECT("CC12:CC500"),"<"&CC80) -> 2 | CE80: =1+COUNTIFS(INDIRECT("AN12:AN500"),AN80,INDIRECT("CB12:CB500"),CB80,INDIRECT("BB12:BB500"),">"&BB80) +COUNTIFS(INDIRECT("BB12:BB500"),BB80,INDIRECT("AN12:AN500"),1,INDIRECT("CB12:CB500"),CB80,INDIRECT("E12:E500"),"<"&E80) -> 2
A81: 1B | B81: Zak Mayo | C81: NC | D81: MR-O | E81: 92.26 | F81: =IFERROR(VLOOKUP(E81,[2]DATA!$E$2:$G$22,IF(LEFT(D81,1)="M",2,3)),"") -> 93 | G81: 105 | H81: =IFERROR(IF(LEFT(D81,1)="M",Wilks_Men(IF($E$11="Bwt - Lb",E81/2.2046,E81)),Wilks_Women(IF($E$11="Bwt - Lb",E81/2.2046,E81))),"") -> 0.6305999756 | I81: 1974-04-30 | J81: 16 | K81: 230 | L81: 242.5 | M81: 247.5 | N81: =IF(MAX(K81:M81)<=0,0,MAX(CELL("color",K81)*K81,CELL("color",L81)*L81,CELL("color",M81)*M81)) -> 247.5 | O81: 13-7 | P81: 150 | Q81: 160 | R81: -165 | S81: =IF(MAX(P81:R81)<=0,0,MAX(CELL("color",P81)*P81,CELL("color",Q81)*Q81,CELL("color",R81)*R81)) -> 160 | T81: =IF(OR(N81=0,S81=0),0,N81+S81) -> 407.5 | U81: 280 | V81: -300 | W81: -300 | X81: =IF(MAX(U81:W81)<=0,0,MAX(CELL("color",U81)*U81,CELL("color",V81)*V81,CELL("color",W81)*W81)) -> 280 | Y81: =AM81*IF($AM$11="SQ",N81,IF($AM$11="BP",S81,IF($AM$11="DL",X81,IF($AM$11="PP",IF(OR(S81=0,X81=0),0,S81+X81),IF(OR(T81=0,X81=0),0,T81+X81))))) -> 687.5 | Z81: =IF(Y81=0,"",CONCATENATE(CD81,"/",IF(AN81=4,"Wilks",D81),"/",IF(AN81>1,"",F81),"/",$AM$11)) -> 3/MR-O/93/PL | AA81: =BB81 -> 687.5 | AB81: =IF(AA81=0,"",CE81) -> 3 | AC81: =H81*IF($E$3="Kg",Y81,Y81/2.2046) -> 433.5374832 | AD81: =IFERROR(VLOOKUP(AS81,[2]DATA!$A$2:$B$63,2,TRUE),0)*AC81 -> 452.179595 | AE81: PL | AF81: 100399 | AG81: NC | AH81: =IFERROR(VLOOKUP(A81,[2]Setup!$Q$5:$R$20,2,FALSE),"") -> 1 | AI81: =IF(VALUE(INDIRECT(CONCATENATE($AI$11,ROW())))=0,"",ABS(INDIRECT(CONCATENATE($AI$11,ROW())))+0.000001*G81) -> 300.000105 | AJ81: 79 | AK81: 61 | AL81: 51 | AM81: =IF(ISERROR(SEARCH($AM$11,AE81)),0,1) -> 1 | AN81: =VLOOKUP(D81,[2]Setup!$I$6:$K$93,3,FALSE) -> 1 | AO81: =ROUND(IFERROR(IF(AN81=1,Y81,IF(AN81=2,AC81,IF(AN81=3,AD81,AC81))),0),5) -> 687.5 | AQ81: =IFERROR(MATCH(D81,[2]Setup!$I$6:$I$93,0),"") -> 27 | AR81: =IFERROR(CONCATENATE(LEFT(D81,FIND("-",D81)),IF(AS81="","O",VLOOKUP(AS81,[2]DATA!$E$35:$F$53,2,TRUE))),"") -> MR-M1a | AS81: =IF(YEAR($AR$7)-YEAR(I81)<40,DATEDIF(I81,$AR$7,"Y"),YEAR($AR$7)-YEAR(I81)) -> 44 | AT81: =IF(AN81=1,MATCH(F81,[2]DATA!$AB$2:$AB$34,0),0) -> 26 | AV81: =IF(MAX(K81:M81)>0,MAX(K81:M81),0) -> 247.5 | AW81: =IF(MAX(P81:R81)>0,MAX(P81:R81),0) -> 160 | AX81: =IF(MAX(U81:W81)>0,MAX(U81:W81),0) -> 280 | AY81: =AM81*IF($AM$11="PL",IF(MIN(AV81:AX81)=0,0,AV81+AW81+AX81),IF($AM$11="PP",IF(MIN(AW81:AX81)=0,0,AW81+AX81),IF($AM$11="BP",AW81,IF($AM$11="DL",AX81,AV81)))) -> 687.5 | AZ81: =ROUND(AY81*H81,5) -> 433.53748 | BA81: =ROUND(IFERROR(VLOOKUP(AS81,[2]DATA!$A$2:$B$63,2,FALSE),1)*AZ81,5) -> 452.17959 | BB81: =IFERROR(IF(AN81=1,AY81,IF(AN81=2,AZ81,IF(AN81=3,BA81,AZ81))),0) -> 687.5 | BZ81: =IFERROR(IF(FIND("DT",AE81),"Y",""),"") ->  | CB81: =CONCATENATE(IF(AN81=4,"",D81),IF(AN81=1,F81,"")) -> MR-O93 | CC81: =IF($AM$11="SQ",AJ81,IF($AM$11="BP",AK81,AL81)) -> 51 | CD81: =1+COUNTIFS(INDIRECT("AN12:AN500"),AN81,INDIRECT("CB12:CB500"),CB81,INDIRECT("AO12:AO500"),">"&AO81) +COUNTIFS(INDIRECT("AO12:AO500"),AO81,INDIRECT("AN12:AN500"),1,INDIRECT("CB12:CB500"),CB81,INDIRECT("E12:E500"),"<"&E81) +COUNTIFS(INDIRECT("AO12:AO500"),AO81,INDIRECT("AN12:AN500"),1,INDIRECT("CB12:CB500"),CB81,INDIRECT("E12:E500"),E81,INDIRECT("CC12:CC500"),"<"&CC81) -> 3 | CE81: =1+COUNTIFS(INDIRECT("AN12:AN500"),AN81,INDIRECT("CB12:CB500"),CB81,INDIRECT("BB12:BB500"),">"&BB81) +COUNTIFS(INDIRECT("BB12:BB500"),BB81,INDIRECT("AN12:AN500"),1,INDIRECT("CB12:CB500"),CB81,INDIRECT("E12:E500"),"<"&E81) -> 3
A82: 3A | B82: Joshua Riley | C82: NC | D82: MR-O | E82: 90.8 | F82: =IFERROR(VLOOKUP(E82,[3]DATA!$E$2:$G$22,IF(LEFT(D82,1)="M",2,3)),"") -> 93 | G82: 604 | H82: =IFERROR(IF(LEFT(D82,1)="M",Wilks_Men(IF($E$11="Bwt - Lb",E82/2.2046,E82)),Wilks_Women(IF($E$11="Bwt - Lb",E82/2.2046,E82))),"") -> 0.6355999708 | I82: 1992-03-25 | J82: 18 | K82: 205 | L82: 215 | M82: -227.5 | N82: =IF(MAX(K82:M82)<=0,0,MAX(CELL("color",K82)*K82,CELL("color",L82)*L82,CELL("color",M82)*M82)) -> 215 | O82: 17-7 | P82: 135 | Q82: 142.5 | R82: -145 | S82: =IF(MAX(P82:R82)<=0,0,MAX(CELL("color",P82)*P82,CELL("color",Q82)*Q82,CELL("color",R82)*R82)) -> 142.5 | T82: =IF(OR(N82=0,S82=0),0,N82+S82) -> 357.5 | U82: 265 | V82: -277.5 | W82: -277.5 | X82: =IF(MAX(U82:W82)<=0,0,MAX(CELL("color",U82)*U82,CELL("color",V82)*V82,CELL("color",W82)*W82)) -> 265 | Y82: =AM82*IF($AM$11="SQ",N82,IF($AM$11="BP",S82,IF($AM$11="DL",X82,IF($AM$11="PP",IF(OR(S82=0,X82=0),0,S82+X82),IF(OR(T82=0,X82=0),0,T82+X82))))) -> 622.5 | Z82: =IF(Y82=0,"",CONCATENATE(CD82,"/",IF(AN82=4,"Wilks",D82),"/",IF(AN82>1,"",F82),"/",$AM$11)) -> 4/MR-O/93/PL | AA82: =BB82 -> 622.5 | AB82: =IF(AA82=0,"",CE82) -> 4 | AC82: =H82*IF($E$3="Kg",Y82,Y82/2.2046) -> 395.6609818 | AD82: =IFERROR(VLOOKUP(AS82,[3]DATA!$A$2:$B$63,2,TRUE),0)*AC82 -> 395.6609818 | AE82: PL | AF82: 998986 | AG82: NC | AH82: =IFERROR(VLOOKUP(A82,[3]Setup!$Q$5:$R$20,2,FALSE),"") -> 0 | AI82: =IF(VALUE(INDIRECT(CONCATENATE($AI$11,ROW())))=0,"",ABS(INDIRECT(CONCATENATE($AI$11,ROW())))+0.000001*G82) -> 277.500604 | AJ82: 22 | AK82: 19 | AL82: 12 | AM82: =IF(ISERROR(SEARCH($AM$11,AE82)),0,1) -> 1 | AN82: =VLOOKUP(D82,[3]Setup!$I$6:$K$93,3,FALSE) -> 1 | AO82: =ROUND(IFERROR(IF(AN82=1,Y82,IF(AN82=2,AC82,IF(AN82=3,AD82,AC82))),0),5) -> 622.5 | AQ82: =IFERROR(MATCH(D82,[3]Setup!$I$6:$I$93,0),"") -> 27 | AR82: =IFERROR(CONCATENATE(LEFT(D82,FIND("-",D82)),IF(AS82="","O",VLOOKUP(AS82,[3]DATA!$E$35:$F$53,2,TRUE))),"") -> MR-O | AS82: =IF(YEAR($AR$7)-YEAR(I82)<40,DATEDIF(I82,$AR$7,"Y"),YEAR($AR$7)-YEAR(I82)) -> 25 | AT82: =IF(AN82=1,MATCH(F82,[3]DATA!$AB$2:$AB$34,0),0) -> 26 | AV82: =IF(MAX(K82:M82)>0,MAX(K82:M82),0) -> 215 | AW82: =IF(MAX(P82:R82)>0,MAX(P82:R82),0) -> 142.5 | AX82: =IF(MAX(U82:W82)>0,MAX(U82:W82),0) -> 265 | AY82: =AM82*IF($AM$11="PL",IF(MIN(AV82:AX82)=0,0,AV82+AW82+AX82),IF($AM$11="PP",IF(MIN(AW82:AX82)=0,0,AW82+AX82),IF($AM$11="BP",AW82,IF($AM$11="DL",AX82,AV82)))) -> 622.5 | AZ82: =ROUND(AY82*H82,5) -> 395.66098 | BA82: =ROUND(IFERROR(VLOOKUP(AS82,[3]DATA!$A$2:$B$63,2,FALSE),1)*AZ82,5) -> 395.66098 | BB82: =IFERROR(IF(AN82=1,AY82,IF(AN82=2,AZ82,IF(AN82=3,BA82,AZ82))),0) -> 622.5 | BZ82: =IFERROR(IF(FIND("DT",AE82),"Y",""),"") ->  | CB82: =CONCATENATE(IF(AN82=4,"",D82),IF(AN82=1,F82,"")) -> MR-O93 | CC82: =IF($AM$11="SQ",AJ82,IF($AM$11="BP",AK82,AL82)) -> 12 | CD82: =1+COUNTIFS(INDIRECT("AN12:AN500"),AN82,INDIRECT("CB12:CB500"),CB82,INDIRECT("AO12:AO500"),">"&AO82) +COUNTIFS(INDIRECT("AO12:AO500"),AO82,INDIRECT("AN12:AN500"),1,INDIRECT("CB12:CB500"),CB82,INDIRECT("E12:E500"),"<"&E82) +COUNTIFS(INDIRECT("AO12:AO500"),AO82,INDIRECT("AN12:AN500"),1,INDIRECT("CB12:CB500"),CB82,INDIRECT("E12:E500"),E82,INDIRECT("CC12:CC500"),"<"&CC82) -> 4 | CE82: =1+COUNTIFS(INDIRECT("AN12:AN500"),AN82,INDIRECT("CB12:CB500"),CB82,INDIRECT("BB12:BB500"),">"&BB82) +COUNTIFS(INDIRECT("BB12:BB500"),BB82,INDIRECT("AN12:AN500"),1,INDIRECT("CB12:CB500"),CB82,INDIRECT("E12:E500"),"<"&E82) -> 4
A83: 3A | B83: Neil Kern | C83: NC | D83: MR-O | E83: 92.12 | F83: =IFERROR(VLOOKUP(E83,[3]DATA!$E$2:$G$22,IF(LEFT(D83,1)="M",2,3)),"") -> 93 | G83: 214 | H83: =IFERROR(IF(LEFT(D83,1)="M",Wilks_Men(IF($E$11="Bwt - Lb",E83/2.2046,E83)),Wilks_Women(IF($E$11="Bwt - Lb",E83/2.2046,E83))),"") -> 0.631099999 | I83: 1988-03-22 | J83: 20 | K83: 185 | L83: 202.5 | M83: 207.5 | N83: =IF(MAX(K83:M83)<=0,0,MAX(CELL("color",K83)*K83,CELL("color",L83)*L83,CELL("color",M83)*M83)) -> 207.5 | O83: 15-6 | P83: 145 | Q83: -150 | R83: 150 | S83: =IF(MAX(P83:R83)<=0,0,MAX(CELL("color",P83)*P83,CELL("color",Q83)*Q83,CELL("color",R83)*R83)) -> 150 | T83: =IF(OR(N83=0,S83=0),0,N83+S83) -> 357.5 | U83: 235 | V83: 250 | W83: 262.5 | X83: =IF(MAX(U83:W83)<=0,0,MAX(CELL("color",U83)*U83,CELL("color",V83)*V83,CELL("color",W83)*W83)) -> 262.5 | Y83: =AM83*IF($AM$11="SQ",N83,IF($AM$11="BP",S83,IF($AM$11="DL",X83,IF($AM$11="PP",IF(OR(S83=0,X83=0),0,S83+X83),IF(OR(T83=0,X83=0),0,T83+X83))))) -> 620 | Z83: =IF(Y83=0,"",CONCATENATE(CD83,"/",IF(AN83=4,"Wilks",D83),"/",IF(AN83>1,"",F83),"/",$AM$11)) -> 5/MR-O/93/PL | AA83: =BB83 -> 620 | AB83: =IF(AA83=0,"",CE83) -> 5 | AC83: =H83*IF($E$3="Kg",Y83,Y83/2.2046) -> 391.2819993 | AD83: =IFERROR(VLOOKUP(AS83,[3]DATA!$A$2:$B$63,2,TRUE),0)*AC83 -> 391.2819993 | AE83: PL | AF83: 1015781 | AG83: NC | AH83: =IFERROR(VLOOKUP(A83,[3]Setup!$Q$5:$R$20,2,FALSE),"") -> 0 | AI83: =IF(VALUE(INDIRECT(CONCATENATE($AI$11,ROW())))=0,"",ABS(INDIRECT(CONCATENATE($AI$11,ROW())))+0.000001*G83) -> 262.500214 | AJ83: 30 | AK83: 26 | AL83: 31 | AM83: =IF(ISERROR(SEARCH($AM$11,AE83)),0,1) -> 1 | AN83: =VLOOKUP(D83,[3]Setup!$I$6:$K$93,3,FALSE) -> 1 | AO83: =ROUND(IFERROR(IF(AN83=1,Y83,IF(AN83=2,AC83,IF(AN83=3,AD83,AC83))),0),5) -> 620 | AQ83: =IFERROR(MATCH(D83,[3]Setup!$I$6:$I$93,0),"") -> 27 | AR83: =IFERROR(CONCATENATE(LEFT(D83,FIND("-",D83)),IF(AS83="","O",VLOOKUP(AS83,[3]DATA!$E$35:$F$53,2,TRUE))),"") -> MR-O | AS83: =IF(YEAR($AR$7)-YEAR(I83)<40,DATEDIF(I83,$AR$7,"Y"),YEAR($AR$7)-YEAR(I83)) -> 30 | AT83: =IF(AN83=1,MATCH(F83,[3]DATA!$AB$2:$AB$34,0),0) -> 26 | AV83: =IF(MAX(K83:M83)>0,MAX(K83:M83),0) -> 207.5 | AW83: =IF(MAX(P83:R83)>0,MAX(P83:R83),0) -> 150 | AX83: =IF(MAX(U83:W83)>0,MAX(U83:W83),0) -> 262.5 | AY83: =AM83*IF($AM$11="PL",IF(MIN(AV83:AX83)=0,0,AV83+AW83+AX83),IF($AM$11="PP",IF(MIN(AW83:AX83)=0,0,AW83+AX83),IF($AM$11="BP",AW83,IF($AM$11="DL",AX83,AV83)))) -> 620 | AZ83: =ROUND(AY83*H83,5) -> 391.282 | BA83: =ROUND(IFERROR(VLOOKUP(AS83,[3]DATA!$A$2:$B$63,2,FALSE),1)*AZ83,5) -> 391.282 | BB83: =IFERROR(IF(AN83=1,AY83,IF(AN83=2,AZ83,IF(AN83=3,BA83,AZ83))),0) -> 620 | BZ83: =IFERROR(IF(FIND("DT",AE83),"Y",""),"") ->  | CB83: =CONCATENATE(IF(AN83=4,"",D83),IF(AN83=1,F83,"")) -> MR-O93 | CC83: =IF($AM$11="SQ",AJ83,IF($AM$11="BP",AK83,AL83)) -> 31 | CD83: =1+COUNTIFS(INDIRECT("AN12:AN500"),AN83,INDIRECT("CB12:CB500"),CB83,INDIRECT("AO12:AO500"),">"&AO83) +COUNTIFS(INDIRECT("AO12:AO500"),AO83,INDIRECT("AN12:AN500"),1,INDIRECT("CB12:CB500"),CB83,INDIRECT("E12:E500"),"<"&E83) +COUNTIFS(INDIRECT("AO12:AO500"),AO83,INDIRECT("AN12:AN500"),1,INDIRECT("CB12:CB500"),CB83,INDIRECT("E12:E500"),E83,INDIRECT("CC12:CC500"),"<"&CC83) -> 5 | CE83: =1+COUNTIFS(INDIRECT("AN12:AN500"),AN83,INDIRECT("CB12:CB500"),CB83,INDIRECT("BB12:BB500"),">"&BB83) +COUNTIFS(INDIRECT("BB12:BB500"),BB83,INDIRECT("AN12:AN500"),1,INDIRECT("CB12:CB500"),CB83,INDIRECT("E12:E500"),"<"&E83) -> 5
A84: 3A | B84: Michael Markowkin | C84: NC | D84: MR-O | E84: 90.18 | F84: =IFERROR(VLOOKUP(E84,[3]DATA!$E$2:$G$22,IF(LEFT(D84,1)="M",2,3)),"") -> 93 | G84: 610 | H84: =IFERROR(IF(LEFT(D84,1)="M",Wilks_Men(IF($E$11="Bwt - Lb",E84/2.2046,E84)),Wilks_Women(IF($E$11="Bwt - Lb",E84/2.2046,E84))),"") -> 0.6377000213 | I84: 1988-09-07 | J84: 18 | K84: 210 | L84: 220 | M84: 225 | N84: =IF(MAX(K84:M84)<=0,0,MAX(CELL("color",K84)*K84,CELL("color",L84)*L84,CELL("color",M84)*M84)) -> 225 | O84: 15-7 | P84: 152.5 | Q84: -157.5 | R84: -157.5 | S84: =IF(MAX(P84:R84)<=0,0,MAX(CELL("color",P84)*P84,CELL("color",Q84)*Q84,CELL("color",R84)*R84)) -> 152.5 | T84: =IF(OR(N84=0,S84=0),0,N84+S84) -> 377.5 | U84: 220 | V84: 230 | W84: -235 | X84: =IF(MAX(U84:W84)<=0,0,MAX(CELL("color",U84)*U84,CELL("color",V84)*V84,CELL("color",W84)*W84)) -> 230 | Y84: =AM84*IF($AM$11="SQ",N84,IF($AM$11="BP",S84,IF($AM$11="DL",X84,IF($AM$11="PP",IF(OR(S84=0,X84=0),0,S84+X84),IF(OR(T84=0,X84=0),0,T84+X84))))) -> 607.5 | Z84: =IF(Y84=0,"",CONCATENATE(CD84,"/",IF(AN84=4,"Wilks",D84),"/",IF(AN84>1,"",F84),"/",$AM$11)) -> 6/MR-O/93/PL | AA84: =BB84 -> 607.5 | AB84: =IF(AA84=0,"",CE84) -> 6 | AC84: =H84*IF($E$3="Kg",Y84,Y84/2.2046) -> 387.4027629 | AD84: =IFERROR(VLOOKUP(AS84,[3]DATA!$A$2:$B$63,2,TRUE),0)*AC84 -> 387.4027629 | AE84: PL | AF84: 1007467 | AG84: NC | AH84: =IFERROR(VLOOKUP(A84,[3]Setup!$Q$5:$R$20,2,FALSE),"") -> 0 | AI84: =IF(VALUE(INDIRECT(CONCATENATE($AI$11,ROW())))=0,"",ABS(INDIRECT(CONCATENATE($AI$11,ROW())))+0.000001*G84) -> 235.00061 | AJ84: 33 | AK84: 10 | AL84: 20 | AM84: =IF(ISERROR(SEARCH($AM$11,AE84)),0,1) -> 1 | AN84: =VLOOKUP(D84,[3]Setup!$I$6:$K$93,3,FALSE) -> 1 | AO84: =ROUND(IFERROR(IF(AN84=1,Y84,IF(AN84=2,AC84,IF(AN84=3,AD84,AC84))),0),5) -> 607.5 | AQ84: =IFERROR(MATCH(D84,[3]Setup!$I$6:$I$93,0),"") -> 27 | AR84: =IFERROR(CONCATENATE(LEFT(D84,FIND("-",D84)),IF(AS84="","O",VLOOKUP(AS84,[3]DATA!$E$35:$F$53,2,TRUE))),"") -> MR-O | AS84: =IF(YEAR($AR$7)-YEAR(I84)<40,DATEDIF(I84,$AR$7,"Y"),YEAR($AR$7)-YEAR(I84)) -> 29 | AT84: =IF(AN84=1,MATCH(F84,[3]DATA!$AB$2:$AB$34,0),0) -> 26 | AV84: =IF(MAX(K84:M84)>0,MAX(K84:M84),0) -> 225 | AW84: =IF(MAX(P84:R84)>0,MAX(P84:R84),0) -> 152.5 | AX84: =IF(MAX(U84:W84)>0,MAX(U84:W84),0) -> 230 | AY84: =AM84*IF($AM$11="PL",IF(MIN(AV84:AX84)=0,0,AV84+AW84+AX84),IF($AM$11="PP",IF(MIN(AW84:AX84)=0,0,AW84+AX84),IF($AM$11="BP",AW84,IF($AM$11="DL",AX84,AV84)))) -> 607.5 | AZ84: =ROUND(AY84*H84,5) -> 387.40276 | BA84: =ROUND(IFERROR(VLOOKUP(AS84,[3]DATA!$A$2:$B$63,2,FALSE),1)*AZ84,5) -> 387.40276 | BB84: =IFERROR(IF(AN84=1,AY84,IF(AN84=2,AZ84,IF(AN84=3,BA84,AZ84))),0) -> 607.5 | BZ84: =IFERROR(IF(FIND("DT",AE84),"Y",""),"") ->  | CB84: =CONCATENATE(IF(AN84=4,"",D84),IF(AN84=1,F84,"")) -> MR-O93 | CC84: =IF($AM$11="SQ",AJ84,IF($AM$11="BP",AK84,AL84)) -> 20 | CD84: =1+COUNTIFS(INDIRECT("AN12:AN500"),AN84,INDIRECT("CB12:CB500"),CB84,INDIRECT("AO12:AO500"),">"&AO84) +COUNTIFS(INDIRECT("AO12:AO500"),AO84,INDIRECT("AN12:AN500"),1,INDIRECT("CB12:CB500"),CB84,INDIRECT("E12:E500"),"<"&E84) +COUNTIFS(INDIRECT("AO12:AO500"),AO84,INDIRECT("AN12:AN500"),1,INDIRECT("CB12:CB500"),CB84,INDIRECT("E12:E500"),E84,INDIRECT("CC12:CC500"),"<"&CC84) -> 6 | CE84: =1+COUNTIFS(INDIRECT("AN12:AN500"),AN84,INDIRECT("CB12:CB500"),CB84,INDIRECT("BB12:BB500"),">"&BB84) +COUNTIFS(INDIRECT("BB12:BB500"),BB84,INDIRECT("AN12:AN500"),1,INDIRECT("CB12:CB500"),CB84,INDIRECT("E12:E500"),"<"&E84) -> 6
A85: 1A | B85: Colton Hurley | C85: NC | D85: MR-O | E85: 91.54 | F85: =IFERROR(VLOOKUP(E85,[2]DATA!$E$2:$G$22,IF(LEFT(D85,1)="M",2,3)),"") -> 93 | G85: 10 | H85: =IFERROR(IF(LEFT(D85,1)="M",Wilks_Men(IF($E$11="Bwt - Lb",E85/2.2046,E85)),Wilks_Women(IF($E$11="Bwt - Lb",E85/2.2046,E85))),"") -> 0.6330000162 | I85: 2001-06-06 | J85: 15 | K85: 225 | L85: 237.5 | M85: 250 | N85: =IF(MAX(K85:M85)<=0,0,MAX(CELL("color",K85)*K85,CELL("color",L85)*L85,CELL("color",M85)*M85)) -> 250 | O85: 13-6 | P85: 127.5 | Q85: -132.5 | R85: -132.5 | S85: =IF(MAX(P85:R85)<=0,0,MAX(CELL("color",P85)*P85,CELL("color",Q85)*Q85,CELL("color",R85)*R85)) -> 127.5 | T85: =IF(OR(N85=0,S85=0),0,N85+S85) -> 377.5 | U85: 185 | V85: 202.5 | W85: 220 | X85: =IF(MAX(U85:W85)<=0,0,MAX(CELL("color",U85)*U85,CELL("color",V85)*V85,CELL("color",W85)*W85)) -> 220 | Y85: =AM85*IF($AM$11="SQ",N85,IF($AM$11="BP",S85,IF($AM$11="DL",X85,IF($AM$11="PP",IF(OR(S85=0,X85=0),0,S85+X85),IF(OR(T85=0,X85=0),0,T85+X85))))) -> 597.5 | Z85: =IF(Y85=0,"",CONCATENATE(CD85,"/",IF(AN85=4,"Wilks",D85),"/",IF(AN85>1,"",F85),"/",$AM$11)) -> 7/MR-O/93/PL | AA85: =BB85 -> 597.5 | AB85: =IF(AA85=0,"",CE85) -> 7 | AC85: =H85*IF($E$3="Kg",Y85,Y85/2.2046) -> 378.2175097 | AD85: =IFERROR(VLOOKUP(AS85,[2]DATA!$A$2:$B$63,2,TRUE),0)*AC85 -> 427.3857859 | AE85: PL | AG85: NC | AH85: =IFERROR(VLOOKUP(A85,[2]Setup!$Q$5:$R$20,2,FALSE),"") -> 0 | AI85: =IF(VALUE(INDIRECT(CONCATENATE($AI$11,ROW())))=0,"",ABS(INDIRECT(CONCATENATE($AI$11,ROW())))+0.000001*G85) -> 220.00001 | AJ85: 31 | AK85: 10 | AL85: 33 | AM85: =IF(ISERROR(SEARCH($AM$11,AE85)),0,1) -> 1 | AN85: =VLOOKUP(D85,[2]Setup!$I$6:$K$93,3,FALSE) -> 1 | AO85: =ROUND(IFERROR(IF(AN85=1,Y85,IF(AN85=2,AC85,IF(AN85=3,AD85,AC85))),0),5) -> 597.5 | AQ85: =IFERROR(MATCH(D85,[2]Setup!$I$6:$I$93,0),"") -> 27 | AR85: =IFERROR(CONCATENATE(LEFT(D85,FIND("-",D85)),IF(AS85="","O",VLOOKUP(AS85,[2]DATA!$E$35:$F$53,2,TRUE))),"") -> MR-T2 | AS85: =IF(YEAR($AR$7)-YEAR(I85)<40,DATEDIF(I85,$AR$7,"Y"),YEAR($AR$7)-YEAR(I85)) -> 16 | AT85: =IF(AN85=1,MATCH(F85,[2]DATA!$AB$2:$AB$34,0),0) -> 26 | AV85: =IF(MAX(K85:M85)>0,MAX(K85:M85),0) -> 250 | AW85: =IF(MAX(P85:R85)>0,MAX(P85:R85),0) -> 127.5 | AX85: =IF(MAX(U85:W85)>0,MAX(U85:W85),0) -> 220 | AY85: =AM85*IF($AM$11="PL",IF(MIN(AV85:AX85)=0,0,AV85+AW85+AX85),IF($AM$11="PP",IF(MIN(AW85:AX85)=0,0,AW85+AX85),IF($AM$11="BP",AW85,IF($AM$11="DL",AX85,AV85)))) -> 597.5 | AZ85: =ROUND(AY85*H85,5) -> 378.21751 | BA85: =ROUND(IFERROR(VLOOKUP(AS85,[2]DATA!$A$2:$B$63,2,FALSE),1)*AZ85,5) -> 427.38579 | BB85: =IFERROR(IF(AN85=1,AY85,IF(AN85=2,AZ85,IF(AN85=3,BA85,AZ85))),0) -> 597.5 | BZ85: =IFERROR(IF(FIND("DT",AE85),"Y",""),"") ->  | CB85: =CONCATENATE(IF(AN85=4,"",D85),IF(AN85=1,F85,"")) -> MR-O93 | CC85: =IF($AM$11="SQ",AJ85,IF($AM$11="BP",AK85,AL85)) -> 33 | CD85: =1+COUNTIFS(INDIRECT("AN12:AN500"),AN85,INDIRECT("CB12:CB500"),CB85,INDIRECT("AO12:AO500"),">"&AO85) +COUNTIFS(INDIRECT("AO12:AO500"),AO85,INDIRECT("AN12:AN500"),1,INDIRECT("CB12:CB500"),CB85,INDIRECT("E12:E500"),"<"&E85) +COUNTIFS(INDIRECT("AO12:AO500"),AO85,INDIRECT("AN12:AN500"),1,INDIRECT("CB12:CB500"),CB85,INDIRECT("E12:E500"),E85,INDIRECT("CC12:CC500"),"<"&CC85) -> 7 | CE85: =1+COUNTIFS(INDIRECT("AN12:AN500"),AN85,INDIRECT("CB12:CB500"),CB85,INDIRECT("BB12:BB500"),">"&BB85) +COUNTIFS(INDIRECT("BB12:BB500"),BB85,INDIRECT("AN12:AN500"),1,INDIRECT("CB12:CB500"),CB85,INDIRECT("E12:E500"),"<"&E85) -> 7
A86: 3A | B86: Nick Peterson | C86: NC | D86: MR-O | E86: 90.7 | F86: =IFERROR(VLOOKUP(E86,[3]DATA!$E$2:$G$22,IF(LEFT(D86,1)="M",2,3)),"") -> 93 | G86: 602 | H86: =IFERROR(IF(LEFT(D86,1)="M",Wilks_Men(IF($E$11="Bwt - Lb",E86/2.2046,E86)),Wilks_Women(IF($E$11="Bwt - Lb",E86/2.2046,E86))),"") -> 0.6359000206 | I86: 1997-11-02 | J86: 15 | K86: 207.5 | L86: 212.5 | M86: 217.5 | N86: =IF(MAX(K86:M86)<=0,0,MAX(CELL("color",K86)*K86,CELL("color",L86)*L86,CELL("color",M86)*M86)) -> 217.5 | O86: 15-7 | P86: 115 | Q86: 125 | R86: 135 | S86: =IF(MAX(P86:R86)<=0,0,MAX(CELL("color",P86)*P86,CELL("color",Q86)*Q86,CELL("color",R86)*R86)) -> 135 | T86: =IF(OR(N86=0,S86=0),0,N86+S86) -> 352.5 | U86: 210 | V86: 222.5 | W86: 240 | X86: =IF(MAX(U86:W86)<=0,0,MAX(CELL("color",U86)*U86,CELL("color",V86)*V86,CELL("color",W86)*W86)) -> 240 | Y86: =AM86*IF($AM$11="SQ",N86,IF($AM$11="BP",S86,IF($AM$11="DL",X86,IF($AM$11="PP",IF(OR(S86=0,X86=0),0,S86+X86),IF(OR(T86=0,X86=0),0,T86+X86))))) -> 592.5 | Z86: =IF(Y86=0,"",CONCATENATE(CD86,"/",IF(AN86=4,"Wilks",D86),"/",IF(AN86>1,"",F86),"/",$AM$11)) -> 8/MR-O/93/PL | AA86: =BB86 -> 592.5 | AB86: =IF(AA86=0,"",CE86) -> 8 | AC86: =H86*IF($E$3="Kg",Y86,Y86/2.2046) -> 376.7707622 | AD86: =IFERROR(VLOOKUP(AS86,[3]DATA!$A$2:$B$63,2,TRUE),0)*AC86 -> 388.0738851 | AE86: PL | AF86: 1011871 | AG86: NC | AH86: =IFERROR(VLOOKUP(A86,[3]Setup!$Q$5:$R$20,2,FALSE),"") -> 0 | AI86: =IF(VALUE(INDIRECT(CONCATENATE($AI$11,ROW())))=0,"",ABS(INDIRECT(CONCATENATE($AI$11,ROW())))+0.000001*G86) -> 240.000602 | AJ86: 31 | AK86: 13 | AL86: 30 | AM86: =IF(ISERROR(SEARCH($AM$11,AE86)),0,1) -> 1 | AN86: =VLOOKUP(D86,[3]Setup!$I$6:$K$93,3,FALSE) -> 1 | AO86: =ROUND(IFERROR(IF(AN86=1,Y86,IF(AN86=2,AC86,IF(AN86=3,AD86,AC86))),0),5) -> 592.5 | AQ86: =IFERROR(MATCH(D86,[3]Setup!$I$6:$I$93,0),"") -> 27 | AR86: =IFERROR(CONCATENATE(LEFT(D86,FIND("-",D86)),IF(AS86="","O",VLOOKUP(AS86,[3]DATA!$E$35:$F$53,2,TRUE))),"") -> MR-Jr | AS86: =IF(YEAR($AR$7)-YEAR(I86)<40,DATEDIF(I86,$AR$7,"Y"),YEAR($AR$7)-YEAR(I86)) -> 20 | AT86: =IF(AN86=1,MATCH(F86,[3]DATA!$AB$2:$AB$34,0),0) -> 26 | AV86: =IF(MAX(K86:M86)>0,MAX(K86:M86),0) -> 217.5 | AW86: =IF(MAX(P86:R86)>0,MAX(P86:R86),0) -> 135 | AX86: =IF(MAX(U86:W86)>0,MAX(U86:W86),0) -> 240 | AY86: =AM86*IF($AM$11="PL",IF(MIN(AV86:AX86)=0,0,AV86+AW86+AX86),IF($AM$11="PP",IF(MIN(AW86:AX86)=0,0,AW86+AX86),IF($AM$11="BP",AW86,IF($AM$11="DL",AX86,AV86)))) -> 592.5 | AZ86: =ROUND(AY86*H86,5) -> 376.77076 | BA86: =ROUND(IFERROR(VLOOKUP(AS86,[3]DATA!$A$2:$B$63,2,FALSE),1)*AZ86,5) -> 388.07388 | BB86: =IFERROR(IF(AN86=1,AY86,IF(AN86=2,AZ86,IF(AN86=3,BA86,AZ86))),0) -> 592.5 | BZ86: =IFERROR(IF(FIND("DT",AE86),"Y",""),"") ->  | CB86: =CONCATENATE(IF(AN86=4,"",D86),IF(AN86=1,F86,"")) -> MR-O93 | CC86: =IF($AM$11="SQ",AJ86,IF($AM$11="BP",AK86,AL86)) -> 30 | CD86: =1+COUNTIFS(INDIRECT("AN12:AN500"),AN86,INDIRECT("CB12:CB500"),CB86,INDIRECT("AO12:AO500"),">"&AO86) +COUNTIFS(INDIRECT("AO12:AO500"),AO86,INDIRECT("AN12:AN500"),1,INDIRECT("CB12:CB500"),CB86,INDIRECT("E12:E500"),"<"&E86) +COUNTIFS(INDIRECT("AO12:AO500"),AO86,INDIRECT("AN12:AN500"),1,INDIRECT("CB12:CB500"),CB86,INDIRECT("E12:E500"),E86,INDIRECT("CC12:CC500"),"<"&CC86) -> 8 | CE86: =1+COUNTIFS(INDIRECT("AN12:AN500"),AN86,INDIRECT("CB12:CB500"),CB86,INDIRECT("BB12:BB500"),">"&BB86) +COUNTIFS(INDIRECT("BB12:BB500"),BB86,INDIRECT("AN12:AN500"),1,INDIRECT("CB12:CB500"),CB86,INDIRECT("E12:E500"),"<"&E86) -> 8
A87: 3A | B87: William Horstmann | C87: TN | D87: MR-O | E87: 92.1 | F87: =IFERROR(VLOOKUP(E87,[3]DATA!$E$2:$G$22,IF(LEFT(D87,1)="M",2,3)),"") -> 93 | G87: 603 | H87: =IFERROR(IF(LEFT(D87,1)="M",Wilks_Men(IF($E$11="Bwt - Lb",E87/2.2046,E87)),Wilks_Women(IF($E$11="Bwt - Lb",E87/2.2046,E87))),"") -> 0.631099999 | I87: 1994-12-09 | J87: 18 | K87: -220 | L87: 220 | M87: -230 | N87: =IF(MAX(K87:M87)<=0,0,MAX(CELL("color",K87)*K87,CELL("color",L87)*L87,CELL("color",M87)*M87)) -> 220 | O87: 13-8 | P87: 125 | Q87: 132.5 | R87: -137.5 | S87: =IF(MAX(P87:R87)<=0,0,MAX(CELL("color",P87)*P87,CELL("color",Q87)*Q87,CELL("color",R87)*R87)) -> 132.5 | T87: =IF(OR(N87=0,S87=0),0,N87+S87) -> 352.5 | U87: 230 | V87: 237.5 | W87: -242.5 | X87: =IF(MAX(U87:W87)<=0,0,MAX(CELL("color",U87)*U87,CELL("color",V87)*V87,CELL("color",W87)*W87)) -> 237.5 | Y87: =AM87*IF($AM$11="SQ",N87,IF($AM$11="BP",S87,IF($AM$11="DL",X87,IF($AM$11="PP",IF(OR(S87=0,X87=0),0,S87+X87),IF(OR(T87=0,X87=0),0,T87+X87))))) -> 590 | Z87: =IF(Y87=0,"",CONCATENATE(CD87,"/",IF(AN87=4,"Wilks",D87),"/",IF(AN87>1,"",F87),"/",$AM$11)) -> 9/MR-O/93/PL | AA87: =BB87 -> 590 | AB87: =IF(AA87=0,"",CE87) -> 9 | AC87: =H87*IF($E$3="Kg",Y87,Y87/2.2046) -> 372.3489994 | AD87: =IFERROR(VLOOKUP(AS87,[3]DATA!$A$2:$B$63,2,TRUE),0)*AC87 -> 372.3489994 | AE87: PL | AF87: 1012064 | AG87: TN | AH87: =IFERROR(VLOOKUP(A87,[3]Setup!$Q$5:$R$20,2,FALSE),"") -> 0 | AI87: =IF(VALUE(INDIRECT(CONCATENATE($AI$11,ROW())))=0,"",ABS(INDIRECT(CONCATENATE($AI$11,ROW())))+0.000001*G87) -> 242.500603 | AJ87: 23 | AK87: 15 | AL87: 22 | AM87: =IF(ISERROR(SEARCH($AM$11,AE87)),0,1) -> 1 | AN87: =VLOOKUP(D87,[3]Setup!$I$6:$K$93,3,FALSE) -> 1 | AO87: =ROUND(IFERROR(IF(AN87=1,Y87,IF(AN87=2,AC87,IF(AN87=3,AD87,AC87))),0),5) -> 590 | AQ87: =IFERROR(MATCH(D87,[3]Setup!$I$6:$I$93,0),"") -> 27 | AR87: =IFERROR(CONCATENATE(LEFT(D87,FIND("-",D87)),IF(AS87="","O",VLOOKUP(AS87,[3]DATA!$E$35:$F$53,2,TRUE))),"") -> MR-Jr | AS87: =IF(YEAR($AR$7)-YEAR(I87)<40,DATEDIF(I87,$AR$7,"Y"),YEAR($AR$7)-YEAR(I87)) -> 23 | AT87: =IF(AN87=1,MATCH(F87,[3]DATA!$AB$2:$AB$34,0),0) -> 26 | AV87: =IF(MAX(K87:M87)>0,MAX(K87:M87),0) -> 220 | AW87: =IF(MAX(P87:R87)>0,MAX(P87:R87),0) -> 132.5 | AX87: =IF(MAX(U87:W87)>0,MAX(U87:W87),0) -> 237.5 | AY87: =AM87*IF($AM$11="PL",IF(MIN(AV87:AX87)=0,0,AV87+AW87+AX87),IF($AM$11="PP",IF(MIN(AW87:AX87)=0,0,AW87+AX87),IF($AM$11="BP",AW87,IF($AM$11="DL",AX87,AV87)))) -> 590 | AZ87: =ROUND(AY87*H87,5) -> 372.349 | BA87: =ROUND(IFERROR(VLOOKUP(AS87,[3]DATA!$A$2:$B$63,2,FALSE),1)*AZ87,5) -> 372.349 | BB87: =IFERROR(IF(AN87=1,AY87,IF(AN87=2,AZ87,IF(AN87=3,BA87,AZ87))),0) -> 590 | BZ87: =IFERROR(IF(FIND("DT",AE87),"Y",""),"") ->  | CB87: =CONCATENATE(IF(AN87=4,"",D87),IF(AN87=1,F87,"")) -> MR-O93 | CC87: =IF($AM$11="SQ",AJ87,IF($AM$11="BP",AK87,AL87)) -> 22 | CD87: =1+COUNTIFS(INDIRECT("AN12:AN500"),AN87,INDIRECT("CB12:CB500"),CB87,INDIRECT("AO12:AO500"),">"&AO87) +COUNTIFS(INDIRECT("AO12:AO500"),AO87,INDIRECT("AN12:AN500"),1,INDIRECT("CB12:CB500"),CB87,INDIRECT("E12:E500"),"<"&E87) +COUNTIFS(INDIRECT("AO12:AO500"),AO87,INDIRECT("AN12:AN500"),1,INDIRECT("CB12:CB500"),CB87,INDIRECT("E12:E500"),E87,INDIRECT("CC12:CC500"),"<"&CC87) -> 9 | CE87: =1+COUNTIFS(INDIRECT("AN12:AN500"),AN87,INDIRECT("CB12:CB500"),CB87,INDIRECT("BB12:BB500"),">"&BB87) +COUNTIFS(INDIRECT("BB12:BB500"),BB87,INDIRECT("AN12:AN500"),1,INDIRECT("CB12:CB500"),CB87,INDIRECT("E12:E500"),"<"&E87) -> 9
A88: 3A | B88: Will Hayes | C88: NC | D88: MR-O | E88: 90.84 | F88: =IFERROR(VLOOKUP(E88,[3]DATA!$E$2:$G$22,IF(LEFT(D88,1)="M",2,3)),"") -> 93 | G88: 609 | H88: =IFERROR(IF(LEFT(D88,1)="M",Wilks_Men(IF($E$11="Bwt - Lb",E88/2.2046,E88)),Wilks_Women(IF($E$11="Bwt - Lb",E88/2.2046,E88))),"") -> 0.6353999972 | I88: 1988-06-19 | J88: 18 | K88: 205 | L88: 220 | M88: -227.5 | N88: =IF(MAX(K88:M88)<=0,0,MAX(CELL("color",K88)*K88,CELL("color",L88)*L88,CELL("color",M88)*M88)) -> 220 | O88: 15-6 | P88: 130 | Q88: 135 | R88: -140 | S88: =IF(MAX(P88:R88)<=0,0,MAX(CELL("color",P88)*P88,CELL("color",Q88)*Q88,CELL("color",R88)*R88)) -> 135 | T88: =IF(OR(N88=0,S88=0),0,N88+S88) -> 355 | U88: 210 | V88: 227.5 | W88: -235 | X88: =IF(MAX(U88:W88)<=0,0,MAX(CELL("color",U88)*U88,CELL("color",V88)*V88,CELL("color",W88)*W88)) -> 227.5 | Y88: =AM88*IF($AM$11="SQ",N88,IF($AM$11="BP",S88,IF($AM$11="DL",X88,IF($AM$11="PP",IF(OR(S88=0,X88=0),0,S88+X88),IF(OR(T88=0,X88=0),0,T88+X88))))) -> 582.5 | Z88: =IF(Y88=0,"",CONCATENATE(CD88,"/",IF(AN88=4,"Wilks",D88),"/",IF(AN88>1,"",F88),"/",$AM$11)) -> 10/MR-O/93/PL | AA88: =BB88 -> 582.5 | AB88: =IF(AA88=0,"",CE88) -> 10 | AC88: =H88*IF($E$3="Kg",Y88,Y88/2.2046) -> 370.1204984 | AD88: =IFERROR(VLOOKUP(AS88,[3]DATA!$A$2:$B$63,2,TRUE),0)*AC88 -> 370.1204984 | AE88: PL | AF88: 1015569 | AG88: NC | AH88: =IFERROR(VLOOKUP(A88,[3]Setup!$Q$5:$R$20,2,FALSE),"") -> 0 | AI88: =IF(VALUE(INDIRECT(CONCATENATE($AI$11,ROW())))=0,"",ABS(INDIRECT(CONCATENATE($AI$11,ROW())))+0.000001*G88) -> 235.000609 | AJ88: 24 | AK88: 17 | AL88: 19 | AM88: =IF(ISERROR(SEARCH($AM$11,AE88)),0,1) -> 1 | AN88: =VLOOKUP(D88,[3]Setup!$I$6:$K$93,3,FALSE) -> 1 | AO88: =ROUND(IFERROR(IF(AN88=1,Y88,IF(AN88=2,AC88,IF(AN88=3,AD88,AC88))),0),5) -> 582.5 | AQ88: =IFERROR(MATCH(D88,[3]Setup!$I$6:$I$93,0),"") -> 27 | AR88: =IFERROR(CONCATENATE(LEFT(D88,FIND("-",D88)),IF(AS88="","O",VLOOKUP(AS88,[3]DATA!$E$35:$F$53,2,TRUE))),"") -> MR-O | AS88: =IF(YEAR($AR$7)-YEAR(I88)<40,DATEDIF(I88,$AR$7,"Y"),YEAR($AR$7)-YEAR(I88)) -> 29 | AT88: =IF(AN88=1,MATCH(F88,[3]DATA!$AB$2:$AB$34,0),0) -> 26 | AV88: =IF(MAX(K88:M88)>0,MAX(K88:M88),0) -> 220 | AW88: =IF(MAX(P88:R88)>0,MAX(P88:R88),0) -> 135 | AX88: =IF(MAX(U88:W88)>0,MAX(U88:W88),0) -> 227.5 | AY88: =AM88*IF($AM$11="PL",IF(MIN(AV88:AX88)=0,0,AV88+AW88+AX88),IF($AM$11="PP",IF(MIN(AW88:AX88)=0,0,AW88+AX88),IF($AM$11="BP",AW88,IF($AM$11="DL",AX88,AV88)))) -> 582.5 | AZ88: =ROUND(AY88*H88,5) -> 370.1205 | BA88: =ROUND(IFERROR(VLOOKUP(AS88,[3]DATA!$A$2:$B$63,2,FALSE),1)*AZ88,5) -> 370.1205 | BB88: =IFERROR(IF(AN88=1,AY88,IF(AN88=2,AZ88,IF(AN88=3,BA88,AZ88))),0) -> 582.5 | BZ88: =IFERROR(IF(FIND("DT",AE88),"Y",""),"") ->  | CB88: =CONCATENATE(IF(AN88=4,"",D88),IF(AN88=1,F88,"")) -> MR-O93 | CC88: =IF($AM$11="SQ",AJ88,IF($AM$11="BP",AK88,AL88)) -> 19 | CD88: =1+COUNTIFS(INDIRECT("AN12:AN500"),AN88,INDIRECT("CB12:CB500"),CB88,INDIRECT("AO12:AO500"),">"&AO88) +COUNTIFS(INDIRECT("AO12:AO500"),AO88,INDIRECT("AN12:AN500"),1,INDIRECT("CB12:CB500"),CB88,INDIRECT("E12:E500"),"<"&E88) +COUNTIFS(INDIRECT("AO12:AO500"),AO88,INDIRECT("AN12:AN500"),1,INDIRECT("CB12:CB500"),CB88,INDIRECT("E12:E500"),E88,INDIRECT("CC12:CC500"),"<"&CC88) -> 10 | CE88: =1+COUNTIFS(INDIRECT("AN12:AN500"),AN88,INDIRECT("CB12:CB500"),CB88,INDIRECT("BB12:BB500"),">"&BB88) +COUNTIFS(INDIRECT("BB12:BB500"),BB88,INDIRECT("AN12:AN500"),1,INDIRECT("CB12:CB500"),CB88,INDIRECT("E12:E500"),"<"&E88) -> 10
A89: 3A | B89: David Braden | C89: SC | D89: MR-O | E89: 84.72 | F89: =IFERROR(VLOOKUP(E89,[3]DATA!$E$2:$G$22,IF(LEFT(D89,1)="M",2,3)),"") -> 93 | G89: 605 | H89: =IFERROR(IF(LEFT(D89,1)="M",Wilks_Men(IF($E$11="Bwt - Lb",E89/2.2046,E89)),Wilks_Women(IF($E$11="Bwt - Lb",E89/2.2046,E89))),"") -> 0.6596000195 | I89: 1990-07-24 | J89: 17 | K89: 200 | L89: 210 | M89: 217.5 | N89: =IF(MAX(K89:M89)<=0,0,MAX(CELL("color",K89)*K89,CELL("color",L89)*L89,CELL("color",M89)*M89)) -> 217.5 | O89: 12-6 | P89: 120 | Q89: 125 | R89: -130 | S89: =IF(MAX(P89:R89)<=0,0,MAX(CELL("color",P89)*P89,CELL("color",Q89)*Q89,CELL("color",R89)*R89)) -> 125 | T89: =IF(OR(N89=0,S89=0),0,N89+S89) -> 342.5 | U89: 215 | V89: 232.5 | W89: 235 | X89: =IF(MAX(U89:W89)<=0,0,MAX(CELL("color",U89)*U89,CELL("color",V89)*V89,CELL("color",W89)*W89)) -> 235 | Y89: =AM89*IF($AM$11="SQ",N89,IF($AM$11="BP",S89,IF($AM$11="DL",X89,IF($AM$11="PP",IF(OR(S89=0,X89=0),0,S89+X89),IF(OR(T89=0,X89=0),0,T89+X89))))) -> 577.5 | Z89: =IF(Y89=0,"",CONCATENATE(CD89,"/",IF(AN89=4,"Wilks",D89),"/",IF(AN89>1,"",F89),"/",$AM$11)) -> 11/MR-O/93/PL | AA89: =BB89 -> 577.5 | AB89: =IF(AA89=0,"",CE89) -> 11 | AC89: =H89*IF($E$3="Kg",Y89,Y89/2.2046) -> 380.9190112 | AD89: =IFERROR(VLOOKUP(AS89,[3]DATA!$A$2:$B$63,2,TRUE),0)*AC89 -> 380.9190112 | AE89: PL | AF89: 102764 | AG89: SC | AH89: =IFERROR(VLOOKUP(A89,[3]Setup!$Q$5:$R$20,2,FALSE),"") -> 0 | AI89: =IF(VALUE(INDIRECT(CONCATENATE($AI$11,ROW())))=0,"",ABS(INDIRECT(CONCATENATE($AI$11,ROW())))+0.000001*G89) -> 235.000605 | AJ89: 32 | AK89: 24 | AL89: 28 | AM89: =IF(ISERROR(SEARCH($AM$11,AE89)),0,1) -> 1 | AN89: =VLOOKUP(D89,[3]Setup!$I$6:$K$93,3,FALSE) -> 1 | AO89: =ROUND(IFERROR(IF(AN89=1,Y89,IF(AN89=2,AC89,IF(AN89=3,AD89,AC89))),0),5) -> 577.5 | AQ89: =IFERROR(MATCH(D89,[3]Setup!$I$6:$I$93,0),"") -> 27 | AR89: =IFERROR(CONCATENATE(LEFT(D89,FIND("-",D89)),IF(AS89="","O",VLOOKUP(AS89,[3]DATA!$E$35:$F$53,2,TRUE))),"") -> MR-O | AS89: =IF(YEAR($AR$7)-YEAR(I89)<40,DATEDIF(I89,$AR$7,"Y"),YEAR($AR$7)-YEAR(I89)) -> 27 | AT89: =IF(AN89=1,MATCH(F89,[3]DATA!$AB$2:$AB$34,0),0) -> 26 | AV89: =IF(MAX(K89:M89)>0,MAX(K89:M89),0) -> 217.5 | AW89: =IF(MAX(P89:R89)>0,MAX(P89:R89),0) -> 125 | AX89: =IF(MAX(U89:W89)>0,MAX(U89:W89),0) -> 235 | AY89: =AM89*IF($AM$11="PL",IF(MIN(AV89:AX89)=0,0,AV89+AW89+AX89),IF($AM$11="PP",IF(MIN(AW89:AX89)=0,0,AW89+AX89),IF($AM$11="BP",AW89,IF($AM$11="DL",AX89,AV89)))) -> 577.5 | AZ89: =ROUND(AY89*H89,5) -> 380.91901 | BA89: =ROUND(IFERROR(VLOOKUP(AS89,[3]DATA!$A$2:$B$63,2,FALSE),1)*AZ89,5) -> 380.91901 | BB89: =IFERROR(IF(AN89=1,AY89,IF(AN89=2,AZ89,IF(AN89=3,BA89,AZ89))),0) -> 577.5 | BZ89: =IFERROR(IF(FIND("DT",AE89),"Y",""),"") ->  | CB89: =CONCATENATE(IF(AN89=4,"",D89),IF(AN89=1,F89,"")) -> MR-O93 | CC89: =IF($AM$11="SQ",AJ89,IF($AM$11="BP",AK89,AL89)) -> 28 | CD89: =1+COUNTIFS(INDIRECT("AN12:AN500"),AN89,INDIRECT("CB12:CB500"),CB89,INDIRECT("AO12:AO500"),">"&AO89) +COUNTIFS(INDIRECT("AO12:AO500"),AO89,INDIRECT("AN12:AN500"),1,INDIRECT("CB12:CB500"),CB89,INDIRECT("E12:E500"),"<"&E89) +COUNTIFS(INDIRECT("AO12:AO500"),AO89,INDIRECT("AN12:AN500"),1,INDIRECT("CB12:CB500"),CB89,INDIRECT("E12:E500"),E89,INDIRECT("CC12:CC500"),"<"&CC89) -> 11 | CE89: =1+COUNTIFS(INDIRECT("AN12:AN500"),AN89,INDIRECT("CB12:CB500"),CB89,INDIRECT("BB12:BB500"),">"&BB89) +COUNTIFS(INDIRECT("BB12:BB500"),BB89,INDIRECT("AN12:AN500"),1,INDIRECT("CB12:CB500"),CB89,INDIRECT("E12:E500"),"<"&E89) -> 11
A90: 3A | B90: Justin Kiehl | C90: NC | D90: MR-O | E90: 88 | F90: =IFERROR(VLOOKUP(E90,[3]DATA!$E$2:$G$22,IF(LEFT(D90,1)="M",2,3)),"") -> 93 | G90: 601 | H90: =IFERROR(IF(LEFT(D90,1)="M",Wilks_Men(IF($E$11="Bwt - Lb",E90/2.2046,E90)),Wilks_Women(IF($E$11="Bwt - Lb",E90/2.2046,E90))),"") -> 0.6459000111 | I90: 1997-04-11 | J90: 18 | K90: 162.5 | L90: 175 | M90: 187.5 | N90: =IF(MAX(K90:M90)<=0,0,MAX(CELL("color",K90)*K90,CELL("color",L90)*L90,CELL("color",M90)*M90)) -> 187.5 | O90: 16-5 | P90: 102.5 | Q90: 120 | R90: 130 | S90: =IF(MAX(P90:R90)<=0,0,MAX(CELL("color",P90)*P90,CELL("color",Q90)*Q90,CELL("color",R90)*R90)) -> 130 | T90: =IF(OR(N90=0,S90=0),0,N90+S90) -> 317.5 | U90: 207.5 | V90: 220 | W90: 237.5 | X90: =IF(MAX(U90:W90)<=0,0,MAX(CELL("color",U90)*U90,CELL("color",V90)*V90,CELL("color",W90)*W90)) -> 237.5 | Y90: =AM90*IF($AM$11="SQ",N90,IF($AM$11="BP",S90,IF($AM$11="DL",X90,IF($AM$11="PP",IF(OR(S90=0,X90=0),0,S90+X90),IF(OR(T90=0,X90=0),0,T90+X90))))) -> 555 | Z90: =IF(Y90=0,"",CONCATENATE(CD90,"/",IF(AN90=4,"Wilks",D90),"/",IF(AN90>1,"",F90),"/",$AM$11)) -> 12/MR-O/93/PL | AA90: =BB90 -> 555 | AB90: =IF(AA90=0,"",CE90) -> 12 | AC90: =H90*IF($E$3="Kg",Y90,Y90/2.2046) -> 358.4745061 | AD90: =IFERROR(VLOOKUP(AS90,[3]DATA!$A$2:$B$63,2,TRUE),0)*AC90 -> 369.2287413 | AE90: PL | AF90: 1015835 | AG90: NC | AH90: =IFERROR(VLOOKUP(A90,[3]Setup!$Q$5:$R$20,2,FALSE),"") -> 0 | AI90: =IF(VALUE(INDIRECT(CONCATENATE($AI$11,ROW())))=0,"",ABS(INDIRECT(CONCATENATE($AI$11,ROW())))+0.000001*G90) -> 237.500601 | AJ90: 29 | AK90: 23 | AL90: 29 | AM90: =IF(ISERROR(SEARCH($AM$11,AE90)),0,1) -> 1 | AN90: =VLOOKUP(D90,[3]Setup!$I$6:$K$93,3,FALSE) -> 1 | AO90: =ROUND(IFERROR(IF(AN90=1,Y90,IF(AN90=2,AC90,IF(AN90=3,AD90,AC90))),0),5) -> 555 | AQ90: =IFERROR(MATCH(D90,[3]Setup!$I$6:$I$93,0),"") -> 27 | AR90: =IFERROR(CONCATENATE(LEFT(D90,FIND("-",D90)),IF(AS90="","O",VLOOKUP(AS90,[3]DATA!$E$35:$F$53,2,TRUE))),"") -> MR-Jr | AS90: =IF(YEAR($AR$7)-YEAR(I90)<40,DATEDIF(I90,$AR$7,"Y"),YEAR($AR$7)-YEAR(I90)) -> 20 | AT90: =IF(AN90=1,MATCH(F90,[3]DATA!$AB$2:$AB$34,0),0) -> 26 | AV90: =IF(MAX(K90:M90)>0,MAX(K90:M90),0) -> 187.5 | AW90: =IF(MAX(P90:R90)>0,MAX(P90:R90),0) -> 130 | AX90: =IF(MAX(U90:W90)>0,MAX(U90:W90),0) -> 237.5 | AY90: =AM90*IF($AM$11="PL",IF(MIN(AV90:AX90)=0,0,AV90+AW90+AX90),IF($AM$11="PP",IF(MIN(AW90:AX90)=0,0,AW90+AX90),IF($AM$11="BP",AW90,IF($AM$11="DL",AX90,AV90)))) -> 555 | AZ90: =ROUND(AY90*H90,5) -> 358.47451 | BA90: =ROUND(IFERROR(VLOOKUP(AS90,[3]DATA!$A$2:$B$63,2,FALSE),1)*AZ90,5) -> 369.22875 | BB90: =IFERROR(IF(AN90=1,AY90,IF(AN90=2,AZ90,IF(AN90=3,BA90,AZ90))),0) -> 555 | BZ90: =IFERROR(IF(FIND("DT",AE90),"Y",""),"") ->  | CB90: =CONCATENATE(IF(AN90=4,"",D90),IF(AN90=1,F90,"")) -> MR-O93 | CC90: =IF($AM$11="SQ",AJ90,IF($AM$11="BP",AK90,AL90)) -> 29 | CD90: =1+COUNTIFS(INDIRECT("AN12:AN500"),AN90,INDIRECT("CB12:CB500"),CB90,INDIRECT("AO12:AO500"),">"&AO90) +COUNTIFS(INDIRECT("AO12:AO500"),AO90,INDIRECT("AN12:AN500"),1,INDIRECT("CB12:CB500"),CB90,INDIRECT("E12:E500"),"<"&E90) +COUNTIFS(INDIRECT("AO12:AO500"),AO90,INDIRECT("AN12:AN500"),1,INDIRECT("CB12:CB500"),CB90,INDIRECT("E12:E500"),E90,INDIRECT("CC12:CC500"),"<"&CC90) -> 12 | CE90: =1+COUNTIFS(INDIRECT("AN12:AN500"),AN90,INDIRECT("CB12:CB500"),CB90,INDIRECT("BB12:BB500"),">"&BB90) +COUNTIFS(INDIRECT("BB12:BB500"),BB90,INDIRECT("AN12:AN500"),1,INDIRECT("CB12:CB500"),CB90,INDIRECT("E12:E500"),"<"&E90) -> 12
A91: 3B | B91: Jonathan Russell | C91: SC | D91: MR-O | E91: 91.4 | F91: =IFERROR(VLOOKUP(E91,[3]DATA!$E$2:$G$22,IF(LEFT(D91,1)="M",2,3)),"") -> 93 | G91: 710 | H91: =IFERROR(IF(LEFT(D91,1)="M",Wilks_Men(IF($E$11="Bwt - Lb",E91/2.2046,E91)),Wilks_Women(IF($E$11="Bwt - Lb",E91/2.2046,E91))),"") -> 0.63349998 | I91: 1986-05-21 | J91: 17 | K91: -180 | L91: 185 | M91: 190 | N91: =IF(MAX(K91:M91)<=0,0,MAX(CELL("color",K91)*K91,CELL("color",L91)*L91,CELL("color",M91)*M91)) -> 190 | O91: 15-8 | P91: 130 | Q91: -137.5 | R91: -137.5 | S91: =IF(MAX(P91:R91)<=0,0,MAX(CELL("color",P91)*P91,CELL("color",Q91)*Q91,CELL("color",R91)*R91)) -> 130 | T91: =IF(OR(N91=0,S91=0),0,N91+S91) -> 320 | U91: 187.5 | V91: 197.5 | W91: 210 | X91: =IF(MAX(U91:W91)<=0,0,MAX(CELL("color",U91)*U91,CELL("color",V91)*V91,CELL("color",W91)*W91)) -> 210 | Y91: =AM91*IF($AM$11="SQ",N91,IF($AM$11="BP",S91,IF($AM$11="DL",X91,IF($AM$11="PP",IF(OR(S91=0,X91=0),0,S91+X91),IF(OR(T91=0,X91=0),0,T91+X91))))) -> 530 | Z91: =IF(Y91=0,"",CONCATENATE(CD91,"/",IF(AN91=4,"Wilks",D91),"/",IF(AN91>1,"",F91),"/",$AM$11)) -> 13/MR-O/93/PL | AA91: =BB91 -> 530 | AB91: =IF(AA91=0,"",CE91) -> 13 | AC91: =H91*IF($E$3="Kg",Y91,Y91/2.2046) -> 335.7549894 | AD91: =IFERROR(VLOOKUP(AS91,[3]DATA!$A$2:$B$63,2,TRUE),0)*AC91 -> 335.7549894 | AE91: PL BP | AG91: SC | AH91: =IFERROR(VLOOKUP(A91,[3]Setup!$Q$5:$R$20,2,FALSE),"") -> 1 | AI91: =IF(VALUE(INDIRECT(CONCATENATE($AI$11,ROW())))=0,"",ABS(INDIRECT(CONCATENATE($AI$11,ROW())))+0.000001*G91) -> 210.00071 | AJ91: 56 | AK91: 29 | AL91: 52 | AM91: =IF(ISERROR(SEARCH($AM$11,AE91)),0,1) -> 1 | AN91: =VLOOKUP(D91,[3]Setup!$I$6:$K$93,3,FALSE) -> 1 | AO91: =ROUND(IFERROR(IF(AN91=1,Y91,IF(AN91=2,AC91,IF(AN91=3,AD91,AC91))),0),5) -> 530 | AQ91: =IFERROR(MATCH(D91,[3]Setup!$I$6:$I$93,0),"") -> 27 | AR91: =IFERROR(CONCATENATE(LEFT(D91,FIND("-",D91)),IF(AS91="","O",VLOOKUP(AS91,[3]DATA!$E$35:$F$53,2,TRUE))),"") -> MR-O | AS91: =IF(YEAR($AR$7)-YEAR(I91)<40,DATEDIF(I91,$AR$7,"Y"),YEAR($AR$7)-YEAR(I91)) -> 31 | AT91: =IF(AN91=1,MATCH(F91,[3]DATA!$AB$2:$AB$34,0),0) -> 26 | AV91: =IF(MAX(K91:M91)>0,MAX(K91:M91),0) -> 190 | AW91: =IF(MAX(P91:R91)>0,MAX(P91:R91),0) -> 130 | AX91: =IF(MAX(U91:W91)>0,MAX(U91:W91),0) -> 210 | AY91: =AM91*IF($AM$11="PL",IF(MIN(AV91:AX91)=0,0,AV91+AW91+AX91),IF($AM$11="PP",IF(MIN(AW91:AX91)=0,0,AW91+AX91),IF($AM$11="BP",AW91,IF($AM$11="DL",AX91,AV91)))) -> 530 | AZ91: =ROUND(AY91*H91,5) -> 335.75499 | BA91: =ROUND(IFERROR(VLOOKUP(AS91,[3]DATA!$A$2:$B$63,2,FALSE),1)*AZ91,5) -> 335.75499 | BB91: =IFERROR(IF(AN91=1,AY91,IF(AN91=2,AZ91,IF(AN91=3,BA91,AZ91))),0) -> 530 | BZ91: =IFERROR(IF(FIND("DT",AE91),"Y",""),"") ->  | CB91: =CONCATENATE(IF(AN91=4,"",D91),IF(AN91=1,F91,"")) -> MR-O93 | CC91: =IF($AM$11="SQ",AJ91,IF($AM$11="BP",AK91,AL91)) -> 52 | CD91: =1+COUNTIFS(INDIRECT("AN12:AN500"),AN91,INDIRECT("CB12:CB500"),CB91,INDIRECT("AO12:AO500"),">"&AO91) +COUNTIFS(INDIRECT("AO12:AO500"),AO91,INDIRECT("AN12:AN500"),1,INDIRECT("CB12:CB500"),CB91,INDIRECT("E12:E500"),"<"&E91) +COUNTIFS(INDIRECT("AO12:AO500"),AO91,INDIRECT("AN12:AN500"),1,INDIRECT("CB12:CB500"),CB91,INDIRECT("E12:E500"),E91,INDIRECT("CC12:CC500"),"<"&CC91) -> 13 | CE91: =1+COUNTIFS(INDIRECT("AN12:AN500"),AN91,INDIRECT("CB12:CB500"),CB91,INDIRECT("BB12:BB500"),">"&BB91) +COUNTIFS(INDIRECT("BB12:BB500"),BB91,INDIRECT("AN12:AN500"),1,INDIRECT("CB12:CB500"),CB91,INDIRECT("E12:E500"),"<"&E91) -> 13
A92: 1B | B92: Josh Edwards | C92: NC | D92: MR-O | E92: 89.88 | F92: =IFERROR(VLOOKUP(E92,[2]DATA!$E$2:$G$22,IF(LEFT(D92,1)="M",2,3)),"") -> 93 | G92: 106 | H92: =IFERROR(IF(LEFT(D92,1)="M",Wilks_Men(IF($E$11="Bwt - Lb",E92/2.2046,E92)),Wilks_Women(IF($E$11="Bwt - Lb",E92/2.2046,E92))),"") -> 0.638800025 | I92: 1972-05-11 | J92: 15 | K92: 157.5 | L92: 170 | M92: 182.5 | N92: =IF(MAX(K92:M92)<=0,0,MAX(CELL("color",K92)*K92,CELL("color",L92)*L92,CELL("color",M92)*M92)) -> 182.5 | O92: 15-8 | P92: 62.5 | Q92: 92.5 | R92: 110 | S92: =IF(MAX(P92:R92)<=0,0,MAX(CELL("color",P92)*P92,CELL("color",Q92)*Q92,CELL("color",R92)*R92)) -> 110 | T92: =IF(OR(N92=0,S92=0),0,N92+S92) -> 292.5 | U92: 215 | V92: 232.5 | W92: -242.5 | X92: =IF(MAX(U92:W92)<=0,0,MAX(CELL("color",U92)*U92,CELL("color",V92)*V92,CELL("color",W92)*W92)) -> 232.5 | Y92: =AM92*IF($AM$11="SQ",N92,IF($AM$11="BP",S92,IF($AM$11="DL",X92,IF($AM$11="PP",IF(OR(S92=0,X92=0),0,S92+X92),IF(OR(T92=0,X92=0),0,T92+X92))))) -> 525 | Z92: =IF(Y92=0,"",CONCATENATE(CD92,"/",IF(AN92=4,"Wilks",D92),"/",IF(AN92>1,"",F92),"/",$AM$11)) -> 14/MR-O/93/PL | AA92: =BB92 -> 525 | AB92: =IF(AA92=0,"",CE92) -> 14 | AC92: =H92*IF($E$3="Kg",Y92,Y92/2.2046) -> 335.3700131 | AD92: =IFERROR(VLOOKUP(AS92,[2]DATA!$A$2:$B$63,2,TRUE),0)*AC92 -> 358.175174 | AE92: PL | AF92: 1012315 | AG92: NC | AH92: =IFERROR(VLOOKUP(A92,[2]Setup!$Q$5:$R$20,2,FALSE),"") -> 1 | AI92: =IF(VALUE(INDIRECT(CONCATENATE($AI$11,ROW())))=0,"",ABS(INDIRECT(CONCATENATE($AI$11,ROW())))+0.000001*G92) -> 242.500106 | AJ92: 68 | AK92: 66 | AL92: 61 | AM92: =IF(ISERROR(SEARCH($AM$11,AE92)),0,1) -> 1 | AN92: =VLOOKUP(D92,[2]Setup!$I$6:$K$93,3,FALSE) -> 1 | AO92: =ROUND(IFERROR(IF(AN92=1,Y92,IF(AN92=2,AC92,IF(AN92=3,AD92,AC92))),0),5) -> 525 | AQ92: =IFERROR(MATCH(D92,[2]Setup!$I$6:$I$93,0),"") -> 27 | AR92: =IFERROR(CONCATENATE(LEFT(D92,FIND("-",D92)),IF(AS92="","O",VLOOKUP(AS92,[2]DATA!$E$35:$F$53,2,TRUE))),"") -> MR-M1b | AS92: =IF(YEAR($AR$7)-YEAR(I92)<40,DATEDIF(I92,$AR$7,"Y"),YEAR($AR$7)-YEAR(I92)) -> 46 | AT92: =IF(AN92=1,MATCH(F92,[2]DATA!$AB$2:$AB$34,0),0) -> 26 | AV92: =IF(MAX(K92:M92)>0,MAX(K92:M92),0) -> 182.5 | AW92: =IF(MAX(P92:R92)>0,MAX(P92:R92),0) -> 110 | AX92: =IF(MAX(U92:W92)>0,MAX(U92:W92),0) -> 232.5 | AY92: =AM92*IF($AM$11="PL",IF(MIN(AV92:AX92)=0,0,AV92+AW92+AX92),IF($AM$11="PP",IF(MIN(AW92:AX92)=0,0,AW92+AX92),IF($AM$11="BP",AW92,IF($AM$11="DL",AX92,AV92)))) -> 525 | AZ92: =ROUND(AY92*H92,5) -> 335.37001 | BA92: =ROUND(IFERROR(VLOOKUP(AS92,[2]DATA!$A$2:$B$63,2,FALSE),1)*AZ92,5) -> 358.17517 | BB92: =IFERROR(IF(AN92=1,AY92,IF(AN92=2,AZ92,IF(AN92=3,BA92,AZ92))),0) -> 525 | BZ92: =IFERROR(IF(FIND("DT",AE92),"Y",""),"") ->  | CB92: =CONCATENATE(IF(AN92=4,"",D92),IF(AN92=1,F92,"")) -> MR-O93 | CC92: =IF($AM$11="SQ",AJ92,IF($AM$11="BP",AK92,AL92)) -> 61 | CD92: =1+COUNTIFS(INDIRECT("AN12:AN500"),AN92,INDIRECT("CB12:CB500"),CB92,INDIRECT("AO12:AO500"),">"&AO92) +COUNTIFS(INDIRECT("AO12:AO500"),AO92,INDIRECT("AN12:AN500"),1,INDIRECT("CB12:CB500"),CB92,INDIRECT("E12:E500"),"<"&E92) +COUNTIFS(INDIRECT("AO12:AO500"),AO92,INDIRECT("AN12:AN500"),1,INDIRECT("CB12:CB500"),CB92,INDIRECT("E12:E500"),E92,INDIRECT("CC12:CC500"),"<"&CC92) -> 14 | CE92: =1+COUNTIFS(INDIRECT("AN12:AN500"),AN92,INDIRECT("CB12:CB500"),CB92,INDIRECT("BB12:BB500"),">"&BB92) +COUNTIFS(INDIRECT("BB12:BB500"),BB92,INDIRECT("AN12:AN500"),1,INDIRECT("CB12:CB500"),CB92,INDIRECT("E12:E500"),"<"&E92) -> 14
A93: 3A | B93: Tony Donati | C93: VA | D93: MR-O | E93: 89.06 | F93: =IFERROR(VLOOKUP(E93,[3]DATA!$E$2:$G$22,IF(LEFT(D93,1)="M",2,3)),"") -> 93 | G93: 206 | H93: =IFERROR(IF(LEFT(D93,1)="M",Wilks_Men(IF($E$11="Bwt - Lb",E93/2.2046,E93)),Wilks_Women(IF($E$11="Bwt - Lb",E93/2.2046,E93))),"") -> 0.6417999864 | I93: 1993-09-16 | J93: 14 | K93: 155 | L93: 165 | M93: 177.5 | N93: =IF(MAX(K93:M93)<=0,0,MAX(CELL("color",K93)*K93,CELL("color",L93)*L93,CELL("color",M93)*M93)) -> 177.5 | O93: 14-8 | P93: 130 | Q93: 137.5 | R93: 147.5 | S93: =IF(MAX(P93:R93)<=0,0,MAX(CELL("color",P93)*P93,CELL("color",Q93)*Q93,CELL("color",R93)*R93)) -> 147.5 | T93: =IF(OR(N93=0,S93=0),0,N93+S93) -> 325 | U93: 165 | V93: 180 | W93: -190 | X93: =IF(MAX(U93:W93)<=0,0,MAX(CELL("color",U93)*U93,CELL("color",V93)*V93,CELL("color",W93)*W93)) -> 180 | Y93: =AM93*IF($AM$11="SQ",N93,IF($AM$11="BP",S93,IF($AM$11="DL",X93,IF($AM$11="PP",IF(OR(S93=0,X93=0),0,S93+X93),IF(OR(T93=0,X93=0),0,T93+X93))))) -> 505 | Z93: =IF(Y93=0,"",CONCATENATE(CD93,"/",IF(AN93=4,"Wilks",D93),"/",IF(AN93>1,"",F93),"/",$AM$11)) -> 15/MR-O/93/PL | AA93: =BB93 -> 505 | AB93: =IF(AA93=0,"",CE93) -> 15 | AC93: =H93*IF($E$3="Kg",Y93,Y93/2.2046) -> 324.1089931 | AD93: =IFERROR(VLOOKUP(AS93,[3]DATA!$A$2:$B$63,2,TRUE),0)*AC93 -> 324.1089931 | AE93: PL | AF93: 1015493 | AG93: VA | AH93: =IFERROR(VLOOKUP(A93,[3]Setup!$Q$5:$R$20,2,FALSE),"") -> 0 | AI93: =IF(VALUE(INDIRECT(CONCATENATE($AI$11,ROW())))=0,"",ABS(INDIRECT(CONCATENATE($AI$11,ROW())))+0.000001*G93) -> 190.000206 | AJ93: 28 | AK93: 25 | AL93: 15 | AM93: =IF(ISERROR(SEARCH($AM$11,AE93)),0,1) -> 1 | AN93: =VLOOKUP(D93,[3]Setup!$I$6:$K$93,3,FALSE) -> 1 | AO93: =ROUND(IFERROR(IF(AN93=1,Y93,IF(AN93=2,AC93,IF(AN93=3,AD93,AC93))),0),5) -> 505 | AQ93: =IFERROR(MATCH(D93,[3]Setup!$I$6:$I$93,0),"") -> 27 | AR93: =IFERROR(CONCATENATE(LEFT(D93,FIND("-",D93)),IF(AS93="","O",VLOOKUP(AS93,[3]DATA!$E$35:$F$53,2,TRUE))),"") -> MR-O | AS93: =IF(YEAR($AR$7)-YEAR(I93)<40,DATEDIF(I93,$AR$7,"Y"),YEAR($AR$7)-YEAR(I93)) -> 24 | AT93: =IF(AN93=1,MATCH(F93,[3]DATA!$AB$2:$AB$34,0),0) -> 26 | AV93: =IF(MAX(K93:M93)>0,MAX(K93:M93),0) -> 177.5 | AW93: =IF(MAX(P93:R93)>0,MAX(P93:R93),0) -> 147.5 | AX93: =IF(MAX(U93:W93)>0,MAX(U93:W93),0) -> 180 | AY93: =AM93*IF($AM$11="PL",IF(MIN(AV93:AX93)=0,0,AV93+AW93+AX93),IF($AM$11="PP",IF(MIN(AW93:AX93)=0,0,AW93+AX93),IF($AM$11="BP",AW93,IF($AM$11="DL",AX93,AV93)))) -> 505 | AZ93: =ROUND(AY93*H93,5) -> 324.10899 | BA93: =ROUND(IFERROR(VLOOKUP(AS93,[3]DATA!$A$2:$B$63,2,FALSE),1)*AZ93,5) -> 324.10899 | BB93: =IFERROR(IF(AN93=1,AY93,IF(AN93=2,AZ93,IF(AN93=3,BA93,AZ93))),0) -> 505 | BZ93: =IFERROR(IF(FIND("DT",AE93),"Y",""),"") ->  | CB93: =CONCATENATE(IF(AN93=4,"",D93),IF(AN93=1,F93,"")) -> MR-O93 | CC93: =IF($AM$11="SQ",AJ93,IF($AM$11="BP",AK93,AL93)) -> 15 | CD93: =1+COUNTIFS(INDIRECT("AN12:AN500"),AN93,INDIRECT("CB12:CB500"),CB93,INDIRECT("AO12:AO500"),">"&AO93) +COUNTIFS(INDIRECT("AO12:AO500"),AO93,INDIRECT("AN12:AN500"),1,INDIRECT("CB12:CB500"),CB93,INDIRECT("E12:E500"),"<"&E93) +COUNTIFS(INDIRECT("AO12:AO500"),AO93,INDIRECT("AN12:AN500"),1,INDIRECT("CB12:CB500"),CB93,INDIRECT("E12:E500"),E93,INDIRECT("CC12:CC500"),"<"&CC93) -> 15 | CE93: =1+COUNTIFS(INDIRECT("AN12:AN500"),AN93,INDIRECT("CB12:CB500"),CB93,INDIRECT("BB12:BB500"),">"&BB93) +COUNTIFS(INDIRECT("BB12:BB500"),BB93,INDIRECT("AN12:AN500"),1,INDIRECT("CB12:CB500"),CB93,INDIRECT("E12:E500"),"<"&E93) -> 15
A94: 3A | B94: Justin Nuzum | C94: NC | D94: MR-O | E94: 90.64 | F94: =IFERROR(VLOOKUP(E94,[3]DATA!$E$2:$G$22,IF(LEFT(D94,1)="M",2,3)),"") -> 93 | G94: 611 | H94: =IFERROR(IF(LEFT(D94,1)="M",Wilks_Men(IF($E$11="Bwt - Lb",E94/2.2046,E94)),Wilks_Women(IF($E$11="Bwt - Lb",E94/2.2046,E94))),"") -> 0.6360999942 | I94: 1988-03-01 | J94: 18 | K94: 145 | L94: 150 | M94: -155 | N94: =IF(MAX(K94:M94)<=0,0,MAX(CELL("color",K94)*K94,CELL("color",L94)*L94,CELL("color",M94)*M94)) -> 150 | O94: 14-6 | P94: 125 | Q94: 132.5 | R94: -137.5 | S94: =IF(MAX(P94:R94)<=0,0,MAX(CELL("color",P94)*P94,CELL("color",Q94)*Q94,CELL("color",R94)*R94)) -> 132.5 | T94: =IF(OR(N94=0,S94=0),0,N94+S94) -> 282.5 | U94: 180 | V94: 185 | W94: 187.5 | X94: =IF(MAX(U94:W94)<=0,0,MAX(CELL("color",U94)*U94,CELL("color",V94)*V94,CELL("color",W94)*W94)) -> 187.5 | Y94: =AM94*IF($AM$11="SQ",N94,IF($AM$11="BP",S94,IF($AM$11="DL",X94,IF($AM$11="PP",IF(OR(S94=0,X94=0),0,S94+X94),IF(OR(T94=0,X94=0),0,T94+X94))))) -> 470 | Z94: =IF(Y94=0,"",CONCATENATE(CD94,"/",IF(AN94=4,"Wilks",D94),"/",IF(AN94>1,"",F94),"/",$AM$11)) -> 16/MR-O/93/PL | AA94: =BB94 -> 470 | AB94: =IF(AA94=0,"",CE94) -> 16 | AC94: =H94*IF($E$3="Kg",Y94,Y94/2.2046) -> 298.9669973 | AD94: =IFERROR(VLOOKUP(AS94,[3]DATA!$A$2:$B$63,2,TRUE),0)*AC94 -> 298.9669973 | AE94: PL BP | AF94: 1015833 | AG94: NC | AH94: =IFERROR(VLOOKUP(A94,[3]Setup!$Q$5:$R$20,2,FALSE),"") -> 0 | AI94: =IF(VALUE(INDIRECT(CONCATENATE($AI$11,ROW())))=0,"",ABS(INDIRECT(CONCATENATE($AI$11,ROW())))+0.000001*G94) -> 187.500611 | AJ94: 16 | AK94: 16 | AL94: 27 | AM94: =IF(ISERROR(SEARCH($AM$11,AE94)),0,1) -> 1 | AN94: =VLOOKUP(D94,[3]Setup!$I$6:$K$93,3,FALSE) -> 1 | AO94: =ROUND(IFERROR(IF(AN94=1,Y94,IF(AN94=2,AC94,IF(AN94=3,AD94,AC94))),0),5) -> 470 | AQ94: =IFERROR(MATCH(D94,[3]Setup!$I$6:$I$93,0),"") -> 27 | AR94: =IFERROR(CONCATENATE(LEFT(D94,FIND("-",D94)),IF(AS94="","O",VLOOKUP(AS94,[3]DATA!$E$35:$F$53,2,TRUE))),"") -> MR-O | AS94: =IF(YEAR($AR$7)-YEAR(I94)<40,DATEDIF(I94,$AR$7,"Y"),YEAR($AR$7)-YEAR(I94)) -> 30 | AT94: =IF(AN94=1,MATCH(F94,[3]DATA!$AB$2:$AB$34,0),0) -> 26 | AV94: =IF(MAX(K94:M94)>0,MAX(K94:M94),0) -> 150 | AW94: =IF(MAX(P94:R94)>0,MAX(P94:R94),0) -> 132.5 | AX94: =IF(MAX(U94:W94)>0,MAX(U94:W94),0) -> 187.5 | AY94: =AM94*IF($AM$11="PL",IF(MIN(AV94:AX94)=0,0,AV94+AW94+AX94),IF($AM$11="PP",IF(MIN(AW94:AX94)=0,0,AW94+AX94),IF($AM$11="BP",AW94,IF($AM$11="DL",AX94,AV94)))) -> 470 | AZ94: =ROUND(AY94*H94,5) -> 298.967 | BA94: =ROUND(IFERROR(VLOOKUP(AS94,[3]DATA!$A$2:$B$63,2,FALSE),1)*AZ94,5) -> 298.967 | BB94: =IFERROR(IF(AN94=1,AY94,IF(AN94=2,AZ94,IF(AN94=3,BA94,AZ94))),0) -> 470 | BZ94: =IFERROR(IF(FIND("DT",AE94),"Y",""),"") ->  | CB94: =CONCATENATE(IF(AN94=4,"",D94),IF(AN94=1,F94,"")) -> MR-O93 | CC94: =IF($AM$11="SQ",AJ94,IF($AM$11="BP",AK94,AL94)) -> 27 | CD94: =1+COUNTIFS(INDIRECT("AN12:AN500"),AN94,INDIRECT("CB12:CB500"),CB94,INDIRECT("AO12:AO500"),">"&AO94) +COUNTIFS(INDIRECT("AO12:AO500"),AO94,INDIRECT("AN12:AN500"),1,INDIRECT("CB12:CB500"),CB94,INDIRECT("E12:E500"),"<"&E94) +COUNTIFS(INDIRECT("AO12:AO500"),AO94,INDIRECT("AN12:AN500"),1,INDIRECT("CB12:CB500"),CB94,INDIRECT("E12:E500"),E94,INDIRECT("CC12:CC500"),"<"&CC94) -> 16 | CE94: =1+COUNTIFS(INDIRECT("AN12:AN500"),AN94,INDIRECT("CB12:CB500"),CB94,INDIRECT("BB12:BB500"),">"&BB94) +COUNTIFS(INDIRECT("BB12:BB500"),BB94,INDIRECT("AN12:AN500"),1,INDIRECT("CB12:CB500"),CB94,INDIRECT("E12:E500"),"<"&E94) -> 16
A95: 1B | B95: Russel Robinson | C95: NC | D95: MR-O | E95: 91.58 | F95: =IFERROR(VLOOKUP(E95,[2]DATA!$E$2:$G$22,IF(LEFT(D95,1)="M",2,3)),"") -> 93 | G95: 108 | H95: =IFERROR(IF(LEFT(D95,1)="M",Wilks_Men(IF($E$11="Bwt - Lb",E95/2.2046,E95)),Wilks_Women(IF($E$11="Bwt - Lb",E95/2.2046,E95))),"") -> 0.6328999996 | I95: 1970-07-27 | J95: 15 | K95: 130 | L95: 135 | M95: 147.5 | N95: =IF(MAX(K95:M95)<=0,0,MAX(CELL("color",K95)*K95,CELL("color",L95)*L95,CELL("color",M95)*M95)) -> 147.5 | O95: 14-6 | P95: 102.5 | Q95: 107.5 | R95: -117.5 | S95: =IF(MAX(P95:R95)<=0,0,MAX(CELL("color",P95)*P95,CELL("color",Q95)*Q95,CELL("color",R95)*R95)) -> 107.5 | T95: =IF(OR(N95=0,S95=0),0,N95+S95) -> 255 | U95: 152.5 | V95: 160 | W95: 167.5 | X95: =IF(MAX(U95:W95)<=0,0,MAX(CELL("color",U95)*U95,CELL("color",V95)*V95,CELL("color",W95)*W95)) -> 167.5 | Y95: =AM95*IF($AM$11="SQ",N95,IF($AM$11="BP",S95,IF($AM$11="DL",X95,IF($AM$11="PP",IF(OR(S95=0,X95=0),0,S95+X95),IF(OR(T95=0,X95=0),0,T95+X95))))) -> 422.5 | Z95: =IF(Y95=0,"",CONCATENATE(CD95,"/",IF(AN95=4,"Wilks",D95),"/",IF(AN95>1,"",F95),"/",$AM$11)) -> 17/MR-O/93/PL | AA95: =BB95 -> 422.5 | AB95: =IF(AA95=0,"",CE95) -> 17 | AC95: =H95*IF($E$3="Kg",Y95,Y95/2.2046) -> 267.4002498 | AD95: =IFERROR(VLOOKUP(AS95,[2]DATA!$A$2:$B$63,2,TRUE),0)*AC95 -> 293.3380741 | AE95: PL | AG95: NC | AH95: =IFERROR(VLOOKUP(A95,[2]Setup!$Q$5:$R$20,2,FALSE),"") -> 1 | AI95: =IF(VALUE(INDIRECT(CONCATENATE($AI$11,ROW())))=0,"",ABS(INDIRECT(CONCATENATE($AI$11,ROW())))+0.000001*G95) -> 167.500108 | AJ95: 65 | AK95: 52 | AL95: 70 | AM95: =IF(ISERROR(SEARCH($AM$11,AE95)),0,1) -> 1 | AN95: =VLOOKUP(D95,[2]Setup!$I$6:$K$93,3,FALSE) -> 1 | AO95: =ROUND(IFERROR(IF(AN95=1,Y95,IF(AN95=2,AC95,IF(AN95=3,AD95,AC95))),0),5) -> 422.5 | AQ95: =IFERROR(MATCH(D95,[2]Setup!$I$6:$I$93,0),"") -> 27 | AR95: =IFERROR(CONCATENATE(LEFT(D95,FIND("-",D95)),IF(AS95="","O",VLOOKUP(AS95,[2]DATA!$E$35:$F$53,2,TRUE))),"") -> MR-M1b | AS95: =IF(YEAR($AR$7)-YEAR(I95)<40,DATEDIF(I95,$AR$7,"Y"),YEAR($AR$7)-YEAR(I95)) -> 48 | AT95: =IF(AN95=1,MATCH(F95,[2]DATA!$AB$2:$AB$34,0),0) -> 26 | AV95: =IF(MAX(K95:M95)>0,MAX(K95:M95),0) -> 147.5 | AW95: =IF(MAX(P95:R95)>0,MAX(P95:R95),0) -> 107.5 | AX95: =IF(MAX(U95:W95)>0,MAX(U95:W95),0) -> 167.5 | AY95: =AM95*IF($AM$11="PL",IF(MIN(AV95:AX95)=0,0,AV95+AW95+AX95),IF($AM$11="PP",IF(MIN(AW95:AX95)=0,0,AW95+AX95),IF($AM$11="BP",AW95,IF($AM$11="DL",AX95,AV95)))) -> 422.5 | AZ95: =ROUND(AY95*H95,5) -> 267.40025 | BA95: =ROUND(IFERROR(VLOOKUP(AS95,[2]DATA!$A$2:$B$63,2,FALSE),1)*AZ95,5) -> 293.33807 | BB95: =IFERROR(IF(AN95=1,AY95,IF(AN95=2,AZ95,IF(AN95=3,BA95,AZ95))),0) -> 422.5 | BZ95: =IFERROR(IF(FIND("DT",AE95),"Y",""),"") ->  | CB95: =CONCATENATE(IF(AN95=4,"",D95),IF(AN95=1,F95,"")) -> MR-O93 | CC95: =IF($AM$11="SQ",AJ95,IF($AM$11="BP",AK95,AL95)) -> 70 | CD95: =1+COUNTIFS(INDIRECT("AN12:AN500"),AN95,INDIRECT("CB12:CB500"),CB95,INDIRECT("AO12:AO500"),">"&AO95) +COUNTIFS(INDIRECT("AO12:AO500"),AO95,INDIRECT("AN12:AN500"),1,INDIRECT("CB12:CB500"),CB95,INDIRECT("E12:E500"),"<"&E95) +COUNTIFS(INDIRECT("AO12:AO500"),AO95,INDIRECT("AN12:AN500"),1,INDIRECT("CB12:CB500"),CB95,INDIRECT("E12:E500"),E95,INDIRECT("CC12:CC500"),"<"&CC95) -> 17 | CE95: =1+COUNTIFS(INDIRECT("AN12:AN500"),AN95,INDIRECT("CB12:CB500"),CB95,INDIRECT("BB12:BB500"),">"&BB95) +COUNTIFS(INDIRECT("BB12:BB500"),BB95,INDIRECT("AN12:AN500"),1,INDIRECT("CB12:CB500"),CB95,INDIRECT("E12:E500"),"<"&E95) -> 17
A96: 3B | B96: Matthew McHugh | C96: MI | D96: MR-O | E96: 104.6 | F96: =IFERROR(VLOOKUP(E96,[3]DATA!$E$2:$G$22,IF(LEFT(D96,1)="M",2,3)),"") -> 105 | G96: 706 | H96: =IFERROR(IF(LEFT(D96,1)="M",Wilks_Men(IF($E$11="Bwt - Lb",E96/2.2046,E96)),Wilks_Women(IF($E$11="Bwt - Lb",E96/2.2046,E96))),"") -> 0.5983999968 | I96: 1989-02-11 | J96: 17 | K96: 260 | L96: 272.5 | M96: -280 | N96: =IF(MAX(K96:M96)<=0,0,MAX(CELL("color",K96)*K96,CELL("color",L96)*L96,CELL("color",M96)*M96)) -> 272.5 | O96: 16-8 | P96: 172.5 | Q96: 185 | R96: -192.5 | S96: =IF(MAX(P96:R96)<=0,0,MAX(CELL("color",P96)*P96,CELL("color",Q96)*Q96,CELL("color",R96)*R96)) -> 185 | T96: =IF(OR(N96=0,S96=0),0,N96+S96) -> 457.5 | U96: 265 | V96: 280 | W96: -287.5 | X96: =IF(MAX(U96:W96)<=0,0,MAX(CELL("color",U96)*U96,CELL("color",V96)*V96,CELL("color",W96)*W96)) -> 280 | Y96: =AM96*IF($AM$11="SQ",N96,IF($AM$11="BP",S96,IF($AM$11="DL",X96,IF($AM$11="PP",IF(OR(S96=0,X96=0),0,S96+X96),IF(OR(T96=0,X96=0),0,T96+X96))))) -> 737.5 | Z96: =IF(Y96=0,"",CONCATENATE(CD96,"/",IF(AN96=4,"Wilks",D96),"/",IF(AN96>1,"",F96),"/",$AM$11)) -> 1/MR-O/105/PL | AA96: =BB96 -> 737.5 | AB96: =IF(AA96=0,"",CE96) -> 1 | AC96: =H96*IF($E$3="Kg",Y96,Y96/2.2046) -> 441.3199976 | AD96: =IFERROR(VLOOKUP(AS96,[3]DATA!$A$2:$B$63,2,TRUE),0)*AC96 -> 441.3199976 | AE96: PL | AF96: 926746 | AG96: MI | AH96: =IFERROR(VLOOKUP(A96,[3]Setup!$Q$5:$R$20,2,FALSE),"") -> 1 | AI96: =IF(VALUE(INDIRECT(CONCATENATE($AI$11,ROW())))=0,"",ABS(INDIRECT(CONCATENATE($AI$11,ROW())))+0.000001*G96) -> 287.500706 | AJ96: 55 | AK96: 46 | AL96: 50 | AM96: =IF(ISERROR(SEARCH($AM$11,AE96)),0,1) -> 1 | AN96: =VLOOKUP(D96,[3]Setup!$I$6:$K$93,3,FALSE) -> 1 | AO96: =ROUND(IFERROR(IF(AN96=1,Y96,IF(AN96=2,AC96,IF(AN96=3,AD96,AC96))),0),5) -> 737.5 | AQ96: =IFERROR(MATCH(D96,[3]Setup!$I$6:$I$93,0),"") -> 27 | AR96: =IFERROR(CONCATENATE(LEFT(D96,FIND("-",D96)),IF(AS96="","O",VLOOKUP(AS96,[3]DATA!$E$35:$F$53,2,TRUE))),"") -> MR-O | AS96: =IF(YEAR($AR$7)-YEAR(I96)<40,DATEDIF(I96,$AR$7,"Y"),YEAR($AR$7)-YEAR(I96)) -> 29 | AT96: =IF(AN96=1,MATCH(F96,[3]DATA!$AB$2:$AB$34,0),0) -> 28 | AV96: =IF(MAX(K96:M96)>0,MAX(K96:M96),0) -> 272.5 | AW96: =IF(MAX(P96:R96)>0,MAX(P96:R96),0) -> 185 | AX96: =IF(MAX(U96:W96)>0,MAX(U96:W96),0) -> 280 | AY96: =AM96*IF($AM$11="PL",IF(MIN(AV96:AX96)=0,0,AV96+AW96+AX96),IF($AM$11="PP",IF(MIN(AW96:AX96)=0,0,AW96+AX96),IF($AM$11="BP",AW96,IF($AM$11="DL",AX96,AV96)))) -> 737.5 | AZ96: =ROUND(AY96*H96,5) -> 441.32 | BA96: =ROUND(IFERROR(VLOOKUP(AS96,[3]DATA!$A$2:$B$63,2,FALSE),1)*AZ96,5) -> 441.32 | BB96: =IFERROR(IF(AN96=1,AY96,IF(AN96=2,AZ96,IF(AN96=3,BA96,AZ96))),0) -> 737.5 | BZ96: =IFERROR(IF(FIND("DT",AE96),"Y",""),"") ->  | CB96: =CONCATENATE(IF(AN96=4,"",D96),IF(AN96=1,F96,"")) -> MR-O105 | CC96: =IF($AM$11="SQ",AJ96,IF($AM$11="BP",AK96,AL96)) -> 50 | CD96: =1+COUNTIFS(INDIRECT("AN12:AN500"),AN96,INDIRECT("CB12:CB500"),CB96,INDIRECT("AO12:AO500"),">"&AO96) +COUNTIFS(INDIRECT("AO12:AO500"),AO96,INDIRECT("AN12:AN500"),1,INDIRECT("CB12:CB500"),CB96,INDIRECT("E12:E500"),"<"&E96) +COUNTIFS(INDIRECT("AO12:AO500"),AO96,INDIRECT("AN12:AN500"),1,INDIRECT("CB12:CB500"),CB96,INDIRECT("E12:E500"),E96,INDIRECT("CC12:CC500"),"<"&CC96) -> 1 | CE96: =1+COUNTIFS(INDIRECT("AN12:AN500"),AN96,INDIRECT("CB12:CB500"),CB96,INDIRECT("BB12:BB500"),">"&BB96) +COUNTIFS(INDIRECT("BB12:BB500"),BB96,INDIRECT("AN12:AN500"),1,INDIRECT("CB12:CB500"),CB96,INDIRECT("E12:E500"),"<"&E96) -> 1
A97: 3B | B97: Brian Mason | C97: SC | D97: MR-O | E97: 94.7 | F97: =IFERROR(VLOOKUP(E97,[3]DATA!$E$2:$G$22,IF(LEFT(D97,1)="M",2,3)),"") -> 105 | G97: 613 | H97: =IFERROR(IF(LEFT(D97,1)="M",Wilks_Men(IF($E$11="Bwt - Lb",E97/2.2046,E97)),Wilks_Women(IF($E$11="Bwt - Lb",E97/2.2046,E97))),"") -> 0.6229000092 | I97: 1984-12-25 | J97: 16 | K97: 210 | L97: 225 | M97: 230 | N97: =IF(MAX(K97:M97)<=0,0,MAX(CELL("color",K97)*K97,CELL("color",L97)*L97,CELL("color",M97)*M97)) -> 230 | O97: 16-5 | P97: 172.5 | Q97: 182.5 | R97: 187.5 | S97: =IF(MAX(P97:R97)<=0,0,MAX(CELL("color",P97)*P97,CELL("color",Q97)*Q97,CELL("color",R97)*R97)) -> 187.5 | T97: =IF(OR(N97=0,S97=0),0,N97+S97) -> 417.5 | U97: 277.5 | V97: 297.5 | W97: -320 | X97: =IF(MAX(U97:W97)<=0,0,MAX(CELL("color",U97)*U97,CELL("color",V97)*V97,CELL("color",W97)*W97)) -> 297.5 | Y97: =AM97*IF($AM$11="SQ",N97,IF($AM$11="BP",S97,IF($AM$11="DL",X97,IF($AM$11="PP",IF(OR(S97=0,X97=0),0,S97+X97),IF(OR(T97=0,X97=0),0,T97+X97))))) -> 715 | Z97: =IF(Y97=0,"",CONCATENATE(CD97,"/",IF(AN97=4,"Wilks",D97),"/",IF(AN97>1,"",F97),"/",$AM$11)) -> 2/MR-O/105/PL | AA97: =BB97 -> 715 | AB97: =IF(AA97=0,"",CE97) -> 2 | AC97: =H97*IF($E$3="Kg",Y97,Y97/2.2046) -> 445.3735065 | AD97: =IFERROR(VLOOKUP(AS97,[3]DATA!$A$2:$B$63,2,TRUE),0)*AC97 -> 445.3735065 | AE97: PL BP | AF97: 100401 | AG97: SC | AH97: =IFERROR(VLOOKUP(A97,[3]Setup!$Q$5:$R$20,2,FALSE),"") -> 1 | AI97: =IF(VALUE(INDIRECT(CONCATENATE($AI$11,ROW())))=0,"",ABS(INDIRECT(CONCATENATE($AI$11,ROW())))+0.000001*G97) -> 320.000613 | AJ97: 61 | AK97: 54 | AL97: 51 | AM97: =IF(ISERROR(SEARCH($AM$11,AE97)),0,1) -> 1 | AN97: =VLOOKUP(D97,[3]Setup!$I$6:$K$93,3,FALSE) -> 1 | AO97: =ROUND(IFERROR(IF(AN97=1,Y97,IF(AN97=2,AC97,IF(AN97=3,AD97,AC97))),0),5) -> 715 | AQ97: =IFERROR(MATCH(D97,[3]Setup!$I$6:$I$93,0),"") -> 27 | AR97: =IFERROR(CONCATENATE(LEFT(D97,FIND("-",D97)),IF(AS97="","O",VLOOKUP(AS97,[3]DATA!$E$35:$F$53,2,TRUE))),"") -> MR-O | AS97: =IF(YEAR($AR$7)-YEAR(I97)<40,DATEDIF(I97,$AR$7,"Y"),YEAR($AR$7)-YEAR(I97)) -> 33 | AT97: =IF(AN97=1,MATCH(F97,[3]DATA!$AB$2:$AB$34,0),0) -> 28 | AV97: =IF(MAX(K97:M97)>0,MAX(K97:M97),0) -> 230 | AW97: =IF(MAX(P97:R97)>0,MAX(P97:R97),0) -> 187.5 | AX97: =IF(MAX(U97:W97)>0,MAX(U97:W97),0) -> 297.5 | AY97: =AM97*IF($AM$11="PL",IF(MIN(AV97:AX97)=0,0,AV97+AW97+AX97),IF($AM$11="PP",IF(MIN(AW97:AX97)=0,0,AW97+AX97),IF($AM$11="BP",AW97,IF($AM$11="DL",AX97,AV97)))) -> 715 | AZ97: =ROUND(AY97*H97,5) -> 445.37351 | BA97: =ROUND(IFERROR(VLOOKUP(AS97,[3]DATA!$A$2:$B$63,2,FALSE),1)*AZ97,5) -> 445.37351 | BB97: =IFERROR(IF(AN97=1,AY97,IF(AN97=2,AZ97,IF(AN97=3,BA97,AZ97))),0) -> 715 | BZ97: =IFERROR(IF(FIND("DT",AE97),"Y",""),"") ->  | CB97: =CONCATENATE(IF(AN97=4,"",D97),IF(AN97=1,F97,"")) -> MR-O105 | CC97: =IF($AM$11="SQ",AJ97,IF($AM$11="BP",AK97,AL97)) -> 51 | CD97: =1+COUNTIFS(INDIRECT("AN12:AN500"),AN97,INDIRECT("CB12:CB500"),CB97,INDIRECT("AO12:AO500"),">"&AO97) +COUNTIFS(INDIRECT("AO12:AO500"),AO97,INDIRECT("AN12:AN500"),1,INDIRECT("CB12:CB500"),CB97,INDIRECT("E12:E500"),"<"&E97) +COUNTIFS(INDIRECT("AO12:AO500"),AO97,INDIRECT("AN12:AN500"),1,INDIRECT("CB12:CB500"),CB97,INDIRECT("E12:E500"),E97,INDIRECT("CC12:CC500"),"<"&CC97) -> 2 | CE97: =1+COUNTIFS(INDIRECT("AN12:AN500"),AN97,INDIRECT("CB12:CB500"),CB97,INDIRECT("BB12:BB500"),">"&BB97) +COUNTIFS(INDIRECT("BB12:BB500"),BB97,INDIRECT("AN12:AN500"),1,INDIRECT("CB12:CB500"),CB97,INDIRECT("E12:E500"),"<"&E97) -> 2
A98: 3B | B98: Randall Moss | C98: SC | D98: MR-O | E98: 104.94 | F98: =IFERROR(VLOOKUP(E98,[3]DATA!$E$2:$G$22,IF(LEFT(D98,1)="M",2,3)),"") -> 105 | G98: 707 | H98: =IFERROR(IF(LEFT(D98,1)="M",Wilks_Men(IF($E$11="Bwt - Lb",E98/2.2046,E98)),Wilks_Women(IF($E$11="Bwt - Lb",E98/2.2046,E98))),"") -> 0.5976999998 | I98: 1989-02-03 | J98: 17 | K98: 235 | L98: 250 | M98: 257.5 | N98: =IF(MAX(K98:M98)<=0,0,MAX(CELL("color",K98)*K98,CELL("color",L98)*L98,CELL("color",M98)*M98)) -> 257.5 | O98: 13-6 | P98: 152.5 | Q98: 162.5 | R98: 165 | S98: =IF(MAX(P98:R98)<=0,0,MAX(CELL("color",P98)*P98,CELL("color",Q98)*Q98,CELL("color",R98)*R98)) -> 165 | T98: =IF(OR(N98=0,S98=0),0,N98+S98) -> 422.5 | U98: 250 | V98: 265 | W98: 272.5 | X98: =IF(MAX(U98:W98)<=0,0,MAX(CELL("color",U98)*U98,CELL("color",V98)*V98,CELL("color",W98)*W98)) -> 272.5 | Y98: =AM98*IF($AM$11="SQ",N98,IF($AM$11="BP",S98,IF($AM$11="DL",X98,IF($AM$11="PP",IF(OR(S98=0,X98=0),0,S98+X98),IF(OR(T98=0,X98=0),0,T98+X98))))) -> 695 | Z98: =IF(Y98=0,"",CONCATENATE(CD98,"/",IF(AN98=4,"Wilks",D98),"/",IF(AN98>1,"",F98),"/",$AM$11)) -> 3/MR-O/105/PL | AA98: =BB98 -> 695 | AB98: =IF(AA98=0,"",CE98) -> 3 | AC98: =H98*IF($E$3="Kg",Y98,Y98/2.2046) -> 415.4014999 | AD98: =IFERROR(VLOOKUP(AS98,[3]DATA!$A$2:$B$63,2,TRUE),0)*AC98 -> 415.4014999 | AE98: PL | AF98: 920080 | AG98: SC | AH98: =IFERROR(VLOOKUP(A98,[3]Setup!$Q$5:$R$20,2,FALSE),"") -> 1 | AI98: =IF(VALUE(INDIRECT(CONCATENATE($AI$11,ROW())))=0,"",ABS(INDIRECT(CONCATENATE($AI$11,ROW())))+0.000001*G98) -> 272.500707 | AJ98: 65 | AK98: 53 | AL98: 55 | AM98: =IF(ISERROR(SEARCH($AM$11,AE98)),0,1) -> 1 | AN98: =VLOOKUP(D98,[3]Setup!$I$6:$K$93,3,FALSE) -> 1 | AO98: =ROUND(IFERROR(IF(AN98=1,Y98,IF(AN98=2,AC98,IF(AN98=3,AD98,AC98))),0),5) -> 695 | AQ98: =IFERROR(MATCH(D98,[3]Setup!$I$6:$I$93,0),"") -> 27 | AR98: =IFERROR(CONCATENATE(LEFT(D98,FIND("-",D98)),IF(AS98="","O",VLOOKUP(AS98,[3]DATA!$E$35:$F$53,2,TRUE))),"") -> MR-O | AS98: =IF(YEAR($AR$7)-YEAR(I98)<40,DATEDIF(I98,$AR$7,"Y"),YEAR($AR$7)-YEAR(I98)) -> 29 | AT98: =IF(AN98=1,MATCH(F98,[3]DATA!$AB$2:$AB$34,0),0) -> 28 | AV98: =IF(MAX(K98:M98)>0,MAX(K98:M98),0) -> 257.5 | AW98: =IF(MAX(P98:R98)>0,MAX(P98:R98),0) -> 165 | AX98: =IF(MAX(U98:W98)>0,MAX(U98:W98),0) -> 272.5 | AY98: =AM98*IF($AM$11="PL",IF(MIN(AV98:AX98)=0,0,AV98+AW98+AX98),IF($AM$11="PP",IF(MIN(AW98:AX98)=0,0,AW98+AX98),IF($AM$11="BP",AW98,IF($AM$11="DL",AX98,AV98)))) -> 695 | AZ98: =ROUND(AY98*H98,5) -> 415.4015 | BA98: =ROUND(IFERROR(VLOOKUP(AS98,[3]DATA!$A$2:$B$63,2,FALSE),1)*AZ98,5) -> 415.4015 | BB98: =IFERROR(IF(AN98=1,AY98,IF(AN98=2,AZ98,IF(AN98=3,BA98,AZ98))),0) -> 695 | BZ98: =IFERROR(IF(FIND("DT",AE98),"Y",""),"") ->  | CB98: =CONCATENATE(IF(AN98=4,"",D98),IF(AN98=1,F98,"")) -> MR-O105 | CC98: =IF($AM$11="SQ",AJ98,IF($AM$11="BP",AK98,AL98)) -> 55 | CD98: =1+COUNTIFS(INDIRECT("AN12:AN500"),AN98,INDIRECT("CB12:CB500"),CB98,INDIRECT("AO12:AO500"),">"&AO98) +COUNTIFS(INDIRECT("AO12:AO500"),AO98,INDIRECT("AN12:AN500"),1,INDIRECT("CB12:CB500"),CB98,INDIRECT("E12:E500"),"<"&E98) +COUNTIFS(INDIRECT("AO12:AO500"),AO98,INDIRECT("AN12:AN500"),1,INDIRECT("CB12:CB500"),CB98,INDIRECT("E12:E500"),E98,INDIRECT("CC12:CC500"),"<"&CC98) -> 3 | CE98: =1+COUNTIFS(INDIRECT("AN12:AN500"),AN98,INDIRECT("CB12:CB500"),CB98,INDIRECT("BB12:BB500"),">"&BB98) +COUNTIFS(INDIRECT("BB12:BB500"),BB98,INDIRECT("AN12:AN500"),1,INDIRECT("CB12:CB500"),CB98,INDIRECT("E12:E500"),"<"&E98) -> 3
